Workbook

Sheet GUIA PARA PREENCHIMENTO
A1: GUIA PARA PREENCHIMENTO
A3: 1 - Preencher apenas as guias azuis:
A5: 2 - Recomendamos preencher somente as células com fundo azul claro. As demais possuem fórmulas e sugerimos não alterá-las.

Sheet MODELO PROPOSTA
B2: MODELO DA PROPOSTA COMPLETA
B4: .
B5: I – FORMALIZAÇÃO
B7: PREGÃO ELETRÔNICO N. 138/2023
B8: OBJETO: Prestação de serviços de formação técnico-profissional metódica de adolescentes aprendizes, por entidade sem fins lucrativos (ESFL), com atividades teóricas a serem realizadas em local(is) a ser(em) disponibilizado(s) pela Contratada e atividades práticas a serem realizadas nas dependências da Contratante, pelo período de 24 (vinte e quatro) meses.
B9: LICITANTE: _____________________________________________________
B10: CNPJ: ________________________________________________________
B11: ENDEREÇO COMPLETO: _________________________________________
B12: TELEFONE:_____________________________________________________
B13: E-MAIL: ________________________________________________________
B17: Apresentamos nossa proposta para o item único da presente licitação, de acordo com as disposições do Edital.
B18: Decorre do conteúdo da presente proposta a explicitação do seguinte PREÇO DE JULGAMENTO (GLOBAL PARA O PERÍODO DE 24 (VINTE E QUATRO) MESES) PARA O ITEM:
B19: R$:
B22: (por extenso)
B24: No valor proposto estão incluídos todos os custos e todas as despesas, diretas e indiretas, para a execução dos serviços objeto da licitação, em conformidade com as especificações e demais condições e exigências constantes do Edital.
B26: O prazo de validade da presente proposta é de ______ (por extenso) dias. (observado o disposto no Título 10 do Edital).
B28: Convenção coletiva de trabalho ou a norma coletiva a que estamos obrigados:
B29: Data-Base:
B30: Número do Registro no SRT:
B31: Regime de tributação da empresa:
B32: Empresa adere ao PAT (Programa de Alimentação do Trabalhador)?
B33: (Se adere ao PAT): Os valores apresentados na presente proposta consideram eventuais descontos aos empregados?
B35: DECLARAÇÕES
B38: Declaramos que:
B39: a) o item único constante desta proposta corresponde exatamente às especificações descritas no Anexo n. 1 e às condições de execução dos serviços descritas no Anexo n. 5 do Edital, às quais aderimos formalmente;
B40: b) disponibilizaremos instalações, equipamentos e pessoal técnico adequados para realização do objeto da presente licitação.
B45: DADOS PARA ASSINATURA DO CONTRATO
B46: Nome do signatário
B47: Cargo
B48: Qualificação (CPF, naturalidade e domicílio)
B49: OBS.: O signatário deve possuir poderes de administração estabelecidos em contrato social e/ou possuir procuração com poderes para assinar contratos em nome da empresa. A documentação comprobatória deverá ser encaminhada quando da assinatura do contrato.
B52: Brasília, de de 2023.
B54: Assinatura do representante legal da empresa
B57: Nome do representante legal da empresa

Sheet Remunerações
B1: QUADRO DE REMUNERAÇÕES
C3: ITEM | D3: CATEGORIA | E3: QUANTIDADE | F3: SALÁRIO | G3: ADICIONAL DE PERICULOSIDADE | H3: ADICIONAL DE INSALUBRIDADE | I3: ADICIONAL NOTURNO | J3: OUTROS | K3: SALÁRIO COM ADICIONAIS
C5: 1 | D5: =HLOOKUP($C5,'Dados Gerais'!$D$5:$G$68,6) -> ADOLESCENTE APRENDIZ | E5: =HLOOKUP($C5,'Dados Gerais'!$D$5:$G$68,10) -> 180 | F5: =HLOOKUP($C5,'Dados Gerais'!$D$5:$G$68,8) -> 1320 | G5: =HLOOKUP($C5,'Dados Gerais'!$D$5:$G$68,26) -> 0 | H5: =HLOOKUP($C5,'Dados Gerais'!$D$5:$G$68,32) -> 0 | I5: =HLOOKUP($C5,'Dados Gerais'!$D$5:$G$68,47) -> 0 | J5: =HLOOKUP($C5,'Dados Gerais'!$D$5:$G$68,34) -> 0 | K5: =SUM(F5:J5) -> 1320
C7: 3 | D7: =HLOOKUP($C7,'Dados Gerais'!$D$5:$G$68,6) -> 0 | E7: =HLOOKUP($C7,'Dados Gerais'!$D$5:$G$68,10) -> 0 | F7: =HLOOKUP($C7,'Dados Gerais'!$D$5:$G$68,8) -> 0 | G7: =HLOOKUP($C7,'Dados Gerais'!$D$5:$G$68,26) -> 0 | H7: =HLOOKUP($C7,'Dados Gerais'!$D$5:$G$68,32) -> 0 | I7: =HLOOKUP($C7,'Dados Gerais'!$D$5:$G$68,47) -> 0 | J7: =HLOOKUP($C7,'Dados Gerais'!$D$5:$G$68,34) -> 0 | K7: =SUM(F7:J7) -> 0
C8: 4 | D8: =HLOOKUP($C8,'Dados Gerais'!$D$5:$G$68,6) -> 0 | E8: =HLOOKUP($C8,'Dados Gerais'!$D$5:$G$68,10) -> 0 | F8: =HLOOKUP($C8,'Dados Gerais'!$D$5:$G$68,8) -> 0 | G8: =HLOOKUP($C8,'Dados Gerais'!$D$5:$G$68,26) -> 0 | H8: =HLOOKUP($C8,'Dados Gerais'!$D$5:$G$68,32) -> 0 | I8: =HLOOKUP($C8,'Dados Gerais'!$D$5:$G$68,47) -> 0 | J8: =HLOOKUP($C8,'Dados Gerais'!$D$5:$G$68,34) -> 0 | K8: 0
C9: 5 | D9: =HLOOKUP($C9,'Dados Gerais'!$D$5:$G$68,6) -> 0 | E9: =HLOOKUP($C9,'Dados Gerais'!$D$5:$G$68,10) -> 0 | F9: =HLOOKUP($C9,'Dados Gerais'!$D$5:$G$68,8) -> 0 | G9: =HLOOKUP($C9,'Dados Gerais'!$D$5:$G$68,26) -> 0 | H9: =HLOOKUP($C9,'Dados Gerais'!$D$5:$G$68,32) -> 0 | I9: =HLOOKUP($C9,'Dados Gerais'!$D$5:$G$68,47) -> 0 | J9: =HLOOKUP($C9,'Dados Gerais'!$D$5:$G$68,34) -> 0 | K9: 0
C10: 6 | D10: =HLOOKUP($C10,'Dados Gerais'!$D$5:$H$68,6) -> 0 | E10: =HLOOKUP($C10,'Dados Gerais'!$D$5:$H$68,10) -> 0 | F10: =HLOOKUP($C10,'Dados Gerais'!$D$5:$H$68,8) -> 0 | G10: =HLOOKUP($C10,'Dados Gerais'!$D$5:$G$68,26) -> 0 | H10: =HLOOKUP($C10,'Dados Gerais'!$D$5:$G$68,32) -> 0 | I10: =HLOOKUP($C10,'Dados Gerais'!$D$5:$G$68,47) -> 0 | J10: =HLOOKUP($C10,'Dados Gerais'!$D$5:$G$68,34) -> 0 | K10: 0
D12: TOTAL DE POSTOS | E12: =SUM(E5:E11) -> 180

Sheet Resumo
B3: RESUMO - TOTAIS MENSAIS - FATURA ORDINÁRIA (SEM O 13º E SEM OS ITENS SOB DEMANDA)
C6: ITEM | D6: POSTO DE TRABALHO | E6: QUANTIDADE | F6: PREÇO UNIT (SEM O 13º) | G6: DESTAQUE DO 13º | H6: PREÇO POR EMPREGADO | I6: PREÇO TOTAL (MENSAL)
C7: 1 | D7: =HLOOKUP(C7,'Dados Gerais'!$D$5:$BJ$10,6) -> ADOLESCENTE APRENDIZ | E7: =HLOOKUP(C7,'Dados Gerais'!$D$5:$BJ$14,10) -> 180 | F7: ='1'!$E$116 -> 2734.184075 | G7: 0 | H7: =G7+F7 -> 2734.184075 | I7: =H7*E7 -> 492153.1335
D9: TOTAL MENSAL - SALÁRIOS | I9: =SUM(I7:I8) -> 492153.1335
B12: RESUMO - TOTAIS MENSAIS - DESTAQUE DO 13º SALÁRIO
C15: ITEM | D15: POSTO DE TRABALHO | E15: QUANTIDADE | F15: PREÇO UNIT (SEM O 13º) | G15: DESTAQUE DO 13º | H15: PREÇO POR EMPREGADO | I15: PREÇO TOTAL (MENSAL)
C16: 1 | D16: =HLOOKUP(C16,'Dados Gerais'!$D$5:$BJ$10,6) -> ADOLESCENTE APRENDIZ | E16: =HLOOKUP(C16,'Dados Gerais'!$D$5:$BJ$14,10) -> 180 | F16: 0 | G16: =G25 -> 117.89 | H16: =G16+F16 -> 117.89 | I16: =H16*E16 -> 21220.2
D18: TOTAL MENSAL - DESTAQUE DO 13º | I18: =SUM(I16:I17) -> 21220.2
B21: RESUMO - TOTAIS MENSAIS - FATURA ORDINÁRIA TOTAL
C24: ITEM | D24: POSTO DE TRABALHO | E24: QUANTIDADE | F24: PREÇO UNIT (SEM O 13º) | G24: DESTAQUE DO 13º | H24: PREÇO POR EMPREGADO | I24: PREÇO TOTAL (MENSAL)
C25: 1 | D25: =HLOOKUP(C25,'Dados Gerais'!$D$5:$BJ$10,6) -> ADOLESCENTE APRENDIZ | E25: =HLOOKUP(C25,'Dados Gerais'!$D$5:$BJ$14,10) -> 180 | F25: ='1'!$E$116 -> 2734.184075 | G25: ='1'!$E$117 -> 117.89 | H25: =G25+F25 -> 2852.074075 | I25: =H25*E25 -> 513373.3335 | K25: =I25/$I$27 -> 1 | L25: =$I$40*K25 -> 0
K26: =I26/$I$27 -> 0 | L26: =#REF!*K26 -> 
D27: TOTAL MENSAL - SALÁRIOS | I27: =SUM(I25:I26) -> 513373.3335
C29: ITEM | D29: DESCRIÇÃO | I29: PREÇO TOTAL (MENSAL)
C30: EQUIP | D30: EQUIPAMENTOS NÃO RELACIONADOS DIRETAMENTE A UM POSTO DE TRABALHO | I30: ='Não Rel - Depr'!M65 -> 0
C31: HEXTRA | D31: HORAS EXTRAS | I31: ='Não Rel - Depr'!M65 -> 0
C32: HNOT | D32: ADICIONAL DE HORAS NOTURNAS (SOB DEMANDA)
C33: SREP | D33: SISTEMA DE REGISTRO ELETRÔNICO DE PRESENÇA - SREP
C34: EPI - N.REL | D34: EQUIPAMENTOS DE PROTEÇÃO INDIVIDUAL NÃO RELACIONADOS DIRETAMENTE A UM POSTO DE TRABALHO
C35: EQUIP - N.REL | D35: EQUIPAMENTOS NÃO RELACIONADAS DIRETAMENTE A UM POSTO DE TRABALHO
C36: MAT | D36: MATERIAIS NÃO RELACIONADOS DIRETAMENTE A UM POSTO DE TRABALHO
C37: MAT CONS DURAVEL | D37: MATERIAIS DE CONSUMO DURÁVEL NÃO RELACIONADOS DIRETAMENTE A UM POSTO DE TRABALHO
C38: EQ SOB DEMANDA | D38: SERVIÇOS NÃO RELACIONADOS DIRETAMENTE A UM POSTO DE TRABALHO - AQUISIÇÃO SOB DEMANDA
D40: TOTAL MENSAL | I40: =SUM(I30:I39) -> 0 | K40: =(I40+I27)*12 -> 6160480.002
D42: TOTAL MENSAL - ITENS ORDINÁRIOS
D43: DESCRIÇÃO | H43: VALOR
D44: Postos de Trabalho - Inclusive 13º Salário | H44: =I27 -> 513373.3335
D45: Adicional de Horas Noturnas | H45: =I32 -> 0
D46: Sistema de Registro Eletrônico de Presença - SREP | H46: =I33 -> 0
D47: Equipamentos de Proteção Individual não relacionados diretamente a um posto de trabalho | H47: =I34 -> 0
D48: Equipamentos não relacionadas diretamente a um posto de trabalho | H48: =I35 -> 0
D49: Materiais de consumo não relacionados diretamente a um posto de trabalho | H49: =$I$36 -> 0
D50: Materiais de consumo duráveis não relacionados diretamente a um posto de trabalho | H50: =$I$37 -> 0
G52: TOTAL MENSAL DA CONTRATAÇÃO | H52: =SUM(H44:H51) -> 513373.3335 | K52: =Extenso_Valor(H52) -> quinhentos e treze mil, trezentos e setenta e três reais e trinta e três centavos
D54: TOTAL ANUAL - ITENS ORDINÁRIOS
G56: 12 x TOTAL MENSAL | H56: =H52*12 -> 6160480.002 | K56: =Extenso_Valor(H56) -> seis milhões, cento e sessenta mil, quatrocentos e oitenta reais
D58: TOTAL MENSAL - ITENS SOB DEMANDA
D59: DESCRIÇÃO | H59: VALOR
D60: Serviços não relacionados diretamente a um posto de trabalho - AQUISIÇÃO SOB DEMANDA | H60: =I38 -> 0
G62: TOTAL MENSAL DA CONTRATAÇÃO | H62: =SUM(H60:H61) -> 0
D64: TOTAL ANUAL - ITENS SOB DEMANDA
G66: 12 x TOTAL MENSAL | H66: =H62*12 -> 0
D68: TOTAL ANUAL DA CONTRATAÇÃO
D72: TOTAL GLOBAL DA CONTRATAÇÃO (24 MESES)
H74: =H52*24 -> 12320960

Sheet 1
B2: PLANILHA DE ESTIMATIVA DE CUSTOS
B3: Padrão IN 05/2017 e IN 07/2018 - MPDG
B5: 1 | D5: =HLOOKUP($B$5,'Dados Gerais'!$D$5:$BJ$20,6) -> ADOLESCENTE APRENDIZ | E5: QUANTIDADE | F5: =HLOOKUP($B$5,'Dados Gerais'!$D$5:$BJ$20,10) -> 180
B6: CCT | D6: =HLOOKUP($B$5,'Dados Gerais'!$D$5:$BJ$20,15) -> - | E6: DATA-BASE | F6: =HLOOKUP($B$5,'Dados Gerais'!$D$5:$BJ$20,16) -> -
B8: MÓDULO 1 - COMPOSIÇÃO DA REMUNERAÇÃO | F8: Valor
C9: A | D9: Salário-Base | F9: =HLOOKUP($B$5,'Dados Gerais'!$D$5:$BJ$20,8) -> 1320
C10: B | D10: Adicional de Periculosidade | F10: =HLOOKUP($B$5,'Dados Gerais'!$D$5:$BJ$37,25) -> 0
C11: C | D11: Adicional de Insalubridade | F11: =HLOOKUP($B$5,'Dados Gerais'!$D$5:$BJ$37,31) -> 0
C12: D | D12: Adicional Noturno | F12: =HLOOKUP($B$5,'Dados Gerais'!$D$5:$BJ$50,46) -> 0 | H12: * Nota 1 - O Módulo 1 refere-se ao valor mensal devido ao empregado pela prestação do serviço no período de 12 meses.
C13: E | D13: Adicional de Hora Extra | F13: =HLOOKUP($B$5,'Dados Gerais'!$D$5:$BJ$67,63) -> 0 | H13: * Nota 2 - O adicional de hora extra no feriado trabalhado foi suprimido pela Lei 13.467/17
C14: F | D14: Outros (especificar) | F14: =HLOOKUP($B$5,'Dados Gerais'!$D$5:$BJ$59,33) -> 0 | H14: * Nota 3 - ART. 7º, § 2º, DA LEI Nº 605/49.Sendo mensalista o obreiro, o adicional noturno pago de forma fixa já é considerado integrado para os efeitos do pagamento do repouso semanal remunerado, nos termos do art. 7º, § 2º, da Lei nº 605/49.
D16: TOTAL DA REMUNERAÇÃO | F16: =SUM(F9:F14) -> 1320
B18: MÓDULO 2 - ENCARGOS E BENEFÍCIOS ANUAIS, MENSAIS E DIÁRIOS | E18: Percentuais | F18: Valor
B19: Submódulo 2.1 - 13º Salário, Férias e Adicional de Férias
C20: A | D20: 13º Salário - Calculado no Módulo 7 - Destacado | E20: 0 | F20: =ROUND(E20*F$16,2) -> 0
C21: B | D21: Férias e Adicional de Férias | E21: ='Encargos Sociais (APRENDIZ)'!E31+'Encargos Sociais (APRENDIZ)'!E25 -> 0.1111111111 | F21: =ROUND(E21*F$16,2) -> 146.67 | H21: * Nota 1 - Provisiona-se, mensalmente, o proporcional a 1/12 dos valores referentes a gratificação natalina, férias e adicional de férias.
H22: * Nota 2 - O adicional de férias contido no Submódulo 2.1 corresponde a 1/3 da remuneração que, por sua vez, é dividida por 12 contome Nota 1.
B23: Submódulo 2.2 - Encargos Previdenciários (GPS), Fundo de Garantia por Tempo de Serviço (FGTS) e Outras Contribuições
C24: A | D24: INSS (art. 22, inciso I, Lei nº 8.212/91) | E24: ='Encargos Sociais (APRENDIZ)'!E14 -> 0 | F24: =ROUND(E24*($F$16+$F$41+$F$73),2) -> 0
C25: B | D25: Salário Educação (art. 3º, inciso I, Decreto nº 87.043/82) | E25: ='Encargos Sociais (APRENDIZ)'!E15 -> 0 | F25: =ROUND(E25*($F$16+$F$41+$F$73),2) -> 0
C26: C | D26: SAT/RAT (art. 22, II, Lei 8.212/91 e Anexo V, Decreto 6.042/07) - Enquadramento 8211-3/00 | E26: ='Encargos Sociais (APRENDIZ)'!E16 -> 0 | F26: 0
C27: D | D27: SESC ou SESI (art. 30, Lei nº 8.036/90 e art. 1º, Lei 8.154/90) | E27: ='Encargos Sociais (APRENDIZ)'!E17 -> 0 | F27: 0
C28: E | D28: SENAI ou SENAC (Decreto nº 2.318/86) | E28: ='Encargos Sociais (APRENDIZ)'!E18 -> 0 | F28: 0
C29: F | D29: SEBRAE (§ 3º, art. 8º, Lei 8.029/90, alterada pela Lei nº 8.154/90) | E29: ='Encargos Sociais (APRENDIZ)'!E19 -> 0 | F29: 0
C30: G | D30: INCRA (art. 1º, I, Decreto Lei 1.146/70 e Lei 7.787, de 30/06/89) | E30: ='Encargos Sociais (APRENDIZ)'!E20 -> 0 | F30: 0 | H30: * Nota 1 - Os percentuais dos encargos previdenciários, do FGTS e demais contribuições são estabelecidos por legislação vigente.
C31: H | D31: FGTS (Lei Complementar nº 110/01 e art. 30, Lei nº 8.036/90) | E31: ='Encargos Sociais (APRENDIZ)'!E21 -> 0.02 | F31: 29.33 | H31: * Nota 2 - O SAT, a depender do grau de risco do serviço, irá variar entre 1%, para risco leve, de 2%, para risco médio, e de 3% para risco grave.
C32: I | D32: SECONCI (Convenções Coletivas de Trabalho da construção) | E32: ='Encargos Sociais (APRENDIZ)'!E22 -> 0 | F32: 0 | H32: * Nota 3 - Os percentuais do Submódulo 2.2 incidem sobre o Módulo 1 e o Submódulo 2.1.
B34: Submódulo 2.3 - Benefícios Mensais e Diários
C35: A | D35: Auxílio Transporte | F35: =HLOOKUP($B$5,'Dados Gerais'!$D$5:$BJ$93,82) -> 162.8
C36: B | D36: Auxílio Alimentação | F36: =HLOOKUP($B$5,'Dados Gerais'!$D$5:$BJ$93,89) -> 770
C37: C | D37: Assistência Médica e Familiar | F37: =HLOOKUP($B$5,'Dados Gerais'!$D$5:$BJ$101,97) -> 0
C38: D | D38: Outros (Seguro de vida e auxílio funeral e auxílio odontológico) | F38: ='Dados Gerais'!D118 -> 9.9 | H38: * Nota 1 - O valor informado deverá ser o custo real do benefício (descontado o valor eventualmente pago pelo empregado).
H39: * Nota 2 - Observar a previsão dos benefícios contidos em Acordos, Convenções e Dissídios Coletivos de Trabalho e o disposto no art. 6º da IN 5/2017
D40: QUADRO-RESUMO DO MÓDULO 2
D41: 2.1 - 13º Salário, Férias e Adicional de Férias - 13º Destacado - Calculado no Módulo 7 | E41: =SUM(E20:E21) -> 0.1111111111 | F41: =F20+F21 -> 146.67
D42: 2.2 - Encargos Previdenciários (GPS), Fundo de Garantia por Tempo de Serviço (FGTS) e Contribuições | E42: =SUM(E24:E32) -> 0.02 | F42: =SUM(F24:F32) -> 29.33
D43: 2.3 - Benefícios Mensais e Diários | F43: =SUM(F35:F38) -> 942.7
D45: TOTAL DOS ENCARGOS E BENEFÍCIOS | F45: =SUM(F41:F43) -> 1118.7
B47: MÓDULO 3 - PREVISÃO PARA RESCISÃO | E47: Percentuais | F47: Valor
C48: A | D48: Aviso Prévio Indenizado (Art. 7º, inciso XXI, da CF/1988 e arts. 477, 487, §1º, e 491 da CLT) | E48: ='Encargos Sociais (APRENDIZ)'!E36 -> 0 | F48: =ROUND(E48*$F$16,2) -> 0
C49: B | D49: Incidência do FGTS sobre o Aviso Prévio Indenizado (Súmula 305 TST) | E49: ='Encargos Sociais (APRENDIZ)'!E37 -> 0 | F49: 0 | H49: * Nota 1 - Adotou-se os parâmetros do estudo do STF (http://www.stf.jus.br/arquivo/cms/sobrestfestudosci/anexo/encargos_sociais_03102007.pdf), onde 5% do pessoal é demitido pelo empregador no decurso do contrato (para estes, considerou-se o aviso prévio indenizado). Desprezou-se as demissões por justa causa e os pedidos de demissão.
C50: C | D50: Multa do FGTS e Contribuição Social sobre o Aviso Prévio Indenizado (Art. 18, §1º, da Lei 8.036/1990 e art. 1º da LC nº 110/2001) | E50: ='Encargos Sociais (APRENDIZ)'!E38 -> 0 | F50: 0 | H50: * Nota 2 - No cálculo do percentual, considerou-se 36 dias, correspondendo à metade da duração média dos contratos (2 anos)
C51: D | D51: Aviso Prévio Trabalhado (Art. 488, parágrafo único, CLT) | E51: ='Encargos Sociais (APRENDIZ)'!E39 -> 0 | F51: 0 | H51: * Nota 3 - Incide sobre a Remuneração + 13º salário (1/12) + Férias (1/12) + Adicional de Férias (1/36) x 50% multa (40% para o empregado e 10% de contribuição social) x 8% FGTS
C52: E | D52: Incidência de GPS, FGTS e outras contribuições sobre o Aviso Prévio Trabalhado | E52: ='Encargos Sociais (APRENDIZ)'!E40 -> 0 | F52: 0 | H52: * Nota 4 - Os 95% restantes do cálculo, a um prazo médio de contrato de 4 anos. Assim, calcula-se 7 dias para o 1º ano de contrato e mais 3 dias para os 3 anos seguintes.
C53: F | D53: Multa do FGTS e Contribuição Social sobre o Aviso Prévio Trabalhado | E53: ='Encargos Sociais (APRENDIZ)'!E41 -> 0 | F53: 0
D55: TOTAL DE PREVISÃO PARA RESCISÃO | F55: =SUM(F48:F53) -> 0
B57: MÓDULO 4 - CUSTO DE SUBSTUIÇÃO DO PROFISSIONAL AUSENTE | E57: Percentuais | F57: Valor
B58: Submódulo 4.1 - Ausências Legais
C59: A | D59: Férias (Arts. 129 e 130, inc. I, da CLT) - do Substituto | E59: 0 | F59: =ROUND(E59*$F$16,2) -> 0 | H59: * Nota 1 - As alíneas “A” a “F” referem-se somente ao custo que será pago ao repositor pelos dias trabalhados quando da necessidade de substituir a mão de obra alocada na prestação do serviço.
C60: B | D60: Ausências Legais (Arts. 131 e 473 da CLT) | E60: ='Encargos Sociais (APRENDIZ)'!E26 -> 0 | F60: 0 | H60: * Nota 2 - Adotou-se a estimativa do SINAPI de 2 dias por ano.
C61: C | D61: Licença-Paternidade (Art. 7º, XIX, e art. 10, §1º, do ADCT, CF/1988 e Art. 1º, II, da Lei 11.770/2008) | E61: ='Encargos Sociais (APRENDIZ)'!E27 -> 0 | F61: 0 | H61: * Nota 3 - Utilizada a proporção de 50% para homens, 5 dias de afastamento, e a probabilidade de um trabalhador requerer a Licença Paternidade em 5,22%, conforme SINAPI (citando dados da PNAD 2015)
C62: D | D62: Ausência por Acidente de Trabalho (Art. 131, III, da CLT) | E62: ='Encargos Sociais (APRENDIZ)'!E28 -> 0 | F62: 0 | H62: * Nota 4 - Utilzada a estatística de 1,96% dos contribuintes beneficiados com a emissão do auxílio, conforme Anuário Estatístico da Previdência Social. Afastamento de 15 dias a cargo da empresa.
C63: E | D63: Afastamento Maternidade (Art. 71 da Lei nº 8.213/1991) | E63: ='Encargos Sociais (APRENDIZ)'!E29 -> 0 | F63: 0 | H63: * Nota 5 - Utilizada a proporção de 50% para mulheres, 180 dias de afastamento, e a probabilidade de uma trabalhadora requerer a Licença Maternidade em 4,91%, conforme SINAPI (citando dados do IBGE 2016)
C64: F | D64: Auxílio Enfermidade - Doença (Art. 59 da Lei nº 8.213/1991) | E64: ='Encargos Sociais (APRENDIZ)'!E30 -> 0 | F64: 0 | H64: * Nota 6 - Utilizada a estatística de 3,37% dos contribuintes beneficiados com o auxílio, conforme Anuário Estatístico da Previdência Social de 2015 (acrescidos de 2 dias ao ano, para os quais o trabalhador nem requer o benefício da Previdência - conforme SINAPI)
B66: Submódulo 4.2 - Intrajornada
C67: A | D67: Intervalo para repouso ou alimentação | E67: ='Encargos Sociais (APRENDIZ)'!E33 -> 0 | F67: =ROUND(E67*$F$16,2) -> 0
D69: QUADRO-RESUMO DO MÓDULO 4 | F69: Valor
D70: 4.1 - Ausências Legais | E70: =SUM(E59:E64) -> 0 | F70: =ROUND(E70*$F$16,2) -> 0
D71: 4.2 - Intrajornada | E71: =E67 -> 0 | F71: =ROUND(E71*$F$16,2) -> 0
D73: TOTAL DE PREVISÃO PARA RESCISÃO E INTERVALO INTRAJORNADA | F73: =SUM(F70:F71) -> 0
B75: MÓDULO 5 - INSUMOS DIVERSOS | F75: Valor
C76: A | D76: Uniformes - aquisição | F76: =ROUND(HLOOKUP($B$5,Uniformes!K4:DZ49,3)/12,2) -> 8.66
C77: B | D77: Materiais de consumo relacionados ao posto - aquisição | F77: =ROUND(HLOOKUP(B5,'Mat Cons'!I11:DX13,3)/12,2) -> 0
C78: C | D78: Materiais permanentes relacionados ao posto - remuneração da sua depreciação / manutenção | F78: =HLOOKUP(B5,'Mat Perm'!Q11:EF13,3) -> 0
C79: D | D79: Equipamentos relacionados ao posto - remuneração da sua depreciação / manutenção | F79: =HLOOKUP(B5,'Equip Rel'!Q11:EF13,3) -> 0
C80: E | D80: Equipamentos de Proteção Individual - EPI - aquisição | F80: =ROUND(HLOOKUP(B5,EPI!I4:DX6,3)/12,2) -> 0
C81: F | D81: Programa de Aprendizagem | F81: ='Dados Gerais'!D124 -> 154.89
D83: TOTAL DE INSUMOS DIVERSOS | F83: =SUM(F76:F82) -> 163.55 | H83: * Nota - Valores mensais por empregado
B85: MÓDULO 6 - CUSTOS INDIRETOS, TRIBUTOS E LUCRO - BDI | E85: Percentuais | F85: Valor
C86: A | D86: Custos Indiretos | E86: =BDI!E6 -> 0.035
C87: A.1 | D87: Administração Central | E87: =BDI!E7 -> 0.035
C88: A.2 | D88: Seguros, Garantias e Riscos | E88: =BDI!E8 -> 0
C89: B | D89: Lucro | E89: =BDI!E10 -> 0
C90: C | D90: Tributos | E90: =SUM(E91:E92) -> 0.01
C91: C.1 | D91: Tributos Federais (COFINS, PIS e CPRB) | E91: =BDI!E18 -> 0.01
C92: C.2 | D92: Tributos Distritais (ISS) | E92: =BDI!E23 -> 0 | H92: * Nota - Utilizou-se o indicado pelo Sindicato da Arquitetura e da Engenharia (Sinaenco, 2008, p. 22), que adota um percentual redutor de 20% no cálculo dos custos tributários relativos às contribuições PIS e COFINS
C93: D | D93: Despesas Financeiras | E93: =BDI!E13 -> 0.005056956743
D95: TOTAL DE BDI | E95: =BDI!E26 -> 0.0507 | F95: =E95*E103 -> 131.934075
D97: QUADRO-RESUMO DO CUSTO MENSAL POR EMPREGADO - SEM O 13º | E97: Valor
D98: Módulo 1 - Composição da Remuneração | E98: =F16 -> 1320
D99: Módulo 2 - Encargos e Benefícios Anuais, Mensais e Diários | E99: =F45 -> 1118.7
D100: Módulo 3 - Provisão para Rescisão | E100: =F55 -> 0
D101: Módulo 4 - Custo de Reposição do Profissional Ausente | E101: =F73 -> 0
D102: Módulo 5 - Insumos Diversos | E102: =F83 -> 163.55
D103: SUBTOTAL (A+B+C+D+E) | E103: =SUM(E98:E102) -> 2602.25
D104: Módulo 6 - Custos Indiretos, Tributos e Lucro | E104: =F95 -> 131.934075
D106: TOTAL DO POSTO | E106: =SUM(E103:E104) -> 2734.184075
B108: MÓDULO 7 - DESTAQUE DO MÓDULO 2 - 13º SALÁRIO | E108: Percentuais | F108: Valor
C109: A | D109: 13º Salário | E109: ='Encargos Sociais (APRENDIZ)'!E32 -> 0.08333333333 | F109: =ROUND(E109*F$16,2) -> 110
C110: B | D110: Encargos Sociais sobre o 13º Salário - Taxa calculada no SUBMÓDULO 2.2 | E110: =SUM($E$24:$E$32) -> 0.02 | F110: =ROUND(E110*$F$109,2) -> 2.2 | H110: * Nota 1 - Provisiona-se, mensalmente, o proporcional a 1/12 dos valores referentes a gratificação natalina e adicional de férias.
C111: C | D111: BDI sobre o 13º Salário - Taxa calculada no MÓDULO 6 | E111: =E95 -> 0.0507 | F111: =ROUND(E111*($F$109+$F$110),2) -> 5.69
D113: TOTAL DO DESTAQUE DO 13º SALÁRIO | F113: =SUM(F109:F111) -> 117.89
D115: QUADRO-RESUMO DO CUSTO MENSAL POR EMPREGADO | E115: Valor
D116: Custo total - sem o 13º Salário | E116: =E106 -> 2734.184075
D117: Destaque do 13º Salário (valor mensal) | E117: =F113 -> 117.89
D119: TOTAL DO POSTO | E119: =E116+E117 -> 2852.074075

Sheet 3 (hidden)
B2: PLANILHA DE ESTIMATIVA DE CUSTOS
B3: Padrão IN 05/2017 e IN 07/2018 - MPDG
B5: 3 | D5: =HLOOKUP($B$5,'Dados Gerais'!$D$5:$BJ$20,6) -> 0 | E5: QUANTIDADE | F5: =HLOOKUP($B$5,'Dados Gerais'!$D$5:$BJ$20,10) -> 0
B6: CCT | D6: =HLOOKUP($B$5,'Dados Gerais'!$D$5:$BJ$20,15) -> 0 | E6: DATA-BASE | F6: =HLOOKUP($B$5,'Dados Gerais'!$D$5:$BJ$20,16) -> 00:00:00
B8: MÓDULO 1 - COMPOSIÇÃO DA REMUNERAÇÃO | F8: Valor
C9: A | D9: Salário-Base | F9: =HLOOKUP($B$5,'Dados Gerais'!$D$5:$BJ$20,8) -> 0
C10: B | D10: Adicional de Periculosidade | F10: =HLOOKUP($B$5,'Dados Gerais'!$D$5:$BJ$37,25) -> 0
C11: C | D11: Adicional de Insalubridade | F11: =HLOOKUP($B$5,'Dados Gerais'!$D$5:$BJ$37,31) -> 0
C12: D | D12: Adicional Noturno | F12: =HLOOKUP($B$5,'Dados Gerais'!$D$5:$BJ$50,46) -> 0 | H12: * Nota 1 - O Módulo 1 refere-se ao valor mensal devido ao empregado pela prestação do serviço no período de 12 meses.
C13: E | D13: Adicional de Hora Extra | F13: =HLOOKUP($B$5,'Dados Gerais'!$D$5:$BJ$67,63) -> 0 | H13: * Nota 2 - O adicional de hora extra no feriado trabalhado foi suprimido pela Lei 13.467/17
C14: F | D14: Outros (especificar) | F14: =HLOOKUP($B$5,'Dados Gerais'!$D$5:$BJ$59,33) -> 0 | H14: * Nota 3 - ART. 7º, § 2º, DA LEI Nº 605/49.Sendo mensalista o obreiro, o adicional noturno pago de forma fixa já é considerado integrado para os efeitos do pagamento do repouso semanal remunerado, nos termos do art. 7º, § 2º, da Lei nº 605/49.
D16: TOTAL DA REMUNERAÇÃO | F16: =SUM(F9:F14) -> 0
B18: MÓDULO 2 - ENCARGOS E BENEFÍCIOS ANUAIS, MENSAIS E DIÁRIOS | E18: Percentuais | F18: Valor
B19: Submódulo 2.1 - 13º Salário, Férias e Adicional de Férias
C20: A | D20: 13º Salário - Calculado no Módulo 7 - Destacado | E20: 0 | F20: =ROUND(E20*F$16,2) -> 0
C21: B | D21: Férias e Adicional de Férias | E21: ='Encargos Sociais (APRENDIZ)'!E31 -> 0.02777777778 | F21: =ROUND(E21*F$16,2) -> 0 | H21: * Nota 1 - Provisiona-se, mensalmente, o proporcional a 1/12 dos valores referentes a gratificação natalina, férias e adicional de férias.
H22: * Nota 2 - O adicional de férias contido no Submódulo 2.1 corresponde a 1/3 da remuneração que, por sua vez, é dividida por 12 contome Nota 1.
B23: Submódulo 2.2 - Encargos Previdenciários (GPS), Fundo de Garantia por Tempo de Serviço (FGTS) e Outras Contribuições
C24: A | D24: INSS (art. 22, inciso I, Lei nº 8.212/91) | E24: ='Encargos Sociais (APRENDIZ)'!E14 -> 0 | F24: =ROUND(E24*($F$16+$F$41+$F$73),2) -> 0
C25: B | D25: Salário Educação (art. 3º, inciso I, Decreto nº 87.043/82) | E25: ='Encargos Sociais (APRENDIZ)'!E15 -> 0 | F25: =ROUND(E25*($F$16+$F$41+$F$73),2) -> 0
C26: C | D26: SAT/RAT (art. 22, II, Lei 8.212/91 e Anexo V, Decreto 6.042/07) - Enquadramento 8211-3/00 | E26: ='Encargos Sociais (APRENDIZ)'!E16 -> 0 | F26: 0
C27: D | D27: SESC ou SESI (art. 30, Lei nº 8.036/90 e art. 1º, Lei 8.154/90) | E27: ='Encargos Sociais (APRENDIZ)'!E17 -> 0 | F27: 0
C28: E | D28: SENAI ou SENAC (Decreto nº 2.318/86) | E28: ='Encargos Sociais (APRENDIZ)'!E18 -> 0 | F28: 0
C29: F | D29: SEBRAE (§ 3º, art. 8º, Lei 8.029/90, alterada pela Lei nº 8.154/90) | E29: ='Encargos Sociais (APRENDIZ)'!E19 -> 0 | F29: 0
C30: G | D30: INCRA (art. 1º, I, Decreto Lei 1.146/70 e Lei 7.787, de 30/06/89) | E30: ='Encargos Sociais (APRENDIZ)'!E20 -> 0 | F30: 0 | H30: * Nota 1 - Os percentuais dos encargos previdenciários, do FGTS e demais contribuições são estabelecidos por legislação vigente.
C31: H | D31: FGTS (Lei Complementar nº 110/01 e art. 30, Lei nº 8.036/90) | E31: ='Encargos Sociais (APRENDIZ)'!E21 -> 0.02 | F31: 0 | H31: * Nota 2 - O SAT, a depender do grau de risco do serviço, irá variar entre 1%, para risco leve, de 2%, para risco médio, e de 3% para risco grave.
C32: I | D32: SECONCI (Convenções Coletivas de Trabalho da construção) | E32: ='Encargos Sociais (APRENDIZ)'!E22 -> 0 | F32: 0 | H32: * Nota 3 - Os percentuais do Submódulo 2.2 incidem sobre o Módulo 1 e o Submódulo 2.1.
B34: Submódulo 2.3 - Benefícios Mensais e Diários
C35: A | D35: Auxílio Transporte | F35: =HLOOKUP($B$5,'Dados Gerais'!$D$5:$BJ$93,82) -> 0
C36: B | D36: Auxílio Alimentação | F36: =HLOOKUP($B$5,'Dados Gerais'!$D$5:$BJ$93,89) -> 0
C37: C | D37: Assistência Médica e Familiar | F37: =HLOOKUP($B$5,'Dados Gerais'!$D$5:$BJ$101,97) -> 0
C38: D | D38: Outros (Seguro de vida e auxílio funeral e auxílio odontológico) | F38: =HLOOKUP($B$5,'Dados Gerais'!$D$5:$BJ$125,114) -> 0 | H38: * Nota 1 - O valor informado deverá ser o custo real do benefício (descontado o valor eventualmente pago pelo empregado).
H39: * Nota 2 - Observar a previsão dos benefícios contidos em Acordos, Convenções e Dissídios Coletivos de Trabalho e o disposto no art. 6º da IN 5/2017
D40: QUADRO-RESUMO DO MÓDULO 2
D41: 2.1 - 13º Salário, Férias e Adicional de Férias - 13º Destacado - Calculado no Módulo 7 | E41: =SUM(E20:E21) -> 0.02777777778 | F41: =F20+F21 -> 0
D42: 2.2 - Encargos Previdenciários (GPS), Fundo de Garantia por Tempo de Serviço (FGTS) e Contribuições | E42: =SUM(E24:E32) -> 0.02 | F42: =SUM(F24:F32) -> 0
D43: 2.3 - Benefícios Mensais e Diários | F43: =SUM(F35:F38) -> 0
D45: TOTAL DOS ENCARGOS E BENEFÍCIOS | F45: =SUM(F41:F43) -> 0
B47: MÓDULO 3 - PREVISÃO PARA RESCISÃO | E47: Percentuais | F47: Valor
C48: A | D48: Aviso Prévio Indenizado (Art. 7º, inciso XXI, da CF/1988 e arts. 477, 487, §1º, e 491 da CLT) | E48: ='Encargos Sociais (APRENDIZ)'!E36 -> 0 | F48: =ROUND(E48*$F$16,2) -> 0
C49: B | D49: Incidência do FGTS sobre o Aviso Prévio Indenizado (Súmula 305 TST) | E49: ='Encargos Sociais (APRENDIZ)'!E37 -> 0 | F49: 0 | H49: * Nota 1 - Adotou-se os parâmetros do estudo do STF (http://www.stf.jus.br/arquivo/cms/sobrestfestudosci/anexo/encargos_sociais_03102007.pdf), onde 5% do pessoal é demitido pelo empregador no decurso do contrato (para estes, considerou-se o aviso prévio indenizado). Desprezou-se as demissões por justa causa e os pedidos de demissão.
C50: C | D50: Multa do FGTS e Contribuição Social sobre o Aviso Prévio Indenizado (Art. 18, §1º, da Lei 8.036/1990 e art. 1º da LC nº 110/2001) | E50: ='Encargos Sociais (APRENDIZ)'!E38 -> 0 | F50: 0 | H50: * Nota 2 - No cálculo do percentual, considerou-se 36 dias, correspondendo à metade da duração média dos contratos (2 anos)
C51: D | D51: Aviso Prévio Trabalhado (Art. 488, parágrafo único, CLT) | E51: ='Encargos Sociais (APRENDIZ)'!E39 -> 0 | F51: 0 | H51: * Nota 3 - Incide sobre a Remuneração + 13º salário (1/12) + Férias (1/12) + Adicional de Férias (1/36) x 50% multa (40% para o empregado e 10% de contribuição social) x 8% FGTS
C52: E | D52: Incidência de GPS, FGTS e outras contribuições sobre o Aviso Prévio Trabalhado | E52: ='Encargos Sociais (APRENDIZ)'!E40 -> 0 | F52: 0 | H52: * Nota 4 - Os 95% restantes do cálculo, a um prazo médio de contrato de 4 anos. Assim, calcula-se 7 dias para o 1º ano de contrato e mais 3 dias para os 3 anos seguintes.
C53: F | D53: Multa do FGTS e Contribuição Social sobre o Aviso Prévio Trabalhado | E53: ='Encargos Sociais (APRENDIZ)'!E41 -> 0 | F53: 0
D55: TOTAL DE PREVISÃO PARA RESCISÃO | F55: =SUM(F48:F53) -> 0
B57: MÓDULO 4 - CUSTO DO PROFISSIONAL AUSENTE | E57: Percentuais | F57: Valor
B58: Submódulo 4.1 - Ausências Legais
C59: A | D59: Férias (Arts. 129 e 130, inc. I, da CLT) | E59: ='Encargos Sociais (APRENDIZ)'!E25 -> 0.08333333333 | F59: =ROUND(E59*$F$16,2) -> 0 | H59: * Nota 1 - As alíneas “A” a “F” referem-se somente ao custo que será pago ao repositor pelos dias trabalhados quando da necessidade de substituir a mão de obra alocada na prestação do serviço.
C60: B | D60: Ausências Legais (Arts. 131 e 473 da CLT) | E60: ='Encargos Sociais (APRENDIZ)'!E26 -> 0 | F60: 0 | H60: * Nota 2 - Adotou-se a estimativa do SINAPI de 2 dias por ano.
C61: C | D61: Licença-Paternidade (Art. 7º, XIX, e art. 10, §1º, do ADCT, CF/1988 e Art. 1º, II, da Lei 11.770/2008) | E61: ='Encargos Sociais (APRENDIZ)'!E27 -> 0 | F61: 0 | H61: * Nota 3 - Utilizada a proporção de 50% para homens, 5 dias de afastamento, e a probabilidade de um trabalhador requerer a Licença Paternidade em 5,22%, conforme SINAPI (citando dados da PNAD 2015)
C62: D | D62: Ausência por Acidente de Trabalho (Art. 131, III, da CLT) | E62: ='Encargos Sociais (APRENDIZ)'!E28 -> 0 | F62: 0 | H62: * Nota 4 - Utilzada a estatística de 1,96% dos contribuintes beneficiados com a emissão do auxílio, conforme Anuário Estatístico da Previdência Social. Afastamento de 15 dias a cargo da empresa.
C63: E | D63: Afastamento Maternidade (Art. 71 da Lei nº 8.213/1991) | E63: ='Encargos Sociais (APRENDIZ)'!E29 -> 0 | F63: 0 | H63: * Nota 5 - Utilizada a proporção de 50% para mulheres, 180 dias de afastamento, e a probabilidade de uma trabalhadora requerer a Licença Maternidade em 4,91%, conforme SINAPI (citando dados do IBGE 2016)
C64: F | D64: Auxílio Enfermidade - Doença (Art. 59 da Lei nº 8.213/1991) | E64: ='Encargos Sociais (APRENDIZ)'!E30 -> 0 | F64: 0 | H64: * Nota 6 - Utilizada a estatística de 3,37% dos contribuintes beneficiados com o auxílio, conforme Anuário Estatístico da Previdência Social de 2015 (acrescidos de 2 dias ao ano, para os quais o trabalhador nem requer o benefício da Previdência - conforme SINAPI)
B66: Submódulo 4.2 - Intrajornada
C67: A | D67: Intervalo para repouso ou alimentação | E67: ='Encargos Sociais (APRENDIZ)'!E33 -> 0 | F67: =ROUND(E67*$F$16,2) -> 0
D69: QUADRO-RESUMO DO MÓDULO 4 | F69: Valor
D70: 4.1 - Ausências Legais | E70: =SUM(E59:E64) -> 0.08333333333 | F70: =ROUND(E70*$F$16,2) -> 0
D71: 4.2 - Intrajornada | E71: =E67 -> 0 | F71: =ROUND(E71*$F$16,2) -> 0
D73: TOTAL DE PREVISÃO PARA RESCISÃO E INTERVALO INTRAJORNADA | F73: =SUM(F70:F71) -> 0
B75: MÓDULO 5 - INSUMOS DIVERSOS | F75: Valor
C76: A | D76: Uniformes - aquisição | F76: =ROUND(HLOOKUP($B$5,Uniformes!K4:DZ6,3)/12,2) -> 0
C77: B | D77: Materiais de consumo relacionados ao posto - aquisição | F77: =ROUND(HLOOKUP(B5,'Mat Cons'!I11:DX13,3)/12,2) -> 0
C78: C | D78: Materiais permanentes relacionados ao posto - remuneração da sua depreciação / manutenção | F78: =HLOOKUP(B5,'Mat Perm'!Q11:EF13,3) -> 0
C79: D | D79: Equipamentos relacionados ao posto - remuneração da sua depreciação / manutenção | F79: =HLOOKUP(B5,'Equip Rel'!Q11:EF13,3) -> 0
C80: E | D80: Equipamentos de Proteção Individual - EPI - aquisição | F80: =ROUND(HLOOKUP(B5,EPI!I4:DX6,3)/12,2) -> 0
D82: TOTAL DE INSUMOS DIVERSOS | F82: =SUM(F76:F81) -> 0 | H82: * Nota - Valores mensais por empregado
B84: MÓDULO 6 - CUSTOS INDIRETOS, TRIBUTOS E LUCRO - BDI | E84: Percentuais | F84: Valor
C85: A | D85: Custos Indiretos | E85: =BDI!E6 -> 0.035
C86: A.1 | D86: Administração Central | E86: =BDI!E7 -> 0.035
C87: A.2 | D87: Seguros, Garantias e Riscos | E87: =BDI!E8 -> 0
C88: B | D88: Lucro | E88: =BDI!E10 -> 0
C89: C | D89: Tributos | E89: =SUM(E90:E91) -> 0.01
C90: C.1 | D90: Tributos Federais (COFINS, PIS e CPRB) | E90: =BDI!E18 -> 0.01
C91: C.2 | D91: Tributos Distritais (ISS) | E91: =BDI!E23 -> 0 | H91: * Nota - Utilizou-se o indicado pelo Sindicato da Arquitetura e da Engenharia (Sinaenco, 2008, p. 22), que adota um percentual redutor de 20% no cálculo dos custos tributários relativos às contribuições PIS e COFINS
C92: D | D92: Despesas Financeiras | E92: =BDI!E13 -> 0.005056956743
D94: TOTAL DE BDI | E94: =BDI!E26 -> 0.0507 | F94: =E94*E102 -> 0
D96: QUADRO-RESUMO DO CUSTO MENSAL POR EMPREGADO - SEM O 13º | E96: Valor
D97: Módulo 1 - Composição da Remuneração | E97: =F16 -> 0
D98: Módulo 2 - Encargos e Benefícios Anuais, Mensais e Diários | E98: =F45 -> 0
D99: Módulo 3 - Provisão para Rescisão | E99: =F55 -> 0
D100: Módulo 4 - Custo de Reposição do Profissional Ausente | E100: =F73 -> 0
D101: Módulo 5 - Insumos Diversos | E101: =F82 -> 0
D102: SUBTOTAL (A+B+C+D+E) | E102: =SUM(E97:E101) -> 0
D103: Módulo 6 - Custos Indiretos, Tributos e Lucro | E103: =F94 -> 0
D105: TOTAL DO POSTO | E105: =SUM(E102:E103) -> 0
B107: MÓDULO 7 - DESTAQUE DO MÓDULO 2 - 13º SALÁRIO | E107: Percentuais | F107: Valor
C108: A | D108: 13º Salário | E108: ='Encargos Sociais (APRENDIZ)'!E32 -> 0.08333333333 | F108: =ROUND(E108*F$16,2) -> 0
C109: B | D109: Encargos Sociais sobre o 13º Salário - Taxa calculada no SUBMÓDULO 2.2 | E109: =SUM($E$24:$E$32) -> 0.02 | F109: =ROUND(E109*$F$108,2) -> 0 | H109: * Nota 1 - Provisiona-se, mensalmente, o proporcional a 1/12 dos valores referentes a gratificação natalina e adicional de férias.
C110: C | D110: BDI sobre o 13º Salário - Taxa calculada no MÓDULO 6 | E110: =E94 -> 0.0507 | F110: =ROUND(E110*($F$108+$F$109),2) -> 0
D112: TOTAL DO DESTAQUE DO 13º SALÁRIO | F112: =SUM(F108:F110) -> 0
D114: QUADRO-RESUMO DO CUSTO MENSAL POR EMPREGADO | E114: Valor
D115: Custo total - sem o 13º Salário | E115: =E105 -> 0
D116: Destaque do 13º Salário (valor mensal) | E116: =F112 -> 0
D118: TOTAL DO POSTO | E118: =E115+E116 -> 0

Sheet 4 (hidden)
B2: PLANILHA DE ESTIMATIVA DE CUSTOS
B3: Padrão IN 05/2017 e IN 07/2018 - MPDG
B5: 4 | D5: =HLOOKUP($B$5,'Dados Gerais'!$D$5:$BJ$20,6) -> 0 | E5: QUANTIDADE | F5: =HLOOKUP($B$5,'Dados Gerais'!$D$5:$BJ$20,10) -> 0
B6: CCT | D6: =HLOOKUP($B$5,'Dados Gerais'!$D$5:$BJ$20,15) -> 0 | E6: DATA-BASE | F6: =HLOOKUP($B$5,'Dados Gerais'!$D$5:$BJ$20,16) -> 00:00:00
B8: MÓDULO 1 - COMPOSIÇÃO DA REMUNERAÇÃO | F8: Valor
C9: A | D9: Salário-Base | F9: =HLOOKUP($B$5,'Dados Gerais'!$D$5:$BJ$20,8) -> 0
C10: B | D10: Adicional de Periculosidade | F10: =HLOOKUP($B$5,'Dados Gerais'!$D$5:$BJ$37,25) -> 0
C11: C | D11: Adicional de Insalubridade | F11: =HLOOKUP($B$5,'Dados Gerais'!$D$5:$BJ$37,31) -> 0
C12: D | D12: Adicional Noturno | F12: =HLOOKUP($B$5,'Dados Gerais'!$D$5:$BJ$50,46) -> 0 | H12: * Nota 1 - O Módulo 1 refere-se ao valor mensal devido ao empregado pela prestação do serviço no período de 12 meses.
C13: E | D13: Adicional de Hora Extra | F13: =HLOOKUP($B$5,'Dados Gerais'!$D$5:$BJ$67,63) -> 0 | H13: * Nota 2 - O adicional de hora extra no feriado trabalhado foi suprimido pela Lei 13.467/17
C14: F | D14: Outros (especificar) | F14: =HLOOKUP($B$5,'Dados Gerais'!$D$5:$BJ$59,33) -> 0 | H14: * Nota 3 - ART. 7º, § 2º, DA LEI Nº 605/49.Sendo mensalista o obreiro, o adicional noturno pago de forma fixa já é considerado integrado para os efeitos do pagamento do repouso semanal remunerado, nos termos do art. 7º, § 2º, da Lei nº 605/49.
D16: TOTAL DA REMUNERAÇÃO | F16: =SUM(F9:F14) -> 0
B18: MÓDULO 2 - ENCARGOS E BENEFÍCIOS ANUAIS, MENSAIS E DIÁRIOS | E18: Percentuais | F18: Valor
B19: Submódulo 2.1 - 13º Salário, Férias e Adicional de Férias
C20: A | D20: 13º Salário - Calculado no Módulo 7 - Destacado | E20: 0 | F20: =ROUND(E20*F$16,2) -> 0
C21: B | D21: Férias e Adicional de Férias | E21: ='Encargos Sociais (APRENDIZ)'!E31 -> 0.02777777778 | F21: =ROUND(E21*F$16,2) -> 0 | H21: * Nota 1 - Provisiona-se, mensalmente, o proporcional a 1/12 dos valores referentes a gratificação natalina, férias e adicional de férias.
H22: * Nota 2 - O adicional de férias contido no Submódulo 2.1 corresponde a 1/3 da remuneração que, por sua vez, é dividida por 12 contome Nota 1.
B23: Submódulo 2.2 - Encargos Previdenciários (GPS), Fundo de Garantia por Tempo de Serviço (FGTS) e Outras Contribuições
C24: A | D24: INSS (art. 22, inciso I, Lei nº 8.212/91) | E24: ='Encargos Sociais (APRENDIZ)'!E14 -> 0 | F24: =ROUND(E24*($F$16+$F$41+$F$73),2) -> 0
C25: B | D25: Salário Educação (art. 3º, inciso I, Decreto nº 87.043/82) | E25: ='Encargos Sociais (APRENDIZ)'!E15 -> 0 | F25: =ROUND(E25*($F$16+$F$41+$F$73),2) -> 0
C26: C | D26: SAT/RAT (art. 22, II, Lei 8.212/91 e Anexo V, Decreto 6.042/07) - Enquadramento 8211-3/00 | E26: ='Encargos Sociais (APRENDIZ)'!E16 -> 0 | F26: 0
C27: D | D27: SESC ou SESI (art. 30, Lei nº 8.036/90 e art. 1º, Lei 8.154/90) | E27: ='Encargos Sociais (APRENDIZ)'!E17 -> 0 | F27: 0
C28: E | D28: SENAI ou SENAC (Decreto nº 2.318/86) | E28: ='Encargos Sociais (APRENDIZ)'!E18 -> 0 | F28: 0
C29: F | D29: SEBRAE (§ 3º, art. 8º, Lei 8.029/90, alterada pela Lei nº 8.154/90) | E29: ='Encargos Sociais (APRENDIZ)'!E19 -> 0 | F29: 0
C30: G | D30: INCRA (art. 1º, I, Decreto Lei 1.146/70 e Lei 7.787, de 30/06/89) | E30: ='Encargos Sociais (APRENDIZ)'!E20 -> 0 | F30: 0 | H30: * Nota 1 - Os percentuais dos encargos previdenciários, do FGTS e demais contribuições são estabelecidos por legislação vigente.
C31: H | D31: FGTS (Lei Complementar nº 110/01 e art. 30, Lei nº 8.036/90) | E31: ='Encargos Sociais (APRENDIZ)'!E21 -> 0.02 | F31: 0 | H31: * Nota 2 - O SAT, a depender do grau de risco do serviço, irá variar entre 1%, para risco leve, de 2%, para risco médio, e de 3% para risco grave.
C32: I | D32: SECONCI (Convenções Coletivas de Trabalho da construção) | E32: ='Encargos Sociais (APRENDIZ)'!E22 -> 0 | F32: 0 | H32: * Nota 3 - Os percentuais do Submódulo 2.2 incidem sobre o Módulo 1 e o Submódulo 2.1.
B34: Submódulo 2.3 - Benefícios Mensais e Diários
C35: A | D35: Auxílio Transporte | F35: =HLOOKUP($B$5,'Dados Gerais'!$D$5:$BJ$93,82) -> 0
C36: B | D36: Auxílio Alimentação | F36: =HLOOKUP($B$5,'Dados Gerais'!$D$5:$BJ$93,89) -> 0
C37: C | D37: Assistência Médica e Familiar | F37: =HLOOKUP($B$5,'Dados Gerais'!$D$5:$BJ$101,97) -> 0
C38: D | D38: Outros (Seguro de vida e auxílio funeral e auxílio odontológico) | F38: =HLOOKUP($B$5,'Dados Gerais'!$D$5:$BJ$125,114) -> 0 | H38: * Nota 1 - O valor informado deverá ser o custo real do benefício (descontado o valor eventualmente pago pelo empregado).
H39: * Nota 2 - Observar a previsão dos benefícios contidos em Acordos, Convenções e Dissídios Coletivos de Trabalho e o disposto no art. 6º da IN 5/2017
D40: QUADRO-RESUMO DO MÓDULO 2
D41: 2.1 - 13º Salário, Férias e Adicional de Férias - 13º Destacado - Calculado no Módulo 7 | E41: =SUM(E20:E21) -> 0.02777777778 | F41: =F20+F21 -> 0
D42: 2.2 - Encargos Previdenciários (GPS), Fundo de Garantia por Tempo de Serviço (FGTS) e Contribuições | E42: =SUM(E24:E32) -> 0.02 | F42: =SUM(F24:F32) -> 0
D43: 2.3 - Benefícios Mensais e Diários | F43: =SUM(F35:F38) -> 0
D45: TOTAL DOS ENCARGOS E BENEFÍCIOS | F45: =SUM(F41:F43) -> 0
B47: MÓDULO 3 - PREVISÃO PARA RESCISÃO | E47: Percentuais | F47: Valor
C48: A | D48: Aviso Prévio Indenizado (Art. 7º, inciso XXI, da CF/1988 e arts. 477, 487, §1º, e 491 da CLT) | E48: ='Encargos Sociais (APRENDIZ)'!E36 -> 0 | F48: =ROUND(E48*$F$16,2) -> 0
C49: B | D49: Incidência do FGTS sobre o Aviso Prévio Indenizado (Súmula 305 TST) | E49: ='Encargos Sociais (APRENDIZ)'!E37 -> 0 | F49: 0 | H49: * Nota 1 - Adotou-se os parâmetros do estudo do STF (http://www.stf.jus.br/arquivo/cms/sobrestfestudosci/anexo/encargos_sociais_03102007.pdf), onde 5% do pessoal é demitido pelo empregador no decurso do contrato (para estes, considerou-se o aviso prévio indenizado). Desprezou-se as demissões por justa causa e os pedidos de demissão.
C50: C | D50: Multa do FGTS e Contribuição Social sobre o Aviso Prévio Indenizado (Art. 18, §1º, da Lei 8.036/1990 e art. 1º da LC nº 110/2001) | E50: ='Encargos Sociais (APRENDIZ)'!E38 -> 0 | F50: 0 | H50: * Nota 2 - No cálculo do percentual, considerou-se 36 dias, correspondendo à metade da duração média dos contratos (2 anos)
C51: D | D51: Aviso Prévio Trabalhado (Art. 488, parágrafo único, CLT) | E51: ='Encargos Sociais (APRENDIZ)'!E39 -> 0 | F51: 0 | H51: * Nota 3 - Incide sobre a Remuneração + 13º salário (1/12) + Férias (1/12) + Adicional de Férias (1/36) x 50% multa (40% para o empregado e 10% de contribuição social) x 8% FGTS
C52: E | D52: Incidência de GPS, FGTS e outras contribuições sobre o Aviso Prévio Trabalhado | E52: ='Encargos Sociais (APRENDIZ)'!E40 -> 0 | F52: 0 | H52: * Nota 4 - Os 95% restantes do cálculo, a um prazo médio de contrato de 4 anos. Assim, calcula-se 7 dias para o 1º ano de contrato e mais 3 dias para os 3 anos seguintes.
C53: F | D53: Multa do FGTS e Contribuição Social sobre o Aviso Prévio Trabalhado | E53: ='Encargos Sociais (APRENDIZ)'!E41 -> 0 | F53: 0
D55: TOTAL DE PREVISÃO PARA RESCISÃO | F55: =SUM(F48:F53) -> 0
B57: MÓDULO 4 - CUSTO DO PROFISSIONAL AUSENTE | E57: Percentuais | F57: Valor
B58: Submódulo 4.1 - Ausências Legais
C59: A | D59: Férias (Arts. 129 e 130, inc. I, da CLT) | E59: ='Encargos Sociais (APRENDIZ)'!E25 -> 0.08333333333 | F59: =ROUND(E59*$F$16,2) -> 0 | H59: * Nota 1 - As alíneas “A” a “F” referem-se somente ao custo que será pago ao repositor pelos dias trabalhados quando da necessidade de substituir a mão de obra alocada na prestação do serviço.
C60: B | D60: Ausências Legais (Arts. 131 e 473 da CLT) | E60: ='Encargos Sociais (APRENDIZ)'!E26 -> 0 | F60: 0 | H60: * Nota 2 - Adotou-se a estimativa do SINAPI de 2 dias por ano.
C61: C | D61: Licença-Paternidade (Art. 7º, XIX, e art. 10, §1º, do ADCT, CF/1988 e Art. 1º, II, da Lei 11.770/2008) | E61: ='Encargos Sociais (APRENDIZ)'!E27 -> 0 | F61: 0 | H61: * Nota 3 - Utilizada a proporção de 50% para homens, 5 dias de afastamento, e a probabilidade de um trabalhador requerer a Licença Paternidade em 5,22%, conforme SINAPI (citando dados da PNAD 2015)
C62: D | D62: Ausência por Acidente de Trabalho (Art. 131, III, da CLT) | E62: ='Encargos Sociais (APRENDIZ)'!E28 -> 0 | F62: 0 | H62: * Nota 4 - Utilzada a estatística de 1,96% dos contribuintes beneficiados com a emissão do auxílio, conforme Anuário Estatístico da Previdência Social. Afastamento de 15 dias a cargo da empresa.
C63: E | D63: Afastamento Maternidade (Art. 71 da Lei nº 8.213/1991) | E63: ='Encargos Sociais (APRENDIZ)'!E29 -> 0 | F63: 0 | H63: * Nota 5 - Utilizada a proporção de 50% para mulheres, 180 dias de afastamento, e a probabilidade de uma trabalhadora requerer a Licença Maternidade em 4,91%, conforme SINAPI (citando dados do IBGE 2016)
C64: F | D64: Auxílio Enfermidade - Doença (Art. 59 da Lei nº 8.213/1991) | E64: ='Encargos Sociais (APRENDIZ)'!E30 -> 0 | F64: 0 | H64: * Nota 6 - Utilizada a estatística de 3,37% dos contribuintes beneficiados com o auxílio, conforme Anuário Estatístico da Previdência Social de 2015 (acrescidos de 2 dias ao ano, para os quais o trabalhador nem requer o benefício da Previdência - conforme SINAPI)
B66: Submódulo 4.2 - Intrajornada
C67: A | D67: Intervalo para repouso ou alimentação | E67: ='Encargos Sociais (APRENDIZ)'!E33 -> 0 | F67: =ROUND(E67*$F$16,2) -> 0
D69: QUADRO-RESUMO DO MÓDULO 4 | F69: Valor
D70: 4.1 - Ausências Legais | E70: =SUM(E59:E64) -> 0.08333333333 | F70: =ROUND(E70*$F$16,2) -> 0
D71: 4.2 - Intrajornada | E71: =E67 -> 0 | F71: =ROUND(E71*$F$16,2) -> 0
D73: TOTAL DE PREVISÃO PARA RESCISÃO E INTERVALO INTRAJORNADA | F73: =SUM(F70:F71) -> 0
B75: MÓDULO 5 - INSUMOS DIVERSOS | F75: Valor
C76: A | D76: Uniformes - aquisição | F76: =ROUND(HLOOKUP($B$5,Uniformes!K4:DZ6,3)/12,2) -> 0
C77: B | D77: Materiais de consumo relacionados ao posto - aquisição | F77: =ROUND(HLOOKUP(B5,'Mat Cons'!I11:DX13,3)/12,2) -> 0
C78: C | D78: Materiais permanentes relacionados ao posto - remuneração da sua depreciação / manutenção | F78: =HLOOKUP(B5,'Mat Perm'!Q11:EF13,3) -> 0
C79: D | D79: Equipamentos relacionados ao posto - remuneração da sua depreciação / manutenção | F79: =HLOOKUP(B5,'Equip Rel'!Q11:EF13,3) -> 0
C80: E | D80: Equipamentos de Proteção Individual - EPI - aquisição | F80: =ROUND(HLOOKUP(B5,EPI!I4:DX6,3)/12,2) -> 0
D82: TOTAL DE INSUMOS DIVERSOS | F82: =SUM(F76:F81) -> 0 | H82: * Nota - Valores mensais por empregado
B84: MÓDULO 6 - CUSTOS INDIRETOS, TRIBUTOS E LUCRO - BDI | E84: Percentuais | F84: Valor
C85: A | D85: Custos Indiretos | E85: =BDI!E6 -> 0.035
C86: A.1 | D86: Administração Central | E86: =BDI!E7 -> 0.035
C87: A.2 | D87: Seguros, Garantias e Riscos | E87: =BDI!E8 -> 0
C88: B | D88: Lucro | E88: =BDI!E10 -> 0
C89: C | D89: Tributos | E89: =SUM(E90:E91) -> 0.01
C90: C.1 | D90: Tributos Federais (COFINS, PIS e CPRB) | E90: =BDI!E18 -> 0.01
C91: C.2 | D91: Tributos Distritais (ISS) | E91: =BDI!E23 -> 0 | H91: * Nota - Utilizou-se o indicado pelo Sindicato da Arquitetura e da Engenharia (Sinaenco, 2008, p. 22), que adota um percentual redutor de 20% no cálculo dos custos tributários relativos às contribuições PIS e COFINS
C92: D | D92: Despesas Financeiras | E92: =BDI!E13 -> 0.005056956743
D94: TOTAL DE BDI | E94: =BDI!E26 -> 0.0507 | F94: =E94*E102 -> 0
D96: QUADRO-RESUMO DO CUSTO MENSAL POR EMPREGADO - SEM O 13º | E96: Valor
D97: Módulo 1 - Composição da Remuneração | E97: =F16 -> 0
D98: Módulo 2 - Encargos e Benefícios Anuais, Mensais e Diários | E98: =F45 -> 0
D99: Módulo 3 - Provisão para Rescisão | E99: =F55 -> 0
D100: Módulo 4 - Custo de Reposição do Profissional Ausente | E100: =F73 -> 0
D101: Módulo 5 - Insumos Diversos | E101: =F82 -> 0
D102: SUBTOTAL (A+B+C+D+E) | E102: =SUM(E97:E101) -> 0
D103: Módulo 6 - Custos Indiretos, Tributos e Lucro | E103: =F94 -> 0
D105: TOTAL DO POSTO | E105: =SUM(E102:E103) -> 0
B107: MÓDULO 7 - DESTAQUE DO MÓDULO 2 - 13º SALÁRIO | E107: Percentuais | F107: Valor
C108: A | D108: 13º Salário | E108: ='Encargos Sociais (APRENDIZ)'!E32 -> 0.08333333333 | F108: =ROUND(E108*F$16,2) -> 0
C109: B | D109: Encargos Sociais sobre o 13º Salário - Taxa calculada no SUBMÓDULO 2.2 | E109: =SUM($E$24:$E$32) -> 0.02 | F109: =ROUND(E109*$F$108,2) -> 0 | H109: * Nota 1 - Provisiona-se, mensalmente, o proporcional a 1/12 dos valores referentes a gratificação natalina e adicional de férias.
C110: C | D110: BDI sobre o 13º Salário - Taxa calculada no MÓDULO 6 | E110: =E94 -> 0.0507 | F110: =ROUND(E110*($F$108+$F$109),2) -> 0
D112: TOTAL DO DESTAQUE DO 13º SALÁRIO | F112: =SUM(F108:F110) -> 0
D114: QUADRO-RESUMO DO CUSTO MENSAL POR EMPREGADO | E114: Valor
D115: Custo total - sem o 13º Salário | E115: =E105 -> 0
D116: Destaque do 13º Salário (valor mensal) | E116: =F112 -> 0
D118: TOTAL DO POSTO | E118: =E115+E116 -> 0

Sheet 5 (hidden)
B2: PLANILHA DE ESTIMATIVA DE CUSTOS
B3: Padrão IN 05/2017 e IN 07/2018 - MPDG
B5: 5 | D5: =HLOOKUP($B$5,'Dados Gerais'!$D$5:$BJ$20,6) -> 0 | E5: QUANTIDADE | F5: =HLOOKUP($B$5,'Dados Gerais'!$D$5:$BJ$20,10) -> 0
B6: CCT | D6: =HLOOKUP($B$5,'Dados Gerais'!$D$5:$BJ$20,15) -> 0 | E6: DATA-BASE | F6: =HLOOKUP($B$5,'Dados Gerais'!$D$5:$BJ$20,16) -> 00:00:00
B8: MÓDULO 1 - COMPOSIÇÃO DA REMUNERAÇÃO | F8: Valor
C9: A | D9: Salário-Base | F9: =HLOOKUP($B$5,'Dados Gerais'!$D$5:$BJ$20,8) -> 0
C10: B | D10: Adicional de Periculosidade | F10: =HLOOKUP($B$5,'Dados Gerais'!$D$5:$BJ$37,25) -> 0
C11: C | D11: Adicional de Insalubridade | F11: =HLOOKUP($B$5,'Dados Gerais'!$D$5:$BJ$37,31) -> 0
C12: D | D12: Adicional Noturno | F12: =HLOOKUP($B$5,'Dados Gerais'!$D$5:$BJ$50,46) -> 0 | H12: * Nota 1 - O Módulo 1 refere-se ao valor mensal devido ao empregado pela prestação do serviço no período de 12 meses.
C13: E | D13: Adicional de Hora Extra | F13: =HLOOKUP($B$5,'Dados Gerais'!$D$5:$BJ$67,63) -> 0 | H13: * Nota 2 - O adicional de hora extra no feriado trabalhado foi suprimido pela Lei 13.467/17
C14: F | D14: Outros (especificar) | F14: =HLOOKUP($B$5,'Dados Gerais'!$D$5:$BJ$59,33) -> 0 | H14: * Nota 3 - ART. 7º, § 2º, DA LEI Nº 605/49.Sendo mensalista o obreiro, o adicional noturno pago de forma fixa já é considerado integrado para os efeitos do pagamento do repouso semanal remunerado, nos termos do art. 7º, § 2º, da Lei nº 605/49.
D16: TOTAL DA REMUNERAÇÃO | F16: =SUM(F9:F14) -> 0
B18: MÓDULO 2 - ENCARGOS E BENEFÍCIOS ANUAIS, MENSAIS E DIÁRIOS | E18: Percentuais | F18: Valor
B19: Submódulo 2.1 - 13º Salário, Férias e Adicional de Férias
C20: A | D20: 13º Salário - Calculado no Módulo 7 - Destacado | E20: 0 | F20: =ROUND(E20*F$16,2) -> 0
C21: B | D21: Férias e Adicional de Férias | E21: ='Encargos Sociais (APRENDIZ)'!E31 -> 0.02777777778 | F21: =ROUND(E21*F$16,2) -> 0 | H21: * Nota 1 - Provisiona-se, mensalmente, o proporcional a 1/12 dos valores referentes a gratificação natalina, férias e adicional de férias.
H22: * Nota 2 - O adicional de férias contido no Submódulo 2.1 corresponde a 1/3 da remuneração que, por sua vez, é dividida por 12 contome Nota 1.
B23: Submódulo 2.2 - Encargos Previdenciários (GPS), Fundo de Garantia por Tempo de Serviço (FGTS) e Outras Contribuições
C24: A | D24: INSS (art. 22, inciso I, Lei nº 8.212/91) | E24: ='Encargos Sociais (APRENDIZ)'!E14 -> 0 | F24: =ROUND(E24*($F$16+$F$41+$F$73),2) -> 0
C25: B | D25: Salário Educação (art. 3º, inciso I, Decreto nº 87.043/82) | E25: ='Encargos Sociais (APRENDIZ)'!E15 -> 0 | F25: =ROUND(E25*($F$16+$F$41+$F$73),2) -> 0
C26: C | D26: SAT/RAT (art. 22, II, Lei 8.212/91 e Anexo V, Decreto 6.042/07) - Enquadramento 8211-3/00 | E26: ='Encargos Sociais (APRENDIZ)'!E16 -> 0 | F26: 0
C27: D | D27: SESC ou SESI (art. 30, Lei nº 8.036/90 e art. 1º, Lei 8.154/90) | E27: ='Encargos Sociais (APRENDIZ)'!E17 -> 0 | F27: 0
C28: E | D28: SENAI ou SENAC (Decreto nº 2.318/86) | E28: ='Encargos Sociais (APRENDIZ)'!E18 -> 0 | F28: 0
C29: F | D29: SEBRAE (§ 3º, art. 8º, Lei 8.029/90, alterada pela Lei nº 8.154/90) | E29: ='Encargos Sociais (APRENDIZ)'!E19 -> 0 | F29: 0
C30: G | D30: INCRA (art. 1º, I, Decreto Lei 1.146/70 e Lei 7.787, de 30/06/89) | E30: ='Encargos Sociais (APRENDIZ)'!E20 -> 0 | F30: 0 | H30: * Nota 1 - Os percentuais dos encargos previdenciários, do FGTS e demais contribuições são estabelecidos por legislação vigente.
C31: H | D31: FGTS (Lei Complementar nº 110/01 e art. 30, Lei nº 8.036/90) | E31: ='Encargos Sociais (APRENDIZ)'!E21 -> 0.02 | F31: 0 | H31: * Nota 2 - O SAT, a depender do grau de risco do serviço, irá variar entre 1%, para risco leve, de 2%, para risco médio, e de 3% para risco grave.
C32: I | D32: SECONCI (Convenções Coletivas de Trabalho da construção) | E32: ='Encargos Sociais (APRENDIZ)'!E22 -> 0 | F32: 0 | H32: * Nota 3 - Os percentuais do Submódulo 2.2 incidem sobre o Módulo 1 e o Submódulo 2.1.
B34: Submódulo 2.3 - Benefícios Mensais e Diários
C35: A | D35: Auxílio Transporte | F35: =HLOOKUP($B$5,'Dados Gerais'!$D$5:$BJ$93,82) -> 0
C36: B | D36: Auxílio Alimentação | F36: =HLOOKUP($B$5,'Dados Gerais'!$D$5:$BJ$93,89) -> 0
C37: C | D37: Assistência Médica e Familiar | F37: =HLOOKUP($B$5,'Dados Gerais'!$D$5:$BJ$101,97) -> 0
C38: D | D38: Outros (Seguro de vida e auxílio funeral e auxílio odontológico) | F38: =HLOOKUP($B$5,'Dados Gerais'!$D$5:$BJ$125,114) -> 0 | H38: * Nota 1 - O valor informado deverá ser o custo real do benefício (descontado o valor eventualmente pago pelo empregado).
H39: * Nota 2 - Observar a previsão dos benefícios contidos em Acordos, Convenções e Dissídios Coletivos de Trabalho e o disposto no art. 6º da IN 5/2017
D40: QUADRO-RESUMO DO MÓDULO 2
D41: 2.1 - 13º Salário, Férias e Adicional de Férias - 13º Destacado - Calculado no Módulo 7 | E41: =SUM(E20:E21) -> 0.02777777778 | F41: =F20+F21 -> 0
D42: 2.2 - Encargos Previdenciários (GPS), Fundo de Garantia por Tempo de Serviço (FGTS) e Contribuições | E42: =SUM(E24:E32) -> 0.02 | F42: =SUM(F24:F32) -> 0
D43: 2.3 - Benefícios Mensais e Diários | F43: =SUM(F35:F38) -> 0
D45: TOTAL DOS ENCARGOS E BENEFÍCIOS | F45: =SUM(F41:F43) -> 0
B47: MÓDULO 3 - PREVISÃO PARA RESCISÃO | E47: Percentuais | F47: Valor
C48: A | D48: Aviso Prévio Indenizado (Art. 7º, inciso XXI, da CF/1988 e arts. 477, 487, §1º, e 491 da CLT) | E48: ='Encargos Sociais (APRENDIZ)'!E36 -> 0 | F48: =ROUND(E48*$F$16,2) -> 0
C49: B | D49: Incidência do FGTS sobre o Aviso Prévio Indenizado (Súmula 305 TST) | E49: ='Encargos Sociais (APRENDIZ)'!E37 -> 0 | F49: 0 | H49: * Nota 1 - Adotou-se os parâmetros do estudo do STF (http://www.stf.jus.br/arquivo/cms/sobrestfestudosci/anexo/encargos_sociais_03102007.pdf), onde 5% do pessoal é demitido pelo empregador no decurso do contrato (para estes, considerou-se o aviso prévio indenizado). Desprezou-se as demissões por justa causa e os pedidos de demissão.
C50: C | D50: Multa do FGTS e Contribuição Social sobre o Aviso Prévio Indenizado (Art. 18, §1º, da Lei 8.036/1990 e art. 1º da LC nº 110/2001) | E50: ='Encargos Sociais (APRENDIZ)'!E38 -> 0 | F50: 0 | H50: * Nota 2 - No cálculo do percentual, considerou-se 36 dias, correspondendo à metade da duração média dos contratos (2 anos)
C51: D | D51: Aviso Prévio Trabalhado (Art. 488, parágrafo único, CLT) | E51: ='Encargos Sociais (APRENDIZ)'!E39 -> 0 | F51: 0 | H51: * Nota 3 - Incide sobre a Remuneração + 13º salário (1/12) + Férias (1/12) + Adicional de Férias (1/36) x 50% multa (40% para o empregado e 10% de contribuição social) x 8% FGTS
C52: E | D52: Incidência de GPS, FGTS e outras contribuições sobre o Aviso Prévio Trabalhado | E52: ='Encargos Sociais (APRENDIZ)'!E40 -> 0 | F52: 0 | H52: * Nota 4 - Os 95% restantes do cálculo, a um prazo médio de contrato de 4 anos. Assim, calcula-se 7 dias para o 1º ano de contrato e mais 3 dias para os 3 anos seguintes.
C53: F | D53: Multa do FGTS e Contribuição Social sobre o Aviso Prévio Trabalhado | E53: ='Encargos Sociais (APRENDIZ)'!E41 -> 0 | F53: 0
D55: TOTAL DE PREVISÃO PARA RESCISÃO | F55: =SUM(F48:F53) -> 0
B57: MÓDULO 4 - CUSTO DO PROFISSIONAL AUSENTE | E57: Percentuais | F57: Valor
B58: Submódulo 4.1 - Ausências Legais
C59: A | D59: Férias (Arts. 129 e 130, inc. I, da CLT) | E59: ='Encargos Sociais (APRENDIZ)'!E25 -> 0.08333333333 | F59: =ROUND(E59*$F$16,2) -> 0 | H59: * Nota 1 - As alíneas “A” a “F” referem-se somente ao custo que será pago ao repositor pelos dias trabalhados quando da necessidade de substituir a mão de obra alocada na prestação do serviço.
C60: B | D60: Ausências Legais (Arts. 131 e 473 da CLT) | E60: ='Encargos Sociais (APRENDIZ)'!E26 -> 0 | F60: 0 | H60: * Nota 2 - Adotou-se a estimativa do SINAPI de 2 dias por ano.
C61: C | D61: Licença-Paternidade (Art. 7º, XIX, e art. 10, §1º, do ADCT, CF/1988 e Art. 1º, II, da Lei 11.770/2008) | E61: ='Encargos Sociais (APRENDIZ)'!E27 -> 0 | F61: 0 | H61: * Nota 3 - Utilizada a proporção de 50% para homens, 5 dias de afastamento, e a probabilidade de um trabalhador requerer a Licença Paternidade em 5,22%, conforme SINAPI (citando dados da PNAD 2015)
C62: D | D62: Ausência por Acidente de Trabalho (Art. 131, III, da CLT) | E62: ='Encargos Sociais (APRENDIZ)'!E28 -> 0 | F62: 0 | H62: * Nota 4 - Utilzada a estatística de 1,96% dos contribuintes beneficiados com a emissão do auxílio, conforme Anuário Estatístico da Previdência Social. Afastamento de 15 dias a cargo da empresa.
C63: E | D63: Afastamento Maternidade (Art. 71 da Lei nº 8.213/1991) | E63: ='Encargos Sociais (APRENDIZ)'!E29 -> 0 | F63: 0 | H63: * Nota 5 - Utilizada a proporção de 50% para mulheres, 180 dias de afastamento, e a probabilidade de uma trabalhadora requerer a Licença Maternidade em 4,91%, conforme SINAPI (citando dados do IBGE 2016)
C64: F | D64: Auxílio Enfermidade - Doença (Art. 59 da Lei nº 8.213/1991) | E64: ='Encargos Sociais (APRENDIZ)'!E30 -> 0 | F64: 0 | H64: * Nota 6 - Utilizada a estatística de 3,37% dos contribuintes beneficiados com o auxílio, conforme Anuário Estatístico da Previdência Social de 2015 (acrescidos de 2 dias ao ano, para os quais o trabalhador nem requer o benefício da Previdência - conforme SINAPI)
B66: Submódulo 4.2 - Intrajornada
C67: A | D67: Intervalo para repouso ou alimentação | E67: ='Encargos Sociais (APRENDIZ)'!E33 -> 0 | F67: =ROUND(E67*$F$16,2) -> 0
D69: QUADRO-RESUMO DO MÓDULO 4 | F69: Valor
D70: 4.1 - Ausências Legais | E70: =SUM(E59:E64) -> 0.08333333333 | F70: =ROUND(E70*$F$16,2) -> 0
D71: 4.2 - Intrajornada | E71: =E67 -> 0 | F71: =ROUND(E71*$F$16,2) -> 0
D73: TOTAL DE PREVISÃO PARA RESCISÃO E INTERVALO INTRAJORNADA | F73: =SUM(F70:F71) -> 0
B75: MÓDULO 5 - INSUMOS DIVERSOS | F75: Valor
C76: A | D76: Uniformes - aquisição | F76: =ROUND(HLOOKUP($B$5,Uniformes!K4:DZ6,3)/12,2) -> 0
C77: B | D77: Materiais de consumo relacionados ao posto - aquisição | F77: =ROUND(HLOOKUP(B5,'Mat Cons'!I11:DX13,3)/12,2) -> 0
C78: C | D78: Materiais permanentes relacionados ao posto - remuneração da sua depreciação / manutenção | F78: =HLOOKUP(B5,'Mat Perm'!Q11:EF13,3) -> 0
C79: D | D79: Equipamentos relacionados ao posto - remuneração da sua depreciação / manutenção | F79: =HLOOKUP(B5,'Equip Rel'!Q11:EF13,3) -> 0
C80: E | D80: Equipamentos de Proteção Individual - EPI - aquisição | F80: =ROUND(HLOOKUP(B5,EPI!I4:DX6,3)/12,2) -> 0
D82: TOTAL DE INSUMOS DIVERSOS | F82: =SUM(F76:F81) -> 0 | H82: * Nota - Valores mensais por empregado
B84: MÓDULO 6 - CUSTOS INDIRETOS, TRIBUTOS E LUCRO - BDI | E84: Percentuais | F84: Valor
C85: A | D85: Custos Indiretos | E85: =BDI!E6 -> 0.035
C86: A.1 | D86: Administração Central | E86: =BDI!E7 -> 0.035
C87: A.2 | D87: Seguros, Garantias e Riscos | E87: =BDI!E8 -> 0
C88: B | D88: Lucro | E88: =BDI!E10 -> 0
C89: C | D89: Tributos | E89: =SUM(E90:E91) -> 0.01
C90: C.1 | D90: Tributos Federais (COFINS, PIS e CPRB) | E90: =BDI!E18 -> 0.01
C91: C.2 | D91: Tributos Distritais (ISS) | E91: =BDI!E23 -> 0 | H91: * Nota - Utilizou-se o indicado pelo Sindicato da Arquitetura e da Engenharia (Sinaenco, 2008, p. 22), que adota um percentual redutor de 20% no cálculo dos custos tributários relativos às contribuições PIS e COFINS
C92: D | D92: Despesas Financeiras | E92: =BDI!E13 -> 0.005056956743
D94: TOTAL DE BDI | E94: =BDI!E26 -> 0.0507 | F94: =E94*E102 -> 0
D96: QUADRO-RESUMO DO CUSTO MENSAL POR EMPREGADO - SEM O 13º | E96: Valor
D97: Módulo 1 - Composição da Remuneração | E97: =F16 -> 0
D98: Módulo 2 - Encargos e Benefícios Anuais, Mensais e Diários | E98: =F45 -> 0
D99: Módulo 3 - Provisão para Rescisão | E99: =F55 -> 0
D100: Módulo 4 - Custo de Reposição do Profissional Ausente | E100: =F73 -> 0
D101: Módulo 5 - Insumos Diversos | E101: =F82 -> 0
D102: SUBTOTAL (A+B+C+D+E) | E102: =SUM(E97:E101) -> 0
D103: Módulo 6 - Custos Indiretos, Tributos e Lucro | E103: =F94 -> 0
D105: TOTAL DO POSTO | E105: =SUM(E102:E103) -> 0
B107: MÓDULO 7 - DESTAQUE DO MÓDULO 2 - 13º SALÁRIO | E107: Percentuais | F107: Valor
C108: A | D108: 13º Salário | E108: ='Encargos Sociais (APRENDIZ)'!E32 -> 0.08333333333 | F108: =ROUND(E108*F$16,2) -> 0
C109: B | D109: Encargos Sociais sobre o 13º Salário - Taxa calculada no SUBMÓDULO 2.2 | E109: =SUM($E$24:$E$32) -> 0.02 | F109: =ROUND(E109*$F$108,2) -> 0 | H109: * Nota 1 - Provisiona-se, mensalmente, o proporcional a 1/12 dos valores referentes a gratificação natalina e adicional de férias.
C110: C | D110: BDI sobre o 13º Salário - Taxa calculada no MÓDULO 6 | E110: =E94 -> 0.0507 | F110: =ROUND(E110*($F$108+$F$109),2) -> 0
D112: TOTAL DO DESTAQUE DO 13º SALÁRIO | F112: =SUM(F108:F110) -> 0
D114: QUADRO-RESUMO DO CUSTO MENSAL POR EMPREGADO | E114: Valor
D115: Custo total - sem o 13º Salário | E115: =E105 -> 0
D116: Destaque do 13º Salário (valor mensal) | E116: =F112 -> 0
D118: TOTAL DO POSTO | E118: =E115+E116 -> 0

Sheet 6 (hidden)
B2: PLANILHA DE ESTIMATIVA DE CUSTOS
B3: Padrão IN 05/2017 e IN 07/2018 - MPDG
B5: 6 | D5: =HLOOKUP($B$5,'Dados Gerais'!$D$5:$BJ$20,6) -> 0 | E5: QUANTIDADE | F5: =HLOOKUP($B$5,'Dados Gerais'!$D$5:$BJ$20,10) -> 0
B6: CCT | D6: =HLOOKUP($B$5,'Dados Gerais'!$D$5:$BJ$20,15) -> 0 | E6: DATA-BASE | F6: =HLOOKUP($B$5,'Dados Gerais'!$D$5:$BJ$20,16) -> 00:00:00
B8: MÓDULO 1 - COMPOSIÇÃO DA REMUNERAÇÃO | F8: Valor
C9: A | D9: Salário-Base | F9: =HLOOKUP($B$5,'Dados Gerais'!$D$5:$BJ$20,8) -> 0
C10: B | D10: Adicional de Periculosidade | F10: =HLOOKUP($B$5,'Dados Gerais'!$D$5:$BJ$37,25) -> 0
C11: C | D11: Adicional de Insalubridade | F11: =HLOOKUP($B$5,'Dados Gerais'!$D$5:$BJ$37,31) -> 0
C12: D | D12: Adicional Noturno | F12: =HLOOKUP($B$5,'Dados Gerais'!$D$5:$BJ$50,46) -> 0 | H12: * Nota 1 - O Módulo 1 refere-se ao valor mensal devido ao empregado pela prestação do serviço no período de 12 meses.
C13: E | D13: Adicional de Hora Extra | F13: =HLOOKUP($B$5,'Dados Gerais'!$D$5:$BJ$67,63) -> 0 | H13: * Nota 2 - O adicional de hora extra no feriado trabalhado foi suprimido pela Lei 13.467/17
C14: F | D14: Outros (especificar) | F14: =HLOOKUP($B$5,'Dados Gerais'!$D$5:$BJ$59,33) -> 0 | H14: * Nota 3 - ART. 7º, § 2º, DA LEI Nº 605/49.Sendo mensalista o obreiro, o adicional noturno pago de forma fixa já é considerado integrado para os efeitos do pagamento do repouso semanal remunerado, nos termos do art. 7º, § 2º, da Lei nº 605/49.
D16: TOTAL DA REMUNERAÇÃO | F16: =SUM(F9:F14) -> 0
B18: MÓDULO 2 - ENCARGOS E BENEFÍCIOS ANUAIS, MENSAIS E DIÁRIOS | E18: Percentuais | F18: Valor
B19: Submódulo 2.1 - 13º Salário, Férias e Adicional de Férias
C20: A | D20: 13º Salário - Calculado no Módulo 7 - Destacado | E20: 0 | F20: =ROUND(E20*F$16,2) -> 0
C21: B | D21: Férias e Adicional de Férias | E21: ='Encargos Sociais (APRENDIZ)'!E31 -> 0.02777777778 | F21: =ROUND(E21*F$16,2) -> 0 | H21: * Nota 1 - Provisiona-se, mensalmente, o proporcional a 1/12 dos valores referentes a gratificação natalina, férias e adicional de férias.
H22: * Nota 2 - O adicional de férias contido no Submódulo 2.1 corresponde a 1/3 da remuneração que, por sua vez, é dividida por 12 contome Nota 1.
B23: Submódulo 2.2 - Encargos Previdenciários (GPS), Fundo de Garantia por Tempo de Serviço (FGTS) e Outras Contribuições
C24: A | D24: INSS (art. 22, inciso I, Lei nº 8.212/91) | E24: ='Encargos Sociais (APRENDIZ)'!E14 -> 0 | F24: =ROUND(E24*($F$16+$F$41+$F$73),2) -> 0
C25: B | D25: Salário Educação (art. 3º, inciso I, Decreto nº 87.043/82) | E25: ='Encargos Sociais (APRENDIZ)'!E15 -> 0 | F25: =ROUND(E25*($F$16+$F$41+$F$73),2) -> 0
C26: C | D26: SAT/RAT (art. 22, II, Lei 8.212/91 e Anexo V, Decreto 6.042/07) - Enquadramento 8211-3/00 | E26: ='Encargos Sociais (APRENDIZ)'!E16 -> 0 | F26: 0
C27: D | D27: SESC ou SESI (art. 30, Lei nº 8.036/90 e art. 1º, Lei 8.154/90) | E27: ='Encargos Sociais (APRENDIZ)'!E17 -> 0 | F27: 0
C28: E | D28: SENAI ou SENAC (Decreto nº 2.318/86) | E28: ='Encargos Sociais (APRENDIZ)'!E18 -> 0 | F28: 0
C29: F | D29: SEBRAE (§ 3º, art. 8º, Lei 8.029/90, alterada pela Lei nº 8.154/90) | E29: ='Encargos Sociais (APRENDIZ)'!E19 -> 0 | F29: 0
C30: G | D30: INCRA (art. 1º, I, Decreto Lei 1.146/70 e Lei 7.787, de 30/06/89) | E30: ='Encargos Sociais (APRENDIZ)'!E20 -> 0 | F30: 0 | H30: * Nota 1 - Os percentuais dos encargos previdenciários, do FGTS e demais contribuições são estabelecidos por legislação vigente.
C31: H | D31: FGTS (Lei Complementar nº 110/01 e art. 30, Lei nº 8.036/90) | E31: ='Encargos Sociais (APRENDIZ)'!E21 -> 0.02 | F31: 0 | H31: * Nota 2 - O SAT, a depender do grau de risco do serviço, irá variar entre 1%, para risco leve, de 2%, para risco médio, e de 3% para risco grave.
C32: I | D32: SECONCI (Convenções Coletivas de Trabalho da construção) | E32: ='Encargos Sociais (APRENDIZ)'!E22 -> 0 | F32: 0 | H32: * Nota 3 - Os percentuais do Submódulo 2.2 incidem sobre o Módulo 1 e o Submódulo 2.1.
B34: Submódulo 2.3 - Benefícios Mensais e Diários
C35: A | D35: Auxílio Transporte | F35: =HLOOKUP($B$5,'Dados Gerais'!$D$5:$BJ$93,82) -> 0
C36: B | D36: Auxílio Alimentação | F36: =HLOOKUP($B$5,'Dados Gerais'!$D$5:$BJ$93,89) -> 0
C37: C | D37: Assistência Médica e Familiar | F37: =HLOOKUP($B$5,'Dados Gerais'!$D$5:$BJ$101,97) -> 0
C38: D | D38: Outros (Seguro de vida e auxílio funeral e auxílio odontológico) | F38: =HLOOKUP($B$5,'Dados Gerais'!$D$5:$BJ$125,114) -> 0 | H38: * Nota 1 - O valor informado deverá ser o custo real do benefício (descontado o valor eventualmente pago pelo empregado).
H39: * Nota 2 - Observar a previsão dos benefícios contidos em Acordos, Convenções e Dissídios Coletivos de Trabalho e o disposto no art. 6º da IN 5/2017
D40: QUADRO-RESUMO DO MÓDULO 2
D41: 2.1 - 13º Salário, Férias e Adicional de Férias - 13º Destacado - Calculado no Módulo 7 | E41: =SUM(E20:E21) -> 0.02777777778 | F41: =F20+F21 -> 0
D42: 2.2 - Encargos Previdenciários (GPS), Fundo de Garantia por Tempo de Serviço (FGTS) e Contribuições | E42: =SUM(E24:E32) -> 0.02 | F42: =SUM(F24:F32) -> 0
D43: 2.3 - Benefícios Mensais e Diários | F43: =SUM(F35:F38) -> 0
D45: TOTAL DOS ENCARGOS E BENEFÍCIOS | F45: =SUM(F41:F43) -> 0
B47: MÓDULO 3 - PREVISÃO PARA RESCISÃO | E47: Percentuais | F47: Valor
C48: A | D48: Aviso Prévio Indenizado (Art. 7º, inciso XXI, da CF/1988 e arts. 477, 487, §1º, e 491 da CLT) | E48: ='Encargos Sociais (APRENDIZ)'!E36 -> 0 | F48: =ROUND(E48*$F$16,2) -> 0
C49: B | D49: Incidência do FGTS sobre o Aviso Prévio Indenizado (Súmula 305 TST) | E49: ='Encargos Sociais (APRENDIZ)'!E37 -> 0 | F49: 0 | H49: * Nota 1 - Adotou-se os parâmetros do estudo do STF (http://www.stf.jus.br/arquivo/cms/sobrestfestudosci/anexo/encargos_sociais_03102007.pdf), onde 5% do pessoal é demitido pelo empregador no decurso do contrato (para estes, considerou-se o aviso prévio indenizado). Desprezou-se as demissões por justa causa e os pedidos de demissão.
C50: C | D50: Multa do FGTS e Contribuição Social sobre o Aviso Prévio Indenizado (Art. 18, §1º, da Lei 8.036/1990 e art. 1º da LC nº 110/2001) | E50: ='Encargos Sociais (APRENDIZ)'!E38 -> 0 | F50: 0 | H50: * Nota 2 - No cálculo do percentual, considerou-se 36 dias, correspondendo à metade da duração média dos contratos (2 anos)
C51: D | D51: Aviso Prévio Trabalhado (Art. 488, parágrafo único, CLT) | E51: ='Encargos Sociais (APRENDIZ)'!E39 -> 0 | F51: 0 | H51: * Nota 3 - Incide sobre a Remuneração + 13º salário (1/12) + Férias (1/12) + Adicional de Férias (1/36) x 50% multa (40% para o empregado e 10% de contribuição social) x 8% FGTS
C52: E | D52: Incidência de GPS, FGTS e outras contribuições sobre o Aviso Prévio Trabalhado | E52: ='Encargos Sociais (APRENDIZ)'!E40 -> 0 | F52: 0 | H52: * Nota 4 - Os 95% restantes do cálculo, a um prazo médio de contrato de 4 anos. Assim, calcula-se 7 dias para o 1º ano de contrato e mais 3 dias para os 3 anos seguintes.
C53: F | D53: Multa do FGTS e Contribuição Social sobre o Aviso Prévio Trabalhado | E53: ='Encargos Sociais (APRENDIZ)'!E41 -> 0 | F53: 0
D55: TOTAL DE PREVISÃO PARA RESCISÃO | F55: =SUM(F48:F53) -> 0
B57: MÓDULO 4 - CUSTO DO PROFISSIONAL AUSENTE | E57: Percentuais | F57: Valor
B58: Submódulo 4.1 - Ausências Legais
C59: A | D59: Férias (Arts. 129 e 130, inc. I, da CLT) | E59: ='Encargos Sociais (APRENDIZ)'!E25 -> 0.08333333333 | F59: =ROUND(E59*$F$16,2) -> 0 | H59: * Nota 1 - As alíneas “A” a “F” referem-se somente ao custo que será pago ao repositor pelos dias trabalhados quando da necessidade de substituir a mão de obra alocada na prestação do serviço.
C60: B | D60: Ausências Legais (Arts. 131 e 473 da CLT) | E60: ='Encargos Sociais (APRENDIZ)'!E26 -> 0 | F60: 0 | H60: * Nota 2 - Adotou-se a estimativa do SINAPI de 2 dias por ano.
C61: C | D61: Licença-Paternidade (Art. 7º, XIX, e art. 10, §1º, do ADCT, CF/1988 e Art. 1º, II, da Lei 11.770/2008) | E61: ='Encargos Sociais (APRENDIZ)'!E27 -> 0 | F61: 0 | H61: * Nota 3 - Utilizada a proporção de 50% para homens, 5 dias de afastamento, e a probabilidade de um trabalhador requerer a Licença Paternidade em 5,22%, conforme SINAPI (citando dados da PNAD 2015)
C62: D | D62: Ausência por Acidente de Trabalho (Art. 131, III, da CLT) | E62: ='Encargos Sociais (APRENDIZ)'!E28 -> 0 | F62: 0 | H62: * Nota 4 - Utilzada a estatística de 1,96% dos contribuintes beneficiados com a emissão do auxílio, conforme Anuário Estatístico da Previdência Social. Afastamento de 15 dias a cargo da empresa.
C63: E | D63: Afastamento Maternidade (Art. 71 da Lei nº 8.213/1991) | E63: ='Encargos Sociais (APRENDIZ)'!E29 -> 0 | F63: 0 | H63: * Nota 5 - Utilizada a proporção de 50% para mulheres, 180 dias de afastamento, e a probabilidade de uma trabalhadora requerer a Licença Maternidade em 4,91%, conforme SINAPI (citando dados do IBGE 2016)
C64: F | D64: Auxílio Enfermidade - Doença (Art. 59 da Lei nº 8.213/1991) | E64: ='Encargos Sociais (APRENDIZ)'!E30 -> 0 | F64: 0 | H64: * Nota 6 - Utilizada a estatística de 3,37% dos contribuintes beneficiados com o auxílio, conforme Anuário Estatístico da Previdência Social de 2015 (acrescidos de 2 dias ao ano, para os quais o trabalhador nem requer o benefício da Previdência - conforme SINAPI)
B66: Submódulo 4.2 - Intrajornada
C67: A | D67: Intervalo para repouso ou alimentação | E67: ='Encargos Sociais (APRENDIZ)'!E33 -> 0 | F67: =ROUND(E67*$F$16,2) -> 0
D69: QUADRO-RESUMO DO MÓDULO 4 | F69: Valor
D70: 4.1 - Ausências Legais | E70: =SUM(E59:E64) -> 0.08333333333 | F70: =ROUND(E70*$F$16,2) -> 0
D71: 4.2 - Intrajornada | E71: =E67 -> 0 | F71: =ROUND(E71*$F$16,2) -> 0
D73: TOTAL DE PREVISÃO PARA RESCISÃO E INTERVALO INTRAJORNADA | F73: =SUM(F70:F71) -> 0
B75: MÓDULO 5 - INSUMOS DIVERSOS | F75: Valor
C76: A | D76: Uniformes - aquisição | F76: =ROUND(HLOOKUP($B$5,Uniformes!K4:DZ6,3)/12,2) -> 0
C77: B | D77: Materiais de consumo relacionados ao posto - aquisição | F77: =ROUND(HLOOKUP(B5,'Mat Cons'!I11:DX13,3)/12,2) -> 0
C78: C | D78: Materiais permanentes relacionados ao posto - remuneração da sua depreciação / manutenção | F78: =HLOOKUP(B5,'Mat Perm'!Q11:EF13,3) -> 0
C79: D | D79: Equipamentos relacionados ao posto - remuneração da sua depreciação / manutenção | F79: =HLOOKUP(B5,'Equip Rel'!Q11:EF13,3) -> 0
C80: E | D80: Equipamentos de Proteção Individual - EPI - aquisição | F80: =ROUND(HLOOKUP(B5,EPI!I4:DX6,3)/12,2) -> 0
D82: TOTAL DE INSUMOS DIVERSOS | F82: =SUM(F76:F81) -> 0 | H82: * Nota - Valores mensais por empregado
B84: MÓDULO 6 - CUSTOS INDIRETOS, TRIBUTOS E LUCRO - BDI | E84: Percentuais | F84: Valor
C85: A | D85: Custos Indiretos | E85: =BDI!E6 -> 0.035
C86: A.1 | D86: Administração Central | E86: =BDI!E7 -> 0.035
C87: A.2 | D87: Seguros, Garantias e Riscos | E87: =BDI!E8 -> 0
C88: B | D88: Lucro | E88: =BDI!E10 -> 0
C89: C | D89: Tributos | E89: =SUM(E90:E91) -> 0.01
C90: C.1 | D90: Tributos Federais (COFINS, PIS e CPRB) | E90: =BDI!E18 -> 0.01
C91: C.2 | D91: Tributos Distritais (ISS) | E91: =BDI!E23 -> 0 | H91: * Nota - Utilizou-se o indicado pelo Sindicato da Arquitetura e da Engenharia (Sinaenco, 2008, p. 22), que adota um percentual redutor de 20% no cálculo dos custos tributários relativos às contribuições PIS e COFINS
C92: D | D92: Despesas Financeiras | E92: =BDI!E13 -> 0.005056956743
D94: TOTAL DE BDI | E94: =BDI!E26 -> 0.0507 | F94: =E94*E102 -> 0
D96: QUADRO-RESUMO DO CUSTO MENSAL POR EMPREGADO - SEM O 13º | E96: Valor
D97: Módulo 1 - Composição da Remuneração | E97: =F16 -> 0
D98: Módulo 2 - Encargos e Benefícios Anuais, Mensais e Diários | E98: =F45 -> 0
D99: Módulo 3 - Provisão para Rescisão | E99: =F55 -> 0
D100: Módulo 4 - Custo de Reposição do Profissional Ausente | E100: =F73 -> 0
D101: Módulo 5 - Insumos Diversos | E101: =F82 -> 0
D102: SUBTOTAL (A+B+C+D+E) | E102: =SUM(E97:E101) -> 0
D103: Módulo 6 - Custos Indiretos, Tributos e Lucro | E103: =F94 -> 0
D105: TOTAL DO POSTO | E105: =SUM(E102:E103) -> 0
B107: MÓDULO 7 - DESTAQUE DO MÓDULO 2 - 13º SALÁRIO | E107: Percentuais | F107: Valor
C108: A | D108: 13º Salário | E108: ='Encargos Sociais (APRENDIZ)'!E32 -> 0.08333333333 | F108: =ROUND(E108*F$16,2) -> 0
C109: B | D109: Encargos Sociais sobre o 13º Salário - Taxa calculada no SUBMÓDULO 2.2 | E109: =SUM($E$24:$E$32) -> 0.02 | F109: =ROUND(E109*$F$108,2) -> 0 | H109: * Nota 1 - Provisiona-se, mensalmente, o proporcional a 1/12 dos valores referentes a gratificação natalina e adicional de férias.
C110: C | D110: BDI sobre o 13º Salário - Taxa calculada no MÓDULO 6 | E110: =E94 -> 0.0507 | F110: =ROUND(E110*($F$108+$F$109),2) -> 0
D112: TOTAL DO DESTAQUE DO 13º SALÁRIO | F112: =SUM(F108:F110) -> 0
D114: QUADRO-RESUMO DO CUSTO MENSAL POR EMPREGADO | E114: Valor
D115: Custo total - sem o 13º Salário | E115: =E105 -> 0
D116: Destaque do 13º Salário (valor mensal) | E116: =F112 -> 0
D118: TOTAL DO POSTO | E118: =E115+E116 -> 0

Sheet Dados Gerais
B3: INFORMAÇÕES DE ENTRADA
D5: 1 | E5: 3 | F5: 4 | G5: 5 | H5: 6 | I5: 7 | J5: 8 | K5: 9 | L5: 10 | M5: 11 | N5: 12 | O5: 13 | P5: 14 | Q5: 15 | R5: 16 | S5: 17 | T5: 18 | U5: 19 | V5: 20 | W5: 21 | X5: 22 | Y5: 23 | Z5: 24 | AA5: 25 | AB5: 26 | AC5: 27 | AD5: 28 | AE5: 29 | AF5: 30 | AG5: 31 | AH5: 32 | AI5: 33 | AJ5: 34 | AK5: 35 | AL5: 36 | AM5: 37 | AN5: 38 | AO5: 39 | AP5: 40 | AQ5: 41 | AR5: 42 | AS5: 43 | AT5: 44 | AU5: 45 | AV5: 46 | AW5: 47 | AX5: 48 | AY5: 49 | AZ5: 50 | BA5: 51 | BB5: 52 | BC5: 53 | BD5: 54 | BE5: 55 | BF5: 56 | BG5: 57 | BH5: 58 | BI5: 59 | BJ5: 60
D6: CARGO 1 | E6: CARGO 3 | F6: CARGO 4 | G6: CARGO 5 | H6: CARGO 6 | I6: CARGO 7 | J6: CARGO 8 | K6: CARGO 9 | L6: CARGO 10 | M6: CARGO 11 | N6: CARGO 12 | O6: CARGO 13 | P6: CARGO 14 | Q6: CARGO 15 | R6: CARGO 16 | S6: CARGO 17 | T6: CARGO 18 | U6: CARGO 19 | V6: CARGO 20 | W6: CARGO 21 | X6: CARGO 22 | Y6: CARGO 23 | Z6: CARGO 24 | AA6: CARGO 25 | AB6: CARGO 26 | AC6: CARGO 27 | AD6: CARGO 28 | AE6: CARGO 29 | AF6: CARGO 30 | AG6: CARGO 31 | AH6: CARGO 32 | AI6: CARGO 33 | AJ6: CARGO 34 | AK6: CARGO 35 | AL6: CARGO 36 | AM6: CARGO 37 | AN6: CARGO 38 | AO6: CARGO 39 | AP6: CARGO 40 | AQ6: CARGO 41 | AR6: CARGO 42 | AS6: CARGO 43 | AT6: CARGO 44 | AU6: CARGO 45 | AV6: CARGO 46 | AW6: CARGO 47 | AX6: CARGO 48 | AY6: CARGO 49 | AZ6: CARGO 50 | BA6: CARGO 51 | BB6: CARGO 52 | BC6: CARGO 53 | BD6: CARGO 54 | BE6: CARGO 55 | BF6: CARGO 56 | BG6: CARGO 57 | BH6: CARGO 58 | BI6: CARGO 59 | BJ6: CARGO 60
B7: INFORMAÇÕES BÁSICAS
B9: DESCRIÇÃO DOS POSTOS DE SERVIÇO
D10: ADOLESCENTE APRENDIZ
B11: REMUNERAÇÕES
D12: 1320
B13: QUANTIDADE DE POSTOS
D14: 180
B15: JORNADA
C16: HORAS | D16: 100
C17: DIAS/MÊS | D17: 22
B18: CCT UTILIZADA
C19: SINDICATOS E REFERÊNCIA | D19: -
C20: DATA-BASE | D20: -
B22: ADICIONAIS LEGAIS E GRATIFICAÇÕES
B24: PERICULOSIDADE (PERCENTUAL)
D25: 0
B26: BASE DE CÁLCULO DO ADICIONAL DE PERICULOSIDADE (SALÁRIO BÁSICO)
D27: =D12 -> 1320
B28: VALOR MENSAL DO ADICIONAL DE PERICULOSIDADE
D29: =ROUND(D25*D12,2) -> 0
B30: INSALUBRIDADE (PERCENTUAL)
D31: 0
B32: BASE DE CÁLCULO DO ADICIONAL DE INSALUBRIDADE (SALÁRIO MÍNIMO LEGAL)
D33: 1320
B34: VALOR MENSAL DO ADICIONAL DE INSALUBRIDADE
D35: =ROUND(D31*D12,2) -> 0
B36: GRATIFICAÇÃO - VALOR MENSAL (R$)
D37: 0
B39: ADICIONAL NOTURNO
B41: INCIDÊNCIA (PERCENTUAL)
D42: 0.2
B43: HORAS REAIS POR DIA
D44: 0
B45: HORAS FICTAS POR DIA
D46: =D44*8/7 -> 0
B47: BASE DE CÁLCULO DO ADICIONAL NOTURNO (INCLUINDO ADICIONAIS E GRATIFICAÇÕES)
D48: =D12+D29+D35+D37 -> 1320
B49: VALOR MENSAL DO ADICIONAL NOTURNO (HORA NORMAL + HORA REDUZIDA) - POR POSTO
D50: =ROUND(D46*D17*D42*D48/D16,2) -> 0
B52: ADICIONAL DE HORA EXTRA
B54: INCIDÊNCIA (PERCENTUAL 1)
D55: 0.5
B56: HORAS EXTRAS POR MÊS (PERCENTUAL 1)
D57: 0
B58: VALOR MENSAL DO ADICIONAL DE HORAS EXTRAS (PERCENTUAL 1) - POR POSTO
D59: =ROUND(D57*D55*D12/D16,2) -> 0
B60: INCIDÊNCIA (PERCENTUAL 2)
D61: 1
B62: HORAS EXTRAS POR MÊS (PERCENTUAL 2)
D63: 0
B64: VALOR MENSAL DO ADICIONAL DE HORAS EXTRAS (PERCENTUAL 2) - POR POSTO
D65: =ROUND(D63*D61*D12/D16,2) -> 0
B66: TOTAL MENSAL DOS ADICIONAIS DE HORAS EXTRAS - POR POSTO
D67: =D65+D59 -> 0
B69: BENEFÍCIOS COMUNS - AUXÍLIO TRANSPORTE
B71: DISTRIBUIÇÃO ESTIMADA DE PROCEDÊNCIA
C72: Cidade-satélite | D72: 1
C73: Região do entorno | D73: 0
C74: Esplanada - apenas para os que vêm do entorno | D74: 0
B75: VALORES DOS VALES
C76: Cidade-satélite | D76: 5.5
C77: Região do entorno | D77: 8.09
C78: Esplanada | D78: 2.75
B79: VALOR MENSAL BRUTO DE PAGAMENTO - POR POSTO
D80: =ROUND((D72*D76+D73*D77+D74*D78)*2*D17,2) -> 242
B81: PERCENTUAL DE DESCONTO
D82: 0.06
B83: VALOR MENSAL DO DESCONTO - POR POSTO
D84: =ROUND(D82*D12,2) -> 79.2
B85: VALOR MENSAL LÍQUIDO DO VALE TRANSPORTE - POR POSTO
D86: =IF(D80>D84,D80-D84,0) -> 162.8
D87: =D86*D14 -> 29304
B88: BENEFÍCIOS COMUNS - AUXÍLIO ALIMENTAÇÃO
C90: VALOR CCT | D90: 0
C91: VALOR CD | D91: 35
B92: VALOR MENSAL DO AUXÍLIO ALIMENTAÇÃO - POR POSTO
D93: =ROUND(LARGE(D90:D91,1)*D17,2) -> 770
D94: =D93*D14 -> 138600
B95: BENEFÍCIOS ESPECIAIS - ASSISTÊNCIA MÉDICA E FAMILIAR
C97: OBRIGAÇÃO DE PAGTO | D97: NÃO
C98: VALOR CCT | D98: 0
C99: VALOR MERCADO | D99: 0
B100: VALOR MENSAL DO AUXÍLIO ESPECIAL - ASSISTÊNCIA MÉDICA E FAMILIAR - POR POSTO
D101: =IF(D97="SIM",ROUND(SMALL(D98:D99,1),2)*D17,0) -> 0
B103: BENEFÍCIOS ESPECIAIS - SEGURO DE VIDA E AUXÍLIO-FUNERAL, AUX ODONT, AUX CRECHE
B105: SEGURO DE VIDA E AUXÍLIO FUNERAL
C106: OBRIGAÇÃO DE PAGTO | D106: SIM
C107: VALOR CCT
C108: VALOR MERCADO | D108: 9.9
B109: VALOR MENSAL DO AUXÍLIO ESPECIAL - SEGURO DE VIDA E AUXÍLIO FUNERAL - POR POSTO
D110: =IF(D106="SIM",ROUND(SMALL(D107:D108,1),2),0) -> 9.9
B111: AUXÍLIO ODONTOLÓGICO
C112: OBRIGAÇÃO DE PAGTO | D112: NÃO
C113: VALOR CCT | D113: 0
C114: VALOR MERCADO | D114: 0
B115: VALOR MENSAL DO AUXÍLIO ESPECIAL - SEGURO DE VIDA E AUX FUNERAL - POR POSTO
D116: =IF(D112="SIM",ROUND(SMALL(D113:D114,1),2),0) -> 0
D118: =D110+D116 -> 9.9
B120: BENEFÍCIOS ESPECIAIS - SEGURO DE VIDA E AUXÍLIO-FUNERAL, AUX ODONT, AUX CRECHE
B122: PROGRAMA DE APRENDIZAGEM
C123: OBRIGAÇÃO DE PAGTO | D123: SIM
C124: VALOR MERCADO | D124: =141.86+13.03 -> 154.89

Sheet Encargos Sociais (APRENDIZ)
B4: ENCARGOS SOCIAIS SOBRE A MÃO DE OBRA
D5: ADOLESCENTE APRENDIZ | E5: Percentuais
B7: Referência:
C8: SINAPI OUT/2018
B10: Categorias:
C11: TODAS
B13: GRUPO A: Encargos Sociais Básicos - Previdenciários (GPS), Fundo de Garantia por Tempo de Serviço (FGTS) e Outras Contribuições | E13: =ROUND(SUM(E14:E22),4) -> 0.02
C14: A | D14: INSS (art. 22, inciso I, Lei nº 8.212/91) | E14: 0
C15: B | D15: Salário Educação (art. 3º, inciso I, Decreto nº 87.043/82) | E15: 0
C16: C | D16: SAT/RAT (art. 22, II, Lei 8.212/91 e Anexo V, Decreto 6.042/07) - Enquadramento 8211-3/00 | E16: 0
C17: D | D17: SESC ou SESI (art. 30, Lei nº 8.036/90 e art. 1º, Lei 8.154/90) | E17: 0
C18: E | D18: SENAI ou SENAC (Decreto nº 2.318/86) | E18: 0
C19: F | D19: SEBRAE (§ 3º, art. 8º, Lei 8.029/90, alterada pela Lei nº 8.154/90) | E19: 0 | G19: * Nota 1 - Os percentuais dos encargos previdenciários, do FGTS e demais contribuições são estabelecidos por legislação vigente.
C20: G | D20: INCRA (art. 1º, I, Decreto Lei 1.146/70 e Lei 7.787, de 30/06/89) | E20: 0 | G20: * Nota 2 - O SAT, a depender do grau de risco do serviço, irá variar entre 1%, para risco leve, de 2%, para risco médio, e de 3% para risco grave.
C21: H | D21: FGTS (Art. 15, § 7º da Lei nº 8.036/1990 e Art. 67 do Decreto nº 9.579/2018) | E21: 0.02 | G21: * Nota 3 - Os percentuais do Submódulo 2.2 incidem sobre o Módulo 1, o Submódulo 2.1, o Módulo 3, o Módulo 4 e o Módulo 6.
C22: I | D22: SECONCI (Convenções Coletivas de Trabalho da construção) | E22: 0
B24: GRUPO B: Encargos Sociais Relacionados ao Custo do Substituto - Ausências Legais | E24: =ROUND(SUM(E25:E33),4) -> 0.1944
C25: A | D25: Férias (Arts. 129 e 130, inc. I, da CLT) | E25: =1/12 -> 0.08333333333 | G25: Nota 1 - As alíneas “A” a “F” referem-se ao custo que será pago pela empresa ao profissional ausente (férias e ausências legais)
C26: B | D26: Ausências Legais (Arts. 131 e 473 da CLT) | E26: 0 | G26: * Nota 2 - Adotou-se a estimativa do SINAPI de 2 dias por ano. Em 252 dias úteis por ano.
C27: C | D27: Licença-Paternidade (Art. 7º, XIX, e art. 10, §1º, do ADCT, CF/1988 e Art. 1º, II, da Lei 11.770/2008) | E27: 0 | G27: * Nota 3 - Utilizada a proporção de 50% para homens, 5 dias de afastamento, e a probabilidade de um trabalhador requerer a Licença Paternidade em 5,96%, conforme SINAPI (Anuário Estatístico da Previdência Social - 2017)
C28: D | D28: Ausência por Acidente de Trabalho (Art. 131, III, da CLT) | E28: 0 | G28: * Nota 4 - Utilzada a estatística de 2,05% dos contribuintes beneficiados com a emissão do auxílio, conforme Anuário Estatístico da Previdência Social. Afastamento de 15 dias a cargo da empresa.
C29: E | D29: Afastamento Maternidade (Art. 71 da Lei nº 8.213/1991) | E29: 0 | G29: * Nota 5 - Utilizada a estimativa de 120 dias de afastamento, e a probabilidade de uma trabalhadora requerer a Licença Maternidade em 5,08%, conforme SINAPI (citando dados do IBGE 2017) - A própria previdência paga o benefício pelos 120 dias, contudo o empregador arca com o 13º e com as férias
C30: F | D30: Auxílio Enfermidade - Doença (Art. 59 da Lei nº 8.213/1991) | E30: 0 | G30: * Nota 6 - Utilizada a estatística de 3,76% dos contribuintes beneficiados com o auxílio, conforme Anuário Estatístico da Previdência Social de 2016 (acrescidos de 2 dias ao ano, para os quais o trabalhador nem requer o benefício da Previdência - conforme SINAPI)
C31: G | D31: Adicional de Férias (componente do Submódulo 2.1) | E31: =1/3*1/12 -> 0.02777777778 | G31: * Nota 7 - O adicional de férias contido no Submódulo 2.1 corresponde a 1/3 da remuneração que, por sua vez, é dividida por 11 contome Nota 1.
C32: H | D32: 13º Salário (destacado na planilha de custos) | E32: =1/12 -> 0.08333333333 | G32: * Nota 8 - Provisiona-se, mensalmente, o proporcional a 1/12 dos valores referentes a gratificação natalina e adicional de férias.
C33: I | D33: Intervalo para repouso ou alimentação (componente do Submódulo 4.2) | E33: 0
B35: GRUPO C: Encargos Sociais Relacionados à Previsão para Rescisão Trabalhista | E35: =ROUND(SUM(E36:E41),4) -> 0
C36: A | D36: Aviso Prévio Indenizado (Art. 7º, inciso XXI, da CF/1988 e arts. 477, 487, §1º, e 491 da CLT) | E36: 0 | G36: * Nota 1 - Considerou-se demissões de 10% por ano para substituições, a um prazo estimado de contrato de 3 anos. Aviso prévio - 1º ano 30 dias. Considerou-se os 10% demitidos sem justa causa e recebendo aviso indenizado.
C37: B | D37: Incidência do FGTS sobre o Aviso Prévio Indenizado (Súmula 305 TST) | E37: =E21*E36 -> 0
C38: C | D38: Multa do FGTS e Contribuição Social sobre o Aviso Prévio Indenizado (Art. 18, §1º, da Lei 8.036/1990 e art. 1º da LC nº 110/2001) | E38: 0 | G38: * Nota 2 - Incide sobre a Remuneração + 13º salário (1/12) + Férias (1/12) + Adicional de Férias (1/36) x 40% multa para o empregador x 8% FGTS
C39: D | D39: Aviso Prévio Trabalhado (Art. 488, parágrafo único, CLT) | E39: 0 | G39: * Nota 3 - Considerou-se demissões de 100% ao final do contrato, com um prazo médio estimado de 3 anos. Assim, calcula-se 7 dias para o 1º ano de contrato e mais 3 dias para os 2 anos seguintes. Total 13 dias.
C40: E | D40: Incidência de GPS, FGTS e outras contribuições sobre o Aviso Prévio Trabalhado | E40: =E39*E13 -> 0
C41: F | D41: Multa do FGTS e Contribuição Social sobre o Aviso Prévio Trabalhado | E41: 0 | G41: * Nota 4 - Incide sobre a Remuneração + 13º salário (1/12) + Férias (1/12) + Adicional de Férias (1/36) x 40% multa para o empregador x 8% FGTS
B43: GRUPO D: Reincidências | E43: =ROUND(SUM(E44:E44),4) -> 0.0039
C44: A | D44: Reincidência do Grupo A sobre o Grupo B | E44: =E13*E24 -> 0.003888
D46: SOMATÓRIO - ENCARGOS SOCIAIS SOBRE A MÃO DE OBRA | E46: =E43+E35+E24+E13 -> 0.2183

Sheet BDI
B3: COMPOSIÇÃO DA TAXA DE CUSTOS INDIRETOS, TRIBUTOS E LUCRO - BDI
B4: APLICAÇÃO: MÃO DE OBRA, 13º, MATERIAIS, EPC E EQUIPAMENTO DE REGISTRO DE FREQUÊNCIA | E4: Percentuais
B6: Custos Indiretos da Contratada | E6: =SUM(E7:E8) -> 0.035
C7: A | D7: Administração Central | E7: 0.035 | G7: * Nota 1 - O Somatório da Administração Central com o Lucro deve ser inferior a 12%
C8: B | D8: Seguros, Garantias e Riscos | E8: 0 | G8: * Nota 2 - O risco previsto para o porte do contrato majorado em mais 0,20% devido ao não pagamento dos insumos componentes do custo do posto quando da ausência do mesmo.
B10: Lucro | E10: =SUM(E11:E11) -> 0
C11: A | D11: Lucro Real sobre os Custos Administrados | E11: 0
B13: Despesas Financeiras | E13: =E14 -> 0.005056956743
C14: A | D14: Cálculo Baseado no Prazo para a Restituição dos Desembolsos Realizados pelo Contratado e na Taxa de Retorno Arbitrada | E14: =(1+E16)^(E15/252)-1 -> 0.005056956743 | G14: * Nota 1 - DF = [(1+TR)^(DU/252)]/100
C15: A.1 | D15: Dias Úteis Considerados | E15: 11 | G15: * Nota 2 - Diferença de dias entre o desembolso, pelo contratado, e o pagamento, pela Câmara
C16: A.2 | D16: Taxa de Retorno | E16: 0.1225 | G16: * Nota 3 - A taxa sugerida é a meta da SELIC
B18: Impostos - Tributos Federais | E18: =SUM(E19:E21) -> 0.01
C19: A | D19: Contribuição para o Financiamento da Seguridade Social - COFINS | E19: 0 | G19: * Nota 1 - Redução de 20% considerando as deduções permitidas em Lei, conforme SENGE, citado pelo TCU - Acórdão 2622/2013
C20: B | D20: Programa de Integração Social - PIS | E20: 0.01 | G20: * Nota 2 - Redução de 20% considerando as deduções permitidas em Lei, conforme SENGE, citado pelo TCU - Acórdão 2622/2013
C21: C | D21: Contribuição Previdenciária sobre a Receita Bruta - CPRB | E21: 0 | G21: * Nota 3 - Lei 12.546/2011 - Verificar atualizações e setores beneficiados
B23: Impostos - Tributos Distritais | E23: =SUM(E24:E24) -> 0
C24: A | D24: Imposto sobre Serviço de Qualquer Natureza - ISS | E24: 0
D26: SOMATÓRIO - ENCARGOS SOCIAIS SOBRE A MÃO DE OBRA | E26: =ROUND((((1+E6)*(1+E10)*(1+E13)/(1-E18-E23))-1),4) -> 0.0507 | G26: * Nota 1 - [(1+AC+SGR)*(1+L)*(1+DF)/(1-CONFINS-PIS-CPRB-ISS)]-1

Sheet Uniformes
B4: UNIFORMES - AQUISIÇÃO | K4: 1 | M4: =K4+1 -> 2 | O4: =M4+1 -> 3 | Q4: =O4+1 -> 4 | S4: =Q4+1 -> 5 | U4: =S4+1 -> 6 | W4: =U4+1 -> 7 | Y4: =W4+1 -> 8 | AA4: =Y4+1 -> 9 | AC4: =AA4+1 -> 10 | AE4: =AC4+1 -> 11 | AG4: =AE4+1 -> 12 | AI4: =AG4+1 -> 13 | AK4: =AI4+1 -> 14 | AM4: =AK4+1 -> 15 | AO4: =AM4+1 -> 16 | AQ4: =AO4+1 -> 17 | AS4: =AQ4+1 -> 18 | AU4: =AS4+1 -> 19 | AW4: =AU4+1 -> 20 | AY4: =AW4+1 -> 21 | BA4: =AY4+1 -> 22 | BC4: =BA4+1 -> 23 | BE4: =BC4+1 -> 24 | BG4: =BE4+1 -> 25 | BI4: =BG4+1 -> 26 | BK4: =BI4+1 -> 27 | BM4: =BK4+1 -> 28 | BO4: =BM4+1 -> 29 | BQ4: =BO4+1 -> 30 | BS4: =BQ4+1 -> 31 | BU4: =BS4+1 -> 32 | BW4: =BU4+1 -> 33 | BY4: =BW4+1 -> 34 | CA4: =BY4+1 -> 35 | CC4: =CA4+1 -> 36 | CE4: =CC4+1 -> 37 | CG4: =CE4+1 -> 38 | CI4: =CG4+1 -> 39 | CK4: =CI4+1 -> 40 | CM4: =CK4+1 -> 41 | CO4: =CM4+1 -> 42 | CQ4: =CO4+1 -> 43 | CS4: =CQ4+1 -> 44 | CU4: =CS4+1 -> 45 | CW4: =CU4+1 -> 46 | CY4: =CW4+1 -> 47 | DA4: =CY4+1 -> 48 | DC4: =DA4+1 -> 49 | DE4: =DC4+1 -> 50 | DG4: =DE4+1 -> 51 | DI4: =DG4+1 -> 52 | DK4: =DI4+1 -> 53 | DM4: =DK4+1 -> 54 | DO4: =DM4+1 -> 55 | DQ4: =DO4+1 -> 56 | DS4: =DQ4+1 -> 57 | DU4: =DS4+1 -> 58 | DW4: =DU4+1 -> 59 | DY4: =DW4+1 -> 60
K6: =ROUND(SUM(L5:L68),2) -> 103.88 | M6: =ROUND(SUM(N5:N68),2) -> 0 | O6: =ROUND(SUM(P5:P68),2) -> 0 | Q6: =ROUND(SUM(R5:R68),2) -> 0 | S6: =ROUND(SUM(T5:T68),2) -> 0 | U6: =ROUND(SUM(V5:V68),2) -> 0 | W6: =ROUND(SUM(X5:X68),2) -> 0 | Y6: =ROUND(SUM(Z5:Z68),2) -> 0 | AA6: =ROUND(SUM(AB5:AB68),2) -> 0 | AC6: =ROUND(SUM(AD5:AD68),2) -> 0 | AE6: =ROUND(SUM(AF5:AF68),2) -> 0 | AG6: =ROUND(SUM(AH5:AH68),2) -> 0 | AI6: =ROUND(SUM(AJ5:AJ68),2) -> 0 | AK6: =ROUND(SUM(AL5:AL68),2) -> 0 | AM6: =ROUND(SUM(AN5:AN68),2) -> 0 | AO6: =ROUND(SUM(AP5:AP68),2) -> 0 | AQ6: =ROUND(SUM(AR5:AR68),2) -> 0 | AS6: =ROUND(SUM(AT5:AT68),2) -> 0 | AU6: =ROUND(SUM(AV5:AV68),2) -> 0 | AW6: =ROUND(SUM(AX5:AX68),2) -> 0 | AY6: =ROUND(SUM(AZ5:AZ68),2) -> 0 | BA6: =ROUND(SUM(BB5:BB68),2) -> 0 | BC6: =ROUND(SUM(BD5:BD68),2) -> 0 | BE6: =ROUND(SUM(BF5:BF68),2) -> 0 | BG6: =ROUND(SUM(BH5:BH68),2) -> 0 | BI6: =ROUND(SUM(BJ5:BJ68),2) -> 0 | BK6: =ROUND(SUM(BL5:BL68),2) -> 0 | BM6: =ROUND(SUM(BN5:BN68),2) -> 0 | BO6: =ROUND(SUM(BP5:BP68),2) -> 0 | BQ6: =ROUND(SUM(BR5:BR68),2) -> 0 | BS6: =ROUND(SUM(BT5:BT68),2) -> 0 | BU6: =ROUND(SUM(BV5:BV68),2) -> 0 | BW6: =ROUND(SUM(BX5:BX68),2) -> 0 | BY6: =ROUND(SUM(BZ5:BZ68),2) -> 0 | CA6: =ROUND(SUM(CB5:CB68),2) -> 0 | CC6: =ROUND(SUM(CD5:CD68),2) -> 0 | CE6: =ROUND(SUM(CF5:CF68),2) -> 0 | CG6: =ROUND(SUM(CH5:CH68),2) -> 0 | CI6: =ROUND(SUM(CJ5:CJ68),2) -> 0 | CK6: =ROUND(SUM(CL5:CL68),2) -> 0 | CM6: =ROUND(SUM(CN5:CN68),2) -> 0 | CO6: =ROUND(SUM(CP5:CP68),2) -> 0 | CQ6: =ROUND(SUM(CR5:CR68),2) -> 0 | CS6: =ROUND(SUM(CT5:CT68),2) -> 0 | CU6: =ROUND(SUM(CV5:CV68),2) -> 0 | CW6: =ROUND(SUM(CX5:CX68),2) -> 0 | CY6: =ROUND(SUM(CZ5:CZ68),2) -> 0 | DA6: =ROUND(SUM(DB5:DB68),2) -> 0 | DC6: =ROUND(SUM(DD5:DD68),2) -> 0 | DE6: =ROUND(SUM(DF5:DF68),2) -> 0 | DG6: =ROUND(SUM(DH5:DH68),2) -> 0 | DI6: =ROUND(SUM(DJ5:DJ68),2) -> 0 | DK6: =ROUND(SUM(DL5:DL68),2) -> 0 | DM6: =ROUND(SUM(DN5:DN68),2) -> 0 | DO6: =ROUND(SUM(DP5:DP68),2) -> 0 | DQ6: =ROUND(SUM(DR5:DR68),2) -> 0 | DS6: =ROUND(SUM(DT5:DT68),2) -> 0 | DU6: =ROUND(SUM(DV5:DV68),2) -> 0 | DW6: =ROUND(SUM(DX5:DX68),2) -> 0 | DY6: =ROUND(SUM(DZ5:DZ68),2) -> 0
C7: CATEGORIAS | H7: QUANTIDADE
K8: =IF($C8=K$4,1,0) -> 0
C9: 1 | D9: =HLOOKUP($C9,'Dados Gerais'!$D$5:$BJ$10,6) -> ADOLESCENTE APRENDIZ | H9: =HLOOKUP($C9,'Dados Gerais'!$D$5:$BJ$14,10) -> 180 | K9: 1 | M9: =IF($C9=M$4,1,0) -> 0 | O9: =IF($C9=O$4,1,0) -> 0 | Q9: =IF($C9=Q$4,1,0) -> 0 | S9: =IF($C9=S$4,1,0) -> 0 | U9: =IF($C9=U$4,1,0) -> 0 | W9: =IF($C9=W$4,1,0) -> 0 | Y9: =IF($C9=Y$4,1,0) -> 0 | AA9: =IF($C9=AA$4,1,0) -> 0 | AC9: =IF($C9=AC$4,1,0) -> 0 | AE9: =IF($C9=AE$4,1,0) -> 0 | AG9: =IF($C9=AG$4,1,0) -> 0 | AI9: =IF($C9=AI$4,1,0) -> 0 | AK9: =IF($C9=AK$4,1,0) -> 0 | AM9: =IF($C9=AM$4,1,0) -> 0 | AO9: =IF($C9=AO$4,1,0) -> 0 | AQ9: =IF($C9=AQ$4,1,0) -> 0 | AS9: =IF($C9=AS$4,1,0) -> 0 | AU9: =IF($C9=AU$4,1,0) -> 0 | AW9: =IF($C9=AW$4,1,0) -> 0 | AY9: =IF($C9=AY$4,1,0) -> 0 | BA9: =IF($C9=BA$4,1,0) -> 0 | BC9: =IF($C9=BC$4,1,0) -> 0 | BE9: =IF($C9=BE$4,1,0) -> 0 | BG9: =IF($C9=BG$4,1,0) -> 0 | BI9: =IF($C9=BI$4,1,0) -> 0 | BK9: =IF($C9=BK$4,1,0) -> 0 | BM9: =IF($C9=BM$4,1,0) -> 0 | BO9: =IF($C9=BO$4,1,0) -> 0 | BQ9: =IF($C9=BQ$4,1,0) -> 0 | BS9: =IF($C9=BS$4,1,0) -> 0 | BU9: =IF($C9=BU$4,1,0) -> 0 | BW9: =IF($C9=BW$4,1,0) -> 0 | BY9: =IF($C9=BY$4,1,0) -> 0 | CA9: =IF($C9=CA$4,1,0) -> 0 | CC9: =IF($C9=CC$4,1,0) -> 0 | CE9: =IF($C9=CE$4,1,0) -> 0 | CG9: =IF($C9=CG$4,1,0) -> 0 | CI9: =IF($C9=CI$4,1,0) -> 0 | CK9: =IF($C9=CK$4,1,0) -> 0 | CM9: =IF($C9=CM$4,1,0) -> 0 | CO9: =IF($C9=CO$4,1,0) -> 0 | CQ9: =IF($C9=CQ$4,1,0) -> 0 | CS9: =IF($C9=CS$4,1,0) -> 0 | CU9: =IF($C9=CU$4,1,0) -> 0 | CW9: =IF($C9=CW$4,1,0) -> 0 | CY9: =IF($C9=CY$4,1,0) -> 0 | DA9: =IF($C9=DA$4,1,0) -> 0 | DC9: =IF($C9=DC$4,1,0) -> 0 | DE9: =IF($C9=DE$4,1,0) -> 0 | DG9: =IF($C9=DG$4,1,0) -> 0 | DI9: =IF($C9=DI$4,1,0) -> 0 | DK9: =IF($C9=DK$4,1,0) -> 0 | DM9: =IF($C9=DM$4,1,0) -> 0 | DO9: =IF($C9=DO$4,1,0) -> 0 | DQ9: =IF($C9=DQ$4,1,0) -> 0 | DS9: =IF($C9=DS$4,1,0) -> 0 | DU9: =IF($C9=DU$4,1,0) -> 0 | DW9: =IF($C9=DW$4,1,0) -> 0 | DY9: =IF($C9=DY$4,1,0) -> 0
K11: 0
C13: ITEM | D13: DESCRIÇÃO | E13: QUANT ANUAL POR POSTO | F13: Nº DE POSTOS | G13: QUANT ANUAL TOTAL | H13: VALOR
L14: =IF(SUM(K$8:K$11)>0,$E14*$H14,0) -> 0 | N14: =IF(SUM(M$8:M$11)>0,$E14*$H14,0) -> 0 | P14: =IF(SUM(O$8:O$11)>0,$E14*$H14,0) -> 0 | R14: =IF(SUM(Q$8:Q$11)>0,$E14*$H14,0) -> 0 | T14: =IF(SUM(S$8:S$11)>0,$E14*$H14,0) -> 0 | V14: =IF(SUM(U$8:U$11)>0,$E14*$H14,0) -> 0 | X14: =IF(SUM(W$8:W$11)>0,$E14*$H14,0) -> 0 | Z14: =IF(SUM(Y$8:Y$11)>0,$E14*$H14,0) -> 0 | AB14: =IF(SUM(AA$8:AA$11)>0,$E14*$H14,0) -> 0 | AD14: =IF(SUM(AC$8:AC$11)>0,$E14*$H14,0) -> 0 | AF14: =IF(SUM(AE$8:AE$11)>0,$E14*$H14,0) -> 0 | AH14: =IF(SUM(AG$8:AG$11)>0,$E14*$H14,0) -> 0 | AJ14: =IF(SUM(AI$8:AI$11)>0,$E14*$H14,0) -> 0 | AL14: =IF(SUM(AK$8:AK$11)>0,$E14*$H14,0) -> 0 | AN14: =IF(SUM(AM$8:AM$11)>0,$E14*$H14,0) -> 0 | AP14: =IF(SUM(AO$8:AO$11)>0,$E14*$H14,0) -> 0 | AR14: =IF(SUM(AQ$8:AQ$11)>0,$E14*$H14,0) -> 0 | AT14: =IF(SUM(AS$8:AS$11)>0,$E14*$H14,0) -> 0 | AV14: =IF(SUM(AU$8:AU$11)>0,$E14*$H14,0) -> 0 | AX14: =IF(SUM(AW$8:AW$11)>0,$E14*$H14,0) -> 0 | AZ14: =IF(SUM(AY$8:AY$11)>0,$E14*$H14,0) -> 0 | BB14: =IF(SUM(BA$8:BA$11)>0,$E14*$H14,0) -> 0 | BD14: =IF(SUM(BC$8:BC$11)>0,$E14*$H14,0) -> 0 | BF14: =IF(SUM(BE$8:BE$11)>0,$E14*$H14,0) -> 0 | BH14: =IF(SUM(BG$8:BG$11)>0,$E14*$H14,0) -> 0 | BJ14: =IF(SUM(BI$8:BI$11)>0,$E14*$H14,0) -> 0 | BL14: =IF(SUM(BK$8:BK$11)>0,$E14*$H14,0) -> 0 | BN14: =IF(SUM(BM$8:BM$11)>0,$E14*$H14,0) -> 0 | BP14: =IF(SUM(BO$8:BO$11)>0,$E14*$H14,0) -> 0 | BR14: =IF(SUM(BQ$8:BQ$11)>0,$E14*$H14,0) -> 0 | BT14: =IF(SUM(BS$8:BS$11)>0,$E14*$H14,0) -> 0 | BV14: =IF(SUM(BU$8:BU$11)>0,$E14*$H14,0) -> 0 | BX14: =IF(SUM(BW$8:BW$11)>0,$E14*$H14,0) -> 0 | BZ14: =IF(SUM(BY$8:BY$11)>0,$E14*$H14,0) -> 0 | CB14: =IF(SUM(CA$8:CA$11)>0,$E14*$H14,0) -> 0 | CD14: =IF(SUM(CC$8:CC$11)>0,$E14*$H14,0) -> 0 | CF14: =IF(SUM(CE$8:CE$11)>0,$E14*$H14,0) -> 0 | CH14: =IF(SUM(CG$8:CG$11)>0,$E14*$H14,0) -> 0 | CJ14: =IF(SUM(CI$8:CI$11)>0,$E14*$H14,0) -> 0 | CL14: =IF(SUM(CK$8:CK$11)>0,$E14*$H14,0) -> 0 | CN14: =IF(SUM(CM$8:CM$11)>0,$E14*$H14,0) -> 0 | CP14: =IF(SUM(CO$8:CO$11)>0,$E14*$H14,0) -> 0 | CR14: =IF(SUM(CQ$8:CQ$11)>0,$E14*$H14,0) -> 0 | CT14: =IF(SUM(CS$8:CS$11)>0,$E14*$H14,0) -> 0 | CV14: =IF(SUM(CU$8:CU$11)>0,$E14*$H14,0) -> 0 | CX14: =IF(SUM(CW$8:CW$11)>0,$E14*$H14,0) -> 0 | CZ14: =IF(SUM(CY$8:CY$11)>0,$E14*$H14,0) -> 0 | DB14: =IF(SUM(DA$8:DA$11)>0,$E14*$H14,0) -> 0 | DD14: =IF(SUM(DC$8:DC$11)>0,$E14*$H14,0) -> 0 | DF14: =IF(SUM(DE$8:DE$11)>0,$E14*$H14,0) -> 0 | DH14: =IF(SUM(DG$8:DG$11)>0,$E14*$H14,0) -> 0 | DJ14: =IF(SUM(DI$8:DI$11)>0,$E14*$H14,0) -> 0 | DL14: =IF(SUM(DK$8:DK$11)>0,$E14*$H14,0) -> 0 | DN14: =IF(SUM(DM$8:DM$11)>0,$E14*$H14,0) -> 0 | DP14: =IF(SUM(DO$8:DO$11)>0,$E14*$H14,0) -> 0 | DR14: =IF(SUM(DQ$8:DQ$11)>0,$E14*$H14,0) -> 0 | DT14: =IF(SUM(DS$8:DS$11)>0,$E14*$H14,0) -> 0 | DV14: =IF(SUM(DU$8:DU$11)>0,$E14*$H14,0) -> 0 | DX14: =IF(SUM(DW$8:DW$11)>0,$E14*$H14,0) -> 0 | DZ14: =IF(SUM(DY$8:DY$11)>0,$E14*$H14,0) -> 0
C15: 1 | D15: Camiseta básica de uniforme | E15: 4 | F15: =SUM(H9:H10) -> 180 | G15: =F15*E15 -> 720 | H15: 25.97 | L15: 103.88 | N15: 0 | P15: =IF(SUM(O$8:O$11)>0,$E15*$H15,0) -> 0 | R15: =IF(SUM(Q$8:Q$11)>0,$E15*$H15,0) -> 0 | T15: =IF(SUM(S$8:S$11)>0,$E15*$H15,0) -> 0 | V15: =IF(SUM(U$8:U$11)>0,$E15*$H15,0) -> 0 | X15: =IF(SUM(W$8:W$11)>0,$E15*$H15,0) -> 0 | Z15: =IF(SUM(Y$8:Y$11)>0,$E15*$H15,0) -> 0 | AB15: =IF(SUM(AA$8:AA$11)>0,$E15*$H15,0) -> 0 | AD15: 0 | AF15: 0 | AH15: 0 | AJ15: 0 | AL15: 0 | AN15: 0 | AP15: 0 | AR15: 0 | AT15: 0 | AV15: 0 | AX15: 0 | AZ15: 0 | BB15: 0 | BD15: 0 | BF15: 0 | BH15: 0 | BJ15: 0 | BL15: 0 | BN15: 0 | BP15: 0 | BR15: 0 | BT15: 0 | BV15: 0 | BX15: 0 | BZ15: 0 | CB15: 0 | CD15: 0 | CF15: 0 | CH15: 0 | CJ15: 0 | CL15: 0 | CN15: 0 | CP15: 0 | CR15: 0 | CT15: 0 | CV15: 0 | CX15: 0 | CZ15: 0 | DB15: 0 | DD15: 0 | DF15: 0 | DH15: 0 | DJ15: 0 | DL15: 0 | DN15: 0 | DP15: 0 | DR15: 0 | DT15: 0 | DV15: 0 | DX15: 0 | DZ15: 0
G16: =F16*E16 -> 0 | L16: 0 | N16: 0 | P16: 0 | R16: =IF(SUM(Q$8:Q$11)>0,$E16*$H16,0) -> 0 | T16: =IF(SUM(S$8:S$11)>0,$E16*$H16,0) -> 0 | V16: =IF(SUM(U$8:U$11)>0,$E16*$H16,0) -> 0 | X16: =IF(SUM(W$8:W$11)>0,$E16*$H16,0) -> 0 | Z16: =IF(SUM(Y$8:Y$11)>0,$E16*$H16,0) -> 0 | AB16: =IF(SUM(AA$8:AA$11)>0,$E16*$H16,0) -> 0 | AD16: 0 | AF16: 0 | AH16: 0 | AJ16: 0 | AL16: 0 | AN16: 0 | AP16: 0 | AR16: 0 | AT16: 0 | AV16: 0 | AX16: 0 | AZ16: 0 | BB16: 0 | BD16: 0 | BF16: 0 | BH16: 0 | BJ16: 0 | BL16: 0 | BN16: 0 | BP16: 0 | BR16: 0 | BT16: 0 | BV16: 0 | BX16: 0 | BZ16: 0 | CB16: 0 | CD16: 0 | CF16: 0 | CH16: 0 | CJ16: 0 | CL16: 0 | CN16: 0 | CP16: 0 | CR16: 0 | CT16: 0 | CV16: 0 | CX16: 0 | CZ16: 0 | DB16: 0 | DD16: 0 | DF16: 0 | DH16: 0 | DJ16: 0 | DL16: 0 | DN16: 0 | DP16: 0 | DR16: 0 | DT16: 0 | DV16: 0 | DX16: 0 | DZ16: 0
G17: 0 | L17: 0 | N17: 0 | P17: 0 | R17: =IF(SUM(Q$8:Q$11)>0,$E17*$H17,0) -> 0 | T17: =IF(SUM(S$8:S$11)>0,$E17*$H17,0) -> 0 | V17: =IF(SUM(U$8:U$11)>0,$E17*$H17,0) -> 0 | X17: =IF(SUM(W$8:W$11)>0,$E17*$H17,0) -> 0 | Z17: =IF(SUM(Y$8:Y$11)>0,$E17*$H17,0) -> 0 | AB17: =IF(SUM(AA$8:AA$11)>0,$E17*$H17,0) -> 0 | AD17: 0 | AF17: 0 | AH17: 0 | AJ17: 0 | AL17: 0 | AN17: 0 | AP17: 0 | AR17: 0 | AT17: 0 | AV17: 0 | AX17: 0 | AZ17: 0 | BB17: 0 | BD17: 0 | BF17: 0 | BH17: 0 | BJ17: 0 | BL17: 0 | BN17: 0 | BP17: 0 | BR17: 0 | BT17: 0 | BV17: 0 | BX17: 0 | BZ17: 0 | CB17: 0 | CD17: 0 | CF17: 0 | CH17: 0 | CJ17: 0 | CL17: 0 | CN17: 0 | CP17: 0 | CR17: 0 | CT17: 0 | CV17: 0 | CX17: 0 | CZ17: 0 | DB17: 0 | DD17: 0 | DF17: 0 | DH17: 0 | DJ17: 0 | DL17: 0 | DN17: 0 | DP17: 0 | DR17: 0 | DT17: 0 | DV17: 0 | DX17: 0 | DZ17: 0
G18: 0 | L18: 0 | N18: 0 | P18: 0 | R18: =IF(SUM(Q$8:Q$11)>0,$E18*$H18,0) -> 0 | T18: =IF(SUM(S$8:S$11)>0,$E18*$H18,0) -> 0 | V18: =IF(SUM(U$8:U$11)>0,$E18*$H18,0) -> 0 | X18: =IF(SUM(W$8:W$11)>0,$E18*$H18,0) -> 0 | Z18: =IF(SUM(Y$8:Y$11)>0,$E18*$H18,0) -> 0 | AB18: =IF(SUM(AA$8:AA$11)>0,$E18*$H18,0) -> 0 | AD18: 0 | AF18: 0 | AH18: 0 | AJ18: 0 | AL18: 0 | AN18: 0 | AP18: 0 | AR18: 0 | AT18: 0 | AV18: 0 | AX18: 0 | AZ18: 0 | BB18: 0 | BD18: 0 | BF18: 0 | BH18: 0 | BJ18: 0 | BL18: 0 | BN18: 0 | BP18: 0 | BR18: 0 | BT18: 0 | BV18: 0 | BX18: 0 | BZ18: 0 | CB18: 0 | CD18: 0 | CF18: 0 | CH18: 0 | CJ18: 0 | CL18: 0 | CN18: 0 | CP18: 0 | CR18: 0 | CT18: 0 | CV18: 0 | CX18: 0 | CZ18: 0 | DB18: 0 | DD18: 0 | DF18: 0 | DH18: 0 | DJ18: 0 | DL18: 0 | DN18: 0 | DP18: 0 | DR18: 0 | DT18: 0 | DV18: 0 | DX18: 0 | DZ18: 0
G19: 0 | L19: 0 | N19: 0 | P19: 0 | R19: =IF(SUM(Q$8:Q$11)>0,$E19*$H19,0) -> 0 | T19: =IF(SUM(S$8:S$11)>0,$E19*$H19,0) -> 0 | V19: =IF(SUM(U$8:U$11)>0,$E19*$H19,0) -> 0 | X19: =IF(SUM(W$8:W$11)>0,$E19*$H19,0) -> 0 | Z19: =IF(SUM(Y$8:Y$11)>0,$E19*$H19,0) -> 0 | AB19: =IF(SUM(AA$8:AA$11)>0,$E19*$H19,0) -> 0 | AD19: 0 | AF19: 0 | AH19: 0 | AJ19: 0 | AL19: 0 | AN19: 0 | AP19: 0 | AR19: 0 | AT19: 0 | AV19: 0 | AX19: 0 | AZ19: 0 | BB19: 0 | BD19: 0 | BF19: 0 | BH19: 0 | BJ19: 0 | BL19: 0 | BN19: 0 | BP19: 0 | BR19: 0 | BT19: 0 | BV19: 0 | BX19: 0 | BZ19: 0 | CB19: 0 | CD19: 0 | CF19: 0 | CH19: 0 | CJ19: 0 | CL19: 0 | CN19: 0 | CP19: 0 | CR19: 0 | CT19: 0 | CV19: 0 | CX19: 0 | CZ19: 0 | DB19: 0 | DD19: 0 | DF19: 0 | DH19: 0 | DJ19: 0 | DL19: 0 | DN19: 0 | DP19: 0 | DR19: 0 | DT19: 0 | DV19: 0 | DX19: 0 | DZ19: 0
G20: 0 | L20: 0 | N20: 0 | P20: 0 | R20: =IF(SUM(Q$8:Q$11)>0,$E20*$H20,0) -> 0 | T20: =IF(SUM(S$8:S$11)>0,$E20*$H20,0) -> 0 | V20: =IF(SUM(U$8:U$11)>0,$E20*$H20,0) -> 0 | X20: =IF(SUM(W$8:W$11)>0,$E20*$H20,0) -> 0 | Z20: =IF(SUM(Y$8:Y$11)>0,$E20*$H20,0) -> 0 | AB20: =IF(SUM(AA$8:AA$11)>0,$E20*$H20,0) -> 0 | AD20: 0 | AF20: 0 | AH20: 0 | AJ20: 0 | AL20: 0 | AN20: 0 | AP20: 0 | AR20: 0 | AT20: 0 | AV20: 0 | AX20: 0 | AZ20: 0 | BB20: 0 | BD20: 0 | BF20: 0 | BH20: 0 | BJ20: 0 | BL20: 0 | BN20: 0 | BP20: 0 | BR20: 0 | BT20: 0 | BV20: 0 | BX20: 0 | BZ20: 0 | CB20: 0 | CD20: 0 | CF20: 0 | CH20: 0 | CJ20: 0 | CL20: 0 | CN20: 0 | CP20: 0 | CR20: 0 | CT20: 0 | CV20: 0 | CX20: 0 | CZ20: 0 | DB20: 0 | DD20: 0 | DF20: 0 | DH20: 0 | DJ20: 0 | DL20: 0 | DN20: 0 | DP20: 0 | DR20: 0 | DT20: 0 | DV20: 0 | DX20: 0 | DZ20: 0
L21: 0 | N21: 0 | P21: 0 | R21: =IF(SUM(Q$8:Q$11)>0,$E21*$H21,0) -> 0 | T21: =IF(SUM(S$8:S$11)>0,$E21*$H21,0) -> 0 | V21: =IF(SUM(U$8:U$11)>0,$E21*$H21,0) -> 0 | X21: =IF(SUM(W$8:W$11)>0,$E21*$H21,0) -> 0 | Z21: =IF(SUM(Y$8:Y$11)>0,$E21*$H21,0) -> 0 | AB21: =IF(SUM(AA$8:AA$11)>0,$E21*$H21,0) -> 0 | AD21: 0 | AF21: 0 | AH21: 0 | AJ21: 0 | AL21: 0 | AN21: 0 | AP21: 0 | AR21: 0 | AT21: 0 | AV21: 0 | AX21: 0 | AZ21: 0 | BB21: 0 | BD21: 0 | BF21: 0 | BH21: 0 | BJ21: 0 | BL21: 0 | BN21: 0 | BP21: 0 | BR21: 0 | BT21: 0 | BV21: 0 | BX21: 0 | BZ21: 0 | CB21: 0 | CD21: 0 | CF21: 0 | CH21: 0 | CJ21: 0 | CL21: 0 | CN21: 0 | CP21: 0 | CR21: 0 | CT21: 0 | CV21: 0 | CX21: 0 | CZ21: 0 | DB21: 0 | DD21: 0 | DF21: 0 | DH21: 0 | DJ21: 0 | DL21: 0 | DN21: 0 | DP21: 0 | DR21: 0 | DT21: 0 | DV21: 0 | DX21: 0 | DZ21: 0
C23: CATEGORIAS | H23: QUANTIDADE
K24: =IF($C24=K$4,1,0) -> 0
D25: =HLOOKUP($C25,'Dados Gerais'!$D$5:$BJ$10,6) ->  | H25: =HLOOKUP($C25,'Dados Gerais'!$D$5:$BJ$14,10) ->  | K25: =IF($C25=K$4,1,0) -> 0 | M25: =IF($C25=M$4,1,0) -> 0 | O25: =IF($C25=O$4,1,0) -> 0 | Q25: =IF($C25=Q$4,1,0) -> 0 | S25: =IF($C25=S$4,1,0) -> 0 | U25: =IF($C25=U$4,1,0) -> 0 | W25: =IF($C25=W$4,1,0) -> 0 | Y25: =IF($C25=Y$4,1,0) -> 0 | AA25: =IF($C25=AA$4,1,0) -> 0 | AC25: =IF($C25=AC$4,1,0) -> 0 | AE25: =IF($C25=AE$4,1,0) -> 0 | AG25: =IF($C25=AG$4,1,0) -> 0 | AI25: =IF($C25=AI$4,1,0) -> 0 | AK25: =IF($C25=AK$4,1,0) -> 0 | AM25: =IF($C25=AM$4,1,0) -> 0 | AO25: =IF($C25=AO$4,1,0) -> 0 | AQ25: =IF($C25=AQ$4,1,0) -> 0 | AS25: =IF($C25=AS$4,1,0) -> 0 | AU25: =IF($C25=AU$4,1,0) -> 0 | AW25: =IF($C25=AW$4,1,0) -> 0 | AY25: =IF($C25=AY$4,1,0) -> 0 | BA25: =IF($C25=BA$4,1,0) -> 0 | BC25: =IF($C25=BC$4,1,0) -> 0 | BE25: =IF($C25=BE$4,1,0) -> 0 | BG25: =IF($C25=BG$4,1,0) -> 0 | BI25: =IF($C25=BI$4,1,0) -> 0 | BK25: =IF($C25=BK$4,1,0) -> 0 | BM25: =IF($C25=BM$4,1,0) -> 0 | BO25: =IF($C25=BO$4,1,0) -> 0 | BQ25: =IF($C25=BQ$4,1,0) -> 0 | BS25: =IF($C25=BS$4,1,0) -> 0 | BU25: =IF($C25=BU$4,1,0) -> 0 | BW25: =IF($C25=BW$4,1,0) -> 0 | BY25: =IF($C25=BY$4,1,0) -> 0 | CA25: =IF($C25=CA$4,1,0) -> 0 | CC25: =IF($C25=CC$4,1,0) -> 0 | CE25: =IF($C25=CE$4,1,0) -> 0 | CG25: =IF($C25=CG$4,1,0) -> 0 | CI25: =IF($C25=CI$4,1,0) -> 0 | CK25: =IF($C25=CK$4,1,0) -> 0 | CM25: =IF($C25=CM$4,1,0) -> 0 | CO25: =IF($C25=CO$4,1,0) -> 0 | CQ25: =IF($C25=CQ$4,1,0) -> 0 | CS25: =IF($C25=CS$4,1,0) -> 0 | CU25: =IF($C25=CU$4,1,0) -> 0 | CW25: =IF($C25=CW$4,1,0) -> 0 | CY25: =IF($C25=CY$4,1,0) -> 0 | DA25: =IF($C25=DA$4,1,0) -> 0 | DC25: =IF($C25=DC$4,1,0) -> 0 | DE25: =IF($C25=DE$4,1,0) -> 0 | DG25: =IF($C25=DG$4,1,0) -> 0 | DI25: =IF($C25=DI$4,1,0) -> 0 | DK25: =IF($C25=DK$4,1,0) -> 0 | DM25: =IF($C25=DM$4,1,0) -> 0 | DO25: =IF($C25=DO$4,1,0) -> 0 | DQ25: =IF($C25=DQ$4,1,0) -> 0 | DS25: =IF($C25=DS$4,1,0) -> 0 | DU25: =IF($C25=DU$4,1,0) -> 0 | DW25: =IF($C25=DW$4,1,0) -> 0 | DY25: =IF($C25=DY$4,1,0) -> 0
D26: =HLOOKUP($C26,'Dados Gerais'!$D$5:$BJ$10,6) ->  | H26: =HLOOKUP($C26,'Dados Gerais'!$D$5:$BJ$14,10) ->  | K26: 0 | M26: 0 | O26: 0 | Q26: 0 | S26: 0 | U26: 0 | W26: 0 | Y26: 0 | AA26: 0 | AC26: 0 | AE26: 0 | AG26: 0 | AI26: 0 | AK26: 0 | AM26: 0 | AO26: 0 | AQ26: 0 | AS26: 0 | AU26: 0 | AW26: 0 | AY26: 0 | BA26: 0 | BC26: 0 | BE26: 0 | BG26: 0 | BI26: 0 | BK26: 0 | BM26: 0 | BO26: 0 | BQ26: 0 | BS26: 0 | BU26: 0 | BW26: 0 | BY26: 0 | CA26: 0 | CC26: 0 | CE26: 0 | CG26: 0 | CI26: 0 | CK26: 0 | CM26: 0 | CO26: 0 | CQ26: 0 | CS26: 0 | CU26: 0 | CW26: 0 | CY26: 0 | DA26: 0 | DC26: 0 | DE26: 0 | DG26: 0 | DI26: 0 | DK26: 0 | DM26: 0 | DO26: 0 | DQ26: 0 | DS26: 0 | DU26: 0 | DW26: 0 | DY26: 0
K27: =IF($C27=K$4,1,0) -> 0
C29: ITEM | D29: DESCRIÇÃO | E29: QUANT ANUAL POR POSTO | F29: Nº DE POSTOS | G29: QUANT ANUAL TOTAL | H29: VALOR
L30: =IF(SUM(K$8:K$11)>0,$E30*$H30,0) -> 0 | N30: =IF(SUM(M$8:M$11)>0,$E30*$H30,0) -> 0 | P30: =IF(SUM(O$8:O$11)>0,$E30*$H30,0) -> 0 | R30: =IF(SUM(Q$8:Q$11)>0,$E30*$H30,0) -> 0 | T30: =IF(SUM(S$8:S$11)>0,$E30*$H30,0) -> 0 | V30: =IF(SUM(U$8:U$11)>0,$E30*$H30,0) -> 0 | X30: =IF(SUM(W$8:W$11)>0,$E30*$H30,0) -> 0 | Z30: =IF(SUM(Y$8:Y$11)>0,$E30*$H30,0) -> 0 | AB30: =IF(SUM(AA$8:AA$11)>0,$E30*$H30,0) -> 0 | AD30: =IF(SUM(AC$8:AC$11)>0,$E30*$H30,0) -> 0 | AF30: =IF(SUM(AE$8:AE$11)>0,$E30*$H30,0) -> 0 | AH30: =IF(SUM(AG$8:AG$11)>0,$E30*$H30,0) -> 0 | AJ30: =IF(SUM(AI$8:AI$11)>0,$E30*$H30,0) -> 0 | AL30: =IF(SUM(AK$8:AK$11)>0,$E30*$H30,0) -> 0 | AN30: =IF(SUM(AM$8:AM$11)>0,$E30*$H30,0) -> 0 | AP30: =IF(SUM(AO$8:AO$11)>0,$E30*$H30,0) -> 0 | AR30: =IF(SUM(AQ$8:AQ$11)>0,$E30*$H30,0) -> 0 | AT30: =IF(SUM(AS$8:AS$11)>0,$E30*$H30,0) -> 0 | AV30: =IF(SUM(AU$8:AU$11)>0,$E30*$H30,0) -> 0 | AX30: =IF(SUM(AW$8:AW$11)>0,$E30*$H30,0) -> 0 | AZ30: =IF(SUM(AY$8:AY$11)>0,$E30*$H30,0) -> 0 | BB30: =IF(SUM(BA$8:BA$11)>0,$E30*$H30,0) -> 0 | BD30: =IF(SUM(BC$8:BC$11)>0,$E30*$H30,0) -> 0 | BF30: =IF(SUM(BE$8:BE$11)>0,$E30*$H30,0) -> 0 | BH30: =IF(SUM(BG$8:BG$11)>0,$E30*$H30,0) -> 0 | BJ30: =IF(SUM(BI$8:BI$11)>0,$E30*$H30,0) -> 0 | BL30: =IF(SUM(BK$8:BK$11)>0,$E30*$H30,0) -> 0 | BN30: =IF(SUM(BM$8:BM$11)>0,$E30*$H30,0) -> 0 | BP30: =IF(SUM(BO$8:BO$11)>0,$E30*$H30,0) -> 0 | BR30: =IF(SUM(BQ$8:BQ$11)>0,$E30*$H30,0) -> 0 | BT30: =IF(SUM(BS$8:BS$11)>0,$E30*$H30,0) -> 0 | BV30: =IF(SUM(BU$8:BU$11)>0,$E30*$H30,0) -> 0 | BX30: =IF(SUM(BW$8:BW$11)>0,$E30*$H30,0) -> 0 | BZ30: =IF(SUM(BY$8:BY$11)>0,$E30*$H30,0) -> 0 | CB30: =IF(SUM(CA$8:CA$11)>0,$E30*$H30,0) -> 0 | CD30: =IF(SUM(CC$8:CC$11)>0,$E30*$H30,0) -> 0 | CF30: =IF(SUM(CE$8:CE$11)>0,$E30*$H30,0) -> 0 | CH30: =IF(SUM(CG$8:CG$11)>0,$E30*$H30,0) -> 0 | CJ30: =IF(SUM(CI$8:CI$11)>0,$E30*$H30,0) -> 0 | CL30: =IF(SUM(CK$8:CK$11)>0,$E30*$H30,0) -> 0 | CN30: =IF(SUM(CM$8:CM$11)>0,$E30*$H30,0) -> 0 | CP30: =IF(SUM(CO$8:CO$11)>0,$E30*$H30,0) -> 0 | CR30: =IF(SUM(CQ$8:CQ$11)>0,$E30*$H30,0) -> 0 | CT30: =IF(SUM(CS$8:CS$11)>0,$E30*$H30,0) -> 0 | CV30: =IF(SUM(CU$8:CU$11)>0,$E30*$H30,0) -> 0 | CX30: =IF(SUM(CW$8:CW$11)>0,$E30*$H30,0) -> 0 | CZ30: =IF(SUM(CY$8:CY$11)>0,$E30*$H30,0) -> 0 | DB30: =IF(SUM(DA$8:DA$11)>0,$E30*$H30,0) -> 0 | DD30: =IF(SUM(DC$8:DC$11)>0,$E30*$H30,0) -> 0 | DF30: =IF(SUM(DE$8:DE$11)>0,$E30*$H30,0) -> 0 | DH30: =IF(SUM(DG$8:DG$11)>0,$E30*$H30,0) -> 0 | DJ30: =IF(SUM(DI$8:DI$11)>0,$E30*$H30,0) -> 0 | DL30: =IF(SUM(DK$8:DK$11)>0,$E30*$H30,0) -> 0 | DN30: =IF(SUM(DM$8:DM$11)>0,$E30*$H30,0) -> 0 | DP30: =IF(SUM(DO$8:DO$11)>0,$E30*$H30,0) -> 0 | DR30: =IF(SUM(DQ$8:DQ$11)>0,$E30*$H30,0) -> 0 | DT30: =IF(SUM(DS$8:DS$11)>0,$E30*$H30,0) -> 0 | DV30: =IF(SUM(DU$8:DU$11)>0,$E30*$H30,0) -> 0 | DX30: =IF(SUM(DW$8:DW$11)>0,$E30*$H30,0) -> 0 | DZ30: =IF(SUM(DY$8:DY$11)>0,$E30*$H30,0) -> 0
F31: =H25+H26 ->  | G31: =F31*E31 ->  | L31: =IF(SUM(K$25:K$27)>0,$E31*$H31,0) -> 0 | N31: =IF(SUM(M$25:M$27)>0,$E31*$H31,0) -> 0 | P31: =IF(SUM(O$25:O$27)>0,$E31*$H31,0) -> 0 | R31: =IF(SUM(Q$25:Q$27)>0,$E31*$H31,0) -> 0 | T31: =IF(SUM(S$25:S$27)>0,$E31*$H31,0) -> 0 | V31: =IF(SUM(U$25:U$27)>0,$E31*$H31,0) -> 0 | X31: =IF(SUM(W$25:W$27)>0,$E31*$H31,0) -> 0 | Z31: =IF(SUM(Y$25:Y$27)>0,$E31*$H31,0) -> 0 | AB31: =IF(SUM(AA$25:AA$27)>0,$E31*$H31,0) -> 0 | AD31: 0 | AF31: 0 | AH31: 0 | AJ31: 0 | AL31: 0 | AN31: 0 | AP31: 0 | AR31: 0 | AT31: 0 | AV31: 0 | AX31: 0 | AZ31: 0 | BB31: 0 | BD31: 0 | BF31: 0 | BH31: 0 | BJ31: 0 | BL31: 0 | BN31: 0 | BP31: 0 | BR31: 0 | BT31: 0 | BV31: 0 | BX31: 0 | BZ31: 0 | CB31: 0 | CD31: 0 | CF31: 0 | CH31: 0 | CJ31: 0 | CL31: 0 | CN31: 0 | CP31: 0 | CR31: 0 | CT31: 0 | CV31: 0 | CX31: 0 | CZ31: 0 | DB31: 0 | DD31: 0 | DF31: 0 | DH31: 0 | DJ31: 0 | DL31: 0 | DN31: 0 | DP31: 0 | DR31: 0 | DT31: 0 | DV31: 0 | DX31: 0 | DZ31: 0
F32: =F31 ->  | L32: 0 | N32: 0 | P32: 0 | R32: 0 | T32: 0 | V32: 0 | X32: 0 | Z32: 0 | AB32: 0 | AD32: 0 | AF32: 0 | AH32: 0 | AJ32: 0 | AL32: 0 | AN32: 0 | AP32: 0 | AR32: 0 | AT32: 0 | AV32: 0 | AX32: 0 | AZ32: 0 | BB32: 0 | BD32: 0 | BF32: 0 | BH32: 0 | BJ32: 0 | BL32: 0 | BN32: 0 | BP32: 0 | BR32: 0 | BT32: 0 | BV32: 0 | BX32: 0 | BZ32: 0 | CB32: 0 | CD32: 0 | CF32: 0 | CH32: 0 | CJ32: 0 | CL32: 0 | CN32: 0 | CP32: 0 | CR32: 0 | CT32: 0 | CV32: 0 | CX32: 0 | CZ32: 0 | DB32: 0 | DD32: 0 | DF32: 0 | DH32: 0 | DJ32: 0 | DL32: 0 | DN32: 0 | DP32: 0 | DR32: 0 | DT32: 0 | DV32: 0 | DX32: 0 | DZ32: 0
F33: =F32 ->  | L33: 0 | N33: 0 | P33: 0 | R33: 0 | T33: 0 | V33: 0 | X33: 0 | Z33: 0 | AB33: 0 | AD33: 0 | AF33: 0 | AH33: 0 | AJ33: 0 | AL33: 0 | AN33: 0 | AP33: 0 | AR33: 0 | AT33: 0 | AV33: 0 | AX33: 0 | AZ33: 0 | BB33: 0 | BD33: 0 | BF33: 0 | BH33: 0 | BJ33: 0 | BL33: 0 | BN33: 0 | BP33: 0 | BR33: 0 | BT33: 0 | BV33: 0 | BX33: 0 | BZ33: 0 | CB33: 0 | CD33: 0 | CF33: 0 | CH33: 0 | CJ33: 0 | CL33: 0 | CN33: 0 | CP33: 0 | CR33: 0 | CT33: 0 | CV33: 0 | CX33: 0 | CZ33: 0 | DB33: 0 | DD33: 0 | DF33: 0 | DH33: 0 | DJ33: 0 | DL33: 0 | DN33: 0 | DP33: 0 | DR33: 0 | DT33: 0 | DV33: 0 | DX33: 0 | DZ33: 0
L34: 0 | N34: 0 | P34: 0 | R34: 0 | T34: 0 | V34: 0 | X34: 0 | Z34: 0 | AB34: 0 | AD34: 0 | AF34: 0 | AH34: 0 | AJ34: 0 | AL34: 0 | AN34: 0 | AP34: 0 | AR34: 0 | AT34: 0 | AV34: 0 | AX34: 0 | AZ34: 0 | BB34: 0 | BD34: 0 | BF34: 0 | BH34: 0 | BJ34: 0 | BL34: 0 | BN34: 0 | BP34: 0 | BR34: 0 | BT34: 0 | BV34: 0 | BX34: 0 | BZ34: 0 | CB34: 0 | CD34: 0 | CF34: 0 | CH34: 0 | CJ34: 0 | CL34: 0 | CN34: 0 | CP34: 0 | CR34: 0 | CT34: 0 | CV34: 0 | CX34: 0 | CZ34: 0 | DB34: 0 | DD34: 0 | DF34: 0 | DH34: 0 | DJ34: 0 | DL34: 0 | DN34: 0 | DP34: 0 | DR34: 0 | DT34: 0 | DV34: 0 | DX34: 0 | DZ34: 0
L35: 0 | N35: 0 | P35: 0 | R35: 0 | T35: 0 | V35: 0 | X35: 0 | Z35: 0 | AB35: 0 | AD35: 0 | AF35: 0 | AH35: 0 | AJ35: 0 | AL35: 0 | AN35: 0 | AP35: 0 | AR35: 0 | AT35: 0 | AV35: 0 | AX35: 0 | AZ35: 0 | BB35: 0 | BD35: 0 | BF35: 0 | BH35: 0 | BJ35: 0 | BL35: 0 | BN35: 0 | BP35: 0 | BR35: 0 | BT35: 0 | BV35: 0 | BX35: 0 | BZ35: 0 | CB35: 0 | CD35: 0 | CF35: 0 | CH35: 0 | CJ35: 0 | CL35: 0 | CN35: 0 | CP35: 0 | CR35: 0 | CT35: 0 | CV35: 0 | CX35: 0 | CZ35: 0 | DB35: 0 | DD35: 0 | DF35: 0 | DH35: 0 | DJ35: 0 | DL35: 0 | DN35: 0 | DP35: 0 | DR35: 0 | DT35: 0 | DV35: 0 | DX35: 0 | DZ35: 0
L36: 0 | N36: 0 | P36: 0 | R36: 0 | T36: 0 | V36: 0 | X36: 0 | Z36: 0 | AB36: 0 | AD36: 0 | AF36: 0 | AH36: 0 | AJ36: 0 | AL36: 0 | AN36: 0 | AP36: 0 | AR36: 0 | AT36: 0 | AV36: 0 | AX36: 0 | AZ36: 0 | BB36: 0 | BD36: 0 | BF36: 0 | BH36: 0 | BJ36: 0 | BL36: 0 | BN36: 0 | BP36: 0 | BR36: 0 | BT36: 0 | BV36: 0 | BX36: 0 | BZ36: 0 | CB36: 0 | CD36: 0 | CF36: 0 | CH36: 0 | CJ36: 0 | CL36: 0 | CN36: 0 | CP36: 0 | CR36: 0 | CT36: 0 | CV36: 0 | CX36: 0 | CZ36: 0 | DB36: 0 | DD36: 0 | DF36: 0 | DH36: 0 | DJ36: 0 | DL36: 0 | DN36: 0 | DP36: 0 | DR36: 0 | DT36: 0 | DV36: 0 | DX36: 0 | DZ36: 0
L37: 0 | N37: 0 | P37: 0 | R37: 0 | T37: 0 | V37: 0 | X37: 0 | Z37: 0 | AB37: 0 | AD37: 0 | AF37: 0 | AH37: 0 | AJ37: 0 | AL37: 0 | AN37: 0 | AP37: 0 | AR37: 0 | AT37: 0 | AV37: 0 | AX37: 0 | AZ37: 0 | BB37: 0 | BD37: 0 | BF37: 0 | BH37: 0 | BJ37: 0 | BL37: 0 | BN37: 0 | BP37: 0 | BR37: 0 | BT37: 0 | BV37: 0 | BX37: 0 | BZ37: 0 | CB37: 0 | CD37: 0 | CF37: 0 | CH37: 0 | CJ37: 0 | CL37: 0 | CN37: 0 | CP37: 0 | CR37: 0 | CT37: 0 | CV37: 0 | CX37: 0 | CZ37: 0 | DB37: 0 | DD37: 0 | DF37: 0 | DH37: 0 | DJ37: 0 | DL37: 0 | DN37: 0 | DP37: 0 | DR37: 0 | DT37: 0 | DV37: 0 | DX37: 0 | DZ37: 0
C38: CATEGORIAS | H38: QUANTIDADE
K39: =IF($C39=K$4,1,0) -> 0
D40: =HLOOKUP($C40,'Dados Gerais'!$D$5:$BJ$10,6) ->  | H40: =HLOOKUP($C40,'Dados Gerais'!$D$5:$BJ$14,10) ->  | K40: =IF($C40=K$4,1,0) -> 0 | M40: =IF($C40=M$4,1,0) -> 0 | O40: =IF($C40=O$4,1,0) -> 0 | Q40: =IF($C40=Q$4,1,0) -> 0 | S40: =IF($C40=S$4,1,0) -> 0 | U40: =IF($C40=U$4,1,0) -> 0 | W40: =IF($C40=W$4,1,0) -> 0 | Y40: =IF($C40=Y$4,1,0) -> 0 | AA40: =IF($C40=AA$4,1,0) -> 0 | AC40: =IF($C40=AC$4,1,0) -> 0 | AE40: =IF($C40=AE$4,1,0) -> 0 | AG40: =IF($C40=AG$4,1,0) -> 0 | AI40: =IF($C40=AI$4,1,0) -> 0 | AK40: =IF($C40=AK$4,1,0) -> 0 | AM40: =IF($C40=AM$4,1,0) -> 0 | AO40: =IF($C40=AO$4,1,0) -> 0 | AQ40: =IF($C40=AQ$4,1,0) -> 0 | AS40: =IF($C40=AS$4,1,0) -> 0 | AU40: =IF($C40=AU$4,1,0) -> 0 | AW40: =IF($C40=AW$4,1,0) -> 0 | AY40: =IF($C40=AY$4,1,0) -> 0 | BA40: =IF($C40=BA$4,1,0) -> 0 | BC40: =IF($C40=BC$4,1,0) -> 0 | BE40: =IF($C40=BE$4,1,0) -> 0 | BG40: =IF($C40=BG$4,1,0) -> 0 | BI40: =IF($C40=BI$4,1,0) -> 0 | BK40: =IF($C40=BK$4,1,0) -> 0 | BM40: =IF($C40=BM$4,1,0) -> 0 | BO40: =IF($C40=BO$4,1,0) -> 0 | BQ40: =IF($C40=BQ$4,1,0) -> 0 | BS40: =IF($C40=BS$4,1,0) -> 0 | BU40: =IF($C40=BU$4,1,0) -> 0 | BW40: =IF($C40=BW$4,1,0) -> 0 | BY40: =IF($C40=BY$4,1,0) -> 0 | CA40: =IF($C40=CA$4,1,0) -> 0 | CC40: =IF($C40=CC$4,1,0) -> 0 | CE40: =IF($C40=CE$4,1,0) -> 0 | CG40: =IF($C40=CG$4,1,0) -> 0 | CI40: =IF($C40=CI$4,1,0) -> 0 | CK40: =IF($C40=CK$4,1,0) -> 0 | CM40: =IF($C40=CM$4,1,0) -> 0 | CO40: =IF($C40=CO$4,1,0) -> 0 | CQ40: =IF($C40=CQ$4,1,0) -> 0 | CS40: =IF($C40=CS$4,1,0) -> 0 | CU40: =IF($C40=CU$4,1,0) -> 0 | CW40: =IF($C40=CW$4,1,0) -> 0 | CY40: =IF($C40=CY$4,1,0) -> 0 | DA40: =IF($C40=DA$4,1,0) -> 0 | DC40: =IF($C40=DC$4,1,0) -> 0 | DE40: =IF($C40=DE$4,1,0) -> 0 | DG40: =IF($C40=DG$4,1,0) -> 0 | DI40: =IF($C40=DI$4,1,0) -> 0 | DK40: =IF($C40=DK$4,1,0) -> 0 | DM40: =IF($C40=DM$4,1,0) -> 0 | DO40: =IF($C40=DO$4,1,0) -> 0 | DQ40: =IF($C40=DQ$4,1,0) -> 0 | DS40: =IF($C40=DS$4,1,0) -> 0 | DU40: =IF($C40=DU$4,1,0) -> 0 | DW40: =IF($C40=DW$4,1,0) -> 0 | DY40: =IF($C40=DY$4,1,0) -> 0
D41: =HLOOKUP($C41,'Dados Gerais'!$D$5:$BJ$10,6) ->  | H41: =HLOOKUP($C41,'Dados Gerais'!$D$5:$BJ$14,10) ->  | K41: 0 | M41: 0 | O41: 0 | Q41: 0 | S41: 0 | U41: 0 | W41: 0 | Y41: 0 | AA41: 0 | AC41: 0 | AE41: 0 | AG41: 0 | AI41: 0 | AK41: 0 | AM41: 0 | AO41: 0 | AQ41: 0 | AS41: 0 | AU41: 0 | AW41: 0 | AY41: 0 | BA41: 0 | BC41: 0 | BE41: 0 | BG41: 0 | BI41: 0 | BK41: 0 | BM41: 0 | BO41: 0 | BQ41: 0 | BS41: 0 | BU41: 0 | BW41: 0 | BY41: 0 | CA41: 0 | CC41: 0 | CE41: 0 | CG41: 0 | CI41: 0 | CK41: 0 | CM41: 0 | CO41: 0 | CQ41: 0 | CS41: 0 | CU41: 0 | CW41: 0 | CY41: 0 | DA41: 0 | DC41: 0 | DE41: 0 | DG41: 0 | DI41: 0 | DK41: 0 | DM41: 0 | DO41: 0 | DQ41: 0 | DS41: 0 | DU41: 0 | DW41: 0 | DY41: 0
K42: =IF($C42=K$4,1,0) -> 0
C44: ITEM | D44: DESCRIÇÃO | E44: QUANT ANUAL POR POSTO | F44: Nº DE POSTOS | G44: QUANT ANUAL TOTAL | H44: VALOR
L45: =IF(SUM(K$8:K$11)>0,$E45*$H45,0) -> 0 | N45: =IF(SUM(M$8:M$11)>0,$E45*$H45,0) -> 0 | P45: =IF(SUM(O$8:O$11)>0,$E45*$H45,0) -> 0 | R45: =IF(SUM(Q$8:Q$11)>0,$E45*$H45,0) -> 0 | T45: =IF(SUM(S$8:S$11)>0,$E45*$H45,0) -> 0 | V45: =IF(SUM(U$8:U$11)>0,$E45*$H45,0) -> 0 | X45: =IF(SUM(W$8:W$11)>0,$E45*$H45,0) -> 0 | Z45: =IF(SUM(Y$8:Y$11)>0,$E45*$H45,0) -> 0 | AB45: =IF(SUM(AA$8:AA$11)>0,$E45*$H45,0) -> 0 | AD45: =IF(SUM(AC$8:AC$11)>0,$E45*$H45,0) -> 0 | AF45: =IF(SUM(AE$8:AE$11)>0,$E45*$H45,0) -> 0 | AH45: =IF(SUM(AG$8:AG$11)>0,$E45*$H45,0) -> 0 | AJ45: =IF(SUM(AI$8:AI$11)>0,$E45*$H45,0) -> 0 | AL45: =IF(SUM(AK$8:AK$11)>0,$E45*$H45,0) -> 0 | AN45: =IF(SUM(AM$8:AM$11)>0,$E45*$H45,0) -> 0 | AP45: =IF(SUM(AO$8:AO$11)>0,$E45*$H45,0) -> 0 | AR45: =IF(SUM(AQ$8:AQ$11)>0,$E45*$H45,0) -> 0 | AT45: =IF(SUM(AS$8:AS$11)>0,$E45*$H45,0) -> 0 | AV45: =IF(SUM(AU$8:AU$11)>0,$E45*$H45,0) -> 0 | AX45: =IF(SUM(AW$8:AW$11)>0,$E45*$H45,0) -> 0 | AZ45: =IF(SUM(AY$8:AY$11)>0,$E45*$H45,0) -> 0 | BB45: =IF(SUM(BA$8:BA$11)>0,$E45*$H45,0) -> 0 | BD45: =IF(SUM(BC$8:BC$11)>0,$E45*$H45,0) -> 0 | BF45: =IF(SUM(BE$8:BE$11)>0,$E45*$H45,0) -> 0 | BH45: =IF(SUM(BG$8:BG$11)>0,$E45*$H45,0) -> 0 | BJ45: =IF(SUM(BI$8:BI$11)>0,$E45*$H45,0) -> 0 | BL45: =IF(SUM(BK$8:BK$11)>0,$E45*$H45,0) -> 0 | BN45: =IF(SUM(BM$8:BM$11)>0,$E45*$H45,0) -> 0 | BP45: =IF(SUM(BO$8:BO$11)>0,$E45*$H45,0) -> 0 | BR45: =IF(SUM(BQ$8:BQ$11)>0,$E45*$H45,0) -> 0 | BT45: =IF(SUM(BS$8:BS$11)>0,$E45*$H45,0) -> 0 | BV45: =IF(SUM(BU$8:BU$11)>0,$E45*$H45,0) -> 0 | BX45: =IF(SUM(BW$8:BW$11)>0,$E45*$H45,0) -> 0 | BZ45: =IF(SUM(BY$8:BY$11)>0,$E45*$H45,0) -> 0 | CB45: =IF(SUM(CA$8:CA$11)>0,$E45*$H45,0) -> 0 | CD45: =IF(SUM(CC$8:CC$11)>0,$E45*$H45,0) -> 0 | CF45: =IF(SUM(CE$8:CE$11)>0,$E45*$H45,0) -> 0 | CH45: =IF(SUM(CG$8:CG$11)>0,$E45*$H45,0) -> 0 | CJ45: =IF(SUM(CI$8:CI$11)>0,$E45*$H45,0) -> 0 | CL45: =IF(SUM(CK$8:CK$11)>0,$E45*$H45,0) -> 0 | CN45: =IF(SUM(CM$8:CM$11)>0,$E45*$H45,0) -> 0 | CP45: =IF(SUM(CO$8:CO$11)>0,$E45*$H45,0) -> 0 | CR45: =IF(SUM(CQ$8:CQ$11)>0,$E45*$H45,0) -> 0 | CT45: =IF(SUM(CS$8:CS$11)>0,$E45*$H45,0) -> 0 | CV45: =IF(SUM(CU$8:CU$11)>0,$E45*$H45,0) -> 0 | CX45: =IF(SUM(CW$8:CW$11)>0,$E45*$H45,0) -> 0 | CZ45: =IF(SUM(CY$8:CY$11)>0,$E45*$H45,0) -> 0 | DB45: =IF(SUM(DA$8:DA$11)>0,$E45*$H45,0) -> 0 | DD45: =IF(SUM(DC$8:DC$11)>0,$E45*$H45,0) -> 0 | DF45: =IF(SUM(DE$8:DE$11)>0,$E45*$H45,0) -> 0 | DH45: =IF(SUM(DG$8:DG$11)>0,$E45*$H45,0) -> 0 | DJ45: =IF(SUM(DI$8:DI$11)>0,$E45*$H45,0) -> 0 | DL45: =IF(SUM(DK$8:DK$11)>0,$E45*$H45,0) -> 0 | DN45: =IF(SUM(DM$8:DM$11)>0,$E45*$H45,0) -> 0 | DP45: =IF(SUM(DO$8:DO$11)>0,$E45*$H45,0) -> 0 | DR45: =IF(SUM(DQ$8:DQ$11)>0,$E45*$H45,0) -> 0 | DT45: =IF(SUM(DS$8:DS$11)>0,$E45*$H45,0) -> 0 | DV45: =IF(SUM(DU$8:DU$11)>0,$E45*$H45,0) -> 0 | DX45: =IF(SUM(DW$8:DW$11)>0,$E45*$H45,0) -> 0 | DZ45: =IF(SUM(DY$8:DY$11)>0,$E45*$H45,0) -> 0
F46: =H40+H41 ->  | G46: =F46*E46 ->  | L46: =IF(SUM(K$39:K$42)>0,$E46*$H46,0) -> 0 | N46: =IF(SUM(M$39:M$42)>0,$E46*$H46,0) -> 0 | P46: =IF(SUM(O$39:O$42)>0,$E46*$H46,0) -> 0 | R46: =IF(SUM(Q$39:Q$42)>0,$E46*$H46,0) -> 0 | T46: =IF(SUM(S$39:S$42)>0,$E46*$H46,0) -> 0 | V46: =IF(SUM(U$39:U$42)>0,$E46*$H46,0) -> 0 | X46: =IF(SUM(W$39:W$42)>0,$E46*$H46,0) -> 0 | Z46: =IF(SUM(Y$39:Y$42)>0,$E46*$H46,0) -> 0 | AB46: =IF(SUM(AA$39:AA$42)>0,$E46*$H46,0) -> 0 | AD46: =IF(SUM(AC$8:AC$11)>0,$E46*$H46,0) -> 0 | AF46: =IF(SUM(AE$8:AE$11)>0,$E46*$H46,0) -> 0 | AH46: =IF(SUM(AG$8:AG$11)>0,$E46*$H46,0) -> 0 | AJ46: =IF(SUM(AI$8:AI$11)>0,$E46*$H46,0) -> 0 | AL46: =IF(SUM(AK$8:AK$11)>0,$E46*$H46,0) -> 0 | AN46: =IF(SUM(AM$8:AM$11)>0,$E46*$H46,0) -> 0 | AP46: =IF(SUM(AO$8:AO$11)>0,$E46*$H46,0) -> 0 | AR46: =IF(SUM(AQ$8:AQ$11)>0,$E46*$H46,0) -> 0 | AT46: =IF(SUM(AS$8:AS$11)>0,$E46*$H46,0) -> 0 | AV46: =IF(SUM(AU$8:AU$11)>0,$E46*$H46,0) -> 0 | AX46: =IF(SUM(AW$8:AW$11)>0,$E46*$H46,0) -> 0 | AZ46: =IF(SUM(AY$8:AY$11)>0,$E46*$H46,0) -> 0 | BB46: =IF(SUM(BA$8:BA$11)>0,$E46*$H46,0) -> 0 | BD46: =IF(SUM(BC$8:BC$11)>0,$E46*$H46,0) -> 0 | BF46: =IF(SUM(BE$8:BE$11)>0,$E46*$H46,0) -> 0 | BH46: =IF(SUM(BG$8:BG$11)>0,$E46*$H46,0) -> 0 | BJ46: =IF(SUM(BI$8:BI$11)>0,$E46*$H46,0) -> 0 | BL46: =IF(SUM(BK$8:BK$11)>0,$E46*$H46,0) -> 0 | BN46: =IF(SUM(BM$8:BM$11)>0,$E46*$H46,0) -> 0 | BP46: =IF(SUM(BO$8:BO$11)>0,$E46*$H46,0) -> 0 | BR46: =IF(SUM(BQ$8:BQ$11)>0,$E46*$H46,0) -> 0 | BT46: =IF(SUM(BS$8:BS$11)>0,$E46*$H46,0) -> 0 | BV46: =IF(SUM(BU$8:BU$11)>0,$E46*$H46,0) -> 0 | BX46: =IF(SUM(BW$8:BW$11)>0,$E46*$H46,0) -> 0 | BZ46: =IF(SUM(BY$8:BY$11)>0,$E46*$H46,0) -> 0 | CB46: =IF(SUM(CA$8:CA$11)>0,$E46*$H46,0) -> 0 | CD46: =IF(SUM(CC$8:CC$11)>0,$E46*$H46,0) -> 0 | CF46: =IF(SUM(CE$8:CE$11)>0,$E46*$H46,0) -> 0 | CH46: =IF(SUM(CG$8:CG$11)>0,$E46*$H46,0) -> 0 | CJ46: =IF(SUM(CI$8:CI$11)>0,$E46*$H46,0) -> 0 | CL46: =IF(SUM(CK$8:CK$11)>0,$E46*$H46,0) -> 0 | CN46: =IF(SUM(CM$8:CM$11)>0,$E46*$H46,0) -> 0 | CP46: =IF(SUM(CO$8:CO$11)>0,$E46*$H46,0) -> 0 | CR46: =IF(SUM(CQ$8:CQ$11)>0,$E46*$H46,0) -> 0 | CT46: =IF(SUM(CS$8:CS$11)>0,$E46*$H46,0) -> 0 | CV46: =IF(SUM(CU$8:CU$11)>0,$E46*$H46,0) -> 0 | CX46: =IF(SUM(CW$8:CW$11)>0,$E46*$H46,0) -> 0 | CZ46: =IF(SUM(CY$8:CY$11)>0,$E46*$H46,0) -> 0 | DB46: =IF(SUM(DA$8:DA$11)>0,$E46*$H46,0) -> 0 | DD46: =IF(SUM(DC$8:DC$11)>0,$E46*$H46,0) -> 0 | DF46: =IF(SUM(DE$8:DE$11)>0,$E46*$H46,0) -> 0 | DH46: =IF(SUM(DG$8:DG$11)>0,$E46*$H46,0) -> 0 | DJ46: =IF(SUM(DI$8:DI$11)>0,$E46*$H46,0) -> 0 | DL46: =IF(SUM(DK$8:DK$11)>0,$E46*$H46,0) -> 0 | DN46: =IF(SUM(DM$8:DM$11)>0,$E46*$H46,0) -> 0 | DP46: =IF(SUM(DO$8:DO$11)>0,$E46*$H46,0) -> 0 | DR46: =IF(SUM(DQ$8:DQ$11)>0,$E46*$H46,0) -> 0 | DT46: =IF(SUM(DS$8:DS$11)>0,$E46*$H46,0) -> 0 | DV46: =IF(SUM(DU$8:DU$11)>0,$E46*$H46,0) -> 0 | DX46: =IF(SUM(DW$8:DW$11)>0,$E46*$H46,0) -> 0 | DZ46: =IF(SUM(DY$8:DY$11)>0,$E46*$H46,0) -> 0
F47: =F46 ->  | L47: =IF(SUM(K$39:K$42)>0,$E47*$H47,0) -> 0 | N47: =IF(SUM(M$39:M$42)>0,$E47*$H47,0) -> 0 | P47: =IF(SUM(O$39:O$42)>0,$E47*$H47,0) -> 0 | R47: =IF(SUM(Q$39:Q$42)>0,$E47*$H47,0) -> 0 | T47: =IF(SUM(S$39:S$42)>0,$E47*$H47,0) -> 0 | V47: =IF(SUM(U$39:U$42)>0,$E47*$H47,0) -> 0 | X47: =IF(SUM(W$39:W$42)>0,$E47*$H47,0) -> 0 | Z47: =IF(SUM(Y$39:Y$42)>0,$E47*$H47,0) -> 0 | AB47: =IF(SUM(AA$39:AA$42)>0,$E47*$H47,0) -> 0 | AD47: =IF(SUM(AC$8:AC$11)>0,$E47*$H47,0) -> 0 | AF47: =IF(SUM(AE$8:AE$11)>0,$E47*$H47,0) -> 0 | AH47: =IF(SUM(AG$8:AG$11)>0,$E47*$H47,0) -> 0 | AJ47: =IF(SUM(AI$8:AI$11)>0,$E47*$H47,0) -> 0 | AL47: =IF(SUM(AK$8:AK$11)>0,$E47*$H47,0) -> 0 | AN47: =IF(SUM(AM$8:AM$11)>0,$E47*$H47,0) -> 0 | AP47: =IF(SUM(AO$8:AO$11)>0,$E47*$H47,0) -> 0 | AR47: =IF(SUM(AQ$8:AQ$11)>0,$E47*$H47,0) -> 0 | AT47: =IF(SUM(AS$8:AS$11)>0,$E47*$H47,0) -> 0 | AV47: =IF(SUM(AU$8:AU$11)>0,$E47*$H47,0) -> 0 | AX47: =IF(SUM(AW$8:AW$11)>0,$E47*$H47,0) -> 0 | AZ47: =IF(SUM(AY$8:AY$11)>0,$E47*$H47,0) -> 0 | BB47: =IF(SUM(BA$8:BA$11)>0,$E47*$H47,0) -> 0 | BD47: =IF(SUM(BC$8:BC$11)>0,$E47*$H47,0) -> 0 | BF47: =IF(SUM(BE$8:BE$11)>0,$E47*$H47,0) -> 0 | BH47: =IF(SUM(BG$8:BG$11)>0,$E47*$H47,0) -> 0 | BJ47: =IF(SUM(BI$8:BI$11)>0,$E47*$H47,0) -> 0 | BL47: =IF(SUM(BK$8:BK$11)>0,$E47*$H47,0) -> 0 | BN47: =IF(SUM(BM$8:BM$11)>0,$E47*$H47,0) -> 0 | BP47: =IF(SUM(BO$8:BO$11)>0,$E47*$H47,0) -> 0 | BR47: =IF(SUM(BQ$8:BQ$11)>0,$E47*$H47,0) -> 0 | BT47: =IF(SUM(BS$8:BS$11)>0,$E47*$H47,0) -> 0 | BV47: =IF(SUM(BU$8:BU$11)>0,$E47*$H47,0) -> 0 | BX47: =IF(SUM(BW$8:BW$11)>0,$E47*$H47,0) -> 0 | BZ47: =IF(SUM(BY$8:BY$11)>0,$E47*$H47,0) -> 0 | CB47: =IF(SUM(CA$8:CA$11)>0,$E47*$H47,0) -> 0 | CD47: =IF(SUM(CC$8:CC$11)>0,$E47*$H47,0) -> 0 | CF47: =IF(SUM(CE$8:CE$11)>0,$E47*$H47,0) -> 0 | CH47: =IF(SUM(CG$8:CG$11)>0,$E47*$H47,0) -> 0 | CJ47: =IF(SUM(CI$8:CI$11)>0,$E47*$H47,0) -> 0 | CL47: =IF(SUM(CK$8:CK$11)>0,$E47*$H47,0) -> 0 | CN47: =IF(SUM(CM$8:CM$11)>0,$E47*$H47,0) -> 0 | CP47: =IF(SUM(CO$8:CO$11)>0,$E47*$H47,0) -> 0 | CR47: =IF(SUM(CQ$8:CQ$11)>0,$E47*$H47,0) -> 0 | CT47: =IF(SUM(CS$8:CS$11)>0,$E47*$H47,0) -> 0 | CV47: =IF(SUM(CU$8:CU$11)>0,$E47*$H47,0) -> 0 | CX47: =IF(SUM(CW$8:CW$11)>0,$E47*$H47,0) -> 0 | CZ47: =IF(SUM(CY$8:CY$11)>0,$E47*$H47,0) -> 0 | DB47: =IF(SUM(DA$8:DA$11)>0,$E47*$H47,0) -> 0 | DD47: =IF(SUM(DC$8:DC$11)>0,$E47*$H47,0) -> 0 | DF47: =IF(SUM(DE$8:DE$11)>0,$E47*$H47,0) -> 0 | DH47: =IF(SUM(DG$8:DG$11)>0,$E47*$H47,0) -> 0 | DJ47: =IF(SUM(DI$8:DI$11)>0,$E47*$H47,0) -> 0 | DL47: =IF(SUM(DK$8:DK$11)>0,$E47*$H47,0) -> 0 | DN47: =IF(SUM(DM$8:DM$11)>0,$E47*$H47,0) -> 0 | DP47: =IF(SUM(DO$8:DO$11)>0,$E47*$H47,0) -> 0 | DR47: =IF(SUM(DQ$8:DQ$11)>0,$E47*$H47,0) -> 0 | DT47: =IF(SUM(DS$8:DS$11)>0,$E47*$H47,0) -> 0 | DV47: =IF(SUM(DU$8:DU$11)>0,$E47*$H47,0) -> 0 | DX47: =IF(SUM(DW$8:DW$11)>0,$E47*$H47,0) -> 0 | DZ47: =IF(SUM(DY$8:DY$11)>0,$E47*$H47,0) -> 0
L48: =IF(SUM(K$39:K$42)>0,$E48*$H48,0) -> 0 | N48: =IF(SUM(M$39:M$42)>0,$E48*$H48,0) -> 0 | P48: =IF(SUM(O$39:O$42)>0,$E48*$H48,0) -> 0 | R48: =IF(SUM(Q$39:Q$42)>0,$E48*$H48,0) -> 0 | T48: =IF(SUM(S$39:S$42)>0,$E48*$H48,0) -> 0 | V48: =IF(SUM(U$39:U$42)>0,$E48*$H48,0) -> 0 | X48: =IF(SUM(W$39:W$42)>0,$E48*$H48,0) -> 0 | Z48: =IF(SUM(Y$39:Y$42)>0,$E48*$H48,0) -> 0 | AB48: =IF(SUM(AA$39:AA$42)>0,$E48*$H48,0) -> 0 | AD48: =IF(SUM(AC$8:AC$11)>0,$E48*$H48,0) -> 0 | AF48: =IF(SUM(AE$8:AE$11)>0,$E48*$H48,0) -> 0 | AH48: =IF(SUM(AG$8:AG$11)>0,$E48*$H48,0) -> 0 | AJ48: =IF(SUM(AI$8:AI$11)>0,$E48*$H48,0) -> 0 | AL48: =IF(SUM(AK$8:AK$11)>0,$E48*$H48,0) -> 0 | AN48: =IF(SUM(AM$8:AM$11)>0,$E48*$H48,0) -> 0 | AP48: =IF(SUM(AO$8:AO$11)>0,$E48*$H48,0) -> 0 | AR48: =IF(SUM(AQ$8:AQ$11)>0,$E48*$H48,0) -> 0 | AT48: =IF(SUM(AS$8:AS$11)>0,$E48*$H48,0) -> 0 | AV48: =IF(SUM(AU$8:AU$11)>0,$E48*$H48,0) -> 0 | AX48: =IF(SUM(AW$8:AW$11)>0,$E48*$H48,0) -> 0 | AZ48: =IF(SUM(AY$8:AY$11)>0,$E48*$H48,0) -> 0 | BB48: =IF(SUM(BA$8:BA$11)>0,$E48*$H48,0) -> 0 | BD48: =IF(SUM(BC$8:BC$11)>0,$E48*$H48,0) -> 0 | BF48: =IF(SUM(BE$8:BE$11)>0,$E48*$H48,0) -> 0 | BH48: =IF(SUM(BG$8:BG$11)>0,$E48*$H48,0) -> 0 | BJ48: =IF(SUM(BI$8:BI$11)>0,$E48*$H48,0) -> 0 | BL48: =IF(SUM(BK$8:BK$11)>0,$E48*$H48,0) -> 0 | BN48: =IF(SUM(BM$8:BM$11)>0,$E48*$H48,0) -> 0 | BP48: =IF(SUM(BO$8:BO$11)>0,$E48*$H48,0) -> 0 | BR48: =IF(SUM(BQ$8:BQ$11)>0,$E48*$H48,0) -> 0 | BT48: =IF(SUM(BS$8:BS$11)>0,$E48*$H48,0) -> 0 | BV48: =IF(SUM(BU$8:BU$11)>0,$E48*$H48,0) -> 0 | BX48: =IF(SUM(BW$8:BW$11)>0,$E48*$H48,0) -> 0 | BZ48: =IF(SUM(BY$8:BY$11)>0,$E48*$H48,0) -> 0 | CB48: =IF(SUM(CA$8:CA$11)>0,$E48*$H48,0) -> 0 | CD48: =IF(SUM(CC$8:CC$11)>0,$E48*$H48,0) -> 0 | CF48: =IF(SUM(CE$8:CE$11)>0,$E48*$H48,0) -> 0 | CH48: =IF(SUM(CG$8:CG$11)>0,$E48*$H48,0) -> 0 | CJ48: =IF(SUM(CI$8:CI$11)>0,$E48*$H48,0) -> 0 | CL48: =IF(SUM(CK$8:CK$11)>0,$E48*$H48,0) -> 0 | CN48: =IF(SUM(CM$8:CM$11)>0,$E48*$H48,0) -> 0 | CP48: =IF(SUM(CO$8:CO$11)>0,$E48*$H48,0) -> 0 | CR48: =IF(SUM(CQ$8:CQ$11)>0,$E48*$H48,0) -> 0 | CT48: =IF(SUM(CS$8:CS$11)>0,$E48*$H48,0) -> 0 | CV48: =IF(SUM(CU$8:CU$11)>0,$E48*$H48,0) -> 0 | CX48: =IF(SUM(CW$8:CW$11)>0,$E48*$H48,0) -> 0 | CZ48: =IF(SUM(CY$8:CY$11)>0,$E48*$H48,0) -> 0 | DB48: =IF(SUM(DA$8:DA$11)>0,$E48*$H48,0) -> 0 | DD48: =IF(SUM(DC$8:DC$11)>0,$E48*$H48,0) -> 0 | DF48: =IF(SUM(DE$8:DE$11)>0,$E48*$H48,0) -> 0 | DH48: =IF(SUM(DG$8:DG$11)>0,$E48*$H48,0) -> 0 | DJ48: =IF(SUM(DI$8:DI$11)>0,$E48*$H48,0) -> 0 | DL48: =IF(SUM(DK$8:DK$11)>0,$E48*$H48,0) -> 0 | DN48: =IF(SUM(DM$8:DM$11)>0,$E48*$H48,0) -> 0 | DP48: =IF(SUM(DO$8:DO$11)>0,$E48*$H48,0) -> 0 | DR48: =IF(SUM(DQ$8:DQ$11)>0,$E48*$H48,0) -> 0 | DT48: =IF(SUM(DS$8:DS$11)>0,$E48*$H48,0) -> 0 | DV48: =IF(SUM(DU$8:DU$11)>0,$E48*$H48,0) -> 0 | DX48: =IF(SUM(DW$8:DW$11)>0,$E48*$H48,0) -> 0 | DZ48: =IF(SUM(DY$8:DY$11)>0,$E48*$H48,0) -> 0
K50: =SUMPRODUCT(#REF!,#REF!) -> 
K51: =K50*($H$9+#REF!) -> 
K52: =K51/12 -> 
K53: =K52/91 -> 

Sheet EPI (hidden)
B4: EQUIPAMENTOS DE PROTEÇÃO INDIVIDUAL - AQUISIÇÃO | I4: 1 | K4: =I4+1 -> 2 | M4: =K4+1 -> 3 | O4: =M4+1 -> 4 | Q4: =O4+1 -> 5 | S4: =Q4+1 -> 6 | U4: =S4+1 -> 7 | W4: =U4+1 -> 8 | Y4: =W4+1 -> 9 | AA4: =Y4+1 -> 10 | AC4: =AA4+1 -> 11 | AE4: =AC4+1 -> 12 | AG4: =AE4+1 -> 13 | AI4: =AG4+1 -> 14 | AK4: =AI4+1 -> 15 | AM4: =AK4+1 -> 16 | AO4: =AM4+1 -> 17 | AQ4: =AO4+1 -> 18 | AS4: =AQ4+1 -> 19 | AU4: =AS4+1 -> 20 | AW4: =AU4+1 -> 21 | AY4: =AW4+1 -> 22 | BA4: =AY4+1 -> 23 | BC4: =BA4+1 -> 24 | BE4: =BC4+1 -> 25 | BG4: =BE4+1 -> 26 | BI4: =BG4+1 -> 27 | BK4: =BI4+1 -> 28 | BM4: =BK4+1 -> 29 | BO4: =BM4+1 -> 30 | BQ4: =BO4+1 -> 31 | BS4: =BQ4+1 -> 32 | BU4: =BS4+1 -> 33 | BW4: =BU4+1 -> 34 | BY4: =BW4+1 -> 35 | CA4: =BY4+1 -> 36 | CC4: =CA4+1 -> 37 | CE4: =CC4+1 -> 38 | CG4: =CE4+1 -> 39 | CI4: =CG4+1 -> 40 | CK4: =CI4+1 -> 41 | CM4: =CK4+1 -> 42 | CO4: =CM4+1 -> 43 | CQ4: =CO4+1 -> 44 | CS4: =CQ4+1 -> 45 | CU4: =CS4+1 -> 46 | CW4: =CU4+1 -> 47 | CY4: =CW4+1 -> 48 | DA4: =CY4+1 -> 49 | DC4: =DA4+1 -> 50 | DE4: =DC4+1 -> 51 | DG4: =DE4+1 -> 52 | DI4: =DG4+1 -> 53 | DK4: =DI4+1 -> 54 | DM4: =DK4+1 -> 55 | DO4: =DM4+1 -> 56 | DQ4: =DO4+1 -> 57 | DS4: =DQ4+1 -> 58 | DU4: =DS4+1 -> 59 | DW4: =DU4+1 -> 60
I6: =ROUND(SUM(J5:J76),2) -> 0 | K6: =ROUND(SUM(L5:L76),2) -> 0 | M6: =ROUND(SUM(N5:N76),2) -> 0 | O6: =ROUND(SUM(P5:P76),2) -> 0 | Q6: =ROUND(SUM(R5:R76),2) -> 0 | S6: =ROUND(SUM(T5:T76),2) -> 0 | U6: =ROUND(SUM(V5:V76),2) -> 0 | W6: =ROUND(SUM(X5:X76),2) -> 0 | Y6: =ROUND(SUM(Z5:Z76),2) -> 0 | AA6: =ROUND(SUM(AB5:AB76),2) -> 0 | AC6: =ROUND(SUM(AD5:AD76),2) -> 0 | AE6: =ROUND(SUM(AF5:AF76),2) -> 0 | AG6: =ROUND(SUM(AH5:AH76),2) -> 0 | AI6: =ROUND(SUM(AJ5:AJ76),2) -> 0 | AK6: =ROUND(SUM(AL5:AL76),2) -> 0 | AM6: =ROUND(SUM(AN5:AN76),2) -> 0 | AO6: =ROUND(SUM(AP5:AP76),2) -> 0 | AQ6: =ROUND(SUM(AR5:AR76),2) -> 0 | AS6: =ROUND(SUM(AT5:AT76),2) -> 0 | AU6: =ROUND(SUM(AV5:AV76),2) -> 0 | AW6: =ROUND(SUM(AX5:AX76),2) -> 0 | AY6: =ROUND(SUM(AZ5:AZ76),2) -> 0 | BA6: =ROUND(SUM(BB5:BB76),2) -> 0 | BC6: =ROUND(SUM(BD5:BD76),2) -> 0 | BE6: =ROUND(SUM(BF5:BF76),2) -> 0 | BG6: =ROUND(SUM(BH5:BH76),2) -> 0 | BI6: =ROUND(SUM(BJ5:BJ76),2) -> 0 | BK6: =ROUND(SUM(BL5:BL76),2) -> 0 | BM6: =ROUND(SUM(BN5:BN76),2) -> 0 | BO6: =ROUND(SUM(BP5:BP76),2) -> 0 | BQ6: =ROUND(SUM(BR5:BR76),2) -> 0 | BS6: =ROUND(SUM(BT5:BT76),2) -> 0 | BU6: =ROUND(SUM(BV5:BV76),2) -> 0 | BW6: =ROUND(SUM(BX5:BX76),2) -> 0 | BY6: =ROUND(SUM(BZ5:BZ76),2) -> 0 | CA6: =ROUND(SUM(CB5:CB76),2) -> 0 | CC6: =ROUND(SUM(CD5:CD76),2) -> 0 | CE6: =ROUND(SUM(CF5:CF76),2) -> 0 | CG6: =ROUND(SUM(CH5:CH76),2) -> 0 | CI6: =ROUND(SUM(CJ5:CJ76),2) -> 0 | CK6: =ROUND(SUM(CL5:CL76),2) -> 0 | CM6: =ROUND(SUM(CN5:CN76),2) -> 0 | CO6: =ROUND(SUM(CP5:CP76),2) -> 0 | CQ6: =ROUND(SUM(CR5:CR76),2) -> 0 | CS6: =ROUND(SUM(CT5:CT76),2) -> 0 | CU6: =ROUND(SUM(CV5:CV76),2) -> 0 | CW6: =ROUND(SUM(CX5:CX76),2) -> 0 | CY6: =ROUND(SUM(CZ5:CZ76),2) -> 0 | DA6: =ROUND(SUM(DB5:DB76),2) -> 0 | DC6: =ROUND(SUM(DD5:DD76),2) -> 0 | DE6: =ROUND(SUM(DF5:DF76),2) -> 0 | DG6: =ROUND(SUM(DH5:DH76),2) -> 0 | DI6: =ROUND(SUM(DJ5:DJ76),2) -> 0 | DK6: =ROUND(SUM(DL5:DL76),2) -> 0 | DM6: =ROUND(SUM(DN5:DN76),2) -> 0 | DO6: =ROUND(SUM(DP5:DP76),2) -> 0 | DQ6: =ROUND(SUM(DR5:DR76),2) -> 0 | DS6: =ROUND(SUM(DT5:DT76),2) -> 0 | DU6: =ROUND(SUM(DV5:DV76),2) -> 0 | DW6: =ROUND(SUM(DX5:DX76),2) -> 0
C7: CATEGORIAS | F7: QUANTIDADE
I8: =IF($C8=I$4,1,0) -> 0
D9: =HLOOKUP($C9,'Dados Gerais'!$D$5:$BJ$10,6) ->  | F9: =HLOOKUP($C9,'Dados Gerais'!$D$5:$BJ$14,10) ->  | I9: =IF($C9=I$4,1,0) -> 0 | K9: =IF($C9=K$4,1,0) -> 0 | M9: =IF($C9=M$4,1,0) -> 0 | O9: =IF($C9=O$4,1,0) -> 0 | Q9: =IF($C9=Q$4,1,0) -> 0 | S9: =IF($C9=S$4,1,0) -> 0 | U9: =IF($C9=U$4,1,0) -> 0 | W9: =IF($C9=W$4,1,0) -> 0 | Y9: =IF($C9=Y$4,1,0) -> 0 | AA9: =IF($C9=AA$4,1,0) -> 0 | AC9: =IF($C9=AC$4,1,0) -> 0 | AE9: =IF($C9=AE$4,1,0) -> 0 | AG9: =IF($C9=AG$4,1,0) -> 0 | AI9: =IF($C9=AI$4,1,0) -> 0 | AK9: =IF($C9=AK$4,1,0) -> 0 | AM9: =IF($C9=AM$4,1,0) -> 0 | AO9: =IF($C9=AO$4,1,0) -> 0 | AQ9: =IF($C9=AQ$4,1,0) -> 0 | AS9: =IF($C9=AS$4,1,0) -> 0 | AU9: =IF($C9=AU$4,1,0) -> 0 | AW9: =IF($C9=AW$4,1,0) -> 0 | AY9: =IF($C9=AY$4,1,0) -> 0 | BA9: =IF($C9=BA$4,1,0) -> 0 | BC9: =IF($C9=BC$4,1,0) -> 0 | BE9: =IF($C9=BE$4,1,0) -> 0 | BG9: =IF($C9=BG$4,1,0) -> 0 | BI9: =IF($C9=BI$4,1,0) -> 0 | BK9: =IF($C9=BK$4,1,0) -> 0 | BM9: =IF($C9=BM$4,1,0) -> 0 | BO9: =IF($C9=BO$4,1,0) -> 0 | BQ9: =IF($C9=BQ$4,1,0) -> 0 | BS9: =IF($C9=BS$4,1,0) -> 0 | BU9: =IF($C9=BU$4,1,0) -> 0 | BW9: =IF($C9=BW$4,1,0) -> 0 | BY9: =IF($C9=BY$4,1,0) -> 0 | CA9: =IF($C9=CA$4,1,0) -> 0 | CC9: =IF($C9=CC$4,1,0) -> 0 | CE9: =IF($C9=CE$4,1,0) -> 0 | CG9: =IF($C9=CG$4,1,0) -> 0 | CI9: =IF($C9=CI$4,1,0) -> 0 | CK9: =IF($C9=CK$4,1,0) -> 0 | CM9: =IF($C9=CM$4,1,0) -> 0 | CO9: =IF($C9=CO$4,1,0) -> 0 | CQ9: =IF($C9=CQ$4,1,0) -> 0 | CS9: =IF($C9=CS$4,1,0) -> 0 | CU9: =IF($C9=CU$4,1,0) -> 0 | CW9: =IF($C9=CW$4,1,0) -> 0 | CY9: =IF($C9=CY$4,1,0) -> 0 | DA9: =IF($C9=DA$4,1,0) -> 0 | DC9: =IF($C9=DC$4,1,0) -> 0 | DE9: =IF($C9=DE$4,1,0) -> 0 | DG9: =IF($C9=DG$4,1,0) -> 0 | DI9: =IF($C9=DI$4,1,0) -> 0 | DK9: =IF($C9=DK$4,1,0) -> 0 | DM9: =IF($C9=DM$4,1,0) -> 0 | DO9: =IF($C9=DO$4,1,0) -> 0 | DQ9: =IF($C9=DQ$4,1,0) -> 0 | DS9: =IF($C9=DS$4,1,0) -> 0 | DU9: =IF($C9=DU$4,1,0) -> 0 | DW9: =IF($C9=DW$4,1,0) -> 0
D10: =HLOOKUP($C10,'Dados Gerais'!$D$5:$BJ$10,6) ->  | F10: =HLOOKUP($C10,'Dados Gerais'!$D$5:$BJ$14,10) ->  | I10: =IF($C10=I$4,1,0) -> 0 | K10: =IF($C10=K$4,1,0) -> 0 | M10: =IF($C10=M$4,1,0) -> 0 | O10: =IF($C10=O$4,1,0) -> 0 | Q10: =IF($C10=Q$4,1,0) -> 0 | S10: =IF($C10=S$4,1,0) -> 0 | U10: =IF($C10=U$4,1,0) -> 0 | W10: =IF($C10=W$4,1,0) -> 0 | Y10: =IF($C10=Y$4,1,0) -> 0 | AA10: =IF($C10=AA$4,1,0) -> 0 | AC10: =IF($C10=AC$4,1,0) -> 0 | AE10: =IF($C10=AE$4,1,0) -> 0 | AG10: =IF($C10=AG$4,1,0) -> 0 | AI10: =IF($C10=AI$4,1,0) -> 0 | AK10: =IF($C10=AK$4,1,0) -> 0 | AM10: =IF($C10=AM$4,1,0) -> 0 | AO10: =IF($C10=AO$4,1,0) -> 0 | AQ10: =IF($C10=AQ$4,1,0) -> 0 | AS10: =IF($C10=AS$4,1,0) -> 0 | AU10: =IF($C10=AU$4,1,0) -> 0 | AW10: =IF($C10=AW$4,1,0) -> 0 | AY10: =IF($C10=AY$4,1,0) -> 0 | BA10: =IF($C10=BA$4,1,0) -> 0 | BC10: =IF($C10=BC$4,1,0) -> 0 | BE10: =IF($C10=BE$4,1,0) -> 0 | BG10: =IF($C10=BG$4,1,0) -> 0 | BI10: =IF($C10=BI$4,1,0) -> 0 | BK10: =IF($C10=BK$4,1,0) -> 0 | BM10: =IF($C10=BM$4,1,0) -> 0 | BO10: =IF($C10=BO$4,1,0) -> 0 | BQ10: =IF($C10=BQ$4,1,0) -> 0 | BS10: =IF($C10=BS$4,1,0) -> 0 | BU10: =IF($C10=BU$4,1,0) -> 0 | BW10: =IF($C10=BW$4,1,0) -> 0 | BY10: =IF($C10=BY$4,1,0) -> 0 | CA10: =IF($C10=CA$4,1,0) -> 0 | CC10: =IF($C10=CC$4,1,0) -> 0 | CE10: =IF($C10=CE$4,1,0) -> 0 | CG10: =IF($C10=CG$4,1,0) -> 0 | CI10: =IF($C10=CI$4,1,0) -> 0 | CK10: =IF($C10=CK$4,1,0) -> 0 | CM10: =IF($C10=CM$4,1,0) -> 0 | CO10: =IF($C10=CO$4,1,0) -> 0 | CQ10: =IF($C10=CQ$4,1,0) -> 0 | CS10: =IF($C10=CS$4,1,0) -> 0 | CU10: =IF($C10=CU$4,1,0) -> 0 | CW10: =IF($C10=CW$4,1,0) -> 0 | CY10: =IF($C10=CY$4,1,0) -> 0 | DA10: =IF($C10=DA$4,1,0) -> 0 | DC10: =IF($C10=DC$4,1,0) -> 0 | DE10: =IF($C10=DE$4,1,0) -> 0 | DG10: =IF($C10=DG$4,1,0) -> 0 | DI10: =IF($C10=DI$4,1,0) -> 0 | DK10: =IF($C10=DK$4,1,0) -> 0 | DM10: =IF($C10=DM$4,1,0) -> 0 | DO10: =IF($C10=DO$4,1,0) -> 0 | DQ10: =IF($C10=DQ$4,1,0) -> 0 | DS10: =IF($C10=DS$4,1,0) -> 0 | DU10: =IF($C10=DU$4,1,0) -> 0 | DW10: =IF($C10=DW$4,1,0) -> 0
I11: =IF($C11=I$4,1,0) -> 0
C13: ITEM | D13: DESCRIÇÃO | E13: QUANT ANUAL POR POSTO | F13: VALOR
J14: =IF(SUM(I$8:I$11)>0,$E14*$F14,0) -> 0 | L14: =IF(SUM(K$8:K$11)>0,$E14*$F14,0) -> 0 | N14: =IF(SUM(M$8:M$11)>0,$E14*$F14,0) -> 0 | P14: =IF(SUM(O$8:O$11)>0,$E14*$F14,0) -> 0 | R14: =IF(SUM(Q$8:Q$11)>0,$E14*$F14,0) -> 0 | T14: =IF(SUM(S$8:S$11)>0,$E14*$F14,0) -> 0 | V14: =IF(SUM(U$8:U$11)>0,$E14*$F14,0) -> 0 | X14: =IF(SUM(W$8:W$11)>0,$E14*$F14,0) -> 0 | Z14: =IF(SUM(Y$8:Y$11)>0,$E14*$F14,0) -> 0 | AB14: =IF(SUM(AA$8:AA$11)>0,$E14*$F14,0) -> 0 | AD14: =IF(SUM(AC$8:AC$11)>0,$E14*$F14,0) -> 0 | AF14: =IF(SUM(AE$8:AE$11)>0,$E14*$F14,0) -> 0 | AH14: =IF(SUM(AG$8:AG$11)>0,$E14*$F14,0) -> 0 | AJ14: =IF(SUM(AI$8:AI$11)>0,$E14*$F14,0) -> 0 | AL14: =IF(SUM(AK$8:AK$11)>0,$E14*$F14,0) -> 0 | AN14: =IF(SUM(AM$8:AM$11)>0,$E14*$F14,0) -> 0 | AP14: =IF(SUM(AO$8:AO$11)>0,$E14*$F14,0) -> 0 | AR14: =IF(SUM(AQ$8:AQ$11)>0,$E14*$F14,0) -> 0 | AT14: =IF(SUM(AS$8:AS$11)>0,$E14*$F14,0) -> 0 | AV14: =IF(SUM(AU$8:AU$11)>0,$E14*$F14,0) -> 0 | AX14: =IF(SUM(AW$8:AW$11)>0,$E14*$F14,0) -> 0 | AZ14: =IF(SUM(AY$8:AY$11)>0,$E14*$F14,0) -> 0 | BB14: =IF(SUM(BA$8:BA$11)>0,$E14*$F14,0) -> 0 | BD14: =IF(SUM(BC$8:BC$11)>0,$E14*$F14,0) -> 0 | BF14: =IF(SUM(BE$8:BE$11)>0,$E14*$F14,0) -> 0 | BH14: =IF(SUM(BG$8:BG$11)>0,$E14*$F14,0) -> 0 | BJ14: =IF(SUM(BI$8:BI$11)>0,$E14*$F14,0) -> 0 | BL14: =IF(SUM(BK$8:BK$11)>0,$E14*$F14,0) -> 0 | BN14: =IF(SUM(BM$8:BM$11)>0,$E14*$F14,0) -> 0 | BP14: =IF(SUM(BO$8:BO$11)>0,$E14*$F14,0) -> 0 | BR14: =IF(SUM(BQ$8:BQ$11)>0,$E14*$F14,0) -> 0 | BT14: =IF(SUM(BS$8:BS$11)>0,$E14*$F14,0) -> 0 | BV14: =IF(SUM(BU$8:BU$11)>0,$E14*$F14,0) -> 0 | BX14: =IF(SUM(BW$8:BW$11)>0,$E14*$F14,0) -> 0 | BZ14: =IF(SUM(BY$8:BY$11)>0,$E14*$F14,0) -> 0 | CB14: =IF(SUM(CA$8:CA$11)>0,$E14*$F14,0) -> 0 | CD14: =IF(SUM(CC$8:CC$11)>0,$E14*$F14,0) -> 0 | CF14: =IF(SUM(CE$8:CE$11)>0,$E14*$F14,0) -> 0 | CH14: =IF(SUM(CG$8:CG$11)>0,$E14*$F14,0) -> 0 | CJ14: =IF(SUM(CI$8:CI$11)>0,$E14*$F14,0) -> 0 | CL14: =IF(SUM(CK$8:CK$11)>0,$E14*$F14,0) -> 0 | CN14: =IF(SUM(CM$8:CM$11)>0,$E14*$F14,0) -> 0 | CP14: =IF(SUM(CO$8:CO$11)>0,$E14*$F14,0) -> 0 | CR14: =IF(SUM(CQ$8:CQ$11)>0,$E14*$F14,0) -> 0 | CT14: =IF(SUM(CS$8:CS$11)>0,$E14*$F14,0) -> 0 | CV14: =IF(SUM(CU$8:CU$11)>0,$E14*$F14,0) -> 0 | CX14: =IF(SUM(CW$8:CW$11)>0,$E14*$F14,0) -> 0 | CZ14: =IF(SUM(CY$8:CY$11)>0,$E14*$F14,0) -> 0 | DB14: =IF(SUM(DA$8:DA$11)>0,$E14*$F14,0) -> 0 | DD14: =IF(SUM(DC$8:DC$11)>0,$E14*$F14,0) -> 0 | DF14: =IF(SUM(DE$8:DE$11)>0,$E14*$F14,0) -> 0 | DH14: =IF(SUM(DG$8:DG$11)>0,$E14*$F14,0) -> 0 | DJ14: =IF(SUM(DI$8:DI$11)>0,$E14*$F14,0) -> 0 | DL14: =IF(SUM(DK$8:DK$11)>0,$E14*$F14,0) -> 0 | DN14: =IF(SUM(DM$8:DM$11)>0,$E14*$F14,0) -> 0 | DP14: =IF(SUM(DO$8:DO$11)>0,$E14*$F14,0) -> 0 | DR14: =IF(SUM(DQ$8:DQ$11)>0,$E14*$F14,0) -> 0 | DT14: =IF(SUM(DS$8:DS$11)>0,$E14*$F14,0) -> 0 | DV14: =IF(SUM(DU$8:DU$11)>0,$E14*$F14,0) -> 0 | DX14: =IF(SUM(DW$8:DW$11)>0,$E14*$F14,0) -> 0
C15: 1 | D15: Calçado de segurança tipo sapato com resistência a objetos pontiagudos, fechamento em elástico, couro preto, forração em tecido, bico de composite, palmilha de montagem têxtil resistente à perfuração, solado de PU (poliuretano), bidensidade sem cadarço. Ref. MARLUVAS. | J15: =IF(SUM(I$8:I$11)>0,$E15*$F15,0) -> 0 | L15: =IF(SUM(K$8:K$11)>0,$E15*$F15,0) -> 0 | N15: =IF(SUM(M$8:M$11)>0,$E15*$F15,0) -> 0 | P15: =IF(SUM(O$8:O$11)>0,$E15*$F15,0) -> 0 | R15: =IF(SUM(Q$8:Q$11)>0,$E15*$F15,0) -> 0 | T15: =IF(SUM(S$8:S$11)>0,$E15*$F15,0) -> 0 | V15: =IF(SUM(U$8:U$11)>0,$E15*$F15,0) -> 0 | X15: =IF(SUM(W$8:W$11)>0,$E15*$F15,0) -> 0 | Z15: =IF(SUM(Y$8:Y$11)>0,$E15*$F15,0) -> 0 | AB15: =IF(SUM(AA$8:AA$11)>0,$E15*$F15,0) -> 0 | AD15: =IF(SUM(AC$8:AC$11)>0,$E15*$F15,0) -> 0 | AF15: =IF(SUM(AE$8:AE$11)>0,$E15*$F15,0) -> 0 | AH15: =IF(SUM(AG$8:AG$11)>0,$E15*$F15,0) -> 0 | AJ15: =IF(SUM(AI$8:AI$11)>0,$E15*$F15,0) -> 0 | AL15: =IF(SUM(AK$8:AK$11)>0,$E15*$F15,0) -> 0 | AN15: =IF(SUM(AM$8:AM$11)>0,$E15*$F15,0) -> 0 | AP15: =IF(SUM(AO$8:AO$11)>0,$E15*$F15,0) -> 0 | AR15: =IF(SUM(AQ$8:AQ$11)>0,$E15*$F15,0) -> 0 | AT15: =IF(SUM(AS$8:AS$11)>0,$E15*$F15,0) -> 0 | AV15: =IF(SUM(AU$8:AU$11)>0,$E15*$F15,0) -> 0 | AX15: =IF(SUM(AW$8:AW$11)>0,$E15*$F15,0) -> 0 | AZ15: =IF(SUM(AY$8:AY$11)>0,$E15*$F15,0) -> 0 | BB15: =IF(SUM(BA$8:BA$11)>0,$E15*$F15,0) -> 0 | BD15: =IF(SUM(BC$8:BC$11)>0,$E15*$F15,0) -> 0 | BF15: =IF(SUM(BE$8:BE$11)>0,$E15*$F15,0) -> 0 | BH15: =IF(SUM(BG$8:BG$11)>0,$E15*$F15,0) -> 0 | BJ15: =IF(SUM(BI$8:BI$11)>0,$E15*$F15,0) -> 0 | BL15: =IF(SUM(BK$8:BK$11)>0,$E15*$F15,0) -> 0 | BN15: =IF(SUM(BM$8:BM$11)>0,$E15*$F15,0) -> 0 | BP15: =IF(SUM(BO$8:BO$11)>0,$E15*$F15,0) -> 0 | BR15: =IF(SUM(BQ$8:BQ$11)>0,$E15*$F15,0) -> 0 | BT15: =IF(SUM(BS$8:BS$11)>0,$E15*$F15,0) -> 0 | BV15: =IF(SUM(BU$8:BU$11)>0,$E15*$F15,0) -> 0 | BX15: =IF(SUM(BW$8:BW$11)>0,$E15*$F15,0) -> 0 | BZ15: =IF(SUM(BY$8:BY$11)>0,$E15*$F15,0) -> 0 | CB15: =IF(SUM(CA$8:CA$11)>0,$E15*$F15,0) -> 0 | CD15: =IF(SUM(CC$8:CC$11)>0,$E15*$F15,0) -> 0 | CF15: =IF(SUM(CE$8:CE$11)>0,$E15*$F15,0) -> 0 | CH15: =IF(SUM(CG$8:CG$11)>0,$E15*$F15,0) -> 0 | CJ15: =IF(SUM(CI$8:CI$11)>0,$E15*$F15,0) -> 0 | CL15: =IF(SUM(CK$8:CK$11)>0,$E15*$F15,0) -> 0 | CN15: =IF(SUM(CM$8:CM$11)>0,$E15*$F15,0) -> 0 | CP15: =IF(SUM(CO$8:CO$11)>0,$E15*$F15,0) -> 0 | CR15: =IF(SUM(CQ$8:CQ$11)>0,$E15*$F15,0) -> 0 | CT15: =IF(SUM(CS$8:CS$11)>0,$E15*$F15,0) -> 0 | CV15: =IF(SUM(CU$8:CU$11)>0,$E15*$F15,0) -> 0 | CX15: =IF(SUM(CW$8:CW$11)>0,$E15*$F15,0) -> 0 | CZ15: =IF(SUM(CY$8:CY$11)>0,$E15*$F15,0) -> 0 | DB15: =IF(SUM(DA$8:DA$11)>0,$E15*$F15,0) -> 0 | DD15: =IF(SUM(DC$8:DC$11)>0,$E15*$F15,0) -> 0 | DF15: =IF(SUM(DE$8:DE$11)>0,$E15*$F15,0) -> 0 | DH15: =IF(SUM(DG$8:DG$11)>0,$E15*$F15,0) -> 0 | DJ15: =IF(SUM(DI$8:DI$11)>0,$E15*$F15,0) -> 0 | DL15: =IF(SUM(DK$8:DK$11)>0,$E15*$F15,0) -> 0 | DN15: =IF(SUM(DM$8:DM$11)>0,$E15*$F15,0) -> 0 | DP15: =IF(SUM(DO$8:DO$11)>0,$E15*$F15,0) -> 0 | DR15: =IF(SUM(DQ$8:DQ$11)>0,$E15*$F15,0) -> 0 | DT15: =IF(SUM(DS$8:DS$11)>0,$E15*$F15,0) -> 0 | DV15: =IF(SUM(DU$8:DU$11)>0,$E15*$F15,0) -> 0 | DX15: =IF(SUM(DW$8:DW$11)>0,$E15*$F15,0) -> 0
C16: 2 | D16: Respirador purificador de ar tipo, peça semifacial filtrante para partículas (PFF2), com formato dobrável, solda ultra-sônica em todo o seu perímetro. Fita elástica branca fixada nas laterais externas do respirador, perfazendo uma alça na para fixação na parte superior da cabeça e a outra na parte inferior, para fixação na altura da nuca do usuário. A parte superior externa da peça possui tira de material metálico moldável, utilizada para ajuste no septo nasal. Com válvula de exalação. DEVERÁ APRESENTAR O SELO DE APROVAÇÃO DO INMETRO. Ref. 3M. Obs.: enquanto durarem os efeitos da pandemia da Covid-19 as máscaras devem ser fornecidas SEM a válvula de exalação | J16: =IF(SUM(I$19:I$22)>0,$E16*$F16,0) -> 0 | L16: =IF(SUM(K$19:K$22)>0,$E16*$F16,0) -> 0 | N16: =IF(SUM(M$19:M$22)>0,$E16*$F16,0) -> 0 | P16: =IF(SUM(O$19:O$22)>0,$E16*$F16,0) -> 0 | R16: =IF(SUM(Q$19:Q$22)>0,$E16*$F16,0) -> 0 | T16: =IF(SUM(S$19:S$22)>0,$E16*$F16,0) -> 0 | V16: =IF(SUM(U$19:U$22)>0,$E16*$F16,0) -> 0 | X16: =IF(SUM(W$19:W$22)>0,$E16*$F16,0) -> 0 | Z16: =IF(SUM(Y$19:Y$22)>0,$E16*$F16,0) -> 0 | AB16: =IF(SUM(AA$19:AA$22)>0,$E16*$F16,0) -> 0 | AD16: =IF(SUM(AC$19:AC$22)>0,$E16*$F16,0) -> 0 | AF16: =IF(SUM(AE$19:AE$22)>0,$E16*$F16,0) -> 0 | AH16: =IF(SUM(AG$19:AG$22)>0,$E16*$F16,0) -> 0 | AJ16: =IF(SUM(AI$19:AI$22)>0,$E16*$F16,0) -> 0 | AL16: =IF(SUM(AK$19:AK$22)>0,$E16*$F16,0) -> 0 | AN16: =IF(SUM(AM$19:AM$22)>0,$E16*$F16,0) -> 0 | AP16: =IF(SUM(AO$19:AO$22)>0,$E16*$F16,0) -> 0 | AR16: =IF(SUM(AQ$19:AQ$22)>0,$E16*$F16,0) -> 0 | AT16: =IF(SUM(AS$19:AS$22)>0,$E16*$F16,0) -> 0 | AV16: =IF(SUM(AU$19:AU$22)>0,$E16*$F16,0) -> 0 | AX16: =IF(SUM(AW$19:AW$22)>0,$E16*$F16,0) -> 0 | AZ16: =IF(SUM(AY$19:AY$22)>0,$E16*$F16,0) -> 0 | BB16: =IF(SUM(BA$19:BA$22)>0,$E16*$F16,0) -> 0 | BD16: =IF(SUM(BC$19:BC$22)>0,$E16*$F16,0) -> 0 | BF16: =IF(SUM(BE$19:BE$22)>0,$E16*$F16,0) -> 0 | BH16: =IF(SUM(BG$19:BG$22)>0,$E16*$F16,0) -> 0 | BJ16: =IF(SUM(BI$19:BI$22)>0,$E16*$F16,0) -> 0 | BL16: =IF(SUM(BK$19:BK$22)>0,$E16*$F16,0) -> 0 | BN16: =IF(SUM(BM$19:BM$22)>0,$E16*$F16,0) -> 0 | BP16: =IF(SUM(BO$19:BO$22)>0,$E16*$F16,0) -> 0 | BR16: =IF(SUM(BQ$19:BQ$22)>0,$E16*$F16,0) -> 0 | BT16: =IF(SUM(BS$19:BS$22)>0,$E16*$F16,0) -> 0 | BV16: =IF(SUM(BU$19:BU$22)>0,$E16*$F16,0) -> 0 | BX16: =IF(SUM(BW$19:BW$22)>0,$E16*$F16,0) -> 0 | BZ16: =IF(SUM(BY$19:BY$22)>0,$E16*$F16,0) -> 0 | CB16: =IF(SUM(CA$19:CA$22)>0,$E16*$F16,0) -> 0 | CD16: =IF(SUM(CC$19:CC$22)>0,$E16*$F16,0) -> 0 | CF16: =IF(SUM(CE$19:CE$22)>0,$E16*$F16,0) -> 0 | CH16: =IF(SUM(CG$19:CG$22)>0,$E16*$F16,0) -> 0 | CJ16: =IF(SUM(CI$19:CI$22)>0,$E16*$F16,0) -> 0 | CL16: =IF(SUM(CK$19:CK$22)>0,$E16*$F16,0) -> 0 | CN16: =IF(SUM(CM$19:CM$22)>0,$E16*$F16,0) -> 0 | CP16: =IF(SUM(CO$19:CO$22)>0,$E16*$F16,0) -> 0 | CR16: =IF(SUM(CQ$19:CQ$22)>0,$E16*$F16,0) -> 0 | CT16: =IF(SUM(CS$19:CS$22)>0,$E16*$F16,0) -> 0 | CV16: =IF(SUM(CU$19:CU$22)>0,$E16*$F16,0) -> 0 | CX16: =IF(SUM(CW$19:CW$22)>0,$E16*$F16,0) -> 0 | CZ16: =IF(SUM(CY$19:CY$22)>0,$E16*$F16,0) -> 0 | DB16: =IF(SUM(DA$19:DA$22)>0,$E16*$F16,0) -> 0 | DD16: =IF(SUM(DC$19:DC$22)>0,$E16*$F16,0) -> 0 | DF16: =IF(SUM(DE$19:DE$22)>0,$E16*$F16,0) -> 0 | DH16: =IF(SUM(DG$19:DG$22)>0,$E16*$F16,0) -> 0 | DJ16: =IF(SUM(DI$19:DI$22)>0,$E16*$F16,0) -> 0 | DL16: =IF(SUM(DK$19:DK$22)>0,$E16*$F16,0) -> 0 | DN16: =IF(SUM(DM$19:DM$22)>0,$E16*$F16,0) -> 0 | DP16: =IF(SUM(DO$19:DO$22)>0,$E16*$F16,0) -> 0 | DR16: =IF(SUM(DQ$19:DQ$22)>0,$E16*$F16,0) -> 0 | DT16: =IF(SUM(DS$19:DS$22)>0,$E16*$F16,0) -> 0 | DV16: =IF(SUM(DU$19:DU$22)>0,$E16*$F16,0) -> 0 | DX16: =IF(SUM(DW$19:DW$22)>0,$E16*$F16,0) -> 0
C18: CATEGORIAS | F18: QUANTIDADE
I19: =IF($C19=I$4,1,0) -> 0
D20: =HLOOKUP($C20,'Dados Gerais'!$D$5:$BJ$10,6) ->  | F20: =HLOOKUP($C20,'Dados Gerais'!$D$5:$BJ$14,10) ->  | I20: =IF($C20=I$4,1,0) -> 0 | K20: =IF($C20=K$4,1,0) -> 0 | M20: =IF($C20=M$4,1,0) -> 0 | O20: =IF($C20=O$4,1,0) -> 0 | Q20: =IF($C20=Q$4,1,0) -> 0 | S20: =IF($C20=S$4,1,0) -> 0 | U20: =IF($C20=U$4,1,0) -> 0 | W20: =IF($C20=W$4,1,0) -> 0 | Y20: =IF($C20=Y$4,1,0) -> 0 | AA20: =IF($C20=AA$4,1,0) -> 0 | AC20: =IF($C20=AC$4,1,0) -> 0 | AE20: =IF($C20=AE$4,1,0) -> 0 | AG20: =IF($C20=AG$4,1,0) -> 0 | AI20: =IF($C20=AI$4,1,0) -> 0 | AK20: =IF($C20=AK$4,1,0) -> 0 | AM20: =IF($C20=AM$4,1,0) -> 0 | AO20: =IF($C20=AO$4,1,0) -> 0 | AQ20: =IF($C20=AQ$4,1,0) -> 0 | AS20: =IF($C20=AS$4,1,0) -> 0 | AU20: =IF($C20=AU$4,1,0) -> 0 | AW20: =IF($C20=AW$4,1,0) -> 0 | AY20: =IF($C20=AY$4,1,0) -> 0 | BA20: =IF($C20=BA$4,1,0) -> 0 | BC20: =IF($C20=BC$4,1,0) -> 0 | BE20: =IF($C20=BE$4,1,0) -> 0 | BG20: =IF($C20=BG$4,1,0) -> 0 | BI20: =IF($C20=BI$4,1,0) -> 0 | BK20: =IF($C20=BK$4,1,0) -> 0 | BM20: =IF($C20=BM$4,1,0) -> 0 | BO20: =IF($C20=BO$4,1,0) -> 0 | BQ20: =IF($C20=BQ$4,1,0) -> 0 | BS20: =IF($C20=BS$4,1,0) -> 0 | BU20: =IF($C20=BU$4,1,0) -> 0 | BW20: =IF($C20=BW$4,1,0) -> 0 | BY20: =IF($C20=BY$4,1,0) -> 0 | CA20: =IF($C20=CA$4,1,0) -> 0 | CC20: =IF($C20=CC$4,1,0) -> 0 | CE20: =IF($C20=CE$4,1,0) -> 0 | CG20: =IF($C20=CG$4,1,0) -> 0 | CI20: =IF($C20=CI$4,1,0) -> 0 | CK20: =IF($C20=CK$4,1,0) -> 0 | CM20: =IF($C20=CM$4,1,0) -> 0 | CO20: =IF($C20=CO$4,1,0) -> 0 | CQ20: =IF($C20=CQ$4,1,0) -> 0 | CS20: =IF($C20=CS$4,1,0) -> 0 | CU20: =IF($C20=CU$4,1,0) -> 0 | CW20: =IF($C20=CW$4,1,0) -> 0 | CY20: =IF($C20=CY$4,1,0) -> 0 | DA20: =IF($C20=DA$4,1,0) -> 0 | DC20: =IF($C20=DC$4,1,0) -> 0 | DE20: =IF($C20=DE$4,1,0) -> 0 | DG20: =IF($C20=DG$4,1,0) -> 0 | DI20: =IF($C20=DI$4,1,0) -> 0 | DK20: =IF($C20=DK$4,1,0) -> 0 | DM20: =IF($C20=DM$4,1,0) -> 0 | DO20: =IF($C20=DO$4,1,0) -> 0 | DQ20: =IF($C20=DQ$4,1,0) -> 0 | DS20: =IF($C20=DS$4,1,0) -> 0 | DU20: =IF($C20=DU$4,1,0) -> 0 | DW20: =IF($C20=DW$4,1,0) -> 0
D21: =HLOOKUP($C21,'Dados Gerais'!$D$5:$BJ$10,6) ->  | F21: =HLOOKUP($C21,'Dados Gerais'!$D$5:$BJ$14,10) ->  | I21: =IF($C21=I$4,1,0) -> 0 | K21: =IF($C21=K$4,1,0) -> 0 | M21: =IF($C21=M$4,1,0) -> 0 | O21: =IF($C21=O$4,1,0) -> 0 | Q21: =IF($C21=Q$4,1,0) -> 0 | S21: =IF($C21=S$4,1,0) -> 0 | U21: =IF($C21=U$4,1,0) -> 0 | W21: =IF($C21=W$4,1,0) -> 0 | Y21: =IF($C21=Y$4,1,0) -> 0 | AA21: =IF($C21=AA$4,1,0) -> 0 | AC21: =IF($C21=AC$4,1,0) -> 0 | AE21: =IF($C21=AE$4,1,0) -> 0 | AG21: =IF($C21=AG$4,1,0) -> 0 | AI21: =IF($C21=AI$4,1,0) -> 0 | AK21: =IF($C21=AK$4,1,0) -> 0 | AM21: =IF($C21=AM$4,1,0) -> 0 | AO21: =IF($C21=AO$4,1,0) -> 0 | AQ21: =IF($C21=AQ$4,1,0) -> 0 | AS21: =IF($C21=AS$4,1,0) -> 0 | AU21: =IF($C21=AU$4,1,0) -> 0 | AW21: =IF($C21=AW$4,1,0) -> 0 | AY21: =IF($C21=AY$4,1,0) -> 0 | BA21: =IF($C21=BA$4,1,0) -> 0 | BC21: =IF($C21=BC$4,1,0) -> 0 | BE21: =IF($C21=BE$4,1,0) -> 0 | BG21: =IF($C21=BG$4,1,0) -> 0 | BI21: =IF($C21=BI$4,1,0) -> 0 | BK21: =IF($C21=BK$4,1,0) -> 0 | BM21: =IF($C21=BM$4,1,0) -> 0 | BO21: =IF($C21=BO$4,1,0) -> 0 | BQ21: =IF($C21=BQ$4,1,0) -> 0 | BS21: =IF($C21=BS$4,1,0) -> 0 | BU21: =IF($C21=BU$4,1,0) -> 0 | BW21: =IF($C21=BW$4,1,0) -> 0 | BY21: =IF($C21=BY$4,1,0) -> 0 | CA21: =IF($C21=CA$4,1,0) -> 0 | CC21: =IF($C21=CC$4,1,0) -> 0 | CE21: =IF($C21=CE$4,1,0) -> 0 | CG21: =IF($C21=CG$4,1,0) -> 0 | CI21: =IF($C21=CI$4,1,0) -> 0 | CK21: =IF($C21=CK$4,1,0) -> 0 | CM21: =IF($C21=CM$4,1,0) -> 0 | CO21: =IF($C21=CO$4,1,0) -> 0 | CQ21: =IF($C21=CQ$4,1,0) -> 0 | CS21: =IF($C21=CS$4,1,0) -> 0 | CU21: =IF($C21=CU$4,1,0) -> 0 | CW21: =IF($C21=CW$4,1,0) -> 0 | CY21: =IF($C21=CY$4,1,0) -> 0 | DA21: =IF($C21=DA$4,1,0) -> 0 | DC21: =IF($C21=DC$4,1,0) -> 0 | DE21: =IF($C21=DE$4,1,0) -> 0 | DG21: =IF($C21=DG$4,1,0) -> 0 | DI21: =IF($C21=DI$4,1,0) -> 0 | DK21: =IF($C21=DK$4,1,0) -> 0 | DM21: =IF($C21=DM$4,1,0) -> 0 | DO21: =IF($C21=DO$4,1,0) -> 0 | DQ21: =IF($C21=DQ$4,1,0) -> 0 | DS21: =IF($C21=DS$4,1,0) -> 0 | DU21: =IF($C21=DU$4,1,0) -> 0 | DW21: =IF($C21=DW$4,1,0) -> 0
I22: =IF($C22=I$4,1,0) -> 0
C24: ITEM | D24: DESCRIÇÃO | E24: QUANT ANUAL POR POSTO | F24: VALOR
J25: =IF(SUM(I$8:I$11)>0,$E25*$F25,0) -> 0 | L25: =IF(SUM(K$8:K$11)>0,$E25*$F25,0) -> 0 | N25: =IF(SUM(M$8:M$11)>0,$E25*$F25,0) -> 0 | P25: =IF(SUM(O$8:O$11)>0,$E25*$F25,0) -> 0 | R25: =IF(SUM(Q$8:Q$11)>0,$E25*$F25,0) -> 0 | T25: =IF(SUM(S$8:S$11)>0,$E25*$F25,0) -> 0 | V25: =IF(SUM(U$8:U$11)>0,$E25*$F25,0) -> 0 | X25: =IF(SUM(W$8:W$11)>0,$E25*$F25,0) -> 0 | Z25: =IF(SUM(Y$8:Y$11)>0,$E25*$F25,0) -> 0 | AB25: =IF(SUM(AA$8:AA$11)>0,$E25*$F25,0) -> 0 | AD25: =IF(SUM(AC$8:AC$11)>0,$E25*$F25,0) -> 0 | AF25: =IF(SUM(AE$8:AE$11)>0,$E25*$F25,0) -> 0 | AH25: =IF(SUM(AG$8:AG$11)>0,$E25*$F25,0) -> 0 | AJ25: =IF(SUM(AI$8:AI$11)>0,$E25*$F25,0) -> 0 | AL25: =IF(SUM(AK$8:AK$11)>0,$E25*$F25,0) -> 0 | AN25: =IF(SUM(AM$8:AM$11)>0,$E25*$F25,0) -> 0 | AP25: =IF(SUM(AO$8:AO$11)>0,$E25*$F25,0) -> 0 | AR25: =IF(SUM(AQ$8:AQ$11)>0,$E25*$F25,0) -> 0 | AT25: =IF(SUM(AS$8:AS$11)>0,$E25*$F25,0) -> 0 | AV25: =IF(SUM(AU$8:AU$11)>0,$E25*$F25,0) -> 0 | AX25: =IF(SUM(AW$8:AW$11)>0,$E25*$F25,0) -> 0 | AZ25: =IF(SUM(AY$8:AY$11)>0,$E25*$F25,0) -> 0 | BB25: =IF(SUM(BA$8:BA$11)>0,$E25*$F25,0) -> 0 | BD25: =IF(SUM(BC$8:BC$11)>0,$E25*$F25,0) -> 0 | BF25: =IF(SUM(BE$8:BE$11)>0,$E25*$F25,0) -> 0 | BH25: =IF(SUM(BG$8:BG$11)>0,$E25*$F25,0) -> 0 | BJ25: =IF(SUM(BI$8:BI$11)>0,$E25*$F25,0) -> 0 | BL25: =IF(SUM(BK$8:BK$11)>0,$E25*$F25,0) -> 0 | BN25: =IF(SUM(BM$8:BM$11)>0,$E25*$F25,0) -> 0 | BP25: =IF(SUM(BO$8:BO$11)>0,$E25*$F25,0) -> 0 | BR25: =IF(SUM(BQ$8:BQ$11)>0,$E25*$F25,0) -> 0 | BT25: =IF(SUM(BS$8:BS$11)>0,$E25*$F25,0) -> 0 | BV25: =IF(SUM(BU$8:BU$11)>0,$E25*$F25,0) -> 0 | BX25: =IF(SUM(BW$8:BW$11)>0,$E25*$F25,0) -> 0 | BZ25: =IF(SUM(BY$8:BY$11)>0,$E25*$F25,0) -> 0 | CB25: =IF(SUM(CA$8:CA$11)>0,$E25*$F25,0) -> 0 | CD25: =IF(SUM(CC$8:CC$11)>0,$E25*$F25,0) -> 0 | CF25: =IF(SUM(CE$8:CE$11)>0,$E25*$F25,0) -> 0 | CH25: =IF(SUM(CG$8:CG$11)>0,$E25*$F25,0) -> 0 | CJ25: =IF(SUM(CI$8:CI$11)>0,$E25*$F25,0) -> 0 | CL25: =IF(SUM(CK$8:CK$11)>0,$E25*$F25,0) -> 0 | CN25: =IF(SUM(CM$8:CM$11)>0,$E25*$F25,0) -> 0 | CP25: =IF(SUM(CO$8:CO$11)>0,$E25*$F25,0) -> 0 | CR25: =IF(SUM(CQ$8:CQ$11)>0,$E25*$F25,0) -> 0 | CT25: =IF(SUM(CS$8:CS$11)>0,$E25*$F25,0) -> 0 | CV25: =IF(SUM(CU$8:CU$11)>0,$E25*$F25,0) -> 0 | CX25: =IF(SUM(CW$8:CW$11)>0,$E25*$F25,0) -> 0 | CZ25: =IF(SUM(CY$8:CY$11)>0,$E25*$F25,0) -> 0 | DB25: =IF(SUM(DA$8:DA$11)>0,$E25*$F25,0) -> 0 | DD25: =IF(SUM(DC$8:DC$11)>0,$E25*$F25,0) -> 0 | DF25: =IF(SUM(DE$8:DE$11)>0,$E25*$F25,0) -> 0 | DH25: =IF(SUM(DG$8:DG$11)>0,$E25*$F25,0) -> 0 | DJ25: =IF(SUM(DI$8:DI$11)>0,$E25*$F25,0) -> 0 | DL25: =IF(SUM(DK$8:DK$11)>0,$E25*$F25,0) -> 0 | DN25: =IF(SUM(DM$8:DM$11)>0,$E25*$F25,0) -> 0 | DP25: =IF(SUM(DO$8:DO$11)>0,$E25*$F25,0) -> 0 | DR25: =IF(SUM(DQ$8:DQ$11)>0,$E25*$F25,0) -> 0 | DT25: =IF(SUM(DS$8:DS$11)>0,$E25*$F25,0) -> 0 | DV25: =IF(SUM(DU$8:DU$11)>0,$E25*$F25,0) -> 0 | DX25: =IF(SUM(DW$8:DW$11)>0,$E25*$F25,0) -> 0
J26: =IF(SUM(I$19:I$22)>0,$E26*$F26,0) -> 0 | L26: =IF(SUM(K$19:K$22)>0,$E26*$F26,0) -> 0 | N26: =IF(SUM(M$19:M$22)>0,$E26*$F26,0) -> 0 | P26: =IF(SUM(O$19:O$22)>0,$E26*$F26,0) -> 0 | R26: =IF(SUM(Q$19:Q$22)>0,$E26*$F26,0) -> 0 | T26: =IF(SUM(S$19:S$22)>0,$E26*$F26,0) -> 0 | V26: =IF(SUM(U$19:U$22)>0,$E26*$F26,0) -> 0 | X26: =IF(SUM(W$19:W$22)>0,$E26*$F26,0) -> 0 | Z26: =IF(SUM(Y$19:Y$22)>0,$E26*$F26,0) -> 0 | AB26: =IF(SUM(AA$19:AA$22)>0,$E26*$F26,0) -> 0 | AD26: =IF(SUM(AC$19:AC$22)>0,$E26*$F26,0) -> 0 | AF26: =IF(SUM(AE$19:AE$22)>0,$E26*$F26,0) -> 0 | AH26: =IF(SUM(AG$19:AG$22)>0,$E26*$F26,0) -> 0 | AJ26: =IF(SUM(AI$19:AI$22)>0,$E26*$F26,0) -> 0 | AL26: =IF(SUM(AK$19:AK$22)>0,$E26*$F26,0) -> 0 | AN26: =IF(SUM(AM$19:AM$22)>0,$E26*$F26,0) -> 0 | AP26: =IF(SUM(AO$19:AO$22)>0,$E26*$F26,0) -> 0 | AR26: =IF(SUM(AQ$19:AQ$22)>0,$E26*$F26,0) -> 0 | AT26: =IF(SUM(AS$19:AS$22)>0,$E26*$F26,0) -> 0 | AV26: =IF(SUM(AU$19:AU$22)>0,$E26*$F26,0) -> 0 | AX26: =IF(SUM(AW$19:AW$22)>0,$E26*$F26,0) -> 0 | AZ26: =IF(SUM(AY$19:AY$22)>0,$E26*$F26,0) -> 0 | BB26: =IF(SUM(BA$19:BA$22)>0,$E26*$F26,0) -> 0 | BD26: =IF(SUM(BC$19:BC$22)>0,$E26*$F26,0) -> 0 | BF26: =IF(SUM(BE$19:BE$22)>0,$E26*$F26,0) -> 0 | BH26: =IF(SUM(BG$19:BG$22)>0,$E26*$F26,0) -> 0 | BJ26: =IF(SUM(BI$19:BI$22)>0,$E26*$F26,0) -> 0 | BL26: =IF(SUM(BK$19:BK$22)>0,$E26*$F26,0) -> 0 | BN26: =IF(SUM(BM$19:BM$22)>0,$E26*$F26,0) -> 0 | BP26: =IF(SUM(BO$19:BO$22)>0,$E26*$F26,0) -> 0 | BR26: =IF(SUM(BQ$19:BQ$22)>0,$E26*$F26,0) -> 0 | BT26: =IF(SUM(BS$19:BS$22)>0,$E26*$F26,0) -> 0 | BV26: =IF(SUM(BU$19:BU$22)>0,$E26*$F26,0) -> 0 | BX26: =IF(SUM(BW$19:BW$22)>0,$E26*$F26,0) -> 0 | BZ26: =IF(SUM(BY$19:BY$22)>0,$E26*$F26,0) -> 0 | CB26: =IF(SUM(CA$19:CA$22)>0,$E26*$F26,0) -> 0 | CD26: =IF(SUM(CC$19:CC$22)>0,$E26*$F26,0) -> 0 | CF26: =IF(SUM(CE$19:CE$22)>0,$E26*$F26,0) -> 0 | CH26: =IF(SUM(CG$19:CG$22)>0,$E26*$F26,0) -> 0 | CJ26: =IF(SUM(CI$19:CI$22)>0,$E26*$F26,0) -> 0 | CL26: =IF(SUM(CK$19:CK$22)>0,$E26*$F26,0) -> 0 | CN26: =IF(SUM(CM$19:CM$22)>0,$E26*$F26,0) -> 0 | CP26: =IF(SUM(CO$19:CO$22)>0,$E26*$F26,0) -> 0 | CR26: =IF(SUM(CQ$19:CQ$22)>0,$E26*$F26,0) -> 0 | CT26: =IF(SUM(CS$19:CS$22)>0,$E26*$F26,0) -> 0 | CV26: =IF(SUM(CU$19:CU$22)>0,$E26*$F26,0) -> 0 | CX26: =IF(SUM(CW$19:CW$22)>0,$E26*$F26,0) -> 0 | CZ26: =IF(SUM(CY$19:CY$22)>0,$E26*$F26,0) -> 0 | DB26: =IF(SUM(DA$19:DA$22)>0,$E26*$F26,0) -> 0 | DD26: =IF(SUM(DC$19:DC$22)>0,$E26*$F26,0) -> 0 | DF26: =IF(SUM(DE$19:DE$22)>0,$E26*$F26,0) -> 0 | DH26: =IF(SUM(DG$19:DG$22)>0,$E26*$F26,0) -> 0 | DJ26: =IF(SUM(DI$19:DI$22)>0,$E26*$F26,0) -> 0 | DL26: =IF(SUM(DK$19:DK$22)>0,$E26*$F26,0) -> 0 | DN26: =IF(SUM(DM$19:DM$22)>0,$E26*$F26,0) -> 0 | DP26: =IF(SUM(DO$19:DO$22)>0,$E26*$F26,0) -> 0 | DR26: =IF(SUM(DQ$19:DQ$22)>0,$E26*$F26,0) -> 0 | DT26: =IF(SUM(DS$19:DS$22)>0,$E26*$F26,0) -> 0 | DV26: =IF(SUM(DU$19:DU$22)>0,$E26*$F26,0) -> 0 | DX26: =IF(SUM(DW$19:DW$22)>0,$E26*$F26,0) -> 0
J27: =IF(SUM(I$19:I$22)>0,$E27*$F27,0) -> 0 | L27: =IF(SUM(K$19:K$22)>0,$E27*$F27,0) -> 0 | N27: =IF(SUM(M$19:M$22)>0,$E27*$F27,0) -> 0 | P27: =IF(SUM(O$19:O$22)>0,$E27*$F27,0) -> 0 | R27: =IF(SUM(Q$19:Q$22)>0,$E27*$F27,0) -> 0 | T27: =IF(SUM(S$19:S$22)>0,$E27*$F27,0) -> 0 | V27: =IF(SUM(U$19:U$22)>0,$E27*$F27,0) -> 0 | X27: =IF(SUM(W$19:W$22)>0,$E27*$F27,0) -> 0 | Z27: =IF(SUM(Y$19:Y$22)>0,$E27*$F27,0) -> 0 | AB27: =IF(SUM(AA$19:AA$22)>0,$E27*$F27,0) -> 0 | AD27: =IF(SUM(AC$19:AC$22)>0,$E27*$F27,0) -> 0 | AF27: =IF(SUM(AE$19:AE$22)>0,$E27*$F27,0) -> 0 | AH27: =IF(SUM(AG$19:AG$22)>0,$E27*$F27,0) -> 0 | AJ27: =IF(SUM(AI$19:AI$22)>0,$E27*$F27,0) -> 0 | AL27: =IF(SUM(AK$19:AK$22)>0,$E27*$F27,0) -> 0 | AN27: =IF(SUM(AM$19:AM$22)>0,$E27*$F27,0) -> 0 | AP27: =IF(SUM(AO$19:AO$22)>0,$E27*$F27,0) -> 0 | AR27: =IF(SUM(AQ$19:AQ$22)>0,$E27*$F27,0) -> 0 | AT27: =IF(SUM(AS$19:AS$22)>0,$E27*$F27,0) -> 0 | AV27: =IF(SUM(AU$19:AU$22)>0,$E27*$F27,0) -> 0 | AX27: =IF(SUM(AW$19:AW$22)>0,$E27*$F27,0) -> 0 | AZ27: =IF(SUM(AY$19:AY$22)>0,$E27*$F27,0) -> 0 | BB27: =IF(SUM(BA$19:BA$22)>0,$E27*$F27,0) -> 0 | BD27: =IF(SUM(BC$19:BC$22)>0,$E27*$F27,0) -> 0 | BF27: =IF(SUM(BE$19:BE$22)>0,$E27*$F27,0) -> 0 | BH27: =IF(SUM(BG$19:BG$22)>0,$E27*$F27,0) -> 0 | BJ27: =IF(SUM(BI$19:BI$22)>0,$E27*$F27,0) -> 0 | BL27: =IF(SUM(BK$19:BK$22)>0,$E27*$F27,0) -> 0 | BN27: =IF(SUM(BM$19:BM$22)>0,$E27*$F27,0) -> 0 | BP27: =IF(SUM(BO$19:BO$22)>0,$E27*$F27,0) -> 0 | BR27: =IF(SUM(BQ$19:BQ$22)>0,$E27*$F27,0) -> 0 | BT27: =IF(SUM(BS$19:BS$22)>0,$E27*$F27,0) -> 0 | BV27: =IF(SUM(BU$19:BU$22)>0,$E27*$F27,0) -> 0 | BX27: =IF(SUM(BW$19:BW$22)>0,$E27*$F27,0) -> 0 | BZ27: =IF(SUM(BY$19:BY$22)>0,$E27*$F27,0) -> 0 | CB27: =IF(SUM(CA$19:CA$22)>0,$E27*$F27,0) -> 0 | CD27: =IF(SUM(CC$19:CC$22)>0,$E27*$F27,0) -> 0 | CF27: =IF(SUM(CE$19:CE$22)>0,$E27*$F27,0) -> 0 | CH27: =IF(SUM(CG$19:CG$22)>0,$E27*$F27,0) -> 0 | CJ27: =IF(SUM(CI$19:CI$22)>0,$E27*$F27,0) -> 0 | CL27: =IF(SUM(CK$19:CK$22)>0,$E27*$F27,0) -> 0 | CN27: =IF(SUM(CM$19:CM$22)>0,$E27*$F27,0) -> 0 | CP27: =IF(SUM(CO$19:CO$22)>0,$E27*$F27,0) -> 0 | CR27: =IF(SUM(CQ$19:CQ$22)>0,$E27*$F27,0) -> 0 | CT27: =IF(SUM(CS$19:CS$22)>0,$E27*$F27,0) -> 0 | CV27: =IF(SUM(CU$19:CU$22)>0,$E27*$F27,0) -> 0 | CX27: =IF(SUM(CW$19:CW$22)>0,$E27*$F27,0) -> 0 | CZ27: =IF(SUM(CY$19:CY$22)>0,$E27*$F27,0) -> 0 | DB27: =IF(SUM(DA$19:DA$22)>0,$E27*$F27,0) -> 0 | DD27: =IF(SUM(DC$19:DC$22)>0,$E27*$F27,0) -> 0 | DF27: =IF(SUM(DE$19:DE$22)>0,$E27*$F27,0) -> 0 | DH27: =IF(SUM(DG$19:DG$22)>0,$E27*$F27,0) -> 0 | DJ27: =IF(SUM(DI$19:DI$22)>0,$E27*$F27,0) -> 0 | DL27: =IF(SUM(DK$19:DK$22)>0,$E27*$F27,0) -> 0 | DN27: =IF(SUM(DM$19:DM$22)>0,$E27*$F27,0) -> 0 | DP27: =IF(SUM(DO$19:DO$22)>0,$E27*$F27,0) -> 0 | DR27: =IF(SUM(DQ$19:DQ$22)>0,$E27*$F27,0) -> 0 | DT27: =IF(SUM(DS$19:DS$22)>0,$E27*$F27,0) -> 0 | DV27: =IF(SUM(DU$19:DU$22)>0,$E27*$F27,0) -> 0 | DX27: =IF(SUM(DW$19:DW$22)>0,$E27*$F27,0) -> 0
C29: CATEGORIAS | F29: QUANTIDADE
I30: =IF($C30=I$4,1,0) -> 0
D31: =HLOOKUP($C31,'Dados Gerais'!$D$5:$BJ$10,6) ->  | F31: =HLOOKUP($C31,'Dados Gerais'!$D$5:$BJ$14,10) ->  | I31: =IF($C31=I$4,1,0) -> 0 | K31: =IF($C31=K$4,1,0) -> 0 | M31: =IF($C31=M$4,1,0) -> 0 | O31: =IF($C31=O$4,1,0) -> 0 | Q31: =IF($C31=Q$4,1,0) -> 0 | S31: =IF($C31=S$4,1,0) -> 0 | U31: =IF($C31=U$4,1,0) -> 0 | W31: =IF($C31=W$4,1,0) -> 0 | Y31: =IF($C31=Y$4,1,0) -> 0 | AA31: =IF($C31=AA$4,1,0) -> 0 | AC31: =IF($C31=AC$4,1,0) -> 0 | AE31: =IF($C31=AE$4,1,0) -> 0 | AG31: =IF($C31=AG$4,1,0) -> 0 | AI31: =IF($C31=AI$4,1,0) -> 0 | AK31: =IF($C31=AK$4,1,0) -> 0 | AM31: =IF($C31=AM$4,1,0) -> 0 | AO31: =IF($C31=AO$4,1,0) -> 0 | AQ31: =IF($C31=AQ$4,1,0) -> 0 | AS31: =IF($C31=AS$4,1,0) -> 0 | AU31: =IF($C31=AU$4,1,0) -> 0 | AW31: =IF($C31=AW$4,1,0) -> 0 | AY31: =IF($C31=AY$4,1,0) -> 0 | BA31: =IF($C31=BA$4,1,0) -> 0 | BC31: =IF($C31=BC$4,1,0) -> 0 | BE31: =IF($C31=BE$4,1,0) -> 0 | BG31: =IF($C31=BG$4,1,0) -> 0 | BI31: =IF($C31=BI$4,1,0) -> 0 | BK31: =IF($C31=BK$4,1,0) -> 0 | BM31: =IF($C31=BM$4,1,0) -> 0 | BO31: =IF($C31=BO$4,1,0) -> 0 | BQ31: =IF($C31=BQ$4,1,0) -> 0 | BS31: =IF($C31=BS$4,1,0) -> 0 | BU31: =IF($C31=BU$4,1,0) -> 0 | BW31: =IF($C31=BW$4,1,0) -> 0 | BY31: =IF($C31=BY$4,1,0) -> 0 | CA31: =IF($C31=CA$4,1,0) -> 0 | CC31: =IF($C31=CC$4,1,0) -> 0 | CE31: =IF($C31=CE$4,1,0) -> 0 | CG31: =IF($C31=CG$4,1,0) -> 0 | CI31: =IF($C31=CI$4,1,0) -> 0 | CK31: =IF($C31=CK$4,1,0) -> 0 | CM31: =IF($C31=CM$4,1,0) -> 0 | CO31: =IF($C31=CO$4,1,0) -> 0 | CQ31: =IF($C31=CQ$4,1,0) -> 0 | CS31: =IF($C31=CS$4,1,0) -> 0 | CU31: =IF($C31=CU$4,1,0) -> 0 | CW31: =IF($C31=CW$4,1,0) -> 0 | CY31: =IF($C31=CY$4,1,0) -> 0 | DA31: =IF($C31=DA$4,1,0) -> 0 | DC31: =IF($C31=DC$4,1,0) -> 0 | DE31: =IF($C31=DE$4,1,0) -> 0 | DG31: =IF($C31=DG$4,1,0) -> 0 | DI31: =IF($C31=DI$4,1,0) -> 0 | DK31: =IF($C31=DK$4,1,0) -> 0 | DM31: =IF($C31=DM$4,1,0) -> 0 | DO31: =IF($C31=DO$4,1,0) -> 0 | DQ31: =IF($C31=DQ$4,1,0) -> 0 | DS31: =IF($C31=DS$4,1,0) -> 0 | DU31: =IF($C31=DU$4,1,0) -> 0 | DW31: =IF($C31=DW$4,1,0) -> 0
I32: =IF($C32=I$4,1,0) -> 0
C34: ITEM | D34: DESCRIÇÃO | E34: QUANT ANUAL POR POSTO | F34: VALOR
J35: =IF(SUM(I$8:I$11)>0,$E35*$F35,0) -> 0 | L35: =IF(SUM(K$8:K$11)>0,$E35*$F35,0) -> 0 | N35: =IF(SUM(M$8:M$11)>0,$E35*$F35,0) -> 0 | P35: =IF(SUM(O$8:O$11)>0,$E35*$F35,0) -> 0 | R35: =IF(SUM(Q$8:Q$11)>0,$E35*$F35,0) -> 0 | T35: =IF(SUM(S$8:S$11)>0,$E35*$F35,0) -> 0 | V35: =IF(SUM(U$8:U$11)>0,$E35*$F35,0) -> 0 | X35: =IF(SUM(W$8:W$11)>0,$E35*$F35,0) -> 0 | Z35: =IF(SUM(Y$8:Y$11)>0,$E35*$F35,0) -> 0 | AB35: =IF(SUM(AA$8:AA$11)>0,$E35*$F35,0) -> 0 | AD35: =IF(SUM(AC$8:AC$11)>0,$E35*$F35,0) -> 0 | AF35: =IF(SUM(AE$8:AE$11)>0,$E35*$F35,0) -> 0 | AH35: =IF(SUM(AG$8:AG$11)>0,$E35*$F35,0) -> 0 | AJ35: =IF(SUM(AI$8:AI$11)>0,$E35*$F35,0) -> 0 | AL35: =IF(SUM(AK$8:AK$11)>0,$E35*$F35,0) -> 0 | AN35: =IF(SUM(AM$8:AM$11)>0,$E35*$F35,0) -> 0 | AP35: =IF(SUM(AO$8:AO$11)>0,$E35*$F35,0) -> 0 | AR35: =IF(SUM(AQ$8:AQ$11)>0,$E35*$F35,0) -> 0 | AT35: =IF(SUM(AS$8:AS$11)>0,$E35*$F35,0) -> 0 | AV35: =IF(SUM(AU$8:AU$11)>0,$E35*$F35,0) -> 0 | AX35: =IF(SUM(AW$8:AW$11)>0,$E35*$F35,0) -> 0 | AZ35: =IF(SUM(AY$8:AY$11)>0,$E35*$F35,0) -> 0 | BB35: =IF(SUM(BA$8:BA$11)>0,$E35*$F35,0) -> 0 | BD35: =IF(SUM(BC$8:BC$11)>0,$E35*$F35,0) -> 0 | BF35: =IF(SUM(BE$8:BE$11)>0,$E35*$F35,0) -> 0 | BH35: =IF(SUM(BG$8:BG$11)>0,$E35*$F35,0) -> 0 | BJ35: =IF(SUM(BI$8:BI$11)>0,$E35*$F35,0) -> 0 | BL35: =IF(SUM(BK$8:BK$11)>0,$E35*$F35,0) -> 0 | BN35: =IF(SUM(BM$8:BM$11)>0,$E35*$F35,0) -> 0 | BP35: =IF(SUM(BO$8:BO$11)>0,$E35*$F35,0) -> 0 | BR35: =IF(SUM(BQ$8:BQ$11)>0,$E35*$F35,0) -> 0 | BT35: =IF(SUM(BS$8:BS$11)>0,$E35*$F35,0) -> 0 | BV35: =IF(SUM(BU$8:BU$11)>0,$E35*$F35,0) -> 0 | BX35: =IF(SUM(BW$8:BW$11)>0,$E35*$F35,0) -> 0 | BZ35: =IF(SUM(BY$8:BY$11)>0,$E35*$F35,0) -> 0 | CB35: =IF(SUM(CA$8:CA$11)>0,$E35*$F35,0) -> 0 | CD35: =IF(SUM(CC$8:CC$11)>0,$E35*$F35,0) -> 0 | CF35: =IF(SUM(CE$8:CE$11)>0,$E35*$F35,0) -> 0 | CH35: =IF(SUM(CG$8:CG$11)>0,$E35*$F35,0) -> 0 | CJ35: =IF(SUM(CI$8:CI$11)>0,$E35*$F35,0) -> 0 | CL35: =IF(SUM(CK$8:CK$11)>0,$E35*$F35,0) -> 0 | CN35: =IF(SUM(CM$8:CM$11)>0,$E35*$F35,0) -> 0 | CP35: =IF(SUM(CO$8:CO$11)>0,$E35*$F35,0) -> 0 | CR35: =IF(SUM(CQ$8:CQ$11)>0,$E35*$F35,0) -> 0 | CT35: =IF(SUM(CS$8:CS$11)>0,$E35*$F35,0) -> 0 | CV35: =IF(SUM(CU$8:CU$11)>0,$E35*$F35,0) -> 0 | CX35: =IF(SUM(CW$8:CW$11)>0,$E35*$F35,0) -> 0 | CZ35: =IF(SUM(CY$8:CY$11)>0,$E35*$F35,0) -> 0 | DB35: =IF(SUM(DA$8:DA$11)>0,$E35*$F35,0) -> 0 | DD35: =IF(SUM(DC$8:DC$11)>0,$E35*$F35,0) -> 0 | DF35: =IF(SUM(DE$8:DE$11)>0,$E35*$F35,0) -> 0 | DH35: =IF(SUM(DG$8:DG$11)>0,$E35*$F35,0) -> 0 | DJ35: =IF(SUM(DI$8:DI$11)>0,$E35*$F35,0) -> 0 | DL35: =IF(SUM(DK$8:DK$11)>0,$E35*$F35,0) -> 0 | DN35: =IF(SUM(DM$8:DM$11)>0,$E35*$F35,0) -> 0 | DP35: =IF(SUM(DO$8:DO$11)>0,$E35*$F35,0) -> 0 | DR35: =IF(SUM(DQ$8:DQ$11)>0,$E35*$F35,0) -> 0 | DT35: =IF(SUM(DS$8:DS$11)>0,$E35*$F35,0) -> 0 | DV35: =IF(SUM(DU$8:DU$11)>0,$E35*$F35,0) -> 0 | DX35: =IF(SUM(DW$8:DW$11)>0,$E35*$F35,0) -> 0
J36: =IF(SUM(I$30:I$32)>0,$E36*$F36,0) -> 0 | L36: =IF(SUM(K$30:K$32)>0,$E36*$F36,0) -> 0 | N36: =IF(SUM(M$30:M$32)>0,$E36*$F36,0) -> 0 | P36: =IF(SUM(O$30:O$32)>0,$E36*$F36,0) -> 0 | R36: =IF(SUM(Q$30:Q$32)>0,$E36*$F36,0) -> 0 | T36: =IF(SUM(S$30:S$32)>0,$E36*$F36,0) -> 0 | V36: =IF(SUM(U$30:U$32)>0,$E36*$F36,0) -> 0 | X36: =IF(SUM(W$30:W$32)>0,$E36*$F36,0) -> 0 | Z36: =IF(SUM(Y$30:Y$32)>0,$E36*$F36,0) -> 0 | AB36: =IF(SUM(AA$30:AA$32)>0,$E36*$F36,0) -> 0 | AD36: =IF(SUM(AC$30:AC$32)>0,$E36*$F36,0) -> 0 | AF36: =IF(SUM(AE$30:AE$32)>0,$E36*$F36,0) -> 0 | AH36: =IF(SUM(AG$30:AG$32)>0,$E36*$F36,0) -> 0 | AJ36: =IF(SUM(AI$30:AI$32)>0,$E36*$F36,0) -> 0 | AL36: =IF(SUM(AK$30:AK$32)>0,$E36*$F36,0) -> 0 | AN36: =IF(SUM(AM$30:AM$32)>0,$E36*$F36,0) -> 0 | AP36: =IF(SUM(AO$30:AO$32)>0,$E36*$F36,0) -> 0 | AR36: =IF(SUM(AQ$30:AQ$32)>0,$E36*$F36,0) -> 0 | AT36: =IF(SUM(AS$30:AS$32)>0,$E36*$F36,0) -> 0 | AV36: =IF(SUM(AU$30:AU$32)>0,$E36*$F36,0) -> 0 | AX36: =IF(SUM(AW$30:AW$32)>0,$E36*$F36,0) -> 0 | AZ36: =IF(SUM(AY$30:AY$32)>0,$E36*$F36,0) -> 0 | BB36: =IF(SUM(BA$30:BA$32)>0,$E36*$F36,0) -> 0 | BD36: =IF(SUM(BC$30:BC$32)>0,$E36*$F36,0) -> 0 | BF36: =IF(SUM(BE$30:BE$32)>0,$E36*$F36,0) -> 0 | BH36: =IF(SUM(BG$30:BG$32)>0,$E36*$F36,0) -> 0 | BJ36: =IF(SUM(BI$30:BI$32)>0,$E36*$F36,0) -> 0 | BL36: =IF(SUM(BK$30:BK$32)>0,$E36*$F36,0) -> 0 | BN36: =IF(SUM(BM$30:BM$32)>0,$E36*$F36,0) -> 0 | BP36: =IF(SUM(BO$30:BO$32)>0,$E36*$F36,0) -> 0 | BR36: =IF(SUM(BQ$30:BQ$32)>0,$E36*$F36,0) -> 0 | BT36: =IF(SUM(BS$30:BS$32)>0,$E36*$F36,0) -> 0 | BV36: =IF(SUM(BU$30:BU$32)>0,$E36*$F36,0) -> 0 | BX36: =IF(SUM(BW$30:BW$32)>0,$E36*$F36,0) -> 0 | BZ36: =IF(SUM(BY$30:BY$32)>0,$E36*$F36,0) -> 0 | CB36: =IF(SUM(CA$30:CA$32)>0,$E36*$F36,0) -> 0 | CD36: =IF(SUM(CC$30:CC$32)>0,$E36*$F36,0) -> 0 | CF36: =IF(SUM(CE$30:CE$32)>0,$E36*$F36,0) -> 0 | CH36: =IF(SUM(CG$30:CG$32)>0,$E36*$F36,0) -> 0 | CJ36: =IF(SUM(CI$30:CI$32)>0,$E36*$F36,0) -> 0 | CL36: =IF(SUM(CK$30:CK$32)>0,$E36*$F36,0) -> 0 | CN36: =IF(SUM(CM$30:CM$32)>0,$E36*$F36,0) -> 0 | CP36: =IF(SUM(CO$30:CO$32)>0,$E36*$F36,0) -> 0 | CR36: =IF(SUM(CQ$30:CQ$32)>0,$E36*$F36,0) -> 0 | CT36: =IF(SUM(CS$30:CS$32)>0,$E36*$F36,0) -> 0 | CV36: =IF(SUM(CU$30:CU$32)>0,$E36*$F36,0) -> 0 | CX36: =IF(SUM(CW$30:CW$32)>0,$E36*$F36,0) -> 0 | CZ36: =IF(SUM(CY$30:CY$32)>0,$E36*$F36,0) -> 0 | DB36: =IF(SUM(DA$30:DA$32)>0,$E36*$F36,0) -> 0 | DD36: =IF(SUM(DC$30:DC$32)>0,$E36*$F36,0) -> 0 | DF36: =IF(SUM(DE$30:DE$32)>0,$E36*$F36,0) -> 0 | DH36: =IF(SUM(DG$30:DG$32)>0,$E36*$F36,0) -> 0 | DJ36: =IF(SUM(DI$30:DI$32)>0,$E36*$F36,0) -> 0 | DL36: =IF(SUM(DK$30:DK$32)>0,$E36*$F36,0) -> 0 | DN36: =IF(SUM(DM$30:DM$32)>0,$E36*$F36,0) -> 0 | DP36: =IF(SUM(DO$30:DO$32)>0,$E36*$F36,0) -> 0 | DR36: =IF(SUM(DQ$30:DQ$32)>0,$E36*$F36,0) -> 0 | DT36: =IF(SUM(DS$30:DS$32)>0,$E36*$F36,0) -> 0 | DV36: =IF(SUM(DU$30:DU$32)>0,$E36*$F36,0) -> 0 | DX36: =IF(SUM(DW$30:DW$32)>0,$E36*$F36,0) -> 0
J37: =IF(SUM(I$30:I$32)>0,$E37*$F37,0) -> 0 | L37: 0 | N37: 0 | P37: 0 | R37: 0 | T37: 0 | V37: 0 | X37: 0 | Z37: 0 | AB37: 0 | AD37: 0 | AF37: 0 | AH37: 0 | AJ37: 0 | AL37: 0 | AN37: 0 | AP37: 0 | AR37: 0 | AT37: 0 | AV37: 0 | AX37: 0 | AZ37: 0 | BB37: 0 | BD37: 0 | BF37: 0 | BH37: 0 | BJ37: 0 | BL37: 0 | BN37: 0 | BP37: 0 | BR37: 0 | BT37: 0 | BV37: 0 | BX37: 0 | BZ37: 0 | CB37: 0 | CD37: 0 | CF37: 0 | CH37: 0 | CJ37: 0 | CL37: 0 | CN37: 0 | CP37: 0 | CR37: 0 | CT37: 0 | CV37: 0 | CX37: 0 | CZ37: 0 | DB37: 0 | DD37: 0 | DF37: 0 | DH37: 0 | DJ37: 0 | DL37: 0 | DN37: 0 | DP37: 0 | DR37: 0 | DT37: 0 | DV37: 0 | DX37: 0
J38: 0 | L38: 0 | N38: 0 | P38: 0 | R38: 0 | T38: 0 | V38: 0 | X38: 0 | Z38: 0 | AB38: 0 | AD38: 0 | AF38: 0 | AH38: 0 | AJ38: 0 | AL38: 0 | AN38: 0 | AP38: 0 | AR38: 0 | AT38: 0 | AV38: 0 | AX38: 0 | AZ38: 0 | BB38: 0 | BD38: 0 | BF38: 0 | BH38: 0 | BJ38: 0 | BL38: 0 | BN38: 0 | BP38: 0 | BR38: 0 | BT38: 0 | BV38: 0 | BX38: 0 | BZ38: 0 | CB38: 0 | CD38: 0 | CF38: 0 | CH38: 0 | CJ38: 0 | CL38: 0 | CN38: 0 | CP38: 0 | CR38: 0 | CT38: 0 | CV38: 0 | CX38: 0 | CZ38: 0 | DB38: 0 | DD38: 0 | DF38: 0 | DH38: 0 | DJ38: 0 | DL38: 0 | DN38: 0 | DP38: 0 | DR38: 0 | DT38: 0 | DV38: 0 | DX38: 0
I40: =SUMPRODUCT($E$15:$E$15,$F$15:$F$15)*(F9+F10) ->  | J40: anual | L40: anual | N40: anual | P40: anual | R40: anual | T40: anual | V40: anual | X40: anual | Z40: anual | AB40: anual | AD40: anual | AF40: anual | AH40: anual | AJ40: anual | AL40: anual | AN40: anual | AP40: anual | AR40: anual | AT40: anual | AV40: anual | AX40: anual | AZ40: anual | BB40: anual | BD40: anual | BF40: anual | BH40: anual | BJ40: anual | BL40: anual | BN40: anual | BP40: anual | BR40: anual | BT40: anual | BV40: anual | BX40: anual | BZ40: anual | CB40: anual | CD40: anual | CF40: anual | CH40: anual | CJ40: anual | CL40: anual | CN40: anual | CP40: anual | CR40: anual | CT40: anual | CV40: anual | CX40: anual | CZ40: anual | DB40: anual | DD40: anual | DF40: anual | DH40: anual | DJ40: anual | DL40: anual | DN40: anual | DP40: anual | DR40: anual | DT40: anual | DV40: anual | DX40: anual
I41: =I40/12 ->  | J41: mensal | L41: mensal | N41: mensal | P41: mensal | R41: mensal | T41: mensal | V41: mensal | X41: mensal | Z41: mensal | AB41: mensal | AD41: mensal | AF41: mensal | AH41: mensal | AJ41: mensal | AL41: mensal | AN41: mensal | AP41: mensal | AR41: mensal | AT41: mensal | AV41: mensal | AX41: mensal | AZ41: mensal | BB41: mensal | BD41: mensal | BF41: mensal | BH41: mensal | BJ41: mensal | BL41: mensal | BN41: mensal | BP41: mensal | BR41: mensal | BT41: mensal | BV41: mensal | BX41: mensal | BZ41: mensal | CB41: mensal | CD41: mensal | CF41: mensal | CH41: mensal | CJ41: mensal | CL41: mensal | CN41: mensal | CP41: mensal | CR41: mensal | CT41: mensal | CV41: mensal | CX41: mensal | CZ41: mensal | DB41: mensal | DD41: mensal | DF41: mensal | DH41: mensal | DJ41: mensal | DL41: mensal | DN41: mensal | DP41: mensal | DR41: mensal | DT41: mensal | DV41: mensal | DX41: mensal
I42: =I41/11 ->  | J42: por posto | L42: por posto | N42: por posto | P42: por posto | R42: por posto | T42: por posto | V42: por posto | X42: por posto | Z42: por posto | AB42: por posto | AD42: por posto | AF42: por posto | AH42: por posto | AJ42: por posto | AL42: por posto | AN42: por posto | AP42: por posto | AR42: por posto | AT42: por posto | AV42: por posto | AX42: por posto | AZ42: por posto | BB42: por posto | BD42: por posto | BF42: por posto | BH42: por posto | BJ42: por posto | BL42: por posto | BN42: por posto | BP42: por posto | BR42: por posto | BT42: por posto | BV42: por posto | BX42: por posto | BZ42: por posto | CB42: por posto | CD42: por posto | CF42: por posto | CH42: por posto | CJ42: por posto | CL42: por posto | CN42: por posto | CP42: por posto | CR42: por posto | CT42: por posto | CV42: por posto | CX42: por posto | CZ42: por posto | DB42: por posto | DD42: por posto | DF42: por posto | DH42: por posto | DJ42: por posto | DL42: por posto | DN42: por posto | DP42: por posto | DR42: por posto | DT42: por posto | DV42: por posto | DX42: por posto

Sheet SREP (hidden)
B4: SISTEMA DE REGISTRO ELETRÔNICO DE PRESENÇA - SREP
C7: PAGAMENTO DA DEPRECIAÇÃO
C8: ITEM | D8: DESCRIÇÃO | E8: QUANT ANUAL | F8: CONTA SIAFI | G8: VALOR DE AQ. | H8: % RESIDUAL | I8: VIDA ÚTIL | J8: DEP. MENSAL | K8: CUSTO TOTAL | L8: BDI (%) | M8: PREÇO TOTAL | N8: FONTE | O8: REFERÊNCIA
C10: 1 | D10: Equipamento de Registro Eletrônico de Ponto, de parede, com teclado externo e leitor biométrico, em conformidade com a Portaria 1.510/2009 do MT | F10: 12311.01.24 (máquinas e equip eletrônicos) | G10: 1661.4 | H10: 0.1 | I10: 10 | J10: =G10*(1-H10)/(I10*12) -> 12.4605 | K10: =J10*E10 -> 0 | L10: =BDI!E26 -> 0.0507 | M10: =ROUND(K10*(1+L10),2) -> 0 | N10: COTAÇÃO
C13: PAGAMENTO DA MANUTENÇÃO
C14: ITEM | D14: DESCRIÇÃO | H14: K (calculado) | I14: MENSAL DEPR. | J14: % MAN X DEP | K14: MENSAL MAN. | L14: BDI (%) | M14: PREÇO TOTAL
C16: 2 | D16: Todos os itens | H16: =H23 -> 1.90003968 | I16: =K10 -> 0 | J16: =H16 -> 1.90003968 | K16: =I16*H16 -> 0 | L16: =L10 -> 0.0507 | M16: =ROUND(K16*(1+L16),2) -> 0
E18: K1 | F18: K2 | G18: K3 | H18: K4
E19: 0.85 | F19: 1 | G19: 0.8 | H19: 1.4
E20: K5 | F20: K6 | G20: K7 | H20: K8
E21: 1 | F21: 0.6 | G21: 1.6 | H21: 1.1
E22: K9 | F22: K10 | G22: K11 | H22: RESULTADO
D23: * a descrição de cada coeficiente segue abaixo | E23: 1.5 | F23: 0.9 | G23: 1.4 | H23: =E19*F19*G19*H19*E21*F21*G21*H21*E23*F23*G23 -> 1.90003968
C26: PAGAMENTO DO SOFTWARE
C27: ITEM | D27: DESCRIÇÃO | I27: QUANTIDADE | J27: UNIDADE | K27: UNIT. MENSAL | L27: BDI (%) | M27: PREÇO TOTAL
C29: 3 | D29: Software Ponto Secullum 4 - manutenção e suporte técnico com backup - Web Nuvem - Mensalidade até 200 usuários | J29: Licença/mês | L29: =L35 -> 0.0507 | M29: =ROUND(K29*(1+L29),2) -> 0 | N29: COTAÇÃO
C32: MATERIAL DE CONSUMO ASSOCIADO
C33: ITEM | D33: DESCRIÇÃO | H33: QUANTID/ANO | I33: UNIDADE | J33: VALOR DE AQ. | K33: MENSAL MAT | L33: BDI (%) | M33: PREÇO TOTAL
C35: 4 | D35: Bobina térmica específica para o registrador eletrônico de ponto, com papel termossensível, superfície de impressão externa ao rolo, durabilidade de impressão mínima de 5 anos e comprimento mínimo de 300m | E35: * estimado um gasto anual de 35 bobinas por equipamento | I35: Bobina | J35: 31.37 | K35: =J35*H35/12 -> 0 | L35: =L16 -> 0.0507 | M35: =ROUND(K35*(1+L35),2) -> 0 | N35: COTAÇÃO
C38: MATERIAL DE CONSUMO ASSOCIADO
C39: ITEM | D39: DESCRIÇÃO | M39: PREÇO TOTAL
C41: 1 | D41: Componente DEPRECIAÇÃO | M41: =M10 -> 0
C42: 2 | D42: Componente MANUTENÇÃO | M42: =M16 -> 0
C43: 3 | D43: Componente SOFTWARE | M43: =M29 -> 0
C44: 4 | D44: Componente MATERIAL DE CONSUMO ASSOCIADO | M44: =M35 -> 0
L46: SOMATÓRIO TOTAL MENSAL | M46: =SUM(M40:M45) -> 0
L47: SOMATÓRIO TOTAL ANUAL | M47: =M46*12 -> 0
C50: MATERIAL DE CONSUMO ASSOCIADO
C51: MEMÓRIA DE CÁLCULO DO COEFICIENTE DE CORRELAÇÃO MANUTENÇÃO X DEPRECIAÇÃO (K)
C53: JUSTIFICATIVAS | E53: TIPO | F53: K1 | H53: Condições de Trab | I53: K4 | K53: Tempo Vida (anos) | L53: K6 | N53: Temperatura | O53: K8
E54: Guindaste | F54: 0.5 | H54: Em espera | I54: 0.4 | K54: 1 | L54: 0.6 | N54: Muito quente (> 40º C) | O54: 1.3
C55: K1 | D55: Considerado o valor médio de 0,85 | E55: Caminhão-comum | F55: 0.8 | H55: Leves | I55: 0.8 | K55: 2 | L55: 0.7 | N55: Quente (30º a 40º C) | O55: 1.1
C56: K2 | D56: Considerado o operador médio | E56: Fora-de-estrada | F56: 1 | H56: Médias | I56: 1 | K56: 3 | L56: 0.8 | N56: Médio (10º a 30º C) | O56: 1
C57: K3 | D57: Consideradas ferramentas de primeira qualidade | E57: Carregadeira | F57: 1 | H57: Pesadas | I57: 1.4 | K57: 4 | L57: 0.9 | N57: Frio (< 10º C) | O57: 1.2
C58: K4 | D58: Há todo o tipo de trabalho, foi considerado condições pesadas | E58: Escavadeira | F58: 1.4 | H58: Severas | I58: 2 | K58: 5 | L58: 1
C59: K5 | D59: Considerando manutenção normal | E59: Motoescrêiper | F59: 1.1 | K59: 6 | L59: 1 | N59: Ritmo de Trabalho | O59: K9
C60: K6 | D60: Equipamentos novos | E60: Trator de esteira | F60: 1.2 | H60: Manutenção | I60: K5 | K60: 7 | L60: 1 | N60: Folgado | O60: 0.9
C61: K7 | D61: 44h por dia, 252 dias por ano | H61: Excelente | I61: 0.6 | K61: 8 | L61: 1.2 | N61: Médio | O61: 1
C62: K8 | D62: Clima quente, acima de 30º C | E62: Qualid do Operador | F62: K2 | H62: Boa | I62: 0.8 | K62: 9 | L62: 1.3 | N62: Com pressa | O62: 1.5
C63: K9 | D63: Ritmo de trabalho usualmente com pressa | E63: Excelente | F63: 0.8 | H63: Média | I63: 1 | K63: 10 | L63: 1.4
C64: K10 | D64: Considerado o operador médio | E64: Boa | F64: 0.9 | H64: Ruim | I64: 1.5 | K64: 11 | L64: 2 | N64: Conh do Serviço | O64: K10
C65: K11 | D65: Foi considerada a opção de aluguel a terceiros, ainda que a simulação seja dos custos do contratado, contudo a execução dos serviços é em local de terceiros | E65: Média | F65: 1 | H65: Inexistente | I65: 3 | K65: 15 | L65: 2 | N65: Grande | O65: 0.8
E66: Ruim | F66: 1.2 | N66: Médio | O66: 0.9
E67: Péssima | F67: 2 | H67: Horas de Uso | I67: K7 | J67: 6000 | K67: 1 | N67: Pouco | O67: 1
H68: 1000 | I68: 0.5 | J68: 8000 | K68: 1.3
E69: Qualidade do Equip | F69: K3 | H69: 2000 | I69: 0.5 | J69: 10000 | K69: 1.6 | N69: Tipo do Serviço | O69: K11
E70: De primeira | F70: 0.8 | H70: 3000 | I70: 0.6 | J70: 12000 | K70: 1.9 | N70: Mina ou Pedreira | O70: 0.8
E71: Média | F71: 1 | H71: 4000 | I71: 0.7 | J71: 15000 | K71: 2.3 | N71: Construção Geral | O71: 1
E72: Ruim | F72: 1.5 | H72: 5000 | I72: 0.9 | J72: 20000 | K72: 3 | N72: Aluguel a Terceiros | O72: 1.4
E74: Fonte:
E75: MATTOS, Aldo Dórea. Como preparar orçamentos de obras. São Paulo: Pini, 2006. 281 p., il

Sheet Não Rel - EPI (hidden)
B4: EPIS NÃO RELACIONADOS DIRETAMENTE A UM POSTO DE TRABALHO - AQUISIÇÃO
D7: ITEM | E7: DESCRIÇÃO | F7: QUANT ANUAL | G7: UNIDADE | H7: CUSTO UNITÁRIO | I7: CUSTO ANUAL | J7: BDI (%) | K7: PREÇO TOTAL | L7: FONTE
D9: 1 | G9: UNID | I9: =H9*F9 -> 0 | J9: =BDI!E26 -> 0.0507 | K9: =ROUND(I9*(1+J9),2) -> 0 | L9: COTAÇÃO
D10: 2 | G10: UNID | I10: =H10*F10 -> 0 | J10: =J9 -> 0.0507 | K10: =ROUND(I10*(1+J10),2) -> 0 | L10: COTAÇÃO
D11: 3 | G11: UNID | I11: =H11*F11 -> 0 | J11: =J10 -> 0.0507 | K11: =ROUND(I11*(1+J11),2) -> 0 | L11: COTAÇÃO
D12: 4 | G12: UNID | I12: 0 | J12: 0.0507 | K12: 0 | L12: COTAÇÃO
D13: 5 | G13: PARES | I13: 0 | J13: 0.0507 | K13: 0 | L13: COTAÇÃO
D14: 6 | G14: UNID | I14: 0 | J14: 0.0507 | K14: 0 | L14: COTAÇÃO
D15: 7 | G15: UNID | I15: 0 | J15: 0.0507 | K15: 0 | L15: COTAÇÃO
D16: 8 | G16: PARES | I16: 0 | J16: 0.0507 | K16: 0 | L16: COTAÇÃO
D17: 9 | G17: CONJ | I17: 0 | J17: 0.0507 | K17: 0 | L17: COTAÇÃO
D18: 10 | G18: METROS | I18: 0 | J18: 0.0507 | K18: 0 | L18: COTAÇÃO
D19: 11 | G19: UNID | I19: 0 | J19: 0.0507 | K19: 0 | L19: COTAÇÃO
D20: 12 | G20: UNID | I20: 0 | J20: 0.0507 | K20: 0 | L20: COTAÇÃO
D21: 13 | G21: PARES | I21: 0 | J21: 0.0507 | K21: 0 | L21: COTAÇÃO
D22: 14 | G22: PARES | I22: 0 | J22: 0.0507 | K22: 0 | L22: COTAÇÃO
D23: 15 | G23: UNID | I23: 0 | J23: 0.0507 | K23: 0 | L23: COTAÇÃO
D24: 16 | G24: UNID | I24: 0 | J24: 0.0507 | K24: 0 | L24: COTAÇÃO
D25: 17 | G25: UNID | I25: 0 | J25: 0.0507 | K25: 0 | L25: COTAÇÃO
D26: 18 | G26: UNID | I26: =H26*F26 -> 0 | J26: 0.0507 | K26: =ROUND(I26*(1+J26),2) -> 0 | L26: COTAÇÃO
D27: 19 | G27: UNID | I27: =H27*F27 -> 0 | J27: 0.0507 | K27: =ROUND(I27*(1+J27),2) -> 0 | L27: COTAÇÃO
D28: 20 | G28: UNID | I28: =H28*F28 -> 0 | J28: =J26 -> 0.0507 | K28: =ROUND(I28*(1+J28),2) -> 0 | L28: COTAÇÃO
D29: 21 | G29: UNID | I29: =H29*F29 -> 0 | J29: =J27 -> 0.0507 | K29: =ROUND(I29*(1+J29),2) -> 0 | L29: COTAÇÃO
J31: SOMATÓRIO TOTAL MENSAL | K31: =K32/12 -> 0
J32: SOMATÓRIO TOTAL ANUAL | K32: =SUM(K8:K30) -> 0 | N32: =SUM($I$9:$I$29) -> 0 | O32: por ano sem bdi

Sheet Equip Rel (hidden)
C1: CÂMARA DOS DEPUTADOS
C2: DEPARTAMENTO TÉCNICO
C3: Coordenação de Planejamento e Gestão
C5: Data: | D5: ='Dados Gerais'!#REF! -> 
C6: Processo: | D6: ='Dados Gerais'!#REF! -> 
C7: Objeto: | D7: ='Dados Gerais'!#REF! -> 
B11: EQUIPAMENTOS RELACIONADOS AO POSTO - PAGAMENTO DA DEPRECIAÇÃO / MANUTENÇÃO | Q11: 1 | S11: =Q11+1 -> 2 | U11: =S11+1 -> 3 | W11: =U11+1 -> 4 | Y11: =W11+1 -> 5 | AA11: =Y11+1 -> 6 | AC11: =AA11+1 -> 7 | AE11: =AC11+1 -> 8 | AG11: =AE11+1 -> 9 | AI11: =AG11+1 -> 10 | AK11: =AI11+1 -> 11 | AM11: =AK11+1 -> 12 | AO11: =AM11+1 -> 13 | AQ11: =AO11+1 -> 14 | AS11: =AQ11+1 -> 15 | AU11: =AS11+1 -> 16 | AW11: =AU11+1 -> 17 | AY11: =AW11+1 -> 18 | BA11: =AY11+1 -> 19 | BC11: =BA11+1 -> 20 | BE11: =BC11+1 -> 21 | BG11: =BE11+1 -> 22 | BI11: =BG11+1 -> 23 | BK11: =BI11+1 -> 24 | BM11: =BK11+1 -> 25 | BO11: =BM11+1 -> 26 | BQ11: =BO11+1 -> 27 | BS11: =BQ11+1 -> 28 | BU11: =BS11+1 -> 29 | BW11: =BU11+1 -> 30 | BY11: =BW11+1 -> 31 | CA11: =BY11+1 -> 32 | CC11: =CA11+1 -> 33 | CE11: =CC11+1 -> 34 | CG11: =CE11+1 -> 35 | CI11: =CG11+1 -> 36 | CK11: =CI11+1 -> 37 | CM11: =CK11+1 -> 38 | CO11: =CM11+1 -> 39 | CQ11: =CO11+1 -> 40 | CS11: =CQ11+1 -> 41 | CU11: =CS11+1 -> 42 | CW11: =CU11+1 -> 43 | CY11: =CW11+1 -> 44 | DA11: =CY11+1 -> 45 | DC11: =DA11+1 -> 46 | DE11: =DC11+1 -> 47 | DG11: =DE11+1 -> 48 | DI11: =DG11+1 -> 49 | DK11: =DI11+1 -> 50 | DM11: =DK11+1 -> 51 | DO11: =DM11+1 -> 52 | DQ11: =DO11+1 -> 53 | DS11: =DQ11+1 -> 54 | DU11: =DS11+1 -> 55 | DW11: =DU11+1 -> 56 | DY11: =DW11+1 -> 57 | EA11: =DY11+1 -> 58 | EC11: =EA11+1 -> 59 | EE11: =EC11+1 -> 60
Q13: =SUM(R12:R61) -> 0 | S13: =SUM(T12:T61) -> 0 | U13: =SUM(V12:V61) -> 0 | W13: =SUM(X12:X61) -> 0 | Y13: =SUM(Z12:Z61) -> 0 | AA13: =SUM(AB12:AB61) -> 0 | AC13: =SUM(AD12:AD61) -> 0 | AE13: =SUM(AF12:AF61) -> 0 | AG13: =SUM(AH12:AH61) -> 0 | AI13: =SUM(AJ12:AJ61) -> 0 | AK13: =SUM(AL12:AL61) -> 0 | AM13: =SUM(AN12:AN61) -> 0 | AO13: =SUM(AP12:AP61) -> 0 | AQ13: =SUM(AR12:AR61) -> 0 | AS13: =SUM(AT12:AT61) -> 0 | AU13: =SUM(AV12:AV61) -> 0 | AW13: =SUM(AX12:AX61) -> 0 | AY13: =SUM(AZ12:AZ61) -> 0 | BA13: =SUM(BB12:BB61) -> 0 | BC13: =SUM(BD12:BD61) -> 0 | BE13: =SUM(BF12:BF61) -> 0 | BG13: =SUM(BH12:BH61) -> 0 | BI13: =SUM(BJ12:BJ61) -> 0 | BK13: =SUM(BL12:BL61) -> 0 | BM13: =SUM(BN12:BN61) -> 0 | BO13: =SUM(BP12:BP61) -> 0 | BQ13: =SUM(BR12:BR61) -> 0 | BS13: =SUM(BT12:BT61) -> 0 | BU13: =SUM(BV12:BV61) -> 0 | BW13: =SUM(BX12:BX61) -> 0 | BY13: =SUM(BZ12:BZ61) -> 0 | CA13: =SUM(CB12:CB61) -> 0 | CC13: =SUM(CD12:CD61) -> 0 | CE13: =SUM(CF12:CF61) -> 0 | CG13: =SUM(CH12:CH61) -> 0 | CI13: =SUM(CJ12:CJ61) -> 0 | CK13: =SUM(CL12:CL61) -> 0 | CM13: =SUM(CN12:CN61) -> 0 | CO13: =SUM(CP12:CP61) -> 0 | CQ13: =SUM(CR12:CR61) -> 0 | CS13: =SUM(CT12:CT61) -> 0 | CU13: =SUM(CV12:CV61) -> 0 | CW13: =SUM(CX12:CX61) -> 0 | CY13: =SUM(CZ12:CZ61) -> 0 | DA13: =SUM(DB12:DB61) -> 0 | DC13: =SUM(DD12:DD61) -> 0 | DE13: =SUM(DF12:DF61) -> 0 | DG13: =SUM(DH12:DH61) -> 0 | DI13: =SUM(DJ12:DJ61) -> 0 | DK13: =SUM(DL12:DL61) -> 0 | DM13: =SUM(DN12:DN61) -> 0 | DO13: =SUM(DP12:DP61) -> 0 | DQ13: =SUM(DR12:DR61) -> 0 | DS13: =SUM(DT12:DT61) -> 0 | DU13: =SUM(DV12:DV61) -> 0 | DW13: =SUM(DX12:DX61) -> 0 | DY13: =SUM(DZ12:DZ61) -> 0 | EA13: =SUM(EB12:EB61) -> 0 | EC13: =SUM(ED12:ED61) -> 0 | EE13: =SUM(EF12:EF61) -> 0
C14: CATEGORIAS | E14: QUANTIDADE
Q15: =IF($C15=Q$11,1,0) -> 0 | S15: =IF($C15=S$11,1,0) -> 0 | U15: =IF($C15=U$11,1,0) -> 0 | W15: =IF($C15=W$11,1,0) -> 0 | Y15: =IF($C15=Y$11,1,0) -> 0 | AA15: =IF($C15=AA$11,1,0) -> 0 | AC15: =IF($C15=AC$11,1,0) -> 0 | AE15: =IF($C15=AE$11,1,0) -> 0 | AG15: =IF($C15=AG$11,1,0) -> 0 | AI15: =IF($C15=AI$11,1,0) -> 0 | AK15: =IF($C15=AK$11,1,0) -> 0 | AM15: =IF($C15=AM$11,1,0) -> 0 | AO15: =IF($C15=AO$11,1,0) -> 0 | AQ15: =IF($C15=AQ$11,1,0) -> 0 | AS15: =IF($C15=AS$11,1,0) -> 0 | AU15: =IF($C15=AU$11,1,0) -> 0 | AW15: =IF($C15=AW$11,1,0) -> 0 | AY15: =IF($C15=AY$11,1,0) -> 0 | BA15: =IF($C15=BA$11,1,0) -> 0 | BC15: =IF($C15=BC$11,1,0) -> 0 | BE15: =IF($C15=BE$11,1,0) -> 0 | BG15: =IF($C15=BG$11,1,0) -> 0 | BI15: =IF($C15=BI$11,1,0) -> 0 | BK15: =IF($C15=BK$11,1,0) -> 0 | BM15: =IF($C15=BM$11,1,0) -> 0 | BO15: =IF($C15=BO$11,1,0) -> 0 | BQ15: =IF($C15=BQ$11,1,0) -> 0 | BS15: =IF($C15=BS$11,1,0) -> 0 | BU15: =IF($C15=BU$11,1,0) -> 0 | BW15: =IF($C15=BW$11,1,0) -> 0 | BY15: =IF($C15=BY$11,1,0) -> 0 | CA15: =IF($C15=CA$11,1,0) -> 0 | CC15: =IF($C15=CC$11,1,0) -> 0 | CE15: =IF($C15=CE$11,1,0) -> 0 | CG15: =IF($C15=CG$11,1,0) -> 0 | CI15: =IF($C15=CI$11,1,0) -> 0 | CK15: =IF($C15=CK$11,1,0) -> 0 | CM15: =IF($C15=CM$11,1,0) -> 0 | CO15: =IF($C15=CO$11,1,0) -> 0 | CQ15: =IF($C15=CQ$11,1,0) -> 0 | CS15: =IF($C15=CS$11,1,0) -> 0 | CU15: =IF($C15=CU$11,1,0) -> 0 | CW15: =IF($C15=CW$11,1,0) -> 0 | CY15: =IF($C15=CY$11,1,0) -> 0 | DA15: =IF($C15=DA$11,1,0) -> 0 | DC15: =IF($C15=DC$11,1,0) -> 0 | DE15: =IF($C15=DE$11,1,0) -> 0 | DG15: =IF($C15=DG$11,1,0) -> 0 | DI15: =IF($C15=DI$11,1,0) -> 0 | DK15: =IF($C15=DK$11,1,0) -> 0 | DM15: =IF($C15=DM$11,1,0) -> 0 | DO15: =IF($C15=DO$11,1,0) -> 0 | DQ15: =IF($C15=DQ$11,1,0) -> 0 | DS15: =IF($C15=DS$11,1,0) -> 0 | DU15: =IF($C15=DU$11,1,0) -> 0 | DW15: =IF($C15=DW$11,1,0) -> 0 | DY15: =IF($C15=DY$11,1,0) -> 0 | EA15: =IF($C15=EA$11,1,0) -> 0 | EC15: =IF($C15=EC$11,1,0) -> 0 | EE15: =IF($C15=EE$11,1,0) -> 0
D16: =HLOOKUP($C16,'Dados Gerais'!$D$5:$BJ$10,6) ->  | E16: =HLOOKUP($C16,'Dados Gerais'!$D$5:$BJ$14,10) ->  | Q16: =IF($C16=Q$11,1,0) -> 0 | S16: =IF($C16=S$11,1,0) -> 0 | U16: =IF($C16=U$11,1,0) -> 0 | W16: =IF($C16=W$11,1,0) -> 0 | Y16: =IF($C16=Y$11,1,0) -> 0 | AA16: =IF($C16=AA$11,1,0) -> 0 | AC16: =IF($C16=AC$11,1,0) -> 0 | AE16: =IF($C16=AE$11,1,0) -> 0 | AG16: =IF($C16=AG$11,1,0) -> 0 | AI16: =IF($C16=AI$11,1,0) -> 0 | AK16: =IF($C16=AK$11,1,0) -> 0 | AM16: =IF($C16=AM$11,1,0) -> 0 | AO16: =IF($C16=AO$11,1,0) -> 0 | AQ16: =IF($C16=AQ$11,1,0) -> 0 | AS16: =IF($C16=AS$11,1,0) -> 0 | AU16: =IF($C16=AU$11,1,0) -> 0 | AW16: =IF($C16=AW$11,1,0) -> 0 | AY16: =IF($C16=AY$11,1,0) -> 0 | BA16: =IF($C16=BA$11,1,0) -> 0 | BC16: =IF($C16=BC$11,1,0) -> 0 | BE16: =IF($C16=BE$11,1,0) -> 0 | BG16: =IF($C16=BG$11,1,0) -> 0 | BI16: =IF($C16=BI$11,1,0) -> 0 | BK16: =IF($C16=BK$11,1,0) -> 0 | BM16: =IF($C16=BM$11,1,0) -> 0 | BO16: =IF($C16=BO$11,1,0) -> 0 | BQ16: =IF($C16=BQ$11,1,0) -> 0 | BS16: =IF($C16=BS$11,1,0) -> 0 | BU16: =IF($C16=BU$11,1,0) -> 0 | BW16: =IF($C16=BW$11,1,0) -> 0 | BY16: =IF($C16=BY$11,1,0) -> 0 | CA16: =IF($C16=CA$11,1,0) -> 0 | CC16: =IF($C16=CC$11,1,0) -> 0 | CE16: =IF($C16=CE$11,1,0) -> 0 | CG16: =IF($C16=CG$11,1,0) -> 0 | CI16: =IF($C16=CI$11,1,0) -> 0 | CK16: =IF($C16=CK$11,1,0) -> 0 | CM16: =IF($C16=CM$11,1,0) -> 0 | CO16: =IF($C16=CO$11,1,0) -> 0 | CQ16: =IF($C16=CQ$11,1,0) -> 0 | CS16: =IF($C16=CS$11,1,0) -> 0 | CU16: =IF($C16=CU$11,1,0) -> 0 | CW16: =IF($C16=CW$11,1,0) -> 0 | CY16: =IF($C16=CY$11,1,0) -> 0 | DA16: =IF($C16=DA$11,1,0) -> 0 | DC16: =IF($C16=DC$11,1,0) -> 0 | DE16: =IF($C16=DE$11,1,0) -> 0 | DG16: =IF($C16=DG$11,1,0) -> 0 | DI16: =IF($C16=DI$11,1,0) -> 0 | DK16: =IF($C16=DK$11,1,0) -> 0 | DM16: =IF($C16=DM$11,1,0) -> 0 | DO16: =IF($C16=DO$11,1,0) -> 0 | DQ16: =IF($C16=DQ$11,1,0) -> 0 | DS16: =IF($C16=DS$11,1,0) -> 0 | DU16: =IF($C16=DU$11,1,0) -> 0 | DW16: =IF($C16=DW$11,1,0) -> 0 | DY16: =IF($C16=DY$11,1,0) -> 0 | EA16: =IF($C16=EA$11,1,0) -> 0 | EC16: =IF($C16=EC$11,1,0) -> 0 | EE16: =IF($C16=EE$11,1,0) -> 0
Q17: =IF($C17=Q$11,1,0) -> 0 | S17: =IF($C17=S$11,1,0) -> 0 | U17: =IF($C17=U$11,1,0) -> 0 | W17: =IF($C17=W$11,1,0) -> 0 | Y17: =IF($C17=Y$11,1,0) -> 0 | AA17: =IF($C17=AA$11,1,0) -> 0 | AC17: =IF($C17=AC$11,1,0) -> 0 | AE17: =IF($C17=AE$11,1,0) -> 0 | AG17: =IF($C17=AG$11,1,0) -> 0 | AI17: =IF($C17=AI$11,1,0) -> 0 | AK17: =IF($C17=AK$11,1,0) -> 0 | AM17: =IF($C17=AM$11,1,0) -> 0 | AO17: =IF($C17=AO$11,1,0) -> 0 | AQ17: =IF($C17=AQ$11,1,0) -> 0 | AS17: =IF($C17=AS$11,1,0) -> 0 | AU17: =IF($C17=AU$11,1,0) -> 0 | AW17: =IF($C17=AW$11,1,0) -> 0 | AY17: =IF($C17=AY$11,1,0) -> 0 | BA17: =IF($C17=BA$11,1,0) -> 0 | BC17: =IF($C17=BC$11,1,0) -> 0 | BE17: =IF($C17=BE$11,1,0) -> 0 | BG17: =IF($C17=BG$11,1,0) -> 0 | BI17: =IF($C17=BI$11,1,0) -> 0 | BK17: =IF($C17=BK$11,1,0) -> 0 | BM17: =IF($C17=BM$11,1,0) -> 0 | BO17: =IF($C17=BO$11,1,0) -> 0 | BQ17: =IF($C17=BQ$11,1,0) -> 0 | BS17: =IF($C17=BS$11,1,0) -> 0 | BU17: =IF($C17=BU$11,1,0) -> 0 | BW17: =IF($C17=BW$11,1,0) -> 0 | BY17: =IF($C17=BY$11,1,0) -> 0 | CA17: =IF($C17=CA$11,1,0) -> 0 | CC17: =IF($C17=CC$11,1,0) -> 0 | CE17: =IF($C17=CE$11,1,0) -> 0 | CG17: =IF($C17=CG$11,1,0) -> 0 | CI17: =IF($C17=CI$11,1,0) -> 0 | CK17: =IF($C17=CK$11,1,0) -> 0 | CM17: =IF($C17=CM$11,1,0) -> 0 | CO17: =IF($C17=CO$11,1,0) -> 0 | CQ17: =IF($C17=CQ$11,1,0) -> 0 | CS17: =IF($C17=CS$11,1,0) -> 0 | CU17: =IF($C17=CU$11,1,0) -> 0 | CW17: =IF($C17=CW$11,1,0) -> 0 | CY17: =IF($C17=CY$11,1,0) -> 0 | DA17: =IF($C17=DA$11,1,0) -> 0 | DC17: =IF($C17=DC$11,1,0) -> 0 | DE17: =IF($C17=DE$11,1,0) -> 0 | DG17: =IF($C17=DG$11,1,0) -> 0 | DI17: =IF($C17=DI$11,1,0) -> 0 | DK17: =IF($C17=DK$11,1,0) -> 0 | DM17: =IF($C17=DM$11,1,0) -> 0 | DO17: =IF($C17=DO$11,1,0) -> 0 | DQ17: =IF($C17=DQ$11,1,0) -> 0 | DS17: =IF($C17=DS$11,1,0) -> 0 | DU17: =IF($C17=DU$11,1,0) -> 0 | DW17: =IF($C17=DW$11,1,0) -> 0 | DY17: =IF($C17=DY$11,1,0) -> 0 | EA17: =IF($C17=EA$11,1,0) -> 0 | EC17: =IF($C17=EC$11,1,0) -> 0 | EE17: =IF($C17=EE$11,1,0) -> 0
C19: PAGAMENTO DA DEPRECIAÇÃO
C20: ITEM | D20: DESCRIÇÃO | E20: QUANT ANUAL | F20: CONTA SIAFI | G20: VALOR DE AQ. | H20: % RESIDUAL | I20: VIDA ÚTIL | J20: DEP. MENSAL | K20: CUSTO TOTAL | L20: BDI (%) | M20: PREÇO TOTAL | N20: FONTE | O20: REFERÊNCIA
J22: =G22*(1-H22)/(I22*12) ->  | K22: =J22*E22 ->  | L22: =BDI!E26 -> 0.0507 | M22: =ROUND(K22*(1+L22),2) ->  | N22: COTAÇÃO
C25: PAGAMENTO DA MANUTENÇÃO
C26: ITEM | D26: DESCRIÇÃO | H26: K (calculado) | I26: MENSAL DEPR. | J26: % MAN X DEP | K26: MENSAL MAN. | L26: BDI (%) | M26: PREÇO TOTAL
H28: =H35 -> 0.2395008 | I28: =M22 ->  | J28: =H28 -> 0.2395008 | K28: =I28*H28 ->  | L28: =L22 -> 0.0507 | M28: =ROUND(K28*(1+L28),2) -> 
E30: K1 | F30: K2 | G30: K3 | H30: K4
E31: 1 | F31: 1 | G31: 0.8 | H31: 0.8
E32: K5 | F32: K6 | G32: K7 | H32: K8
E33: 1 | F33: 0.6 | G33: 0.5 | H33: 1.1
E34: K9 | F34: K10 | G34: K11 | H34: RESULTADO
D35: * a descrição de cada coeficiente segue abaixo | E35: 0.9 | F35: 0.9 | G35: 1.4 | H35: =E31*F31*G31*H31*E33*F33*G33*H33*E35*F35*G35 -> 0.2395008
C38: MATERIAL DE CONSUMO ASSOCIADO
C39: ITEM | D39: DESCRIÇÃO | H39: QUANTID/ANO | I39: UNIDADE | J39: VALOR DE AQ. | K39: MENSAL MAT | L39: BDI (%) | M39: PREÇO TOTAL
K41: =J41*H41/12 -> 0 | L41: =L28 -> 0.0507 | M41: =ROUND(K41*(1+L41),2) -> 0
C44: MATERIAL DE CONSUMO ASSOCIADO
C45: ITEM | D45: DESCRIÇÃO | M45: PREÇO TOTAL
C47: 1 | D47: Componente DEPRECIAÇÃO - POR POSTO | M47: =M22 -> 
C48: 2 | D48: Componente MANUTENÇÃO - POR POSTO | M48: =M28 -> 
C49: 3 | D49: Componente MATERIAL DE CONSUMO ASSOCIADO - POR POSTO | M49: =M41 -> 0
L51: SOMATÓRIO TOTAL MENSAL - POR POSTO | M51: =SUM(M46:M50) ->  | R51: =IF(SUM(Q$15:Q$17)>0,$M51,0) -> 0 | T51: =IF(SUM(S$15:S$17)>0,$M51,0) -> 0 | V51: =IF(SUM(U$15:U$17)>0,$M51,0) -> 0 | X51: =IF(SUM(W$15:W$17)>0,$M51,0) -> 0 | Z51: =IF(SUM(Y$15:Y$17)>0,$M51,0) -> 0 | AB51: =IF(SUM(AA$15:AA$17)>0,$M51,0) -> 0 | AD51: =IF(SUM(AC$15:AC$17)>0,$M51,0) -> 0 | AF51: =IF(SUM(AE$15:AE$17)>0,$M51,0) -> 0 | AH51: =IF(SUM(AG$15:AG$17)>0,$M51,0) -> 0 | AJ51: =IF(SUM(AI$15:AI$17)>0,$M51,0) -> 0 | AL51: =IF(SUM(AK$15:AK$17)>0,$M51,0) -> 0 | AN51: =IF(SUM(AM$15:AM$17)>0,$M51,0) -> 0 | AP51: =IF(SUM(AO$15:AO$17)>0,$M51,0) -> 0 | AR51: =IF(SUM(AQ$15:AQ$17)>0,$M51,0) -> 0 | AT51: =IF(SUM(AS$15:AS$17)>0,$M51,0) -> 0 | AV51: =IF(SUM(AU$15:AU$17)>0,$M51,0) -> 0 | AX51: =IF(SUM(AW$15:AW$17)>0,$M51,0) -> 0 | AZ51: =IF(SUM(AY$15:AY$17)>0,$M51,0) -> 0 | BB51: =IF(SUM(BA$15:BA$17)>0,$M51,0) -> 0 | BD51: =IF(SUM(BC$15:BC$17)>0,$M51,0) -> 0 | BF51: =IF(SUM(BE$15:BE$17)>0,$M51,0) -> 0 | BH51: =IF(SUM(BG$15:BG$17)>0,$M51,0) -> 0 | BJ51: =IF(SUM(BI$15:BI$17)>0,$M51,0) -> 0 | BL51: =IF(SUM(BK$15:BK$17)>0,$M51,0) -> 0 | BN51: =IF(SUM(BM$15:BM$17)>0,$M51,0) -> 0 | BP51: =IF(SUM(BO$15:BO$17)>0,$M51,0) -> 0 | BR51: =IF(SUM(BQ$15:BQ$17)>0,$M51,0) -> 0 | BT51: =IF(SUM(BS$15:BS$17)>0,$M51,0) -> 0 | BV51: =IF(SUM(BU$15:BU$17)>0,$M51,0) -> 0 | BX51: =IF(SUM(BW$15:BW$17)>0,$M51,0) -> 0 | BZ51: =IF(SUM(BY$15:BY$17)>0,$M51,0) -> 0 | CB51: =IF(SUM(CA$15:CA$17)>0,$M51,0) -> 0 | CD51: =IF(SUM(CC$15:CC$17)>0,$M51,0) -> 0 | CF51: =IF(SUM(CE$15:CE$17)>0,$M51,0) -> 0 | CH51: =IF(SUM(CG$15:CG$17)>0,$M51,0) -> 0 | CJ51: =IF(SUM(CI$15:CI$17)>0,$M51,0) -> 0 | CL51: =IF(SUM(CK$15:CK$17)>0,$M51,0) -> 0 | CN51: =IF(SUM(CM$15:CM$17)>0,$M51,0) -> 0 | CP51: =IF(SUM(CO$15:CO$17)>0,$M51,0) -> 0 | CR51: =IF(SUM(CQ$15:CQ$17)>0,$M51,0) -> 0 | CT51: =IF(SUM(CS$15:CS$17)>0,$M51,0) -> 0 | CV51: =IF(SUM(CU$15:CU$17)>0,$M51,0) -> 0 | CX51: =IF(SUM(CW$15:CW$17)>0,$M51,0) -> 0 | CZ51: =IF(SUM(CY$15:CY$17)>0,$M51,0) -> 0 | DB51: =IF(SUM(DA$15:DA$17)>0,$M51,0) -> 0 | DD51: =IF(SUM(DC$15:DC$17)>0,$M51,0) -> 0 | DF51: =IF(SUM(DE$15:DE$17)>0,$M51,0) -> 0 | DH51: =IF(SUM(DG$15:DG$17)>0,$M51,0) -> 0 | DJ51: =IF(SUM(DI$15:DI$17)>0,$M51,0) -> 0 | DL51: =IF(SUM(DK$15:DK$17)>0,$M51,0) -> 0 | DN51: =IF(SUM(DM$15:DM$17)>0,$M51,0) -> 0 | DP51: =IF(SUM(DO$15:DO$17)>0,$M51,0) -> 0 | DR51: =IF(SUM(DQ$15:DQ$17)>0,$M51,0) -> 0 | DT51: =IF(SUM(DS$15:DS$17)>0,$M51,0) -> 0 | DV51: =IF(SUM(DU$15:DU$17)>0,$M51,0) -> 0 | DX51: =IF(SUM(DW$15:DW$17)>0,$M51,0) -> 0 | DZ51: =IF(SUM(DY$15:DY$17)>0,$M51,0) -> 0 | EB51: =IF(SUM(EA$15:EA$17)>0,$M51,0) -> 0 | ED51: =IF(SUM(EC$15:EC$17)>0,$M51,0) -> 0 | EF51: =IF(SUM(EE$15:EE$17)>0,$M51,0) -> 0
L52: SOMATÓRIO TOTAL ANUAL - POR POSTO | M52: =M51*12 -> 
C55: MATERIAL DE CONSUMO ASSOCIADO
C56: MEMÓRIA DE CÁLCULO DO COEFICIENTE DE CORRELAÇÃO MANUTENÇÃO X DEPRECIAÇÃO (K)
C58: JUSTIFICATIVAS | E58: TIPO | F58: K1 | H58: Condições de Trab | I58: K4 | K58: Tempo Vida (anos) | L58: K6 | N58: Temperatura | O58: K8
E59: Guindaste | F59: 0.5 | H59: Em espera | I59: 0.4 | K59: 1 | L59: 0.6 | N59: Muito quente (> 40º C) | O59: 1.3
C60: K1 | D60: Arbitrado 1 | E60: Caminhão-comum | F60: 0.8 | H60: Leves | I60: 0.8 | K60: 2 | L60: 0.7 | N60: Quente (30º a 40º C) | O60: 1.1
C61: K2 | D61: Considerado o operador médio | E61: Fora-de-estrada | F61: 1 | H61: Médias | I61: 1 | K61: 3 | L61: 0.8 | N61: Médio (10º a 30º C) | O61: 1
C62: K3 | D62: Consideradas ferramentas de primeira qualidade | E62: Carregadeira | F62: 1 | H62: Pesadas | I62: 1.4 | K62: 4 | L62: 0.9 | N62: Frio (< 10º C) | O62: 1.2
C63: K4 | D63: Consições leves | E63: Escavadeira | F63: 1.4 | H63: Severas | I63: 2 | K63: 5 | L63: 1
C64: K5 | D64: Considerando manutenção normal | E64: Motoescrêiper | F64: 1.1 | K64: 6 | L64: 1 | N64: Ritmo de Trabalho | O64: K9
C65: K6 | D65: Equipamentos novos | E65: Trator de esteira | F65: 1.2 | H65: Manutenção | I65: K5 | K65: 7 | L65: 1 | N65: Folgado | O65: 0.9
C66: K7 | D66: 220h por mês, 252 dias por ano | H66: Excelente | I66: 0.6 | K66: 8 | L66: 1.2 | N66: Médio | O66: 1
C67: K8 | D67: Clima quente, acima de 30º C | E67: Qualid do Operador | F67: K2 | H67: Boa | I67: 0.8 | K67: 9 | L67: 1.3 | N67: Com pressa | O67: 1.5
C68: K9 | D68: Ritmo de trabalho usualmente folgado | E68: Excelente | F68: 0.8 | H68: Média | I68: 1 | K68: 10 | L68: 1.4
C69: K10 | D69: Considerado o operador médio | E69: Boa | F69: 0.9 | H69: Ruim | I69: 1.5 | K69: 11 | L69: 2 | N69: Conh do Serviço | O69: K10
C70: K11 | D70: Foi considerada a opção de aluguel a terceiros, ainda que a simulação seja dos custos do contratado, contudo a execução dos serviços é em local de terceiros | E70: Média | F70: 1 | H70: Inexistente | I70: 3 | K70: 15 | L70: 2 | N70: Grande | O70: 0.8
E71: Ruim | F71: 1.2 | N71: Médio | O71: 0.9
E72: Péssima | F72: 2 | H72: Horas de Uso | I72: K7 | J72: 6000 | K72: 1 | N72: Pouco | O72: 1
H73: 1000 | I73: 0.5 | J73: 8000 | K73: 1.3
E74: Qualidade do Equip | F74: K3 | H74: 2000 | I74: 0.5 | J74: 10000 | K74: 1.6 | N74: Tipo do Serviço | O74: K11
E75: De primeira | F75: 0.8 | H75: 3000 | I75: 0.6 | J75: 12000 | K75: 1.9 | N75: Mina ou Pedreira | O75: 0.8
E76: Média | F76: 1 | H76: 4000 | I76: 0.7 | J76: 15000 | K76: 2.3 | N76: Construção Geral | O76: 1
E77: Ruim | F77: 1.5 | H77: 5000 | I77: 0.9 | J77: 20000 | K77: 3 | N77: Aluguel a Terceiros | O77: 1.4
E79: Fonte:
E80: MATTOS, Aldo Dórea. Como preparar orçamentos de obras. São Paulo: Pini, 2006. 281 p., il

Sheet Não Rel - Depr (hidden)
B4: EQUIPAMENTOS NÃO RELACIONADOS DIRETAMENTE A UM POSTO DE TRABALHO - PAGAMENTO DA DEPRECIAÇÃO / MANUTENÇÃO
C7: PAGAMENTO DA DEPRECIAÇÃO
C8: ITEM | D8: DESCRIÇÃO | E8: QUANT ANUAL | F8: CONTA SIAFI | G8: VALOR DE AQ. | H8: % RESIDUAL | I8: VIDA ÚTIL | J8: DEP. MENSAL | K8: CUSTO TOTAL | L8: BDI (%) | M8: PREÇO TOTAL | N8: FONTE | O8: REFERÊNCIA
C10: 1 | F10: 12311.01.25 | H10: 0.1 | I10: 10 | J10: =G10*(1-H10)/(I10*12) -> 0 | K10: =J10*E10 -> 0 | L10: =BDI!$E$26 -> 0.0507 | M10: =ROUND(K10*(1+L10),2) -> 0 | N10: COTAÇÃO
C11: 2 | F11: 12311.01.25 | H11: 0.1 | I11: 10 | J11: 0 | K11: 0 | L11: =BDI!$E$26 -> 0.0507 | M11: 0 | N11: COTAÇÃO
C12: 3 | F12: 12311.01.25 | H12: 0.1 | I12: 10 | J12: 0 | K12: 0 | L12: =BDI!$E$26 -> 0.0507 | M12: 0 | N12: COTAÇÃO
C13: 4 | F13: 12311.01.25 | H13: 0.1 | I13: 10 | J13: 0 | K13: 0 | L13: =BDI!$E$26 -> 0.0507 | M13: 0 | N13: COTAÇÃO
C14: 5 | F14: 12311.01.25 | H14: 0.1 | I14: 10 | J14: 0 | K14: 0 | L14: =BDI!$E$26 -> 0.0507 | M14: 0 | N14: COTAÇÃO
C15: 6 | F15: 12311.01.25 | H15: 0.1 | I15: 10 | J15: 0 | K15: 0 | L15: =BDI!$E$26 -> 0.0507 | M15: 0 | N15: COTAÇÃO
C16: 7 | F16: 12311.01.25 | H16: 0.1 | I16: 10 | J16: 0 | K16: 0 | L16: =BDI!$E$26 -> 0.0507 | M16: 0 | N16: COTAÇÃO
C17: 8 | F17: 12311.01.25 | H17: 0.1 | I17: 10 | J17: 0 | K17: 0 | L17: =BDI!$E$26 -> 0.0507 | M17: 0 | N17: COTAÇÃO
C18: 9 | F18: 12311.01.25 | H18: 0.1 | I18: 10 | J18: 0 | K18: 0 | L18: =BDI!$E$26 -> 0.0507 | M18: 0 | N18: COTAÇÃO
C19: 10 | F19: 12311.01.25 | H19: 0.1 | I19: 10 | J19: 0 | K19: 0 | L19: =BDI!$E$26 -> 0.0507 | M19: 0 | N19: COTAÇÃO
C20: 11 | F20: 12311.01.25 | H20: 0.1 | I20: 10 | J20: 0 | K20: 0 | L20: =BDI!$E$26 -> 0.0507 | M20: 0 | N20: COTAÇÃO
C21: 12 | F21: 12311.01.25 | H21: 0.1 | I21: 10 | J21: =G21*(1-H21)/(I21*12) -> 0 | K21: =J21*E21 -> 0 | L21: =BDI!$E$26 -> 0.0507 | M21: =ROUND(K21*(1+L21),2) -> 0 | N21: COTAÇÃO
C22: 13 | F22: 12311.01.25 | H22: 0.1 | I22: 10 | J22: 0 | K22: 0 | L22: =BDI!$E$26 -> 0.0507 | M22: 0 | N22: COTAÇÃO
C23: 14 | F23: 12311.01.25 | H23: 0.1 | I23: 10 | J23: 0 | K23: 0 | L23: =BDI!$E$26 -> 0.0507 | M23: 0 | N23: COTAÇÃO
C24: 15 | F24: 12311.01.25 | H24: 0.1 | I24: 10 | J24: 0 | K24: 0 | L24: =BDI!$E$26 -> 0.0507 | M24: 0 | N24: COTAÇÃO
C25: 16 | F25: 12311.01.25 | H25: 0.1 | I25: 10 | J25: 0 | K25: 0 | L25: =BDI!$E$26 -> 0.0507 | M25: 0 | N25: COTAÇÃO
C26: 17 | F26: 12311.01.25 | H26: 0.1 | I26: 10 | J26: 0 | K26: 0 | L26: =BDI!$E$26 -> 0.0507 | M26: 0 | N26: COTAÇÃO
C27: 18 | F27: 12311.01.25 | H27: 0.1 | I27: 10 | J27: 0 | K27: 0 | L27: =BDI!$E$26 -> 0.0507 | M27: 0 | N27: COTAÇÃO
C28: 19 | F28: 12311.01.25 | H28: 0.1 | I28: 10 | J28: 0 | K28: 0 | L28: =BDI!$E$26 -> 0.0507 | M28: 0 | N28: COTAÇÃO
C29: 20 | F29: 12311.01.25 | H29: 0.1 | I29: 10 | J29: 0 | K29: 0 | L29: =BDI!$E$26 -> 0.0507 | M29: 0 | N29: COTAÇÃO
C30: 21 | F30: 12311.01.25 | H30: 0.1 | I30: 10 | J30: 0 | K30: 0 | L30: =BDI!$E$26 -> 0.0507 | M30: 0 | N30: COTAÇÃO
C31: 22 | F31: 12311.01.25 | H31: 0.1 | I31: 10 | J31: 0 | K31: 0 | L31: =BDI!$E$26 -> 0.0507 | M31: 0 | N31: COTAÇÃO
C32: 23 | F32: 12311.01.25 | H32: 0.1 | I32: 10 | J32: 0 | K32: 0 | L32: =BDI!$E$26 -> 0.0507 | M32: 0 | N32: COTAÇÃO
C33: 24 | F33: 12311.01.25 | H33: 0.1 | I33: 10 | J33: 0 | K33: 0 | L33: =BDI!$E$26 -> 0.0507 | M33: 0 | N33: COTAÇÃO
C34: 25 | F34: 12311.01.25 | H34: 0.1 | I34: 10 | J34: 0 | K34: 0 | L34: =BDI!$E$26 -> 0.0507 | M34: 0 | N34: COTAÇÃO
C35: 26 | F35: 12311.01.25 | H35: 0.1 | I35: 10 | J35: 0 | K35: 0 | L35: =BDI!$E$26 -> 0.0507 | M35: 0 | N35: COTAÇÃO
C36: 27 | F36: 12311.01.25 | H36: 0.1 | I36: 10 | J36: 0 | K36: 0 | L36: =BDI!$E$26 -> 0.0507 | M36: 0 | N36: COTAÇÃO
C37: 28 | F37: 12311.01.25 | H37: 0.1 | I37: 10 | J37: 0 | K37: 0 | L37: =BDI!$E$26 -> 0.0507 | M37: 0 | N37: COTAÇÃO
C40: PAGAMENTO DA MANUTENÇÃO
C41: ITEM | D41: DESCRIÇÃO | H41: K (calculado) | I41: MENSAL DEPR. | J41: % MAN X DEP | K41: MENSAL MAN. | L41: BDI (%) | M41: PREÇO TOTAL
H43: =H50 -> 0.424116 | I43: =SUM(M10:M37) -> 0 | J43: =H43 -> 0.424116 | K43: =I43*H43 -> 0 | L43: =BDI!E26 -> 0.0507 | M43: =ROUND(K43*(1+L43),2) -> 0
E45: K1 | F45: K2 | G45: K3 | H45: K4
E46: 0.85 | F46: 1 | G46: 0.8 | H46: 1
E47: K5 | F47: K6 | G47: K7 | H47: K8
E48: 1 | F48: 0.6 | G48: 0.5 | H48: 1.1
E49: K9 | F49: K10 | G49: K11 | H49: RESULTADO
D50: * a descrição de cada coeficiente segue abaixo | E50: 1.5 | F50: 0.9 | G50: 1.4 | H50: =E46*F46*G46*H46*E48*F48*G48*H48*E50*F50*G50 -> 0.424116
C53: MATERIAL DE CONSUMO ASSOCIADO
C54: ITEM | D54: DESCRIÇÃO | H54: QUANTID/ANO | I54: UNIDADE | J54: VALOR DE AQ. | K54: MENSAL MAT | L54: BDI (%) | M54: PREÇO TOTAL
K56: =J56*H56/12 -> 0 | L56: =BDI!E26 -> 0.0507 | M56: =ROUND(K56*(1+L56),2) -> 0
C59: MATERIAL DE CONSUMO ASSOCIADO
C60: ITEM | D60: DESCRIÇÃO | M60: PREÇO TOTAL
C62: 1 | D62: Componente DEPRECIAÇÃO | M62: =I43 -> 0
C63: 2 | D63: Componente MANUTENÇÃO | M63: =M43 -> 0
C64: 3 | D64: Componente MATERIAL DE CONSUMO ASSOCIADO | M64: =M56 -> 0
L66: SOMATÓRIO TOTAL MENSAL | M66: =SUM(M61:M65) -> 0
L67: SOMATÓRIO TOTAL ANUAL | M67: =M66*12 -> 0
C70: MATERIAL DE CONSUMO ASSOCIADO
C71: MEMÓRIA DE CÁLCULO DO COEFICIENTE DE CORRELAÇÃO MANUTENÇÃO X DEPRECIAÇÃO (K)
C73: JUSTIFICATIVAS | E73: TIPO | F73: K1 | H73: Condições de Trab | I73: K4 | K73: Tempo Vida (anos) | L73: K6 | N73: Temperatura | O73: K8
E74: Guindaste | F74: 0.5 | H74: Em espera | I74: 0.4 | K74: 1 | L74: 0.6 | N74: Muito quente (> 40º C) | O74: 1.3
C75: K1 | D75: Considerado o valor médio de 0,85 | E75: Caminhão-comum | F75: 0.8 | H75: Leves | I75: 0.8 | K75: 2 | L75: 0.7 | N75: Quente (30º a 40º C) | O75: 1.1
C76: K2 | D76: Considerado o operador médio | E76: Fora-de-estrada | F76: 1 | H76: Médias | I76: 1 | K76: 3 | L76: 0.8 | N76: Médio (10º a 30º C) | O76: 1
C77: K3 | D77: Consideradas ferramentas de primeira qualidade | E77: Carregadeira | F77: 1 | H77: Pesadas | I77: 1.4 | K77: 4 | L77: 0.9 | N77: Frio (< 10º C) | O77: 1.2
C78: K4 | D78: Há todo o tipo de trabalho, foi considerado o valor médio | E78: Escavadeira | F78: 1.4 | H78: Severas | I78: 2 | K78: 5 | L78: 1
C79: K5 | D79: Considerando manutenção normal | E79: Motoescrêiper | F79: 1.1 | K79: 6 | L79: 1 | N79: Ritmo de Trabalho | O79: K9
C80: K6 | D80: Equipamentos novos | E80: Trator de esteira | F80: 1.2 | H80: Manutenção | I80: K5 | K80: 7 | L80: 1 | N80: Folgado | O80: 0.9
C81: K7 | D81: 220h por mês, 252 dias por ano | H81: Excelente | I81: 0.6 | K81: 8 | L81: 1.2 | N81: Médio | O81: 1
C82: K8 | D82: Clima quente, acima de 30º C | E82: Qualid do Operador | F82: K2 | H82: Boa | I82: 0.8 | K82: 9 | L82: 1.3 | N82: Com pressa | O82: 1.5
C83: K9 | D83: Ritmo de trabalho usualmente com pressa | E83: Excelente | F83: 0.8 | H83: Média | I83: 1 | K83: 10 | L83: 1.4
C84: K10 | D84: Considerado o operador médio | E84: Boa | F84: 0.9 | H84: Ruim | I84: 1.5 | K84: 11 | L84: 2 | N84: Conh do Serviço | O84: K10
C85: K11 | D85: Foi considerada a opção de aluguel a terceiros, ainda que a simulação seja dos custos do contratado, contudo a execução dos serviços é em local de terceiros | E85: Média | F85: 1 | H85: Inexistente | I85: 3 | K85: 15 | L85: 2 | N85: Grande | O85: 0.8
E86: Ruim | F86: 1.2 | N86: Médio | O86: 0.9
E87: Péssima | F87: 2 | H87: Horas de Uso | I87: K7 | J87: 6000 | K87: 1 | N87: Pouco | O87: 1
H88: 1000 | I88: 0.5 | J88: 8000 | K88: 1.3
E89: Qualidade do Equip | F89: K3 | H89: 2000 | I89: 0.5 | J89: 10000 | K89: 1.6 | N89: Tipo do Serviço | O89: K11
E90: De primeira | F90: 0.8 | H90: 3000 | I90: 0.6 | J90: 12000 | K90: 1.9 | N90: Mina ou Pedreira | O90: 0.8
E91: Média | F91: 1 | H91: 4000 | I91: 0.7 | J91: 15000 | K91: 2.3 | N91: Construção Geral | O91: 1
E92: Ruim | F92: 1.5 | H92: 5000 | I92: 0.9 | J92: 20000 | K92: 3 | N92: Aluguel a Terceiros | O92: 1.4
E94: Fonte:
E95: MATTOS, Aldo Dórea. Como preparar orçamentos de obras. São Paulo: Pini, 2006. 281 p., il

Sheet Não Rel - Mat Consumo (hidden)
B4: MATERIAIS NÃO RELACIONADOS DIRETAMENTE A UM POSTO DE TRABALHO - AQUISIÇÃO SOB DEMANDA
C7: ITEM | D7: CÓDIGO | E7: DESCRIÇÃO | F7: QUANT MENSAL | G7: QUANT ANUAL | H7: UNIDADE | I7: CUSTO UNITÁRIO | J7: CUSTO TOTAL | K7: BDI (%) | L7: PREÇO TOTAL | M7: FONTE | N7: REFERÊNCIA
C9: 1 | H9: Litros | J9: =I9*G9 -> 0 | K9: =BDI!E26 -> 0.0507 | L9: =ROUND(J9*(1+K9),2) -> 0 | M9: Cotação
C10: 2 | H10: Refil | J10: =I10*G10 -> 0 | K10: =K9 -> 0.0507 | L10: =ROUND(J10*(1+K10),2) -> 0 | M10: Cotação
C11: 3 | H11: Litros | J11: 0 | K11: =K10 -> 0.0507 | L11: 0 | M11: Cotação
C12: 4 | H12: Litros | J12: 0 | K12: 0.0507 | L12: 0 | M12: Cotação
C13: 5 | H13: Litros | J13: 0 | K13: 0.0507 | L13: 0 | M13: Cotação
C14: 6 | H14: Galão | J14: 0 | K14: 0.0507 | L14: 0 | M14: Cotação
C15: 7 | H15: Balde 10 kg | J15: 0 | K15: 0.0507 | L15: 0 | M15: Cotação
C16: 8 | H16: Galão | J16: 0 | K16: 0.0507 | L16: 0 | M16: Cotação
C17: 9 | H17: Frasco | J17: 0 | K17: 0.0507 | L17: 0 | M17: Cotação
C18: 10 | H18: Galão | J18: 0 | K18: 0.0507 | L18: 0 | M18: Cotação
C19: 11 | H19: Unidade | J19: 0 | K19: 0.0507 | L19: 0 | M19: Cotação
C20: 12 | H20: Unidade | J20: 0 | K20: 0.0507 | L20: 0 | M20: Cotação
C21: 13 | H21: Unidade | J21: 0 | K21: 0.0507 | L21: 0 | M21: Cotação
C22: 14 | H22: Unidade | J22: 0 | K22: 0.0507 | L22: 0 | M22: Cotação
C23: 15 | H23: Unidade | J23: 0 | K23: 0.0507 | L23: 0 | M23: Cotação
C24: 16 | H24: Unidade | J24: 0 | K24: 0.0507 | L24: 0 | M24: Cotação
C25: 17 | H25: Unidade | J25: 0 | K25: 0.0507 | L25: 0 | M25: Cotação
C26: 18 | H26: Unidade | J26: 0 | K26: 0.0507 | L26: 0 | M26: Cotação
C27: 19 | H27: Unidade | J27: 0 | K27: 0.0507 | L27: 0 | M27: Cotação
C28: 20 | H28: Rolo | J28: 0 | K28: 0.0507 | L28: 0 | M28: Cotação
C29: 21 | H29: Litros | J29: 0 | K29: 0.0507 | L29: 0 | M29: Cotação
C30: 22 | H30: Frasco | J30: 0 | K30: 0.0507 | L30: 0 | M30: Cotação
C31: 23 | H31: Unidade | J31: 0 | K31: 0.0507 | L31: 0 | M31: Cotação
C32: 24 | H32: Unidade | J32: 0 | K32: 0.0507 | L32: 0 | M32: Cotação
C33: 25 | H33: Unidade | J33: 0 | K33: 0.0507 | L33: 0 | M33: Cotação
C34: 26 | H34: Caixa | J34: 0 | K34: 0.0507 | L34: 0 | M34: Cotação
C35: 27 | H35: Caixa | J35: 0 | K35: 0.0507 | L35: 0 | M35: Cotação
C36: 28 | H36: Galão | J36: 0 | K36: 0.0507 | L36: 0 | M36: Cotação
C37: 29 | H37: Galão | J37: 0 | K37: 0.0507 | L37: 0 | M37: Cotação
C38: 30 | H38: Pacote | J38: 0 | K38: 0.0507 | L38: 0 | M38: Cotação
C39: 31 | H39: Caixa | J39: 0 | K39: 0.0507 | L39: 0 | M39: Cotação
C40: 32 | H40: Galão | J40: 0 | K40: 0.0507 | L40: 0 | M40: Cotação
C41: 33 | H41: Unidade | J41: 0 | K41: 0.0507 | L41: 0 | M41: Cotação
C42: 34 | H42: Unidade | J42: =I42*G42 -> 0 | K42: 0.0507 | L42: =ROUND(J42*(1+K42),2) -> 0 | M42: Cotação
C43: 35 | H43: Unidade | J43: =I43*G43 -> 0 | K43: 0.0507 | L43: =ROUND(J43*(1+K43),2) -> 0 | M43: Cotação
C44: 36 | H44: Unidade | J44: 0 | K44: 0.0507 | L44: 0 | M44: Cotação
C45: 37 | H45: Unidade | J45: 0 | K45: 0.0507 | L45: 0 | M45: Cotação
C46: 38 | H46: Unidade | J46: 0 | K46: 0.0507 | L46: 0 | M46: Cotação
C47: 39 | H47: Unidade | J47: 0 | K47: 0.0507 | L47: 0 | M47: Cotação
K49: SOMATÓRIO TOTAL MENSAL | L49: =L50/12 -> 0
K50: SOMATÓRIO TOTAL ANUAL | L50: =SUM(L8:L48) -> 0

Sheet Não Rel - Mat Cons Durável (hidden)
B4: MATERIAIS DE CONSUMO PERMANENTE NÃO RELACIONADOS DIRETAMENTE A UM POSTO DE TRABALHO - AQUISIÇÃO SOB DEMANDA
C7: ITEM | D7: CÓDIGO | E7: DESCRIÇÃO | F7: ESTOQUE INICIAL | G7: QUANT ANUAL | H7: UNIDADE | I7: CUSTO UNITÁRIO | J7: CUSTO TOTAL | K7: BDI (%) | L7: PREÇO TOTAL | M7: FONTE | N7: REFERÊNCIA
C9: 1 | H9: Unidade | J9: =I9*G9 -> 0 | K9: =BDI!E26 -> 0.0507 | L9: =ROUND(J9*(1+K9),2) -> 0 | M9: Cotação
C10: 2 | H10: Unidade | J10: =I10*G10 -> 0 | K10: =K9 -> 0.0507 | L10: =ROUND(J10*(1+K10),2) -> 0 | M10: Cotação
C11: 3 | H11: Unidade | J11: 0 | K11: =K10 -> 0.0507 | L11: 0 | M11: Cotação
C12: 4 | H12: Metro | J12: 0 | K12: 0.0507 | L12: 0 | M12: Cotação
C13: 5 | H13: Unidade | J13: 0 | K13: 0.0507 | L13: 0 | M13: Cotação
C14: 6 | H14: Unidade | J14: 0 | K14: 0.0507 | L14: 0 | M14: Cotação
C15: 7 | H15: Unidade | J15: 0 | K15: 0.0507 | L15: 0 | M15: Cotação
C16: 8 | H16: Unidade | J16: 0 | K16: 0.0507 | L16: 0 | M16: Cotação
C17: 9 | H17: Unidade | J17: 0 | K17: 0.0507 | L17: 0 | M17: Cotação
C18: 10 | H18: Unidade | J18: 0 | K18: 0.0507 | L18: 0 | M18: Cotação
C19: 11 | H19: Unidade | J19: 0 | K19: 0.0507 | L19: 0 | M19: Cotação
C20: 12 | H20: Unidade | J20: 0 | K20: 0.0507 | L20: 0 | M20: Cotação
C21: 13 | H21: Unidade | J21: 0 | K21: 0.0507 | L21: 0 | M21: Cotação
C22: 14 | H22: Unidade | J22: 0 | K22: 0.0507 | L22: 0 | M22: Cotação
C23: 15 | H23: Unidade | J23: 0 | K23: 0.0507 | L23: 0 | M23: Cotação
C24: 16 | H24: Unidade | J24: 0 | K24: 0.0507 | L24: 0 | M24: Cotação
C25: 17 | H25: Unidade | J25: 0 | K25: 0.0507 | L25: 0 | M25: Cotação
C26: 18 | H26: Unidade | J26: 0 | K26: 0.0507 | L26: 0 | M26: Cotação
C27: 19 | H27: Unidade | J27: 0 | K27: 0.0507 | L27: 0 | M27: Cotação
C28: 20 | H28: Unidade | J28: 0 | K28: 0.0507 | L28: 0 | M28: Cotação
C29: 21 | H29: Unidade | J29: 0 | K29: 0.0507 | L29: 0 | M29: Cotação
C30: 22 | H30: Unidade | J30: 0 | K30: 0.0507 | L30: 0 | M30: Cotação
C31: 23 | H31: Unidade | J31: 0 | K31: 0.0507 | L31: 0 | M31: Cotação
C32: 24 | H32: Unidade | J32: 0 | K32: 0.0507 | L32: 0 | M32: Cotação
C33: 25 | H33: Unidade | J33: 0 | K33: 0.0507 | L33: 0 | M33: Cotação
K35: SOMATÓRIO TOTAL MENSAL | L35: =L36/12 -> 0
K36: SOMATÓRIO TOTAL ANUAL | L36: =SUM(L8:L34) -> 0

Sheet Não Rel - Serviços (hidden)
B3: SERVIÇOS NÃO RELACIONADOS DIRETAMENTE A UM POSTO DE TRABALHO - AQUISIÇÃO SOB DEMANDA
C6: ITEM | D6: CÓDIGO | E6: DESCRIÇÃO | F6: QUANT ANUAL | G6: UNIDADE | H6: CUSTO UNITÁRIO | I6: CUSTO TOTAL | J6: BDI (%) | K6: PREÇO TOTAL | L6: FONTE | M6: REFERÊNCIA
C8: 1 | I8: =H8*F8 -> 0 | J8: =BDI!E17 -> 0 | K8: =ROUND(I8*(1+J8),2) -> 0 | L8: Cotação
J10: SOMATÓRIO TOTAL MENSAL | K10: =K11/12 -> 0
J11: SOMATÓRIO TOTAL ANUAL | K11: =SUM(K7:K9) -> 0

Sheet Not. Demanda (hidden)
C1: CÂMARA DOS DEPUTADOS
C2: DEPARTAMENTO TÉCNICO
C3: Coordenação de Planejamento e Gestão
C5: Data: | D5: ='Dados Gerais'!#REF! -> 
C6: Processo: | D6: ='Dados Gerais'!#REF! -> 
C7: Objeto: | D7: ='Dados Gerais'!#REF! -> 
B11: ADICIONAL NOTURNO SOB DEMANDA
C14: CATEGORIAS | G14: HORAS / MÊS | H14: % NOTURNA
C16: 1 | D16: =HLOOKUP($C16,'Dados Gerais'!$D$5:$BJ$10,6) -> ADOLESCENTE APRENDIZ | G16: 0 | H16: 0.2
C17: 3 | D17: =HLOOKUP($C17,'Dados Gerais'!$D$5:$BJ$10,6) -> 0 | G17: 0 | H17: 0.2
C20: AJUSTE DE HORAS FICTAS | E20: AJUSTE H.NOT | F20: HORA NORMAL | G20: H.FICTAS/MÊS | H20: H.ÚTEIS/MÊS
C22: 1 | D22: =HLOOKUP($C22,'Dados Gerais'!$D$5:$BJ$10,6) -> ADOLESCENTE APRENDIZ | E22: 52.5 | F22: 60 | G22: =G16*(F22/E22) -> 0 | H22: =HLOOKUP(C22,'Dados Gerais'!$D$5:$F$16,12,0) -> 100
C23: 3 | D23: =HLOOKUP($C23,'Dados Gerais'!$D$5:$BJ$10,6) -> 0 | E23: 52.5 | F23: 60 | G23: =G17*(F23/E23) -> 0 | H23: =HLOOKUP(C23,'Dados Gerais'!$D$5:$F$16,12,0) -> 0
C26: VALOR DO ADICIONAL NOTURNO | F26: SALÁRIO MÊS | G26: VL.H.NORMAL | H26: ADIC.H.FICTAS
C28: 1 | D28: =HLOOKUP($C28,'Dados Gerais'!$D$5:$BJ$10,6) -> ADOLESCENTE APRENDIZ | F28: =HLOOKUP(C28,'Dados Gerais'!$D$5:$F$12,8,0) -> 1320 | G28: =F28/H22 -> 13.2 | H28: =G28*(H16) -> 2.64
C29: 3 | D29: =HLOOKUP($C29,'Dados Gerais'!$D$5:$BJ$10,6) -> 0 | F29: =HLOOKUP(C29,'Dados Gerais'!$D$5:$F$12,8,0) -> 0 | G29: =F29/H23 ->  | H29: =G29*(H17) -> 
C32: RESUMO DO ADICIONAL NOTURNO SOB DEMANDA
C33: TOTAIS MENSAIS | G33: PREÇO MENSAL
C35: 1 | D35: =HLOOKUP($C35,'Dados Gerais'!$D$5:$BJ$10,6) -> ADOLESCENTE APRENDIZ | G35: =H28*G22 -> 0
C36: 3 | D36: =HLOOKUP($C36,'Dados Gerais'!$D$5:$BJ$10,6) -> 0 | G36: =H29*G23 -> 
F38: SOMATÓRIO TOTAL MENSAL | G38: =SUM(G35:G37) -> 
F39: SOMATÓRIO TOTAL ANUAL | G39: =G38*12 -> 
C42: ENCARGOS SOCIAIS E BDI SOBRE ADICIONAL NOTURNO SOB DEMANDA
C43: TOTAIS MENSAIS | F43: PERCENTUAIS | G43: PREÇO MENSAL
D45: ENCARGOS SOCIAIS | F45: ='Encargos Sociais (APRENDIZ)'!$E$46 -> 0.2183 | G45: =F45*G38 -> 
D46: BDI | F46: =BDI!$E$26 -> 0.0507 | G46: =F46*(G38+G45) -> 
F48: SOMATÓRIO TOTAL MENSAL | G48: =SUM(G45:G47) -> 
F49: SOMATÓRIO TOTAL ANUAL | G49: =G48*12 -> 
C52: VALOR TOTAL ADICIONAL NOTURNO SOB DEMANDA (COM ENCARGOS SOCIAIS E BDI INCLUSOS)
C53: TOTAIS MENSAIS | F53: PERCENTUAIS | G53: PREÇO MENSAL
D55: ENCARGOS SOCIAIS | F55: ='Encargos Sociais (APRENDIZ)'!$E$46 -> 0.2183 | G55: =G35+G45 -> 
D56: BDI | F56: =BDI!$E$26 -> 0.0507 | G56: =G36+G46 -> 
F58: SOMATÓRIO TOTAL MENSAL | G58: =SUM(G55:G57) -> 
F59: SOMATÓRIO TOTAL ANUAL | G59: =G58*12 -> 

Sheet Mat Cons (hidden)
C1: CÂMARA DOS DEPUTADOS
C2: DEPARTAMENTO TÉCNICO
C3: Coordenação de Planejamento e Gestão
C5: Data: | D5: ='Dados Gerais'!#REF! -> 
C6: Processo: | D6: ='Dados Gerais'!#REF! -> 
C7: Objeto: | D7: ='Dados Gerais'!#REF! -> 
B11: MATERIAIS DE CONSUMO RELACIONADOS AO POSTO - AQUISIÇÃO | I11: 1 | K11: =I11+1 -> 2 | M11: =K11+1 -> 3 | O11: =M11+1 -> 4 | Q11: =O11+1 -> 5 | S11: =Q11+1 -> 6 | U11: =S11+1 -> 7 | W11: =U11+1 -> 8 | Y11: =W11+1 -> 9 | AA11: =Y11+1 -> 10 | AC11: =AA11+1 -> 11 | AE11: =AC11+1 -> 12 | AG11: =AE11+1 -> 13 | AI11: =AG11+1 -> 14 | AK11: =AI11+1 -> 15 | AM11: =AK11+1 -> 16 | AO11: =AM11+1 -> 17 | AQ11: =AO11+1 -> 18 | AS11: =AQ11+1 -> 19 | AU11: =AS11+1 -> 20 | AW11: =AU11+1 -> 21 | AY11: =AW11+1 -> 22 | BA11: =AY11+1 -> 23 | BC11: =BA11+1 -> 24 | BE11: =BC11+1 -> 25 | BG11: =BE11+1 -> 26 | BI11: =BG11+1 -> 27 | BK11: =BI11+1 -> 28 | BM11: =BK11+1 -> 29 | BO11: =BM11+1 -> 30 | BQ11: =BO11+1 -> 31 | BS11: =BQ11+1 -> 32 | BU11: =BS11+1 -> 33 | BW11: =BU11+1 -> 34 | BY11: =BW11+1 -> 35 | CA11: =BY11+1 -> 36 | CC11: =CA11+1 -> 37 | CE11: =CC11+1 -> 38 | CG11: =CE11+1 -> 39 | CI11: =CG11+1 -> 40 | CK11: =CI11+1 -> 41 | CM11: =CK11+1 -> 42 | CO11: =CM11+1 -> 43 | CQ11: =CO11+1 -> 44 | CS11: =CQ11+1 -> 45 | CU11: =CS11+1 -> 46 | CW11: =CU11+1 -> 47 | CY11: =CW11+1 -> 48 | DA11: =CY11+1 -> 49 | DC11: =DA11+1 -> 50 | DE11: =DC11+1 -> 51 | DG11: =DE11+1 -> 52 | DI11: =DG11+1 -> 53 | DK11: =DI11+1 -> 54 | DM11: =DK11+1 -> 55 | DO11: =DM11+1 -> 56 | DQ11: =DO11+1 -> 57 | DS11: =DQ11+1 -> 58 | DU11: =DS11+1 -> 59 | DW11: =DU11+1 -> 60
I13: =ROUND(SUM(J12:J65),2) -> 0 | K13: =ROUND(SUM(L12:L65),2) -> 0 | M13: =ROUND(SUM(N12:N65),2) -> 0 | O13: =ROUND(SUM(P12:P65),2) -> 0 | Q13: =ROUND(SUM(R12:R65),2) -> 0 | S13: =ROUND(SUM(T12:T65),2) -> 0 | U13: =ROUND(SUM(V12:V65),2) -> 0 | W13: =ROUND(SUM(X12:X65),2) -> 0 | Y13: =ROUND(SUM(Z12:Z65),2) -> 0 | AA13: =ROUND(SUM(AB12:AB65),2) -> 0 | AC13: =ROUND(SUM(AD12:AD65),2) -> 0 | AE13: =ROUND(SUM(AF12:AF65),2) -> 0 | AG13: =ROUND(SUM(AH12:AH65),2) -> 0 | AI13: =ROUND(SUM(AJ12:AJ65),2) -> 0 | AK13: =ROUND(SUM(AL12:AL65),2) -> 0 | AM13: =ROUND(SUM(AN12:AN65),2) -> 0 | AO13: =ROUND(SUM(AP12:AP65),2) -> 0 | AQ13: =ROUND(SUM(AR12:AR65),2) -> 0 | AS13: =ROUND(SUM(AT12:AT65),2) -> 0 | AU13: =ROUND(SUM(AV12:AV65),2) -> 0 | AW13: =ROUND(SUM(AX12:AX65),2) -> 0 | AY13: =ROUND(SUM(AZ12:AZ65),2) -> 0 | BA13: =ROUND(SUM(BB12:BB65),2) -> 0 | BC13: =ROUND(SUM(BD12:BD65),2) -> 0 | BE13: =ROUND(SUM(BF12:BF65),2) -> 0 | BG13: =ROUND(SUM(BH12:BH65),2) -> 0 | BI13: =ROUND(SUM(BJ12:BJ65),2) -> 0 | BK13: =ROUND(SUM(BL12:BL65),2) -> 0 | BM13: =ROUND(SUM(BN12:BN65),2) -> 0 | BO13: =ROUND(SUM(BP12:BP65),2) -> 0 | BQ13: =ROUND(SUM(BR12:BR65),2) -> 0 | BS13: =ROUND(SUM(BT12:BT65),2) -> 0 | BU13: =ROUND(SUM(BV12:BV65),2) -> 0 | BW13: =ROUND(SUM(BX12:BX65),2) -> 0 | BY13: =ROUND(SUM(BZ12:BZ65),2) -> 0 | CA13: =ROUND(SUM(CB12:CB65),2) -> 0 | CC13: =ROUND(SUM(CD12:CD65),2) -> 0 | CE13: =ROUND(SUM(CF12:CF65),2) -> 0 | CG13: =ROUND(SUM(CH12:CH65),2) -> 0 | CI13: =ROUND(SUM(CJ12:CJ65),2) -> 0 | CK13: =ROUND(SUM(CL12:CL65),2) -> 0 | CM13: =ROUND(SUM(CN12:CN65),2) -> 0 | CO13: =ROUND(SUM(CP12:CP65),2) -> 0 | CQ13: =ROUND(SUM(CR12:CR65),2) -> 0 | CS13: =ROUND(SUM(CT12:CT65),2) -> 0 | CU13: =ROUND(SUM(CV12:CV65),2) -> 0 | CW13: =ROUND(SUM(CX12:CX65),2) -> 0 | CY13: =ROUND(SUM(CZ12:CZ65),2) -> 0 | DA13: =ROUND(SUM(DB12:DB65),2) -> 0 | DC13: =ROUND(SUM(DD12:DD65),2) -> 0 | DE13: =ROUND(SUM(DF12:DF65),2) -> 0 | DG13: =ROUND(SUM(DH12:DH65),2) -> 0 | DI13: =ROUND(SUM(DJ12:DJ65),2) -> 0 | DK13: =ROUND(SUM(DL12:DL65),2) -> 0 | DM13: =ROUND(SUM(DN12:DN65),2) -> 0 | DO13: =ROUND(SUM(DP12:DP65),2) -> 0 | DQ13: =ROUND(SUM(DR12:DR65),2) -> 0 | DS13: =ROUND(SUM(DT12:DT65),2) -> 0 | DU13: =ROUND(SUM(DV12:DV65),2) -> 0 | DW13: =ROUND(SUM(DX12:DX65),2) -> 0
C14: CATEGORIAS | F14: QUANTIDADE
I15: =IF($C15=I$11,1,0) -> 0
I16: 0 | K16: =IF($C16=K$11,1,0) -> 0 | M16: =IF($C16=M$11,1,0) -> 0 | O16: =IF($C16=O$11,1,0) -> 0 | Q16: =IF($C16=Q$11,1,0) -> 0 | S16: =IF($C16=S$11,1,0) -> 0 | U16: =IF($C16=U$11,1,0) -> 0 | W16: =IF($C16=W$11,1,0) -> 0 | Y16: =IF($C16=Y$11,1,0) -> 0 | AA16: =IF($C16=AA$11,1,0) -> 0 | AC16: =IF($C16=AC$11,1,0) -> 0 | AE16: =IF($C16=AE$11,1,0) -> 0 | AG16: =IF($C16=AG$11,1,0) -> 0 | AI16: =IF($C16=AI$11,1,0) -> 0 | AK16: =IF($C16=AK$11,1,0) -> 0 | AM16: =IF($C16=AM$11,1,0) -> 0 | AO16: =IF($C16=AO$11,1,0) -> 0 | AQ16: =IF($C16=AQ$11,1,0) -> 0 | AS16: =IF($C16=AS$11,1,0) -> 0 | AU16: =IF($C16=AU$11,1,0) -> 0 | AW16: =IF($C16=AW$11,1,0) -> 0 | AY16: =IF($C16=AY$11,1,0) -> 0 | BA16: =IF($C16=BA$11,1,0) -> 0 | BC16: =IF($C16=BC$11,1,0) -> 0 | BE16: =IF($C16=BE$11,1,0) -> 0 | BG16: =IF($C16=BG$11,1,0) -> 0 | BI16: =IF($C16=BI$11,1,0) -> 0 | BK16: =IF($C16=BK$11,1,0) -> 0 | BM16: =IF($C16=BM$11,1,0) -> 0 | BO16: =IF($C16=BO$11,1,0) -> 0 | BQ16: =IF($C16=BQ$11,1,0) -> 0 | BS16: =IF($C16=BS$11,1,0) -> 0 | BU16: =IF($C16=BU$11,1,0) -> 0 | BW16: =IF($C16=BW$11,1,0) -> 0 | BY16: =IF($C16=BY$11,1,0) -> 0 | CA16: =IF($C16=CA$11,1,0) -> 0 | CC16: =IF($C16=CC$11,1,0) -> 0 | CE16: =IF($C16=CE$11,1,0) -> 0 | CG16: =IF($C16=CG$11,1,0) -> 0 | CI16: =IF($C16=CI$11,1,0) -> 0 | CK16: =IF($C16=CK$11,1,0) -> 0 | CM16: =IF($C16=CM$11,1,0) -> 0 | CO16: =IF($C16=CO$11,1,0) -> 0 | CQ16: =IF($C16=CQ$11,1,0) -> 0 | CS16: =IF($C16=CS$11,1,0) -> 0 | CU16: =IF($C16=CU$11,1,0) -> 0 | CW16: =IF($C16=CW$11,1,0) -> 0 | CY16: =IF($C16=CY$11,1,0) -> 0 | DA16: =IF($C16=DA$11,1,0) -> 0 | DC16: =IF($C16=DC$11,1,0) -> 0 | DE16: =IF($C16=DE$11,1,0) -> 0 | DG16: =IF($C16=DG$11,1,0) -> 0 | DI16: =IF($C16=DI$11,1,0) -> 0 | DK16: =IF($C16=DK$11,1,0) -> 0 | DM16: =IF($C16=DM$11,1,0) -> 0 | DO16: =IF($C16=DO$11,1,0) -> 0 | DQ16: =IF($C16=DQ$11,1,0) -> 0 | DS16: =IF($C16=DS$11,1,0) -> 0 | DU16: =IF($C16=DU$11,1,0) -> 0 | DW16: =IF($C16=DW$11,1,0) -> 0
I17: 0 | K17: 0 | M17: 0 | O17: 0 | Q17: 0 | S17: 0 | U17: 0 | W17: 0 | Y17: 0 | AA17: 0 | AC17: 0 | AE17: 0 | AG17: 0 | AI17: 0 | AK17: 0 | AM17: 0 | AO17: 0 | AQ17: 0 | AS17: 0 | AU17: 0 | AW17: 0 | AY17: 0 | BA17: 0 | BC17: 0 | BE17: 0 | BG17: 0 | BI17: 0 | BK17: 0 | BM17: 0 | BO17: 0 | BQ17: 0 | BS17: 0 | BU17: 0 | BW17: 0 | BY17: 0 | CA17: 0 | CC17: 0 | CE17: 0 | CG17: 0 | CI17: 0 | CK17: 0 | CM17: 0 | CO17: 0 | CQ17: 0 | CS17: 0 | CU17: 0 | CW17: 0 | CY17: 0 | DA17: 0 | DC17: 0 | DE17: 0 | DG17: 0 | DI17: 0 | DK17: 0 | DM17: 0 | DO17: 0 | DQ17: 0 | DS17: 0 | DU17: 0 | DW17: 0
I18: 0 | K18: 0 | M18: 0 | O18: 0 | Q18: 0 | S18: 0 | U18: 0 | W18: 0 | Y18: 0 | AA18: 0 | AC18: 0 | AE18: 0 | AG18: 0 | AI18: 0 | AK18: 0 | AM18: 0 | AO18: 0 | AQ18: 0 | AS18: 0 | AU18: 0 | AW18: 0 | AY18: 0 | BA18: 0 | BC18: 0 | BE18: 0 | BG18: 0 | BI18: 0 | BK18: 0 | BM18: 0 | BO18: 0 | BQ18: 0 | BS18: 0 | BU18: 0 | BW18: 0 | BY18: 0 | CA18: 0 | CC18: 0 | CE18: 0 | CG18: 0 | CI18: 0 | CK18: 0 | CM18: 0 | CO18: 0 | CQ18: 0 | CS18: 0 | CU18: 0 | CW18: 0 | CY18: 0 | DA18: 0 | DC18: 0 | DE18: 0 | DG18: 0 | DI18: 0 | DK18: 0 | DM18: 0 | DO18: 0 | DQ18: 0 | DS18: 0 | DU18: 0 | DW18: 0
I19: 0 | K19: 0 | M19: 0 | O19: 0 | Q19: 0 | S19: 0 | U19: 0 | W19: 0 | Y19: 0 | AA19: 0 | AC19: 0 | AE19: 0 | AG19: 0 | AI19: 0 | AK19: 0 | AM19: 0 | AO19: 0 | AQ19: 0 | AS19: 0 | AU19: 0 | AW19: 0 | AY19: 0 | BA19: 0 | BC19: 0 | BE19: 0 | BG19: 0 | BI19: 0 | BK19: 0 | BM19: 0 | BO19: 0 | BQ19: 0 | BS19: 0 | BU19: 0 | BW19: 0 | BY19: 0 | CA19: 0 | CC19: 0 | CE19: 0 | CG19: 0 | CI19: 0 | CK19: 0 | CM19: 0 | CO19: 0 | CQ19: 0 | CS19: 0 | CU19: 0 | CW19: 0 | CY19: 0 | DA19: 0 | DC19: 0 | DE19: 0 | DG19: 0 | DI19: 0 | DK19: 0 | DM19: 0 | DO19: 0 | DQ19: 0 | DS19: 0 | DU19: 0 | DW19: 0
I20: 0 | K20: 0 | M20: 0 | O20: 0 | Q20: 0 | S20: 0 | U20: 0 | W20: 0 | Y20: 0 | AA20: 0 | AC20: 0 | AE20: 0 | AG20: 0 | AI20: 0 | AK20: 0 | AM20: 0 | AO20: 0 | AQ20: 0 | AS20: 0 | AU20: 0 | AW20: 0 | AY20: 0 | BA20: 0 | BC20: 0 | BE20: 0 | BG20: 0 | BI20: 0 | BK20: 0 | BM20: 0 | BO20: 0 | BQ20: 0 | BS20: 0 | BU20: 0 | BW20: 0 | BY20: 0 | CA20: 0 | CC20: 0 | CE20: 0 | CG20: 0 | CI20: 0 | CK20: 0 | CM20: 0 | CO20: 0 | CQ20: 0 | CS20: 0 | CU20: 0 | CW20: 0 | CY20: 0 | DA20: 0 | DC20: 0 | DE20: 0 | DG20: 0 | DI20: 0 | DK20: 0 | DM20: 0 | DO20: 0 | DQ20: 0 | DS20: 0 | DU20: 0 | DW20: 0
I21: 0 | K21: 0 | M21: 0 | O21: 0 | Q21: 0 | S21: 0 | U21: 0 | W21: 0 | Y21: 0 | AA21: 0 | AC21: 0 | AE21: 0 | AG21: 0 | AI21: 0 | AK21: 0 | AM21: 0 | AO21: 0 | AQ21: 0 | AS21: 0 | AU21: 0 | AW21: 0 | AY21: 0 | BA21: 0 | BC21: 0 | BE21: 0 | BG21: 0 | BI21: 0 | BK21: 0 | BM21: 0 | BO21: 0 | BQ21: 0 | BS21: 0 | BU21: 0 | BW21: 0 | BY21: 0 | CA21: 0 | CC21: 0 | CE21: 0 | CG21: 0 | CI21: 0 | CK21: 0 | CM21: 0 | CO21: 0 | CQ21: 0 | CS21: 0 | CU21: 0 | CW21: 0 | CY21: 0 | DA21: 0 | DC21: 0 | DE21: 0 | DG21: 0 | DI21: 0 | DK21: 0 | DM21: 0 | DO21: 0 | DQ21: 0 | DS21: 0 | DU21: 0 | DW21: 0
I22: 0
C24: ITEM | D24: DESCRIÇÃO | E24: QUANT ANUAL | F24: VALOR
J25: =IF(SUM(I$15:I$22)>0,$E25*$F25,0) -> 0 | L25: =IF(SUM(K$15:K$22)>0,$E25*$F25,0) -> 0 | N25: =IF(SUM(M$15:M$22)>0,$E25*$F25,0) -> 0 | P25: =IF(SUM(O$15:O$22)>0,$E25*$F25,0) -> 0 | R25: =IF(SUM(Q$15:Q$22)>0,$E25*$F25,0) -> 0 | T25: =IF(SUM(S$15:S$22)>0,$E25*$F25,0) -> 0 | V25: =IF(SUM(U$15:U$22)>0,$E25*$F25,0) -> 0 | X25: =IF(SUM(W$15:W$22)>0,$E25*$F25,0) -> 0 | Z25: =IF(SUM(Y$15:Y$22)>0,$E25*$F25,0) -> 0 | AB25: =IF(SUM(AA$15:AA$22)>0,$E25*$F25,0) -> 0 | AD25: =IF(SUM(AC$15:AC$22)>0,$E25*$F25,0) -> 0 | AF25: =IF(SUM(AE$15:AE$22)>0,$E25*$F25,0) -> 0 | AH25: =IF(SUM(AG$15:AG$22)>0,$E25*$F25,0) -> 0 | AJ25: =IF(SUM(AI$15:AI$22)>0,$E25*$F25,0) -> 0 | AL25: =IF(SUM(AK$15:AK$22)>0,$E25*$F25,0) -> 0 | AN25: =IF(SUM(AM$15:AM$22)>0,$E25*$F25,0) -> 0 | AP25: =IF(SUM(AO$15:AO$22)>0,$E25*$F25,0) -> 0 | AR25: =IF(SUM(AQ$15:AQ$22)>0,$E25*$F25,0) -> 0 | AT25: =IF(SUM(AS$15:AS$22)>0,$E25*$F25,0) -> 0 | AV25: =IF(SUM(AU$15:AU$22)>0,$E25*$F25,0) -> 0 | AX25: =IF(SUM(AW$15:AW$22)>0,$E25*$F25,0) -> 0 | AZ25: =IF(SUM(AY$15:AY$22)>0,$E25*$F25,0) -> 0 | BB25: =IF(SUM(BA$15:BA$22)>0,$E25*$F25,0) -> 0 | BD25: =IF(SUM(BC$15:BC$22)>0,$E25*$F25,0) -> 0 | BF25: =IF(SUM(BE$15:BE$22)>0,$E25*$F25,0) -> 0 | BH25: =IF(SUM(BG$15:BG$22)>0,$E25*$F25,0) -> 0 | BJ25: =IF(SUM(BI$15:BI$22)>0,$E25*$F25,0) -> 0 | BL25: =IF(SUM(BK$15:BK$22)>0,$E25*$F25,0) -> 0 | BN25: =IF(SUM(BM$15:BM$22)>0,$E25*$F25,0) -> 0 | BP25: =IF(SUM(BO$15:BO$22)>0,$E25*$F25,0) -> 0 | BR25: =IF(SUM(BQ$15:BQ$22)>0,$E25*$F25,0) -> 0 | BT25: =IF(SUM(BS$15:BS$22)>0,$E25*$F25,0) -> 0 | BV25: =IF(SUM(BU$15:BU$22)>0,$E25*$F25,0) -> 0 | BX25: =IF(SUM(BW$15:BW$22)>0,$E25*$F25,0) -> 0 | BZ25: =IF(SUM(BY$15:BY$22)>0,$E25*$F25,0) -> 0 | CB25: =IF(SUM(CA$15:CA$22)>0,$E25*$F25,0) -> 0 | CD25: =IF(SUM(CC$15:CC$22)>0,$E25*$F25,0) -> 0 | CF25: =IF(SUM(CE$15:CE$22)>0,$E25*$F25,0) -> 0 | CH25: =IF(SUM(CG$15:CG$22)>0,$E25*$F25,0) -> 0 | CJ25: =IF(SUM(CI$15:CI$22)>0,$E25*$F25,0) -> 0 | CL25: =IF(SUM(CK$15:CK$22)>0,$E25*$F25,0) -> 0 | CN25: =IF(SUM(CM$15:CM$22)>0,$E25*$F25,0) -> 0 | CP25: =IF(SUM(CO$15:CO$22)>0,$E25*$F25,0) -> 0 | CR25: =IF(SUM(CQ$15:CQ$22)>0,$E25*$F25,0) -> 0 | CT25: =IF(SUM(CS$15:CS$22)>0,$E25*$F25,0) -> 0 | CV25: =IF(SUM(CU$15:CU$22)>0,$E25*$F25,0) -> 0 | CX25: =IF(SUM(CW$15:CW$22)>0,$E25*$F25,0) -> 0 | CZ25: =IF(SUM(CY$15:CY$22)>0,$E25*$F25,0) -> 0 | DB25: =IF(SUM(DA$15:DA$22)>0,$E25*$F25,0) -> 0 | DD25: =IF(SUM(DC$15:DC$22)>0,$E25*$F25,0) -> 0 | DF25: =IF(SUM(DE$15:DE$22)>0,$E25*$F25,0) -> 0 | DH25: =IF(SUM(DG$15:DG$22)>0,$E25*$F25,0) -> 0 | DJ25: =IF(SUM(DI$15:DI$22)>0,$E25*$F25,0) -> 0 | DL25: =IF(SUM(DK$15:DK$22)>0,$E25*$F25,0) -> 0 | DN25: =IF(SUM(DM$15:DM$22)>0,$E25*$F25,0) -> 0 | DP25: =IF(SUM(DO$15:DO$22)>0,$E25*$F25,0) -> 0 | DR25: =IF(SUM(DQ$15:DQ$22)>0,$E25*$F25,0) -> 0 | DT25: =IF(SUM(DS$15:DS$22)>0,$E25*$F25,0) -> 0 | DV25: =IF(SUM(DU$15:DU$22)>0,$E25*$F25,0) -> 0 | DX25: =IF(SUM(DW$15:DW$22)>0,$E25*$F25,0) -> 0
J26: =IF(SUM(I$15:I$22)>0,$E26*$F26,0) -> 0 | L26: =IF(SUM(K$15:K$22)>0,$E26*$F26,0) -> 0 | N26: =IF(SUM(M$15:M$22)>0,$E26*$F26,0) -> 0 | P26: =IF(SUM(O$15:O$22)>0,$E26*$F26,0) -> 0 | R26: =IF(SUM(Q$15:Q$22)>0,$E26*$F26,0) -> 0 | T26: =IF(SUM(S$15:S$22)>0,$E26*$F26,0) -> 0 | V26: =IF(SUM(U$15:U$22)>0,$E26*$F26,0) -> 0 | X26: =IF(SUM(W$15:W$22)>0,$E26*$F26,0) -> 0 | Z26: =IF(SUM(Y$15:Y$22)>0,$E26*$F26,0) -> 0 | AB26: =IF(SUM(AA$15:AA$22)>0,$E26*$F26,0) -> 0 | AD26: =IF(SUM(AC$15:AC$22)>0,$E26*$F26,0) -> 0 | AF26: =IF(SUM(AE$15:AE$22)>0,$E26*$F26,0) -> 0 | AH26: =IF(SUM(AG$15:AG$22)>0,$E26*$F26,0) -> 0 | AJ26: =IF(SUM(AI$15:AI$22)>0,$E26*$F26,0) -> 0 | AL26: =IF(SUM(AK$15:AK$22)>0,$E26*$F26,0) -> 0 | AN26: =IF(SUM(AM$15:AM$22)>0,$E26*$F26,0) -> 0 | AP26: =IF(SUM(AO$15:AO$22)>0,$E26*$F26,0) -> 0 | AR26: =IF(SUM(AQ$15:AQ$22)>0,$E26*$F26,0) -> 0 | AT26: =IF(SUM(AS$15:AS$22)>0,$E26*$F26,0) -> 0 | AV26: =IF(SUM(AU$15:AU$22)>0,$E26*$F26,0) -> 0 | AX26: =IF(SUM(AW$15:AW$22)>0,$E26*$F26,0) -> 0 | AZ26: =IF(SUM(AY$15:AY$22)>0,$E26*$F26,0) -> 0 | BB26: =IF(SUM(BA$15:BA$22)>0,$E26*$F26,0) -> 0 | BD26: =IF(SUM(BC$15:BC$22)>0,$E26*$F26,0) -> 0 | BF26: =IF(SUM(BE$15:BE$22)>0,$E26*$F26,0) -> 0 | BH26: =IF(SUM(BG$15:BG$22)>0,$E26*$F26,0) -> 0 | BJ26: =IF(SUM(BI$15:BI$22)>0,$E26*$F26,0) -> 0 | BL26: =IF(SUM(BK$15:BK$22)>0,$E26*$F26,0) -> 0 | BN26: =IF(SUM(BM$15:BM$22)>0,$E26*$F26,0) -> 0 | BP26: =IF(SUM(BO$15:BO$22)>0,$E26*$F26,0) -> 0 | BR26: =IF(SUM(BQ$15:BQ$22)>0,$E26*$F26,0) -> 0 | BT26: =IF(SUM(BS$15:BS$22)>0,$E26*$F26,0) -> 0 | BV26: =IF(SUM(BU$15:BU$22)>0,$E26*$F26,0) -> 0 | BX26: =IF(SUM(BW$15:BW$22)>0,$E26*$F26,0) -> 0 | BZ26: =IF(SUM(BY$15:BY$22)>0,$E26*$F26,0) -> 0 | CB26: =IF(SUM(CA$15:CA$22)>0,$E26*$F26,0) -> 0 | CD26: =IF(SUM(CC$15:CC$22)>0,$E26*$F26,0) -> 0 | CF26: =IF(SUM(CE$15:CE$22)>0,$E26*$F26,0) -> 0 | CH26: =IF(SUM(CG$15:CG$22)>0,$E26*$F26,0) -> 0 | CJ26: =IF(SUM(CI$15:CI$22)>0,$E26*$F26,0) -> 0 | CL26: =IF(SUM(CK$15:CK$22)>0,$E26*$F26,0) -> 0 | CN26: =IF(SUM(CM$15:CM$22)>0,$E26*$F26,0) -> 0 | CP26: =IF(SUM(CO$15:CO$22)>0,$E26*$F26,0) -> 0 | CR26: =IF(SUM(CQ$15:CQ$22)>0,$E26*$F26,0) -> 0 | CT26: =IF(SUM(CS$15:CS$22)>0,$E26*$F26,0) -> 0 | CV26: =IF(SUM(CU$15:CU$22)>0,$E26*$F26,0) -> 0 | CX26: =IF(SUM(CW$15:CW$22)>0,$E26*$F26,0) -> 0 | CZ26: =IF(SUM(CY$15:CY$22)>0,$E26*$F26,0) -> 0 | DB26: =IF(SUM(DA$15:DA$22)>0,$E26*$F26,0) -> 0 | DD26: =IF(SUM(DC$15:DC$22)>0,$E26*$F26,0) -> 0 | DF26: =IF(SUM(DE$15:DE$22)>0,$E26*$F26,0) -> 0 | DH26: =IF(SUM(DG$15:DG$22)>0,$E26*$F26,0) -> 0 | DJ26: =IF(SUM(DI$15:DI$22)>0,$E26*$F26,0) -> 0 | DL26: =IF(SUM(DK$15:DK$22)>0,$E26*$F26,0) -> 0 | DN26: =IF(SUM(DM$15:DM$22)>0,$E26*$F26,0) -> 0 | DP26: =IF(SUM(DO$15:DO$22)>0,$E26*$F26,0) -> 0 | DR26: =IF(SUM(DQ$15:DQ$22)>0,$E26*$F26,0) -> 0 | DT26: =IF(SUM(DS$15:DS$22)>0,$E26*$F26,0) -> 0 | DV26: =IF(SUM(DU$15:DU$22)>0,$E26*$F26,0) -> 0 | DX26: =IF(SUM(DW$15:DW$22)>0,$E26*$F26,0) -> 0
J27: =IF(SUM(I$15:I$22)>0,$E27*$F27,0) -> 0 | L27: =IF(SUM(K$15:K$22)>0,$E27*$F27,0) -> 0 | N27: =IF(SUM(M$15:M$22)>0,$E27*$F27,0) -> 0 | P27: =IF(SUM(O$15:O$22)>0,$E27*$F27,0) -> 0 | R27: =IF(SUM(Q$15:Q$22)>0,$E27*$F27,0) -> 0 | T27: =IF(SUM(S$15:S$22)>0,$E27*$F27,0) -> 0 | V27: =IF(SUM(U$15:U$22)>0,$E27*$F27,0) -> 0 | X27: =IF(SUM(W$15:W$22)>0,$E27*$F27,0) -> 0 | Z27: =IF(SUM(Y$15:Y$22)>0,$E27*$F27,0) -> 0 | AB27: =IF(SUM(AA$15:AA$22)>0,$E27*$F27,0) -> 0 | AD27: =IF(SUM(AC$15:AC$22)>0,$E27*$F27,0) -> 0 | AF27: =IF(SUM(AE$15:AE$22)>0,$E27*$F27,0) -> 0 | AH27: =IF(SUM(AG$15:AG$22)>0,$E27*$F27,0) -> 0 | AJ27: =IF(SUM(AI$15:AI$22)>0,$E27*$F27,0) -> 0 | AL27: =IF(SUM(AK$15:AK$22)>0,$E27*$F27,0) -> 0 | AN27: =IF(SUM(AM$15:AM$22)>0,$E27*$F27,0) -> 0 | AP27: =IF(SUM(AO$15:AO$22)>0,$E27*$F27,0) -> 0 | AR27: =IF(SUM(AQ$15:AQ$22)>0,$E27*$F27,0) -> 0 | AT27: =IF(SUM(AS$15:AS$22)>0,$E27*$F27,0) -> 0 | AV27: =IF(SUM(AU$15:AU$22)>0,$E27*$F27,0) -> 0 | AX27: =IF(SUM(AW$15:AW$22)>0,$E27*$F27,0) -> 0 | AZ27: =IF(SUM(AY$15:AY$22)>0,$E27*$F27,0) -> 0 | BB27: =IF(SUM(BA$15:BA$22)>0,$E27*$F27,0) -> 0 | BD27: =IF(SUM(BC$15:BC$22)>0,$E27*$F27,0) -> 0 | BF27: =IF(SUM(BE$15:BE$22)>0,$E27*$F27,0) -> 0 | BH27: =IF(SUM(BG$15:BG$22)>0,$E27*$F27,0) -> 0 | BJ27: =IF(SUM(BI$15:BI$22)>0,$E27*$F27,0) -> 0 | BL27: =IF(SUM(BK$15:BK$22)>0,$E27*$F27,0) -> 0 | BN27: =IF(SUM(BM$15:BM$22)>0,$E27*$F27,0) -> 0 | BP27: =IF(SUM(BO$15:BO$22)>0,$E27*$F27,0) -> 0 | BR27: =IF(SUM(BQ$15:BQ$22)>0,$E27*$F27,0) -> 0 | BT27: =IF(SUM(BS$15:BS$22)>0,$E27*$F27,0) -> 0 | BV27: =IF(SUM(BU$15:BU$22)>0,$E27*$F27,0) -> 0 | BX27: =IF(SUM(BW$15:BW$22)>0,$E27*$F27,0) -> 0 | BZ27: =IF(SUM(BY$15:BY$22)>0,$E27*$F27,0) -> 0 | CB27: =IF(SUM(CA$15:CA$22)>0,$E27*$F27,0) -> 0 | CD27: =IF(SUM(CC$15:CC$22)>0,$E27*$F27,0) -> 0 | CF27: =IF(SUM(CE$15:CE$22)>0,$E27*$F27,0) -> 0 | CH27: =IF(SUM(CG$15:CG$22)>0,$E27*$F27,0) -> 0 | CJ27: =IF(SUM(CI$15:CI$22)>0,$E27*$F27,0) -> 0 | CL27: =IF(SUM(CK$15:CK$22)>0,$E27*$F27,0) -> 0 | CN27: =IF(SUM(CM$15:CM$22)>0,$E27*$F27,0) -> 0 | CP27: =IF(SUM(CO$15:CO$22)>0,$E27*$F27,0) -> 0 | CR27: =IF(SUM(CQ$15:CQ$22)>0,$E27*$F27,0) -> 0 | CT27: =IF(SUM(CS$15:CS$22)>0,$E27*$F27,0) -> 0 | CV27: =IF(SUM(CU$15:CU$22)>0,$E27*$F27,0) -> 0 | CX27: =IF(SUM(CW$15:CW$22)>0,$E27*$F27,0) -> 0 | CZ27: =IF(SUM(CY$15:CY$22)>0,$E27*$F27,0) -> 0 | DB27: =IF(SUM(DA$15:DA$22)>0,$E27*$F27,0) -> 0 | DD27: =IF(SUM(DC$15:DC$22)>0,$E27*$F27,0) -> 0 | DF27: =IF(SUM(DE$15:DE$22)>0,$E27*$F27,0) -> 0 | DH27: =IF(SUM(DG$15:DG$22)>0,$E27*$F27,0) -> 0 | DJ27: =IF(SUM(DI$15:DI$22)>0,$E27*$F27,0) -> 0 | DL27: =IF(SUM(DK$15:DK$22)>0,$E27*$F27,0) -> 0 | DN27: =IF(SUM(DM$15:DM$22)>0,$E27*$F27,0) -> 0 | DP27: =IF(SUM(DO$15:DO$22)>0,$E27*$F27,0) -> 0 | DR27: =IF(SUM(DQ$15:DQ$22)>0,$E27*$F27,0) -> 0 | DT27: =IF(SUM(DS$15:DS$22)>0,$E27*$F27,0) -> 0 | DV27: =IF(SUM(DU$15:DU$22)>0,$E27*$F27,0) -> 0 | DX27: =IF(SUM(DW$15:DW$22)>0,$E27*$F27,0) -> 0
J28: =IF(SUM(I$15:I$22)>0,$E28*$F28,0) -> 0 | L28: =IF(SUM(K$15:K$22)>0,$E28*$F28,0) -> 0 | N28: =IF(SUM(M$15:M$22)>0,$E28*$F28,0) -> 0 | P28: =IF(SUM(O$15:O$22)>0,$E28*$F28,0) -> 0 | R28: =IF(SUM(Q$15:Q$22)>0,$E28*$F28,0) -> 0 | T28: =IF(SUM(S$15:S$22)>0,$E28*$F28,0) -> 0 | V28: =IF(SUM(U$15:U$22)>0,$E28*$F28,0) -> 0 | X28: =IF(SUM(W$15:W$22)>0,$E28*$F28,0) -> 0 | Z28: =IF(SUM(Y$15:Y$22)>0,$E28*$F28,0) -> 0 | AB28: =IF(SUM(AA$15:AA$22)>0,$E28*$F28,0) -> 0 | AD28: =IF(SUM(AC$15:AC$22)>0,$E28*$F28,0) -> 0 | AF28: =IF(SUM(AE$15:AE$22)>0,$E28*$F28,0) -> 0 | AH28: =IF(SUM(AG$15:AG$22)>0,$E28*$F28,0) -> 0 | AJ28: =IF(SUM(AI$15:AI$22)>0,$E28*$F28,0) -> 0 | AL28: =IF(SUM(AK$15:AK$22)>0,$E28*$F28,0) -> 0 | AN28: =IF(SUM(AM$15:AM$22)>0,$E28*$F28,0) -> 0 | AP28: =IF(SUM(AO$15:AO$22)>0,$E28*$F28,0) -> 0 | AR28: =IF(SUM(AQ$15:AQ$22)>0,$E28*$F28,0) -> 0 | AT28: =IF(SUM(AS$15:AS$22)>0,$E28*$F28,0) -> 0 | AV28: =IF(SUM(AU$15:AU$22)>0,$E28*$F28,0) -> 0 | AX28: =IF(SUM(AW$15:AW$22)>0,$E28*$F28,0) -> 0 | AZ28: =IF(SUM(AY$15:AY$22)>0,$E28*$F28,0) -> 0 | BB28: =IF(SUM(BA$15:BA$22)>0,$E28*$F28,0) -> 0 | BD28: =IF(SUM(BC$15:BC$22)>0,$E28*$F28,0) -> 0 | BF28: =IF(SUM(BE$15:BE$22)>0,$E28*$F28,0) -> 0 | BH28: =IF(SUM(BG$15:BG$22)>0,$E28*$F28,0) -> 0 | BJ28: =IF(SUM(BI$15:BI$22)>0,$E28*$F28,0) -> 0 | BL28: =IF(SUM(BK$15:BK$22)>0,$E28*$F28,0) -> 0 | BN28: =IF(SUM(BM$15:BM$22)>0,$E28*$F28,0) -> 0 | BP28: =IF(SUM(BO$15:BO$22)>0,$E28*$F28,0) -> 0 | BR28: =IF(SUM(BQ$15:BQ$22)>0,$E28*$F28,0) -> 0 | BT28: =IF(SUM(BS$15:BS$22)>0,$E28*$F28,0) -> 0 | BV28: =IF(SUM(BU$15:BU$22)>0,$E28*$F28,0) -> 0 | BX28: =IF(SUM(BW$15:BW$22)>0,$E28*$F28,0) -> 0 | BZ28: =IF(SUM(BY$15:BY$22)>0,$E28*$F28,0) -> 0 | CB28: =IF(SUM(CA$15:CA$22)>0,$E28*$F28,0) -> 0 | CD28: =IF(SUM(CC$15:CC$22)>0,$E28*$F28,0) -> 0 | CF28: =IF(SUM(CE$15:CE$22)>0,$E28*$F28,0) -> 0 | CH28: =IF(SUM(CG$15:CG$22)>0,$E28*$F28,0) -> 0 | CJ28: =IF(SUM(CI$15:CI$22)>0,$E28*$F28,0) -> 0 | CL28: =IF(SUM(CK$15:CK$22)>0,$E28*$F28,0) -> 0 | CN28: =IF(SUM(CM$15:CM$22)>0,$E28*$F28,0) -> 0 | CP28: =IF(SUM(CO$15:CO$22)>0,$E28*$F28,0) -> 0 | CR28: =IF(SUM(CQ$15:CQ$22)>0,$E28*$F28,0) -> 0 | CT28: =IF(SUM(CS$15:CS$22)>0,$E28*$F28,0) -> 0 | CV28: =IF(SUM(CU$15:CU$22)>0,$E28*$F28,0) -> 0 | CX28: =IF(SUM(CW$15:CW$22)>0,$E28*$F28,0) -> 0 | CZ28: =IF(SUM(CY$15:CY$22)>0,$E28*$F28,0) -> 0 | DB28: =IF(SUM(DA$15:DA$22)>0,$E28*$F28,0) -> 0 | DD28: =IF(SUM(DC$15:DC$22)>0,$E28*$F28,0) -> 0 | DF28: =IF(SUM(DE$15:DE$22)>0,$E28*$F28,0) -> 0 | DH28: =IF(SUM(DG$15:DG$22)>0,$E28*$F28,0) -> 0 | DJ28: =IF(SUM(DI$15:DI$22)>0,$E28*$F28,0) -> 0 | DL28: =IF(SUM(DK$15:DK$22)>0,$E28*$F28,0) -> 0 | DN28: =IF(SUM(DM$15:DM$22)>0,$E28*$F28,0) -> 0 | DP28: =IF(SUM(DO$15:DO$22)>0,$E28*$F28,0) -> 0 | DR28: =IF(SUM(DQ$15:DQ$22)>0,$E28*$F28,0) -> 0 | DT28: =IF(SUM(DS$15:DS$22)>0,$E28*$F28,0) -> 0 | DV28: =IF(SUM(DU$15:DU$22)>0,$E28*$F28,0) -> 0 | DX28: =IF(SUM(DW$15:DW$22)>0,$E28*$F28,0) -> 0

Sheet Mat Perm (hidden)
C1: CÂMARA DOS DEPUTADOS
C2: DEPARTAMENTO TÉCNICO
C3: Coordenação de Planejamento e Gestão
C5: Data: | D5: ='Dados Gerais'!#REF! -> 
C6: Processo: | D6: ='Dados Gerais'!#REF! -> 
C7: Objeto: | D7: ='Dados Gerais'!#REF! -> 
B11: MATERIAIS PERMANENTES RELACIONADOS AO POSTO - PAGAMENTO DA DEPRECIAÇÃO / MANUTENÇÃO | Q11: 1 | S11: =Q11+1 -> 2 | U11: =S11+1 -> 3 | W11: =U11+1 -> 4 | Y11: =W11+1 -> 5 | AA11: =Y11+1 -> 6 | AC11: =AA11+1 -> 7 | AE11: =AC11+1 -> 8 | AG11: =AE11+1 -> 9 | AI11: =AG11+1 -> 10 | AK11: =AI11+1 -> 11 | AM11: =AK11+1 -> 12 | AO11: =AM11+1 -> 13 | AQ11: =AO11+1 -> 14 | AS11: =AQ11+1 -> 15 | AU11: =AS11+1 -> 16 | AW11: =AU11+1 -> 17 | AY11: =AW11+1 -> 18 | BA11: =AY11+1 -> 19 | BC11: =BA11+1 -> 20 | BE11: =BC11+1 -> 21 | BG11: =BE11+1 -> 22 | BI11: =BG11+1 -> 23 | BK11: =BI11+1 -> 24 | BM11: =BK11+1 -> 25 | BO11: =BM11+1 -> 26 | BQ11: =BO11+1 -> 27 | BS11: =BQ11+1 -> 28 | BU11: =BS11+1 -> 29 | BW11: =BU11+1 -> 30 | BY11: =BW11+1 -> 31 | CA11: =BY11+1 -> 32 | CC11: =CA11+1 -> 33 | CE11: =CC11+1 -> 34 | CG11: =CE11+1 -> 35 | CI11: =CG11+1 -> 36 | CK11: =CI11+1 -> 37 | CM11: =CK11+1 -> 38 | CO11: =CM11+1 -> 39 | CQ11: =CO11+1 -> 40 | CS11: =CQ11+1 -> 41 | CU11: =CS11+1 -> 42 | CW11: =CU11+1 -> 43 | CY11: =CW11+1 -> 44 | DA11: =CY11+1 -> 45 | DC11: =DA11+1 -> 46 | DE11: =DC11+1 -> 47 | DG11: =DE11+1 -> 48 | DI11: =DG11+1 -> 49 | DK11: =DI11+1 -> 50 | DM11: =DK11+1 -> 51 | DO11: =DM11+1 -> 52 | DQ11: =DO11+1 -> 53 | DS11: =DQ11+1 -> 54 | DU11: =DS11+1 -> 55 | DW11: =DU11+1 -> 56 | DY11: =DW11+1 -> 57 | EA11: =DY11+1 -> 58 | EC11: =EA11+1 -> 59 | EE11: =EC11+1 -> 60
Q13: =SUM(R12:R94) -> 0 | S13: =SUM(T12:T94) -> 0 | U13: =SUM(V12:V94) -> 0 | W13: =SUM(X12:X94) -> 0 | Y13: =SUM(Z12:Z94) -> 0 | AA13: =SUM(AB12:AB94) -> 0 | AC13: =SUM(AD12:AD94) -> 0 | AE13: =SUM(AF12:AF94) -> 0 | AG13: =SUM(AH12:AH94) -> 0 | AI13: =SUM(AJ12:AJ94) -> 0 | AK13: =SUM(AL12:AL94) -> 0 | AM13: =SUM(AN12:AN94) -> 0 | AO13: =SUM(AP12:AP94) -> 0 | AQ13: =SUM(AR12:AR94) -> 0 | AS13: =SUM(AT12:AT94) -> 0 | AU13: =SUM(AV12:AV94) -> 0 | AW13: =SUM(AX12:AX94) -> 0 | AY13: =SUM(AZ12:AZ94) -> 0 | BA13: =SUM(BB12:BB94) -> 0 | BC13: =SUM(BD12:BD94) -> 0 | BE13: =SUM(BF12:BF94) -> 0 | BG13: =SUM(BH12:BH94) -> 0 | BI13: =SUM(BJ12:BJ94) -> 0 | BK13: =SUM(BL12:BL94) -> 0 | BM13: =SUM(BN12:BN94) -> 0 | BO13: =SUM(BP12:BP94) -> 0 | BQ13: =SUM(BR12:BR94) -> 0 | BS13: =SUM(BT12:BT94) -> 0 | BU13: =SUM(BV12:BV94) -> 0 | BW13: =SUM(BX12:BX94) -> 0 | BY13: =SUM(BZ12:BZ94) -> 0 | CA13: =SUM(CB12:CB94) -> 0 | CC13: =SUM(CD12:CD94) -> 0 | CE13: =SUM(CF12:CF94) -> 0 | CG13: =SUM(CH12:CH94) -> 0 | CI13: =SUM(CJ12:CJ94) -> 0 | CK13: =SUM(CL12:CL94) -> 0 | CM13: =SUM(CN12:CN94) -> 0 | CO13: =SUM(CP12:CP94) -> 0 | CQ13: =SUM(CR12:CR94) -> 0 | CS13: =SUM(CT12:CT94) -> 0 | CU13: =SUM(CV12:CV94) -> 0 | CW13: =SUM(CX12:CX94) -> 0 | CY13: =SUM(CZ12:CZ94) -> 0 | DA13: =SUM(DB12:DB94) -> 0 | DC13: =SUM(DD12:DD94) -> 0 | DE13: =SUM(DF12:DF94) -> 0 | DG13: =SUM(DH12:DH94) -> 0 | DI13: =SUM(DJ12:DJ94) -> 0 | DK13: =SUM(DL12:DL94) -> 0 | DM13: =SUM(DN12:DN94) -> 0 | DO13: =SUM(DP12:DP94) -> 0 | DQ13: =SUM(DR12:DR94) -> 0 | DS13: =SUM(DT12:DT94) -> 0 | DU13: =SUM(DV12:DV94) -> 0 | DW13: =SUM(DX12:DX94) -> 0 | DY13: =SUM(DZ12:DZ94) -> 0 | EA13: =SUM(EB12:EB94) -> 0 | EC13: =SUM(ED12:ED94) -> 0 | EE13: =SUM(EF12:EF94) -> 0
C14: CATEGORIAS | E14: QUANTIDADE
Q15: =IF($C15=Q$11,1,0) -> 0 | S15: =IF($C15=S$11,1,0) -> 0 | U15: =IF($C15=U$11,1,0) -> 0 | W15: =IF($C15=W$11,1,0) -> 0 | Y15: =IF($C15=Y$11,1,0) -> 0 | AA15: =IF($C15=AA$11,1,0) -> 0 | AC15: =IF($C15=AC$11,1,0) -> 0 | AE15: =IF($C15=AE$11,1,0) -> 0 | AG15: =IF($C15=AG$11,1,0) -> 0 | AI15: =IF($C15=AI$11,1,0) -> 0 | AK15: =IF($C15=AK$11,1,0) -> 0 | AM15: =IF($C15=AM$11,1,0) -> 0 | AO15: =IF($C15=AO$11,1,0) -> 0 | AQ15: =IF($C15=AQ$11,1,0) -> 0 | AS15: =IF($C15=AS$11,1,0) -> 0 | AU15: =IF($C15=AU$11,1,0) -> 0 | AW15: =IF($C15=AW$11,1,0) -> 0 | AY15: =IF($C15=AY$11,1,0) -> 0 | BA15: =IF($C15=BA$11,1,0) -> 0 | BC15: =IF($C15=BC$11,1,0) -> 0 | BE15: =IF($C15=BE$11,1,0) -> 0 | BG15: =IF($C15=BG$11,1,0) -> 0 | BI15: =IF($C15=BI$11,1,0) -> 0 | BK15: =IF($C15=BK$11,1,0) -> 0 | BM15: =IF($C15=BM$11,1,0) -> 0 | BO15: =IF($C15=BO$11,1,0) -> 0 | BQ15: =IF($C15=BQ$11,1,0) -> 0 | BS15: =IF($C15=BS$11,1,0) -> 0 | BU15: =IF($C15=BU$11,1,0) -> 0 | BW15: =IF($C15=BW$11,1,0) -> 0 | BY15: =IF($C15=BY$11,1,0) -> 0 | CA15: =IF($C15=CA$11,1,0) -> 0 | CC15: =IF($C15=CC$11,1,0) -> 0 | CE15: =IF($C15=CE$11,1,0) -> 0 | CG15: =IF($C15=CG$11,1,0) -> 0 | CI15: =IF($C15=CI$11,1,0) -> 0 | CK15: =IF($C15=CK$11,1,0) -> 0 | CM15: =IF($C15=CM$11,1,0) -> 0 | CO15: =IF($C15=CO$11,1,0) -> 0 | CQ15: =IF($C15=CQ$11,1,0) -> 0 | CS15: =IF($C15=CS$11,1,0) -> 0 | CU15: =IF($C15=CU$11,1,0) -> 0 | CW15: =IF($C15=CW$11,1,0) -> 0 | CY15: =IF($C15=CY$11,1,0) -> 0 | DA15: =IF($C15=DA$11,1,0) -> 0 | DC15: =IF($C15=DC$11,1,0) -> 0 | DE15: =IF($C15=DE$11,1,0) -> 0 | DG15: =IF($C15=DG$11,1,0) -> 0 | DI15: =IF($C15=DI$11,1,0) -> 0 | DK15: =IF($C15=DK$11,1,0) -> 0 | DM15: =IF($C15=DM$11,1,0) -> 0 | DO15: =IF($C15=DO$11,1,0) -> 0 | DQ15: =IF($C15=DQ$11,1,0) -> 0 | DS15: =IF($C15=DS$11,1,0) -> 0 | DU15: =IF($C15=DU$11,1,0) -> 0 | DW15: =IF($C15=DW$11,1,0) -> 0 | DY15: =IF($C15=DY$11,1,0) -> 0 | EA15: =IF($C15=EA$11,1,0) -> 0 | EC15: =IF($C15=EC$11,1,0) -> 0 | EE15: =IF($C15=EE$11,1,0) -> 0
D16: =HLOOKUP($C16,'Dados Gerais'!$D$5:$BJ$10,6) ->  | E16: =HLOOKUP($C16,'Dados Gerais'!$D$5:$BJ$14,10) ->  | Q16: 0 | S16: 0 | U16: 0 | W16: 0 | Y16: 0 | AA16: 0 | AC16: 0 | AE16: 0 | AG16: 0 | AI16: 0 | AK16: 0 | AM16: 0 | AO16: 0 | AQ16: 0 | AS16: 0 | AU16: 0 | AW16: 0 | AY16: 0 | BA16: 0 | BC16: 0 | BE16: 0 | BG16: 0 | BI16: 0 | BK16: 0 | BM16: 0 | BO16: 0 | BQ16: 0 | BS16: 0 | BU16: 0 | BW16: 0 | BY16: 0 | CA16: 0 | CC16: 0 | CE16: 0 | CG16: 0 | CI16: 0 | CK16: 0 | CM16: 0 | CO16: 0 | CQ16: 0 | CS16: 0 | CU16: 0 | CW16: 0 | CY16: 0 | DA16: 0 | DC16: 0 | DE16: 0 | DG16: 0 | DI16: 0 | DK16: 0 | DM16: 0 | DO16: 0 | DQ16: 0 | DS16: 0 | DU16: 0 | DW16: 0 | DY16: 0 | EA16: 0 | EC16: 0 | EE16: 0
D17: =HLOOKUP($C17,'Dados Gerais'!$D$5:$BJ$10,6) ->  | E17: =HLOOKUP($C17,'Dados Gerais'!$D$5:$BJ$14,10) ->  | Q17: 0 | S17: 0 | U17: 0 | W17: 0 | Y17: 0 | AA17: 0 | AC17: 0 | AE17: 0 | AG17: 0 | AI17: 0 | AK17: 0 | AM17: 0 | AO17: 0 | AQ17: 0 | AS17: 0 | AU17: 0 | AW17: 0 | AY17: 0 | BA17: 0 | BC17: 0 | BE17: 0 | BG17: 0 | BI17: 0 | BK17: 0 | BM17: 0 | BO17: 0 | BQ17: 0 | BS17: 0 | BU17: 0 | BW17: 0 | BY17: 0 | CA17: 0 | CC17: 0 | CE17: 0 | CG17: 0 | CI17: 0 | CK17: 0 | CM17: 0 | CO17: 0 | CQ17: 0 | CS17: 0 | CU17: 0 | CW17: 0 | CY17: 0 | DA17: 0 | DC17: 0 | DE17: 0 | DG17: 0 | DI17: 0 | DK17: 0 | DM17: 0 | DO17: 0 | DQ17: 0 | DS17: 0 | DU17: 0 | DW17: 0 | DY17: 0 | EA17: 0 | EC17: 0 | EE17: 0
D18: =HLOOKUP($C18,'Dados Gerais'!$D$5:$BJ$10,6) ->  | E18: =HLOOKUP($C18,'Dados Gerais'!$D$5:$BJ$14,10) ->  | Q18: 0 | S18: 0 | U18: 0 | W18: 0 | Y18: 0 | AA18: 0 | AC18: 0 | AE18: 0 | AG18: 0 | AI18: 0 | AK18: 0 | AM18: 0 | AO18: 0 | AQ18: 0 | AS18: 0 | AU18: 0 | AW18: 0 | AY18: 0 | BA18: 0 | BC18: 0 | BE18: 0 | BG18: 0 | BI18: 0 | BK18: 0 | BM18: 0 | BO18: 0 | BQ18: 0 | BS18: 0 | BU18: 0 | BW18: 0 | BY18: 0 | CA18: 0 | CC18: 0 | CE18: 0 | CG18: 0 | CI18: 0 | CK18: 0 | CM18: 0 | CO18: 0 | CQ18: 0 | CS18: 0 | CU18: 0 | CW18: 0 | CY18: 0 | DA18: 0 | DC18: 0 | DE18: 0 | DG18: 0 | DI18: 0 | DK18: 0 | DM18: 0 | DO18: 0 | DQ18: 0 | DS18: 0 | DU18: 0 | DW18: 0 | DY18: 0 | EA18: 0 | EC18: 0 | EE18: 0
D19: =HLOOKUP($C19,'Dados Gerais'!$D$5:$BJ$10,6) ->  | E19: =HLOOKUP($C19,'Dados Gerais'!$D$5:$BJ$14,10) ->  | Q19: 0 | S19: 0 | U19: 0 | W19: 0 | Y19: 0 | AA19: 0 | AC19: 0 | AE19: 0 | AG19: 0 | AI19: 0 | AK19: 0 | AM19: 0 | AO19: 0 | AQ19: 0 | AS19: 0 | AU19: 0 | AW19: 0 | AY19: 0 | BA19: 0 | BC19: 0 | BE19: 0 | BG19: 0 | BI19: 0 | BK19: 0 | BM19: 0 | BO19: 0 | BQ19: 0 | BS19: 0 | BU19: 0 | BW19: 0 | BY19: 0 | CA19: 0 | CC19: 0 | CE19: 0 | CG19: 0 | CI19: 0 | CK19: 0 | CM19: 0 | CO19: 0 | CQ19: 0 | CS19: 0 | CU19: 0 | CW19: 0 | CY19: 0 | DA19: 0 | DC19: 0 | DE19: 0 | DG19: 0 | DI19: 0 | DK19: 0 | DM19: 0 | DO19: 0 | DQ19: 0 | DS19: 0 | DU19: 0 | DW19: 0 | DY19: 0 | EA19: 0 | EC19: 0 | EE19: 0
D20: =HLOOKUP($C20,'Dados Gerais'!$D$5:$BJ$10,6) ->  | E20: =HLOOKUP($C20,'Dados Gerais'!$D$5:$BJ$14,10) ->  | Q20: 0 | S20: 0 | U20: 0 | W20: 0 | Y20: 0 | AA20: 0 | AC20: 0 | AE20: 0 | AG20: 0 | AI20: 0 | AK20: 0 | AM20: 0 | AO20: 0 | AQ20: 0 | AS20: 0 | AU20: 0 | AW20: 0 | AY20: 0 | BA20: 0 | BC20: 0 | BE20: 0 | BG20: 0 | BI20: 0 | BK20: 0 | BM20: 0 | BO20: 0 | BQ20: 0 | BS20: 0 | BU20: 0 | BW20: 0 | BY20: 0 | CA20: 0 | CC20: 0 | CE20: 0 | CG20: 0 | CI20: 0 | CK20: 0 | CM20: 0 | CO20: 0 | CQ20: 0 | CS20: 0 | CU20: 0 | CW20: 0 | CY20: 0 | DA20: 0 | DC20: 0 | DE20: 0 | DG20: 0 | DI20: 0 | DK20: 0 | DM20: 0 | DO20: 0 | DQ20: 0 | DS20: 0 | DU20: 0 | DW20: 0 | DY20: 0 | EA20: 0 | EC20: 0 | EE20: 0
D21: =HLOOKUP($C21,'Dados Gerais'!$D$5:$BJ$10,6) ->  | E21: =HLOOKUP($C21,'Dados Gerais'!$D$5:$BJ$14,10) ->  | Q21: 0 | S21: 0 | U21: 0 | W21: 0 | Y21: 0 | AA21: 0 | AC21: 0 | AE21: 0 | AG21: 0 | AI21: 0 | AK21: 0 | AM21: 0 | AO21: 0 | AQ21: 0 | AS21: 0 | AU21: 0 | AW21: 0 | AY21: 0 | BA21: 0 | BC21: 0 | BE21: 0 | BG21: 0 | BI21: 0 | BK21: 0 | BM21: 0 | BO21: 0 | BQ21: 0 | BS21: 0 | BU21: 0 | BW21: 0 | BY21: 0 | CA21: 0 | CC21: 0 | CE21: 0 | CG21: 0 | CI21: 0 | CK21: 0 | CM21: 0 | CO21: 0 | CQ21: 0 | CS21: 0 | CU21: 0 | CW21: 0 | CY21: 0 | DA21: 0 | DC21: 0 | DE21: 0 | DG21: 0 | DI21: 0 | DK21: 0 | DM21: 0 | DO21: 0 | DQ21: 0 | DS21: 0 | DU21: 0 | DW21: 0 | DY21: 0 | EA21: 0 | EC21: 0 | EE21: 0
Q22: 0 | S22: 0 | U22: 0 | W22: 0 | Y22: 0 | AA22: 0 | AC22: 0 | AE22: 0 | AG22: 0 | AI22: 0 | AK22: 0 | AM22: 0 | AO22: 0 | AQ22: 0 | AS22: 0 | AU22: 0 | AW22: 0 | AY22: 0 | BA22: 0 | BC22: 0 | BE22: 0 | BG22: 0 | BI22: 0 | BK22: 0 | BM22: 0 | BO22: 0 | BQ22: 0 | BS22: 0 | BU22: 0 | BW22: 0 | BY22: 0 | CA22: 0 | CC22: 0 | CE22: 0 | CG22: 0 | CI22: 0 | CK22: 0 | CM22: 0 | CO22: 0 | CQ22: 0 | CS22: 0 | CU22: 0 | CW22: 0 | CY22: 0 | DA22: 0 | DC22: 0 | DE22: 0 | DG22: 0 | DI22: 0 | DK22: 0 | DM22: 0 | DO22: 0 | DQ22: 0 | DS22: 0 | DU22: 0 | DW22: 0 | DY22: 0 | EA22: 0 | EC22: 0 | EE22: 0
C24: PAGAMENTO DA DEPRECIAÇÃO
C25: ITEM | D25: DESCRIÇÃO | E25: QUANT ANUAL | F25: CONTA SIAFI | G25: VALOR DE AQ. | H25: % RESIDUAL | I25: VIDA ÚTIL | J25: DEP. MENSAL | K25: CUSTO TOTAL | L25: BDI (%) | M25: PREÇO TOTAL | N25: FONTE | O25: REFERÊNCIA
F27: 12311.01.09 | G27: 89.34 | H27: 0.1 | I27: 10 | J27: =G27*(1-H27)/(I27*12) -> 0.67005 | K27: =J27*E27 -> 0 | L27: =BDI!$E$26 -> 0.0507 | M27: =ROUND(K27*(1+L27),2) -> 0 | N27: COTAÇÃO
F28: 12311.01.09 | G28: 39 | H28: 0.1 | I28: 10 | J28: =G28*(1-H28)/(I28*12) -> 0.2925 | K28: =J28*E28 -> 0 | L28: =BDI!$E$26 -> 0.0507 | M28: =ROUND(K28*(1+L28),2) -> 0 | N28: COTAÇÃO
F29: 12311.01.09 | G29: 22.08 | H29: 0.1 | I29: 10 | J29: 0.1656 | K29: 0 | L29: =BDI!$E$26 -> 0.0507 | M29: 0 | N29: COTAÇÃO
F30: 12311.01.09 | G30: 8.02 | H30: 0.1 | I30: 10 | J30: 0.06015 | K30: 0 | L30: =BDI!$E$26 -> 0.0507 | M30: 0 | N30: COTAÇÃO
F31: 12311.01.09 | G31: 15.64 | H31: 0.1 | I31: 10 | J31: 0.1173 | K31: 0 | L31: =BDI!$E$26 -> 0.0507 | M31: 0 | N31: COTAÇÃO
F32: 12311.01.09 | G32: 7.63 | H32: 0.1 | I32: 10 | J32: 0.057225 | K32: 0 | L32: =BDI!$E$26 -> 0.0507 | M32: 0 | N32: COTAÇÃO
F33: 12311.01.09 | G33: 21.48 | H33: 0.1 | I33: 10 | J33: 0.1611 | K33: 0 | L33: =BDI!$E$26 -> 0.0507 | M33: 0 | N33: COTAÇÃO
F34: 12311.01.09 | G34: 7.87 | H34: 0.1 | I34: 10 | J34: 0.059025 | K34: 0 | L34: =BDI!$E$26 -> 0.0507 | M34: 0 | N34: COTAÇÃO
F35: 12311.01.09 | G35: 6.73 | H35: 0.1 | I35: 10 | J35: 0.050475 | K35: 0 | L35: =BDI!$E$26 -> 0.0507 | M35: 0 | N35: COTAÇÃO
F36: 12311.01.09 | G36: 15.35 | H36: 0.1 | I36: 10 | J36: 0.115125 | K36: 0 | L36: =BDI!$E$26 -> 0.0507 | M36: 0 | N36: COTAÇÃO
F37: 12311.01.09 | G37: 12.86 | H37: 0.1 | I37: 10 | J37: 0.09645 | K37: 0 | L37: =BDI!$E$26 -> 0.0507 | M37: 0 | N37: COTAÇÃO
F38: 12311.01.09 | G38: 10.12 | H38: 0.1 | I38: 10 | J38: 0.0759 | K38: 0 | L38: =BDI!$E$26 -> 0.0507 | M38: 0 | N38: COTAÇÃO
F39: 12311.01.09 | G39: 61.31 | H39: 0.1 | I39: 10 | J39: 0.459825 | K39: 0 | L39: =BDI!$E$26 -> 0.0507 | M39: 0 | N39: COTAÇÃO
F40: 12311.01.09 | G40: 40.41 | H40: 0.1 | I40: 10 | J40: 0.303075 | K40: 0 | L40: =BDI!$E$26 -> 0.0507 | M40: 0 | N40: COTAÇÃO
F41: 12311.01.09 | G41: 120.53 | H41: 0.1 | I41: 10 | J41: 0.903975 | K41: 0 | L41: =BDI!$E$26 -> 0.0507 | M41: 0 | N41: COTAÇÃO
F42: 12311.01.09 | G42: 31.48 | H42: 0.1 | I42: 10 | J42: 0.2361 | K42: 0 | L42: =BDI!$E$26 -> 0.0507 | M42: 0 | N42: COTAÇÃO
F43: 12311.01.09 | G43: 191.93 | H43: 0.1 | I43: 10 | J43: 1.439475 | K43: 0 | L43: =BDI!$E$26 -> 0.0507 | M43: 0 | N43: COTAÇÃO
F44: 12311.01.09 | G44: 92.78 | H44: 0.1 | I44: 10 | J44: 0.69585 | K44: 0 | L44: =BDI!$E$26 -> 0.0507 | M44: 0 | N44: COTAÇÃO
F45: 12311.01.09 | G45: 36.01 | H45: 0.1 | I45: 10 | J45: 0.270075 | K45: 0 | L45: =BDI!$E$26 -> 0.0507 | M45: 0 | N45: COTAÇÃO
F46: 12311.01.09 | G46: 16.58 | H46: 0.1 | I46: 10 | J46: 0.12435 | K46: 0 | L46: =BDI!$E$26 -> 0.0507 | M46: 0 | N46: COTAÇÃO
F47: 12311.01.09 | G47: 57.93 | H47: 0.1 | I47: 10 | J47: 0.434475 | K47: 0 | L47: =BDI!$E$26 -> 0.0507 | M47: 0 | N47: COTAÇÃO
F48: 12311.01.09 | G48: 47.81 | H48: 0.1 | I48: 10 | J48: 0.358575 | K48: 0 | L48: =BDI!$E$26 -> 0.0507 | M48: 0 | N48: COTAÇÃO
F49: 12311.01.09 | G49: 31.18 | H49: 0.1 | I49: 10 | J49: 0.23385 | K49: 0 | L49: =BDI!$E$26 -> 0.0507 | M49: 0 | N49: COTAÇÃO
F50: 12311.01.09 | G50: 23.95 | H50: 0.1 | I50: 10 | J50: 0.179625 | K50: 0 | L50: =BDI!$E$26 -> 0.0507 | M50: 0 | N50: COTAÇÃO
F51: 12311.01.09 | G51: 35.04 | H51: 0.1 | I51: 10 | J51: 0.2628 | K51: 0 | L51: =BDI!$E$26 -> 0.0507 | M51: 0 | N51: COTAÇÃO
F52: 12311.01.09 | G52: 200.31 | H52: 0.1 | I52: 10 | J52: 1.502325 | K52: 0 | L52: =BDI!$E$26 -> 0.0507 | M52: 0 | N52: COTAÇÃO
F53: 12311.01.09 | G53: 79.59 | H53: 0.1 | I53: 10 | J53: 0.596925 | K53: 0 | L53: =BDI!$E$26 -> 0.0507 | M53: 0 | N53: COTAÇÃO
F54: 12311.01.09 | G54: 227.75 | H54: 0.1 | I54: 10 | J54: 1.708125 | K54: 0 | L54: =BDI!$E$26 -> 0.0507 | M54: 0 | N54: COTAÇÃO
F55: 12311.01.09 | G55: 127.59 | H55: 0.1 | I55: 10 | J55: 0.956925 | K55: 0 | L55: =BDI!$E$26 -> 0.0507 | M55: 0 | N55: COTAÇÃO
C58: PAGAMENTO DA MANUTENÇÃO
C59: ITEM | D59: DESCRIÇÃO | H59: K (calculado) | I59: MENSAL DEPR. | J59: % MAN X DEP | K59: MENSAL MAN. | L59: BDI (%) | M59: PREÇO TOTAL
H61: =H68 -> 0.424116 | I61: =SUM(M27:M55) -> 0 | J61: =H61 -> 0.424116 | K61: =I61*H61 -> 0 | L61: =L27 -> 0.0507 | M61: =ROUND(K61*(1+L61),2) -> 0
E63: K1 | F63: K2 | G63: K3 | H63: K4
E64: 0.85 | F64: 1 | G64: 0.8 | H64: 1
E65: K5 | F65: K6 | G65: K7 | H65: K8
E66: 1 | F66: 0.6 | G66: 0.5 | H66: 1.1
E67: K9 | F67: K10 | G67: K11 | H67: RESULTADO
D68: * a descrição de cada coeficiente segue abaixo | E68: 1.5 | F68: 0.9 | G68: 1.4 | H68: =E64*F64*G64*H64*E66*F66*G66*H66*E68*F68*G68 -> 0.424116
C71: MATERIAL DE CONSUMO ASSOCIADO
C72: ITEM | D72: DESCRIÇÃO | H72: QUANTID/ANO | I72: UNIDADE | J72: VALOR DE AQ. | K72: MENSAL MAT | L72: BDI (%) | M72: PREÇO TOTAL
K74: =J74*H74/12 -> 0 | L74: =L61 -> 0.0507 | M74: =ROUND(K74*(1+L74),2) -> 0
C77: MATERIAL DE CONSUMO ASSOCIADO
C78: ITEM | D78: DESCRIÇÃO | M78: PREÇO TOTAL
C80: 1 | D80: Componente DEPRECIAÇÃO - POR POSTO | M80: =I61 -> 0
C81: 2 | D81: Componente MANUTENÇÃO - POR POSTO | M81: =M61 -> 0
C82: 3 | D82: Componente MATERIAL DE CONSUMO ASSOCIADO - POR POSTO | M82: =M74 -> 0
L84: SOMATÓRIO TOTAL MENSAL - POR POSTO | M84: =SUM(M79:M83) -> 0 | R84: =IF(SUM(Q$15:Q$22)>0,$M84,0) -> 0 | T84: =IF(SUM(S$15:S$22)>0,$M84,0) -> 0 | V84: =IF(SUM(U$15:U$22)>0,$M84,0) -> 0 | X84: =IF(SUM(W$15:W$22)>0,$M84,0) -> 0 | Z84: =IF(SUM(Y$15:Y$22)>0,$M84,0) -> 0 | AB84: =IF(SUM(AA$15:AA$22)>0,$M84,0) -> 0 | AD84: =IF(SUM(AC$15:AC$22)>0,$M84,0) -> 0 | AF84: =IF(SUM(AE$15:AE$22)>0,$M84,0) -> 0 | AH84: =IF(SUM(AG$15:AG$22)>0,$M84,0) -> 0 | AJ84: =IF(SUM(AI$15:AI$22)>0,$M84,0) -> 0 | AL84: =IF(SUM(AK$15:AK$22)>0,$M84,0) -> 0 | AN84: =IF(SUM(AM$15:AM$22)>0,$M84,0) -> 0 | AP84: =IF(SUM(AO$15:AO$22)>0,$M84,0) -> 0 | AR84: =IF(SUM(AQ$15:AQ$22)>0,$M84,0) -> 0 | AT84: =IF(SUM(AS$15:AS$22)>0,$M84,0) -> 0 | AV84: =IF(SUM(AU$15:AU$22)>0,$M84,0) -> 0 | AX84: =IF(SUM(AW$15:AW$22)>0,$M84,0) -> 0 | AZ84: =IF(SUM(AY$15:AY$22)>0,$M84,0) -> 0 | BB84: =IF(SUM(BA$15:BA$22)>0,$M84,0) -> 0 | BD84: =IF(SUM(BC$15:BC$22)>0,$M84,0) -> 0 | BF84: =IF(SUM(BE$15:BE$22)>0,$M84,0) -> 0 | BH84: =IF(SUM(BG$15:BG$22)>0,$M84,0) -> 0 | BJ84: =IF(SUM(BI$15:BI$22)>0,$M84,0) -> 0 | BL84: =IF(SUM(BK$15:BK$22)>0,$M84,0) -> 0 | BN84: =IF(SUM(BM$15:BM$22)>0,$M84,0) -> 0 | BP84: =IF(SUM(BO$15:BO$22)>0,$M84,0) -> 0 | BR84: =IF(SUM(BQ$15:BQ$22)>0,$M84,0) -> 0 | BT84: =IF(SUM(BS$15:BS$22)>0,$M84,0) -> 0 | BV84: =IF(SUM(BU$15:BU$22)>0,$M84,0) -> 0 | BX84: =IF(SUM(BW$15:BW$22)>0,$M84,0) -> 0 | BZ84: =IF(SUM(BY$15:BY$22)>0,$M84,0) -> 0 | CB84: =IF(SUM(CA$15:CA$22)>0,$M84,0) -> 0 | CD84: =IF(SUM(CC$15:CC$22)>0,$M84,0) -> 0 | CF84: =IF(SUM(CE$15:CE$22)>0,$M84,0) -> 0 | CH84: =IF(SUM(CG$15:CG$22)>0,$M84,0) -> 0 | CJ84: =IF(SUM(CI$15:CI$22)>0,$M84,0) -> 0 | CL84: =IF(SUM(CK$15:CK$22)>0,$M84,0) -> 0 | CN84: =IF(SUM(CM$15:CM$22)>0,$M84,0) -> 0 | CP84: =IF(SUM(CO$15:CO$22)>0,$M84,0) -> 0 | CR84: =IF(SUM(CQ$15:CQ$22)>0,$M84,0) -> 0 | CT84: =IF(SUM(CS$15:CS$22)>0,$M84,0) -> 0 | CV84: =IF(SUM(CU$15:CU$22)>0,$M84,0) -> 0 | CX84: =IF(SUM(CW$15:CW$22)>0,$M84,0) -> 0 | CZ84: =IF(SUM(CY$15:CY$22)>0,$M84,0) -> 0 | DB84: =IF(SUM(DA$15:DA$22)>0,$M84,0) -> 0 | DD84: =IF(SUM(DC$15:DC$22)>0,$M84,0) -> 0 | DF84: =IF(SUM(DE$15:DE$22)>0,$M84,0) -> 0 | DH84: =IF(SUM(DG$15:DG$22)>0,$M84,0) -> 0 | DJ84: =IF(SUM(DI$15:DI$22)>0,$M84,0) -> 0 | DL84: =IF(SUM(DK$15:DK$22)>0,$M84,0) -> 0 | DN84: =IF(SUM(DM$15:DM$22)>0,$M84,0) -> 0 | DP84: =IF(SUM(DO$15:DO$22)>0,$M84,0) -> 0 | DR84: =IF(SUM(DQ$15:DQ$22)>0,$M84,0) -> 0 | DT84: =IF(SUM(DS$15:DS$22)>0,$M84,0) -> 0 | DV84: =IF(SUM(DU$15:DU$22)>0,$M84,0) -> 0 | DX84: =IF(SUM(DW$15:DW$22)>0,$M84,0) -> 0 | DZ84: =IF(SUM(DY$15:DY$22)>0,$M84,0) -> 0 | EB84: =IF(SUM(EA$15:EA$22)>0,$M84,0) -> 0 | ED84: =IF(SUM(EC$15:EC$22)>0,$M84,0) -> 0 | EF84: =IF(SUM(EE$15:EE$22)>0,$M84,0) -> 0
L85: SOMATÓRIO TOTAL ANUAL - POR POSTO | M85: =M84*12 -> 0
C88: MATERIAL DE CONSUMO ASSOCIADO
C89: MEMÓRIA DE CÁLCULO DO COEFICIENTE DE CORRELAÇÃO MANUTENÇÃO X DEPRECIAÇÃO (K)
C91: JUSTIFICATIVAS | E91: TIPO | F91: K1 | H91: Condições de Trab | I91: K4 | K91: Tempo Vida (anos) | L91: K6 | N91: Temperatura | O91: K8
E92: Guindaste | F92: 0.5 | H92: Em espera | I92: 0.4 | K92: 1 | L92: 0.6 | N92: Muito quente (> 40º C) | O92: 1.3
C93: K1 | D93: Considerado o valor médio de 0,85 | E93: Caminhão-comum | F93: 0.8 | H93: Leves | I93: 0.8 | K93: 2 | L93: 0.7 | N93: Quente (30º a 40º C) | O93: 1.1
C94: K2 | D94: Considerado o operador médio | E94: Fora-de-estrada | F94: 1 | H94: Médias | I94: 1 | K94: 3 | L94: 0.8 | N94: Médio (10º a 30º C) | O94: 1
C95: K3 | D95: Consideradas ferramentas de primeira qualidade | E95: Carregadeira | F95: 1 | H95: Pesadas | I95: 1.4 | K95: 4 | L95: 0.9 | N95: Frio (< 10º C) | O95: 1.2
C96: K4 | D96: Há todo o tipo de trabalho, foi considerado o valor médio | E96: Escavadeira | F96: 1.4 | H96: Severas | I96: 2 | K96: 5 | L96: 1
C97: K5 | D97: Considerando manutenção normal | E97: Motoescrêiper | F97: 1.1 | K97: 6 | L97: 1 | N97: Ritmo de Trabalho | O97: K9
C98: K6 | D98: Equipamentos novos | E98: Trator de esteira | F98: 1.2 | H98: Manutenção | I98: K5 | K98: 7 | L98: 1 | N98: Folgado | O98: 0.9
C99: K7 | D99: 220h por mês, 252 dias por ano | H99: Excelente | I99: 0.6 | K99: 8 | L99: 1.2 | N99: Médio | O99: 1
C100: K8 | D100: Clima quente, acima de 30º C | E100: Qualid do Operador | F100: K2 | H100: Boa | I100: 0.8 | K100: 9 | L100: 1.3 | N100: Com pressa | O100: 1.5
C101: K9 | D101: Ritmo de trabalho usualmente com pressa | E101: Excelente | F101: 0.8 | H101: Média | I101: 1 | K101: 10 | L101: 1.4
C102: K10 | D102: Considerado o operador médio | E102: Boa | F102: 0.9 | H102: Ruim | I102: 1.5 | K102: 11 | L102: 2 | N102: Conh do Serviço | O102: K10
C103: K11 | D103: Foi considerada a opção de aluguel a terceiros, ainda que a simulação seja dos custos do contratado, contudo a execução dos serviços é em local de terceiros | E103: Média | F103: 1 | H103: Inexistente | I103: 3 | K103: 15 | L103: 2 | N103: Grande | O103: 0.8
E104: Ruim | F104: 1.2 | N104: Médio | O104: 0.9
E105: Péssima | F105: 2 | H105: Horas de Uso | I105: K7 | J105: 6000 | K105: 1 | N105: Pouco | O105: 1
H106: 1000 | I106: 0.5 | J106: 8000 | K106: 1.3
E107: Qualidade do Equip | F107: K3 | H107: 2000 | I107: 0.5 | J107: 10000 | K107: 1.6 | N107: Tipo do Serviço | O107: K11
E108: De primeira | F108: 0.8 | H108: 3000 | I108: 0.6 | J108: 12000 | K108: 1.9 | N108: Mina ou Pedreira | O108: 0.8
E109: Média | F109: 1 | H109: 4000 | I109: 0.7 | J109: 15000 | K109: 2.3 | N109: Construção Geral | O109: 1
E110: Ruim | F110: 1.5 | H110: 5000 | I110: 0.9 | J110: 20000 | K110: 3 | N110: Aluguel a Terceiros | O110: 1.4
E112: Fonte:
E113: MATTOS, Aldo Dórea. Como preparar orçamentos de obras. São Paulo: Pini, 2006. 281 p., il
